Workbook

Sheet Liste
A1: N° | B1: CR | C1: Secteur | D1: Rayon | E1: Mois | F1: Année | G1: Nomenclature
A2: 1 | B2: 33146 | C2: Secteur 1 | D2: Rayon 1 | E2: M01 | F2: 2012 | G2: Articles
A3: 2 | B3: 33799 | C3: Secteur 2 | D3: Rayon 2 | E3: M02 | F3: 2013 | G3: PV moyen
A4: 3 | B4: 32168 | C4: Secteur 3 | D4: Rayon 3 | E4: M03 | G4: Clients
A5: 4 | B5: 32794 | C5: Secteur 4 | D5: Rayon 4 | E5: M04
A6: 5 | B6: 32639 | C6: Secteur 5 | D6: Rayon 5 | E6: M05
A7: 6 | B7: 33307 | C7: Secteur 6 | D7: Rayon 6 | E7: M06
A8: 7 | B8: 32136 | C8: Secteur 7 | D8: Rayon 7 | E8: M07
A9: 8 | B9: 32937 | C9: Secteur 8 | D9: Rayon 8 | E9: M08
A10: 9 | B10: 33679 | C10: Secteur 9 | D10: Rayon 9 | E10: M09
A11: 10 | B11: 33324 | C11: Secteur 10 | D11: Rayon 10 | E11: M10
A12: 11 | B12: 33291 | D12: Rayon 11 | E12: M11
A13: 12 | B13: 34647 | D13: Rayon 12 | E13: M12
A14: 13 | B14: 33892 | D14: Rayon 13
A15: 14 | B15: 33018 | D15: Rayon 14
A16: 15 | B16: 33462 | D16: Rayon 15
A17: 16 | B17: 33024 | D17: Rayon 16
A18: 17 | B18: 33867 | D18: Rayon 17
A19: 18 | B19: 32701 | D19: Rayon 18
A20: 19 | B20: 32565 | D20: Rayon 19
A21: 20 | B21: 33494 | D21: Rayon 20
A22: 21 | B22: 32881 | D22: Rayon 21
A23: 22 | B23: 33604 | D23: Rayon 22
A24: 23 | B24: 33310 | D24: Rayon 23
A25: 24 | B25: 32554 | D25: Rayon 24
A26: 25 | B26: 32203 | D26: Rayon 25
A27: 26 | B27: 33885 | D27: Rayon 26
A28: 27 | B28: 32049 | D28: Rayon 1
A29: 28 | B29: 33910 | D29: Rayon 2
A30: 29 | B30: 33690 | D30: Rayon 3
A31: 30 | B31: 32109 | D31: Rayon 4
A32: 31 | B32: 32338 | D32: Rayon 5
A33: 32 | B33: 34797 | D33: Rayon 6
A34: 33 | B34: 32954 | D34: Rayon 7
A35: 34 | B35: 33993 | D35: Rayon 8
A36: 35 | B36: 33044 | D36: Rayon 9
A37: 36 | B37: 33924 | D37: Rayon 10
A38: 37 | B38: 32861 | D38: Rayon 11
A39: 38 | B39: 32392 | D39: Rayon 27
A40: 39 | B40: 33704 | D40: Rayon 28
A41: 40 | B41: 32221 | D41: Rayon 29
A42: 41 | B42: 33841 | D42: Rayon 30
A43: 42 | B43: 33097 | D43: Rayon 31
A44: 43 | B44: 33904 | D44: Rayon 32
A45: 44 | B45: 33545 | D45: Rayon 33
A46: 45 | B46: 34272 | D46: Rayon 34
A47: 46 | B47: 33487 | D47: Rayon 35
A48: 47 | B48: 32991 | D48: Rayon 36
A49: 48 | B49: 32591 | D49: Rayon 37
A50: 49 | B50: 32772 | D50: Rayon 49
A51: 50 | B51: 33607 | D51: Rayon 50
A52: 51 | B52: 32263 | D52: Rayon 51
A53: 52 | B53: 33147 | D53: Rayon 52
A54: 53 | B54: 33441 | D54: Rayon 53
A55: 54 | B55: 33565 | D55: Rayon 54
A56: 55 | B56: 33984 | D56: Rayon 55
A57: 56 | B57: 33624 | D57: Rayon 56
A58: 57 | B58: 32519 | D58: Rayon 57
A59: 58 | B59: 33836 | D59: Rayon 58
A60: 59 | B60: 34129 | D60: Rayon 59
A61: 60 | B61: 32743 | D61: Rayon 60
A62: 61 | B62: 32186 | D62: Rayon 61
A63: 62 | B63: 32416 | D63: Rayon 62
A64: 63 | B64: 32200 | D64: Rayon 63
A65: 64 | B65: 34005 | D65: Rayon 64
A66: 65 | B66: 33384 | D66: Rayon 65
A67: 66 | B67: 33306 | D67: Rayon 66
A68: 67 | B68: 33482 | D68: Rayon 67
A69: 68 | B69: 33611 | D69: Rayon 68
A70: 69 | B70: 32405 | D70: Rayon 69
A71: 70 | B71: 32435 | D71: Rayon 70
A72: 71 | B72: 33249 | D72: Rayon 71
A73: 72 | B73: 33639 | D73: Rayon 72
A74: 73 | B74: 32329 | D74: Rayon 73
A75: 74 | B75: 33599 | D75: Rayon 74
A76: 75 | B76: 32046 | D76: Rayon 75
A77: 76 | B77: 33098 | D77: Rayon 76
A78: 77 | B78: 32512 | D78: Rayon 77
A79: 78 | B79: 32333 | D79: Rayon 1
A80: 79 | B80: 32242 | D80: Rayon 2
A81: 80 | B81: 32389 | D81: Rayon 3
A82: 81 | B82: 33768 | D82: Rayon 4

Sheet ADHOC
D1: Articles | E1: Articles | F1: Articles | G1: Articles | H1: Articles | I1: Articles | J1: Articles | K1: Articles | L1: Articles | M1: Articles | N1: Articles | O1: Articles | P1: Articles | Q1: Articles | R1: Articles | S1: Articles | T1: Articles | U1: Articles | V1: Articles | W1: Articles | X1: Articles | Y1: Articles | Z1: Articles | AA1: Articles | AB1: PV moyen | AC1: PV moyen | AD1: PV moyen | AE1: PV moyen | AF1: PV moyen | AG1: PV moyen | AH1: PV moyen | AI1: PV moyen | AJ1: PV moyen | AK1: PV moyen | AL1: PV moyen | AM1: PV moyen | AN1: PV moyen | AO1: PV moyen | AP1: PV moyen | AQ1: PV moyen | AR1: PV moyen | AS1: PV moyen | AT1: PV moyen | AU1: PV moyen | AV1: PV moyen | AW1: PV moyen | AX1: PV moyen | AY1: PV moyen | AZ1: Clients | BA1: Clients | BB1: Clients | BC1: Clients | BD1: Clients | BE1: Clients | BF1: Clients | BG1: Clients | BH1: Clients | BI1: Clients | BJ1: Clients | BK1: Clients | BL1: Clients | BM1: Clients | BN1: Clients | BO1: Clients | BP1: Clients | BQ1: Clients | BR1: Clients | BS1: Clients | BT1: Clients | BU1: Clients | BV1: Clients | BW1: Clients
D2: 2012 | E2: 2012 | F2: 2012 | G2: 2012 | H2: 2012 | I2: 2012 | J2: 2012 | K2: 2012 | L2: 2012 | M2: 2012 | N2: 2012 | O2: 2012 | P2: 2013 | Q2: 2013 | R2: 2013 | S2: 2013 | T2: 2013 | U2: 2013 | V2: 2013 | W2: 2013 | X2: 2013 | Y2: 2013 | Z2: 2013 | AA2: 2013 | AB2: 2012 | AC2: 2012 | AD2: 2012 | AE2: 2012 | AF2: 2012 | AG2: 2012 | AH2: 2012 | AI2: 2012 | AJ2: 2012 | AK2: 2012 | AL2: 2012 | AM2: 2012 | AN2: 2013 | AO2: 2013 | AP2: 2013 | AQ2: 2013 | AR2: 2013 | AS2: 2013 | AT2: 2013 | AU2: 2013 | AV2: 2013 | AW2: 2013 | AX2: 2013 | AY2: 2013 | AZ2: 2012 | BA2: 2012 | BB2: 2012 | BC2: 2012 | BD2: 2012 | BE2: 2012 | BF2: 2012 | BG2: 2012 | BH2: 2012 | BI2: 2012 | BJ2: 2012 | BK2: 2012 | BL2: 2013 | BM2: 2013 | BN2: 2013 | BO2: 2013 | BP2: 2013 | BQ2: 2013 | BR2: 2013 | BS2: 2013 | BT2: 2013 | BU2: 2013 | BV2: 2013 | BW2: 2013
A3: CR | B3: Secteur | C3: Rayon | D3: M01 | E3: M02 | F3: M03 | G3: M04 | H3: M05 | I3: M06 | J3: M07 | K3: M08 | L3: M09 | M3: M10 | N3: M11 | O3: M12 | P3: M13 | Q3: M14 | R3: M15 | S3: M16 | T3: M17 | U3: M18 | V3: M19 | W3: M20 | X3: M21 | Y3: M22 | Z3: M23 | AA3: M24 | AB3: M01 | AC3: M02 | AD3: M03 | AE3: M04 | AF3: M05 | AG3: M06 | AH3: M07 | AI3: M08 | AJ3: M09 | AK3: M10 | AL3: M11 | AM3: M12 | AN3: M13 | AO3: M14 | AP3: M15 | AQ3: M16 | AR3: M17 | AS3: M18 | AT3: M19 | AU3: M20 | AV3: M21 | AW3: M22 | AX3: M23 | AY3: M24 | AZ3: M01 | BA3: M02 | BB3: M03 | BC3: M04 | BD3: M05 | BE3: M06 | BF3: M07 | BG3: M08 | BH3: M09 | BI3: M10 | BJ3: M11 | BK3: M12 | BL3: M13 | BM3: M14 | BN3: M15 | BO3: M16 | BP3: M17 | BQ3: M18 | BR3: M19 | BS3: M20 | BT3: M21 | BU3: M22 | BV3: M23 | BW3: M24
A4: 33146 | B4: Secteur 1 | C4: Rayon 1 | D4: 55868565 | E4: 36564761 | F4: 38152348 | G4: 45372655 | H4: 47241622 | I4: 46054647 | J4: 55321205 | K4: 51201074 | L4: 76859657 | M4: 42842296 | N4: 44551299 | O4: 66578702 | P4: 49820989 | Q4: 77170755 | R4: 44914099 | S4: 74706601 | T4: 38843903 | U4: 43291259 | V4: 69658595 | W4: 58645964 | X4: 72777204 | Y4: 64162503 | Z4: 75144326 | AA4: 49623626 | AB4: 2.75 | AC4: 2.3 | AD4: 3.14 | AE4: 2.5 | AF4: 2.59 | AG4: 3.05 | AH4: 3.88 | AI4: 3.65 | AJ4: 2.3 | AK4: 2.56 | AL4: 3.13 | AM4: 2.58 | AN4: 3.19 | AO4: 2.48 | AP4: 2.99 | AQ4: 2.61 | AR4: 2.69 | AS4: 3.83 | AT4: 2.32 | AU4: 3.73 | AV4: 2.59 | AW4: 3.65 | AX4: 3.43 | AY4: 2.37 | AZ4: 12437 | BA4: 14465 | BB4: 11656 | BC4: 11392 | BD4: 12798 | BE4: 14694 | BF4: 10298 | BG4: 15271 | BH4: 15463 | BI4: 11481 | BJ4: 10213 | BK4: 14744 | BL4: 15495 | BM4: 11996 | BN4: 12236 | BO4: 13512 | BP4: 15139 | BQ4: 13747 | BR4: 14515 | BS4: 15488 | BT4: 13517 | BU4: 13420 | BV4: 12367 | BW4: 11246
A5: 33799 | B5: Secteur 1 | C5: Rayon 2 | D5: 44896078 | E5: 65339693 | F5: 77795178 | G5: 76837638 | H5: 63762622 | I5: 71761430 | J5: 78925410 | K5: 59709777 | L5: 56170638 | M5: 45461920 | N5: 41247172 | O5: 65519854 | P5: 53469262 | Q5: 56388878 | R5: 39573574 | S5: 76285938 | T5: 47581711 | U5: 83939729 | V5: 67529178 | W5: 60632794 | X5: 43188858 | Y5: 57928172 | Z5: 62538820 | AA5: 42026651 | AB5: 2.95 | AC5: 3.47 | AD5: 3.69 | AE5: 2.91 | AF5: 3.45 | AG5: 3.9 | AH5: 3.75 | AI5: 2.53 | AJ5: 3.53 | AK5: 3.77 | AL5: 2.86 | AM5: 3.03 | AN5: 3.46 | AO5: 2.73 | AP5: 2.72 | AQ5: 2.39 | AR5: 3.43 | AS5: 3.78 | AT5: 3.73 | AU5: 3.74 | AV5: 2.48 | AW5: 2.58 | AX5: 3.51 | AY5: 3.84 | AZ5: 13188 | BA5: 14369 | BB5: 11873 | BC5: 12211 | BD5: 10487 | BE5: 14827 | BF5: 10338 | BG5: 13358 | BH5: 13591 | BI5: 13158 | BJ5: 11668 | BK5: 10474 | BL5: 12680 | BM5: 15885 | BN5: 13487 | BO5: 11167 | BP5: 12765 | BQ5: 11027 | BR5: 11465 | BS5: 11284 | BT5: 10479 | BU5: 14286 | BV5: 11193 | BW5: 12972
A6: 32168 | B6: Secteur 1 | C6: Rayon 3 | D6: 37459929 | E6: 82874323 | F6: 47852000 | G6: 46502054 | H6: 71566789 | I6: 48178197 | J6: 69823794 | K6: 79502011 | L6: 73930746 | M6: 70796303 | N6: 73323611 | O6: 70144155 | P6: 73894824 | Q6: 74826218 | R6: 44287407 | S6: 64691277 | T6: 45533007 | U6: 52524026 | V6: 61193876 | W6: 80040867 | X6: 80450375 | Y6: 45220508 | Z6: 83296413 | AA6: 41907054 | AB6: 3.34 | AC6: 3.73 | AD6: 2.9 | AE6: 2.57 | AF6: 3.59 | AG6: 3.27 | AH6: 2.71 | AI6: 3.26 | AJ6: 3.69 | AK6: 2.77 | AL6: 2.76 | AM6: 3.03 | AN6: 3.22 | AO6: 3.33 | AP6: 2.93 | AQ6: 3.82 | AR6: 3.18 | AS6: 2.71 | AT6: 3.01 | AU6: 3.39 | AV6: 3.28 | AW6: 2.36 | AX6: 2.37 | AY6: 3.77 | AZ6: 14792 | BA6: 12662 | BB6: 15832 | BC6: 13032 | BD6: 12470 | BE6: 10883 | BF6: 11392 | BG6: 10147 | BH6: 13887 | BI6: 13607 | BJ6: 13329 | BK6: 11537 | BL6: 15501 | BM6: 10514 | BN6: 13368 | BO6: 12518 | BP6: 11224 | BQ6: 12172 | BR6: 12569 | BS6: 14760 | BT6: 13026 | BU6: 10085 | BV6: 11345 | BW6: 11518
A7: 32794 | B7: Secteur 1 | C7: Rayon 4 | D7: 59381310 | E7: 65457329 | F7: 59259343 | G7: 52572870 | H7: 53150707 | I7: 77527796 | J7: 84051900 | K7: 47461978 | L7: 45874443 | M7: 75684632 | N7: 47756782 | O7: 64069862 | P7: 52398063 | Q7: 80526962 | R7: 61751863 | S7: 82223463 | T7: 72482443 | U7: 44564588 | V7: 56772746 | W7: 74996697 | X7: 50272902 | Y7: 67916920 | Z7: 58528924 | AA7: 60973085 | AB7: 2.27 | AC7: 3.67 | AD7: 2.56 | AE7: 2.73 | AF7: 3.15 | AG7: 2.65 | AH7: 3.6 | AI7: 2.6 | AJ7: 3.28 | AK7: 3.87 | AL7: 3.86 | AM7: 2.59 | AN7: 3.87 | AO7: 3.66 | AP7: 2.6 | AQ7: 3.26 | AR7: 3.55 | AS7: 3.21 | AT7: 3.35 | AU7: 3.29 | AV7: 2.74 | AW7: 2.46 | AX7: 3.97 | AY7: 3.05 | AZ7: 10508 | BA7: 12154 | BB7: 13224 | BC7: 12929 | BD7: 10255 | BE7: 13688 | BF7: 15673 | BG7: 12385 | BH7: 13773 | BI7: 10273 | BJ7: 10483 | BK7: 13594 | BL7: 14093 | BM7: 12998 | BN7: 14884 | BO7: 11949 | BP7: 11835 | BQ7: 11076 | BR7: 11369 | BS7: 10085 | BT7: 14462 | BU7: 13305 | BV7: 11426 | BW7: 14372
A8: 32639 | B8: Secteur 1 | C8: Rayon 5 | D8: 68907762 | E8: 43425267 | F8: 67752774 | G8: 70813575 | H8: 51596517 | I8: 59644536 | J8: 49329791 | K8: 52185574 | L8: 61815832 | M8: 84091998 | N8: 67686290 | O8: 51019116 | P8: 70142057 | Q8: 48223269 | R8: 76370457 | S8: 69984552 | T8: 64746318 | U8: 43099027 | V8: 66172074 | W8: 65771960 | X8: 45182762 | Y8: 39435789 | Z8: 45431555 | AA8: 39227019 | AB8: 3.45 | AC8: 3.57 | AD8: 3.18 | AE8: 3.42 | AF8: 3.63 | AG8: 2.77 | AH8: 3.29 | AI8: 3.02 | AJ8: 3.73 | AK8: 2.91 | AL8: 3.77 | AM8: 3.17 | AN8: 3.23 | AO8: 3.9 | AP8: 3.93 | AQ8: 3.78 | AR8: 3.06 | AS8: 2.96 | AT8: 2.62 | AU8: 2.8 | AV8: 2.61 | AW8: 3.77 | AX8: 2.62 | AY8: 3.65 | AZ8: 14731 | BA8: 15491 | BB8: 15024 | BC8: 10565 | BD8: 12272 | BE8: 14592 | BF8: 12643 | BG8: 12846 | BH8: 15805 | BI8: 12703 | BJ8: 14126 | BK8: 12502 | BL8: 15348 | BM8: 11405 | BN8: 15053 | BO8: 11586 | BP8: 13400 | BQ8: 13905 | BR8: 15428 | BS8: 12693 | BT8: 11004 | BU8: 14731 | BV8: 15145 | BW8: 12900
A9: 33307 | B9: Secteur 1 | C9: Rayon 6 | D9: 63897154 | E9: 74969783 | F9: 36984018 | G9: 81227673 | H9: 37676677 | I9: 45200760 | J9: 45462166 | K9: 46661730 | L9: 44115203 | M9: 72699855 | N9: 71821254 | O9: 68126750 | P9: 78060657 | Q9: 40662857 | R9: 81145053 | S9: 74809610 | T9: 57661803 | U9: 41169890 | V9: 72589677 | W9: 37122087 | X9: 75272381 | Y9: 57927975 | Z9: 62235444 | AA9: 83129462 | AB9: 2.59 | AC9: 2.6 | AD9: 2.92 | AE9: 3.47 | AF9: 3.91 | AG9: 3.26 | AH9: 3.21 | AI9: 3.56 | AJ9: 3.18 | AK9: 3.02 | AL9: 2.46 | AM9: 3.07 | AN9: 2.48 | AO9: 3.51 | AP9: 3.63 | AQ9: 3.57 | AR9: 3.16 | AS9: 3.41 | AT9: 3.22 | AU9: 2.79 | AV9: 3.83 | AW9: 3.43 | AX9: 3.19 | AY9: 3.17 | AZ9: 14713 | BA9: 13317 | BB9: 15433 | BC9: 13694 | BD9: 12564 | BE9: 15146 | BF9: 11044 | BG9: 12120 | BH9: 11933 | BI9: 15575 | BJ9: 13221 | BK9: 14335 | BL9: 15732 | BM9: 14741 | BN9: 11506 | BO9: 11976 | BP9: 10289 | BQ9: 10825 | BR9: 12519 | BS9: 14610 | BT9: 14247 | BU9: 11510 | BV9: 12568 | BW9: 12141
A10: 32136 | B10: Secteur 1 | C10: Rayon 7 | D10: 57909313 | E10: 83462573 | F10: 38076019 | G10: 77585905 | H10: 75583309 | I10: 65809729 | J10: 55616654 | K10: 36257137 | L10: 36683178 | M10: 66984300 | N10: 76077911 | O10: 61051618 | P10: 56826436 | Q10: 47917857 | R10: 58345328 | S10: 67878959 | T10: 74454780 | U10: 58178506 | V10: 61093422 | W10: 58499906 | X10: 39224789 | Y10: 37101197 | Z10: 43129965 | AA10: 83596153 | AB10: 2.74 | AC10: 3.59 | AD10: 2.91 | AE10: 2.9 | AF10: 3.74 | AG10: 2.52 | AH10: 2.82 | AI10: 2.3 | AJ10: 3.24 | AK10: 3.17 | AL10: 2.54 | AM10: 3.89 | AN10: 3.72 | AO10: 3.63 | AP10: 2.32 | AQ10: 2.49 | AR10: 2.34 | AS10: 2.74 | AT10: 3.35 | AU10: 3.44 | AV10: 3.15 | AW10: 3.7 | AX10: 3.24 | AY10: 3.95 | AZ10: 10184 | BA10: 12841 | BB10: 10494 | BC10: 14223 | BD10: 15514 | BE10: 14274 | BF10: 15794 | BG10: 14926 | BH10: 15020 | BI10: 12656 | BJ10: 11797 | BK10: 12678 | BL10: 15500 | BM10: 12367 | BN10: 12504 | BO10: 13681 | BP10: 10317 | BQ10: 13427 | BR10: 11040 | BS10: 14780 | BT10: 15735 | BU10: 14492 | BV10: 14273 | BW10: 10204
A11: 32937 | B11: Secteur 1 | C11: Rayon 8 | D11: 52003311 | E11: 38187827 | F11: 44120887 | G11: 70937315 | H11: 38973172 | I11: 68052655 | J11: 58597151 | K11: 46275717 | L11: 36034890 | M11: 36209475 | N11: 54552182 | O11: 63853517 | P11: 63658273 | Q11: 45740244 | R11: 51483663 | S11: 55316531 | T11: 65776489 | U11: 58594261 | V11: 69436378 | W11: 68430579 | X11: 68419558 | Y11: 74883752 | Z11: 56230041 | AA11: 62213990 | AB11: 3.48 | AC11: 2.59 | AD11: 2.29 | AE11: 2.43 | AF11: 3.09 | AG11: 3.91 | AH11: 3.68 | AI11: 2.56 | AJ11: 3.29 | AK11: 3.35 | AL11: 2.5 | AM11: 3.3 | AN11: 3.86 | AO11: 3.91 | AP11: 3.3 | AQ11: 3.87 | AR11: 2.84 | AS11: 2.87 | AT11: 2.77 | AU11: 2.98 | AV11: 3.07 | AW11: 2.27 | AX11: 3.61 | AY11: 2.59 | AZ11: 14951 | BA11: 10955 | BB11: 10160 | BC11: 15058 | BD11: 11718 | BE11: 10205 | BF11: 10587 | BG11: 10353 | BH11: 14038 | BI11: 12442 | BJ11: 14482 | BK11: 14754 | BL11: 11039 | BM11: 11453 | BN11: 13671 | BO11: 13097 | BP11: 15404 | BQ11: 15126 | BR11: 12851 | BS11: 15205 | BT11: 13276 | BU11: 11771 | BV11: 13482 | BW11: 10539
A12: 33679 | B12: Secteur 1 | C12: Rayon 9 | D12: 66961571 | E12: 45861660 | F12: 81915349 | G12: 60014062 | H12: 45949968 | I12: 78033102 | J12: 59755398 | K12: 43409489 | L12: 44125106 | M12: 79783880 | N12: 52235491 | O12: 69101378 | P12: 52737636 | Q12: 64423659 | R12: 38017511 | S12: 82316367 | T12: 74329138 | U12: 79342999 | V12: 39871856 | W12: 71344237 | X12: 69100508 | Y12: 70227439 | Z12: 73633143 | AA12: 58924904 | AB12: 2.34 | AC12: 3.88 | AD12: 2.93 | AE12: 2.46 | AF12: 2.85 | AG12: 3.11 | AH12: 2.47 | AI12: 3.47 | AJ12: 3.83 | AK12: 2.43 | AL12: 2.75 | AM12: 2.78 | AN12: 3.42 | AO12: 2.46 | AP12: 2.69 | AQ12: 3.17 | AR12: 2.95 | AS12: 3.6 | AT12: 3.01 | AU12: 2.48 | AV12: 3.68 | AW12: 2.67 | AX12: 2.88 | AY12: 3.38 | AZ12: 13135 | BA12: 10757 | BB12: 14838 | BC12: 15711 | BD12: 14646 | BE12: 10709 | BF12: 10236 | BG12: 11754 | BH12: 11787 | BI12: 13196 | BJ12: 14616 | BK12: 11997 | BL12: 14830 | BM12: 14948 | BN12: 14163 | BO12: 15121 | BP12: 14614 | BQ12: 12859 | BR12: 11578 | BS12: 11821 | BT12: 10177 | BU12: 14449 | BV12: 12735 | BW12: 15715
A13: 33324 | B13: Secteur 1 | C13: Rayon 10 | D13: 76828644 | E13: 36180908 | F13: 54531352 | G13: 74576397 | H13: 70404885 | I13: 68984648 | J13: 58412326 | K13: 57480984 | L13: 47560853 | M13: 48930704 | N13: 39244432 | O13: 58498320 | P13: 42268858 | Q13: 40439929 | R13: 55338466 | S13: 76712851 | T13: 38795312 | U13: 64745420 | V13: 60070140 | W13: 57056407 | X13: 50027492 | Y13: 63762390 | Z13: 78960440 | AA13: 57840112 | AB13: 3.16 | AC13: 3 | AD13: 3.46 | AE13: 2.66 | AF13: 3.97 | AG13: 2.79 | AH13: 3.71 | AI13: 2.85 | AJ13: 3.07 | AK13: 3.14 | AL13: 2.44 | AM13: 2.54 | AN13: 2.98 | AO13: 2.73 | AP13: 2.92 | AQ13: 3.38 | AR13: 3.6 | AS13: 3.86 | AT13: 2.74 | AU13: 2.32 | AV13: 3.55 | AW13: 2.29 | AX13: 2.85 | AY13: 2.91 | AZ13: 14403 | BA13: 10539 | BB13: 15082 | BC13: 10126 | BD13: 10308 | BE13: 15008 | BF13: 15472 | BG13: 13186 | BH13: 15412 | BI13: 14383 | BJ13: 15409 | BK13: 10062 | BL13: 14102 | BM13: 14532 | BN13: 11172 | BO13: 11714 | BP13: 12689 | BQ13: 11432 | BR13: 13738 | BS13: 10277 | BT13: 10591 | BU13: 14131 | BV13: 14470 | BW13: 11880
A14: 33291 | B14: Secteur 2 | C14: Rayon 11 | D14: 51750209 | E14: 75023992 | F14: 39484027 | G14: 59257383 | H14: 79534580 | I14: 70726676 | J14: 69757068 | K14: 72182153 | L14: 79463910 | M14: 41295127 | N14: 83136151 | O14: 78238314 | P14: 82440149 | Q14: 36416576 | R14: 83249504 | S14: 45981887 | T14: 35904340 | U14: 47853298 | V14: 61819126 | W14: 62060915 | X14: 52957918 | Y14: 62312205 | Z14: 64622389 | AA14: 82900865 | AB14: 2.35 | AC14: 2.69 | AD14: 3.17 | AE14: 2.27 | AF14: 3.62 | AG14: 2.46 | AH14: 3.25 | AI14: 3.73 | AJ14: 3.19 | AK14: 2.86 | AL14: 2.31 | AM14: 2.91 | AN14: 2.29 | AO14: 2.6 | AP14: 3.3 | AQ14: 3.81 | AR14: 3.07 | AS14: 2.71 | AT14: 3.41 | AU14: 2.94 | AV14: 3.04 | AW14: 3.54 | AX14: 2.32 | AY14: 2.37 | AZ14: 15823 | BA14: 14894 | BB14: 11074 | BC14: 10902 | BD14: 12865 | BE14: 11671 | BF14: 13832 | BG14: 15782 | BH14: 11388 | BI14: 10122 | BJ14: 10660 | BK14: 14393 | BL14: 14041 | BM14: 13175 | BN14: 15281 | BO14: 13865 | BP14: 14393 | BQ14: 15602 | BR14: 12829 | BS14: 11286 | BT14: 12395 | BU14: 12347 | BV14: 11353 | BW14: 12344
A15: 34647 | B15: Secteur 2 | C15: Rayon 12 | D15: 83658616 | E15: 67363510 | F15: 38275542 | G15: 62747553 | H15: 81137324 | I15: 67012077 | J15: 41972049 | K15: 38468475 | L15: 60122678 | M15: 59428395 | N15: 71188853 | O15: 38903244 | P15: 55630932 | Q15: 38789451 | R15: 55986755 | S15: 61206779 | T15: 38875534 | U15: 53341185 | V15: 59672232 | W15: 43722471 | X15: 75587915 | Y15: 62204517 | Z15: 57444490 | AA15: 62953066 | AB15: 3.51 | AC15: 3.55 | AD15: 3.84 | AE15: 3.65 | AF15: 2.37 | AG15: 2.57 | AH15: 3.16 | AI15: 2.74 | AJ15: 3.38 | AK15: 3.88 | AL15: 3.02 | AM15: 3.09 | AN15: 3.34 | AO15: 3.3 | AP15: 2.84 | AQ15: 3.12 | AR15: 3.12 | AS15: 3.23 | AT15: 2.79 | AU15: 3.03 | AV15: 2.71 | AW15: 2.43 | AX15: 3.44 | AY15: 2.56 | AZ15: 10668 | BA15: 13492 | BB15: 11705 | BC15: 13942 | BD15: 10312 | BE15: 15283 | BF15: 12875 | BG15: 10918 | BH15: 15346 | BI15: 11697 | BJ15: 15265 | BK15: 13511 | BL15: 15512 | BM15: 14789 | BN15: 15432 | BO15: 11255 | BP15: 14677 | BQ15: 13429 | BR15: 13771 | BS15: 13720 | BT15: 13974 | BU15: 15502 | BV15: 12394 | BW15: 15004
A16: 33892 | B16: Secteur 2 | C16: Rayon 13 | D16: 59587906 | E16: 63707232 | F16: 52181480 | G16: 57287755 | H16: 55588752 | I16: 47938819 | J16: 55878367 | K16: 82151924 | L16: 42086614 | M16: 76826382 | N16: 67733007 | O16: 81258843 | P16: 76513061 | Q16: 61441303 | R16: 50929748 | S16: 40632898 | T16: 45333053 | U16: 38871640 | V16: 59095217 | W16: 45313193 | X16: 78821935 | Y16: 48379939 | Z16: 73660045 | AA16: 83060604 | AB16: 3.37 | AC16: 3.06 | AD16: 3.61 | AE16: 3.91 | AF16: 2.6 | AG16: 2.5 | AH16: 3.69 | AI16: 3.81 | AJ16: 3.41 | AK16: 2.56 | AL16: 3.95 | AM16: 2.81 | AN16: 2.71 | AO16: 2.64 | AP16: 3.74 | AQ16: 2.74 | AR16: 3.48 | AS16: 3.11 | AT16: 2.29 | AU16: 2.68 | AV16: 3.28 | AW16: 3.07 | AX16: 3.53 | AY16: 2.79 | AZ16: 12433 | BA16: 10940 | BB16: 15857 | BC16: 14709 | BD16: 13576 | BE16: 13877 | BF16: 11427 | BG16: 14491 | BH16: 12372 | BI16: 15720 | BJ16: 14922 | BK16: 14961 | BL16: 12807 | BM16: 10317 | BN16: 14970 | BO16: 15008 | BP16: 13041 | BQ16: 12420 | BR16: 15085 | BS16: 15616 | BT16: 14299 | BU16: 14940 | BV16: 10934 | BW16: 12809
A17: 33018 | B17: Secteur 2 | C17: Rayon 14 | D17: 37005055 | E17: 80025495 | F17: 60200411 | G17: 59981543 | H17: 44147602 | I17: 51458706 | J17: 44849922 | K17: 72905918 | L17: 61028492 | M17: 45888923 | N17: 58724147 | O17: 54894512 | P17: 46520908 | Q17: 83524527 | R17: 50937624 | S17: 83487144 | T17: 58404626 | U17: 39208964 | V17: 77933569 | W17: 46413303 | X17: 70677490 | Y17: 55290176 | Z17: 68523175 | AA17: 69714211 | AB17: 3.59 | AC17: 3.84 | AD17: 2.61 | AE17: 2.54 | AF17: 2.62 | AG17: 2.98 | AH17: 3.91 | AI17: 3.9 | AJ17: 3.52 | AK17: 2.63 | AL17: 2.35 | AM17: 3.82 | AN17: 3.06 | AO17: 2.65 | AP17: 3.85 | AQ17: 2.48 | AR17: 3.57 | AS17: 2.53 | AT17: 3.01 | AU17: 2.27 | AV17: 3.64 | AW17: 3.48 | AX17: 2.82 | AY17: 3.46 | AZ17: 11767 | BA17: 10450 | BB17: 14812 | BC17: 10300 | BD17: 10431 | BE17: 12806 | BF17: 13402 | BG17: 15341 | BH17: 10472 | BI17: 12753 | BJ17: 14126 | BK17: 11227 | BL17: 15456 | BM17: 10486 | BN17: 14114 | BO17: 10863 | BP17: 15216 | BQ17: 10242 | BR17: 11861 | BS17: 12442 | BT17: 14895 | BU17: 13731 | BV17: 13336 | BW17: 12976
A18: 33462 | B18: Secteur 2 | C18: Rayon 15 | D18: 36361194 | E18: 38343495 | F18: 48228227 | G18: 57874294 | H18: 80798265 | I18: 61878310 | J18: 61730989 | K18: 47562900 | L18: 64642221 | M18: 60930309 | N18: 56410201 | O18: 79028842 | P18: 71570489 | Q18: 78916022 | R18: 50965805 | S18: 52191409 | T18: 54150579 | U18: 59282291 | V18: 80553019 | W18: 71035589 | X18: 36492495 | Y18: 53622165 | Z18: 76767933 | AA18: 55547389 | AB18: 3.36 | AC18: 2.7 | AD18: 2.65 | AE18: 2.34 | AF18: 3.24 | AG18: 3.21 | AH18: 2.72 | AI18: 2.82 | AJ18: 2.73 | AK18: 3.78 | AL18: 2.31 | AM18: 3.86 | AN18: 3.88 | AO18: 2.84 | AP18: 3.4 | AQ18: 3.21 | AR18: 3.21 | AS18: 2.36 | AT18: 2.37 | AU18: 3.33 | AV18: 3.13 | AW18: 2.34 | AX18: 3.11 | AY18: 3.33 | AZ18: 13209 | BA18: 14829 | BB18: 15605 | BC18: 13243 | BD18: 12183 | BE18: 15716 | BF18: 14011 | BG18: 11784 | BH18: 13342 | BI18: 13984 | BJ18: 12275 | BK18: 12339 | BL18: 10153 | BM18: 14112 | BN18: 11647 | BO18: 15556 | BP18: 13984 | BQ18: 11277 | BR18: 15180 | BS18: 12241 | BT18: 13519 | BU18: 11931 | BV18: 14613 | BW18: 14001
A19: 33024 | B19: Secteur 3 | C19: Rayon 16 | D19: 44781816 | E19: 63677789 | F19: 60203529 | G19: 36580662 | H19: 77910470 | I19: 72997412 | J19: 46626161 | K19: 52650644 | L19: 80692068 | M19: 59815663 | N19: 44561130 | O19: 80916822 | P19: 81730867 | Q19: 63728210 | R19: 56856778 | S19: 75345010 | T19: 53899413 | U19: 75939980 | V19: 76666095 | W19: 46093676 | X19: 43424346 | Y19: 74330384 | Z19: 75562065 | AA19: 83710658 | AB19: 2.79 | AC19: 3.67 | AD19: 2.76 | AE19: 3.45 | AF19: 2.92 | AG19: 3.54 | AH19: 2.85 | AI19: 2.96 | AJ19: 3.16 | AK19: 3.36 | AL19: 3.03 | AM19: 3.28 | AN19: 3.18 | AO19: 3 | AP19: 2.93 | AQ19: 2.92 | AR19: 2.73 | AS19: 2.55 | AT19: 2.76 | AU19: 3.41 | AV19: 3.91 | AW19: 2.83 | AX19: 3.1 | AY19: 2.78 | AZ19: 14216 | BA19: 13597 | BB19: 12058 | BC19: 10398 | BD19: 12163 | BE19: 11408 | BF19: 12116 | BG19: 13132 | BH19: 15186 | BI19: 10334 | BJ19: 10893 | BK19: 13234 | BL19: 15025 | BM19: 10489 | BN19: 11457 | BO19: 10656 | BP19: 15267 | BQ19: 15738 | BR19: 10595 | BS19: 11997 | BT19: 11675 | BU19: 10073 | BV19: 12851 | BW19: 15615
A20: 33867 | B20: Secteur 3 | C20: Rayon 17 | D20: 75337570 | E20: 38498653 | F20: 37941421 | G20: 71050980 | H20: 73556177 | I20: 71786454 | J20: 64257562 | K20: 47266314 | L20: 72949536 | M20: 40074679 | N20: 35887128 | O20: 79120995 | P20: 57640256 | Q20: 55049482 | R20: 44534813 | S20: 53788353 | T20: 64087900 | U20: 60257545 | V20: 48367680 | W20: 62858508 | X20: 72645593 | Y20: 43209133 | Z20: 73720186 | AA20: 60211636 | AB20: 3.86 | AC20: 3.3 | AD20: 3.86 | AE20: 3.69 | AF20: 2.57 | AG20: 3.42 | AH20: 2.52 | AI20: 2.81 | AJ20: 2.46 | AK20: 2.88 | AL20: 3.96 | AM20: 3.28 | AN20: 3.32 | AO20: 2.8 | AP20: 2.65 | AQ20: 3.66 | AR20: 3.65 | AS20: 3.22 | AT20: 2.57 | AU20: 2.56 | AV20: 3.35 | AW20: 3.64 | AX20: 3.29 | AY20: 3.18 | AZ20: 10061 | BA20: 10850 | BB20: 10607 | BC20: 10888 | BD20: 14272 | BE20: 14073 | BF20: 11220 | BG20: 15055 | BH20: 10512 | BI20: 11802 | BJ20: 14325 | BK20: 12065 | BL20: 12591 | BM20: 11365 | BN20: 15373 | BO20: 14190 | BP20: 12919 | BQ20: 13669 | BR20: 12177 | BS20: 10565 | BT20: 13549 | BU20: 15511 | BV20: 14242 | BW20: 12906
A21: 32701 | B21: Secteur 3 | C21: Rayon 18 | D21: 80604211 | E21: 63146704 | F21: 62036579 | G21: 38635500 | H21: 78042681 | I21: 63216818 | J21: 81378979 | K21: 73121439 | L21: 46070408 | M21: 70347727 | N21: 69385924 | O21: 54433454 | P21: 39860642 | Q21: 83853156 | R21: 41306696 | S21: 56580142 | T21: 74546632 | U21: 65368726 | V21: 77322382 | W21: 39160409 | X21: 62037580 | Y21: 78802232 | Z21: 67318150 | AA21: 52418145 | AB21: 3.56 | AC21: 3.8 | AD21: 3.17 | AE21: 2.8 | AF21: 2.79 | AG21: 3.28 | AH21: 2.37 | AI21: 3.49 | AJ21: 2.9 | AK21: 2.89 | AL21: 3.24 | AM21: 3.34 | AN21: 3.04 | AO21: 2.98 | AP21: 3.59 | AQ21: 2.49 | AR21: 3.91 | AS21: 2.91 | AT21: 3.26 | AU21: 2.53 | AV21: 3.63 | AW21: 2.63 | AX21: 3.11 | AY21: 2.43 | AZ21: 13449 | BA21: 13066 | BB21: 13260 | BC21: 14972 | BD21: 10216 | BE21: 15741 | BF21: 14388 | BG21: 12783 | BH21: 13418 | BI21: 11096 | BJ21: 11408 | BK21: 15559 | BL21: 14018 | BM21: 12230 | BN21: 14704 | BO21: 14273 | BP21: 14692 | BQ21: 14895 | BR21: 14423 | BS21: 10255 | BT21: 12733 | BU21: 12005 | BV21: 14600 | BW21: 11076
A22: 32565 | B22: Secteur 3 | C22: Rayon 19 | D22: 49503779 | E22: 59040604 | F22: 37322351 | G22: 62481457 | H22: 41547471 | I22: 61343598 | J22: 57737155 | K22: 40547774 | L22: 75243944 | M22: 62984032 | N22: 52712648 | O22: 71108976 | P22: 82487345 | Q22: 68649775 | R22: 54060889 | S22: 42920644 | T22: 71484072 | U22: 76037565 | V22: 36006038 | W22: 36874464 | X22: 50547396 | Y22: 41136654 | Z22: 71835602 | AA22: 79349644 | AB22: 2.84 | AC22: 2.29 | AD22: 2.74 | AE22: 3.55 | AF22: 3.13 | AG22: 3.79 | AH22: 2.71 | AI22: 3.55 | AJ22: 3.34 | AK22: 2.41 | AL22: 3.43 | AM22: 3.87 | AN22: 3.68 | AO22: 3.48 | AP22: 2.6 | AQ22: 2.64 | AR22: 2.31 | AS22: 2.6 | AT22: 3 | AU22: 3.39 | AV22: 3.29 | AW22: 2.91 | AX22: 2.41 | AY22: 3.05 | AZ22: 14982 | BA22: 11349 | BB22: 15113 | BC22: 11245 | BD22: 10766 | BE22: 13256 | BF22: 15773 | BG22: 15149 | BH22: 11142 | BI22: 15163 | BJ22: 15626 | BK22: 10725 | BL22: 10262 | BM22: 11042 | BN22: 10161 | BO22: 12582 | BP22: 11966 | BQ22: 14634 | BR22: 11710 | BS22: 13346 | BT22: 15803 | BU22: 11287 | BV22: 10291 | BW22: 11115
A23: 33494 | B23: Secteur 3 | C23: Rayon 20 | D23: 56464668 | E23: 70190359 | F23: 80327295 | G23: 50156863 | H23: 50332334 | I23: 42765729 | J23: 79467731 | K23: 47486491 | L23: 42641116 | M23: 76493737 | N23: 70921003 | O23: 36231407 | P23: 78787739 | Q23: 64781389 | R23: 58102468 | S23: 78696130 | T23: 40897802 | U23: 75955498 | V23: 72904091 | W23: 65653598 | X23: 49374888 | Y23: 75956692 | Z23: 76980391 | AA23: 53588233 | AB23: 3.69 | AC23: 2.98 | AD23: 2.66 | AE23: 3.13 | AF23: 2.45 | AG23: 2.62 | AH23: 2.82 | AI23: 3.46 | AJ23: 3.19 | AK23: 3.5 | AL23: 2.89 | AM23: 3.72 | AN23: 3.43 | AO23: 3.21 | AP23: 3.64 | AQ23: 3.42 | AR23: 2.39 | AS23: 3.34 | AT23: 2.39 | AU23: 3.84 | AV23: 3.84 | AW23: 3.8 | AX23: 2.68 | AY23: 2.6 | AZ23: 10928 | BA23: 14263 | BB23: 14588 | BC23: 12918 | BD23: 13498 | BE23: 11785 | BF23: 11659 | BG23: 13933 | BH23: 13856 | BI23: 12776 | BJ23: 11101 | BK23: 10741 | BL23: 13668 | BM23: 15764 | BN23: 10253 | BO23: 14523 | BP23: 12459 | BQ23: 12410 | BR23: 14656 | BS23: 12769 | BT23: 12572 | BU23: 10793 | BV23: 11234 | BW23: 11312
A24: 32881 | B24: Secteur 3 | C24: Rayon 21 | D24: 38924139 | E24: 48736788 | F24: 60420168 | G24: 82508155 | H24: 35984469 | I24: 49268076 | J24: 56066490 | K24: 66150152 | L24: 55231696 | M24: 59155556 | N24: 61560945 | O24: 70516481 | P24: 56395720 | Q24: 83323798 | R24: 61510345 | S24: 74363619 | T24: 76434557 | U24: 64805382 | V24: 40115374 | W24: 77455439 | X24: 40514731 | Y24: 53681657 | Z24: 41158388 | AA24: 53009542 | AB24: 2.61 | AC24: 3.56 | AD24: 2.94 | AE24: 3.12 | AF24: 2.55 | AG24: 3.53 | AH24: 3.95 | AI24: 3.96 | AJ24: 2.83 | AK24: 3.23 | AL24: 2.61 | AM24: 3.17 | AN24: 3.55 | AO24: 2.48 | AP24: 3.24 | AQ24: 3.97 | AR24: 2.44 | AS24: 2.32 | AT24: 3.28 | AU24: 3.29 | AV24: 2.74 | AW24: 2.6 | AX24: 3.66 | AY24: 2.96 | AZ24: 15699 | BA24: 11848 | BB24: 15176 | BC24: 14443 | BD24: 13985 | BE24: 12489 | BF24: 14242 | BG24: 11161 | BH24: 15628 | BI24: 15670 | BJ24: 12343 | BK24: 11885 | BL24: 15403 | BM24: 12872 | BN24: 14993 | BO24: 15606 | BP24: 14222 | BQ24: 11371 | BR24: 10946 | BS24: 13766 | BT24: 13727 | BU24: 13697 | BV24: 11931 | BW24: 13185
A25: 33604 | B25: Secteur 3 | C25: Rayon 22 | D25: 69851315 | E25: 41616111 | F25: 84078112 | G25: 83845635 | H25: 41877986 | I25: 73016961 | J25: 44518973 | K25: 39618924 | L25: 67358720 | M25: 62995327 | N25: 47749683 | O25: 79312188 | P25: 68069491 | Q25: 74036200 | R25: 39101620 | S25: 79331402 | T25: 41154712 | U25: 50898326 | V25: 80932494 | W25: 69770568 | X25: 54264618 | Y25: 77436192 | Z25: 82472627 | AA25: 78838462 | AB25: 3.16 | AC25: 2.76 | AD25: 3.25 | AE25: 3 | AF25: 3.7 | AG25: 2.95 | AH25: 2.98 | AI25: 3.89 | AJ25: 2.38 | AK25: 2.42 | AL25: 3.93 | AM25: 3.61 | AN25: 3.18 | AO25: 2.71 | AP25: 2.62 | AQ25: 3.91 | AR25: 2.99 | AS25: 3.83 | AT25: 3.22 | AU25: 2.37 | AV25: 2.65 | AW25: 2.43 | AX25: 2.74 | AY25: 3.42 | AZ25: 13068 | BA25: 12865 | BB25: 13951 | BC25: 15367 | BD25: 10136 | BE25: 11424 | BF25: 15710 | BG25: 12028 | BH25: 11012 | BI25: 15474 | BJ25: 11095 | BK25: 11572 | BL25: 12948 | BM25: 13886 | BN25: 15863 | BO25: 12338 | BP25: 14310 | BQ25: 11759 | BR25: 15209 | BS25: 10349 | BT25: 12327 | BU25: 11699 | BV25: 15183 | BW25: 14523
A26: 33310 | B26: Secteur 4 | C26: Rayon 23 | D26: 65033753 | E26: 37832321 | F26: 83329077 | G26: 82868007 | H26: 66384594 | I26: 68149766 | J26: 57119528 | K26: 57838568 | L26: 77639887 | M26: 57332516 | N26: 72633901 | O26: 58070614 | P26: 74476952 | Q26: 55579470 | R26: 65858297 | S26: 82745065 | T26: 35700540 | U26: 45646915 | V26: 59821256 | W26: 73363695 | X26: 62530751 | Y26: 50260973 | Z26: 41421262 | AA26: 69788711 | AB26: 3.59 | AC26: 2.29 | AD26: 3.47 | AE26: 2.51 | AF26: 3.12 | AG26: 2.96 | AH26: 2.94 | AI26: 2.42 | AJ26: 2.47 | AK26: 2.88 | AL26: 3.58 | AM26: 3.94 | AN26: 2.88 | AO26: 3.41 | AP26: 3.34 | AQ26: 2.32 | AR26: 2.85 | AS26: 3.36 | AT26: 3.93 | AU26: 3.18 | AV26: 3.17 | AW26: 3.96 | AX26: 2.98 | AY26: 3.33 | AZ26: 13277 | BA26: 10232 | BB26: 11290 | BC26: 11441 | BD26: 10460 | BE26: 12812 | BF26: 15608 | BG26: 13355 | BH26: 11553 | BI26: 10089 | BJ26: 12906 | BK26: 12255 | BL26: 12205 | BM26: 10157 | BN26: 13677 | BO26: 15417 | BP26: 12958 | BQ26: 13369 | BR26: 14259 | BS26: 15281 | BT26: 14736 | BU26: 13813 | BV26: 14771 | BW26: 15599
A27: 32554 | B27: Secteur 4 | C27: Rayon 24 | D27: 57598965 | E27: 52522627 | F27: 38358395 | G27: 82912707 | H27: 67185510 | I27: 76937510 | J27: 43836239 | K27: 73339383 | L27: 36018150 | M27: 46863641 | N27: 68212553 | O27: 50442979 | P27: 82008338 | Q27: 77699476 | R27: 72585415 | S27: 79074699 | T27: 83201116 | U27: 63571778 | V27: 39719888 | W27: 74946315 | X27: 36321706 | Y27: 78023964 | Z27: 69990786 | AA27: 41784038 | AB27: 2.38 | AC27: 2.31 | AD27: 3.53 | AE27: 3.18 | AF27: 3.32 | AG27: 3.86 | AH27: 2.58 | AI27: 2.55 | AJ27: 3.08 | AK27: 3.62 | AL27: 3.05 | AM27: 3.41 | AN27: 2.51 | AO27: 2.61 | AP27: 2.51 | AQ27: 3.83 | AR27: 3.48 | AS27: 3.03 | AT27: 3.64 | AU27: 3.75 | AV27: 3.08 | AW27: 3.83 | AX27: 3.31 | AY27: 2.54 | AZ27: 13709 | BA27: 11140 | BB27: 11464 | BC27: 11449 | BD27: 10209 | BE27: 14315 | BF27: 13239 | BG27: 15474 | BH27: 12123 | BI27: 14703 | BJ27: 14920 | BK27: 13129 | BL27: 12586 | BM27: 13312 | BN27: 13979 | BO27: 13192 | BP27: 12600 | BQ27: 10036 | BR27: 14897 | BS27: 11500 | BT27: 10373 | BU27: 13074 | BV27: 10284 | BW27: 15215
A28: 32203 | B28: Secteur 4 | C28: Rayon 25 | D28: 72592495 | E28: 79270784 | F28: 53784449 | G28: 48756101 | H28: 75222142 | I28: 64481936 | J28: 61902798 | K28: 47765015 | L28: 70830566 | M28: 77746584 | N28: 42951160 | O28: 49448785 | P28: 62381136 | Q28: 64112236 | R28: 68750265 | S28: 66189239 | T28: 43054172 | U28: 50136392 | V28: 69557192 | W28: 74361400 | X28: 77802138 | Y28: 45327176 | Z28: 61255405 | AA28: 83740166 | AB28: 2.66 | AC28: 2.98 | AD28: 3.58 | AE28: 3.51 | AF28: 3.35 | AG28: 2.35 | AH28: 3.2 | AI28: 2.91 | AJ28: 2.91 | AK28: 3.41 | AL28: 3.16 | AM28: 3.67 | AN28: 3.8 | AO28: 3.04 | AP28: 3.91 | AQ28: 2.96 | AR28: 3.81 | AS28: 2.63 | AT28: 2.65 | AU28: 3.38 | AV28: 3.55 | AW28: 3.27 | AX28: 3.53 | AY28: 3.5 | AZ28: 12599 | BA28: 10408 | BB28: 12183 | BC28: 14658 | BD28: 10849 | BE28: 14600 | BF28: 12061 | BG28: 14841 | BH28: 13869 | BI28: 12703 | BJ28: 11797 | BK28: 12381 | BL28: 14828 | BM28: 13596 | BN28: 10272 | BO28: 14787 | BP28: 12121 | BQ28: 15856 | BR28: 11541 | BS28: 10359 | BT28: 13886 | BU28: 10658 | BV28: 14487 | BW28: 12660
A29: 33885 | B29: Secteur 4 | C29: Rayon 26 | D29: 66584445 | E29: 57489077 | F29: 72346940 | G29: 67326132 | H29: 77957184 | I29: 47533735 | J29: 50808323 | K29: 43407788 | L29: 43800847 | M29: 59730647 | N29: 82884477 | O29: 53710733 | P29: 49931288 | Q29: 82927215 | R29: 80796613 | S29: 43806566 | T29: 60365593 | U29: 71141019 | V29: 75097275 | W29: 83522496 | X29: 58209920 | Y29: 54458622 | Z29: 71055656 | AA29: 37584450 | AB29: 3.54 | AC29: 2.68 | AD29: 3.52 | AE29: 3.67 | AF29: 3.87 | AG29: 2.67 | AH29: 3.15 | AI29: 3.54 | AJ29: 2.39 | AK29: 3.79 | AL29: 3.07 | AM29: 2.77 | AN29: 2.32 | AO29: 3.38 | AP29: 2.94 | AQ29: 2.58 | AR29: 3.33 | AS29: 3.87 | AT29: 3.7 | AU29: 3.32 | AV29: 2.28 | AW29: 3.3 | AX29: 2.94 | AY29: 2.42 | AZ29: 14562 | BA29: 13104 | BB29: 13163 | BC29: 11304 | BD29: 10113 | BE29: 10416 | BF29: 11742 | BG29: 10873 | BH29: 13947 | BI29: 13151 | BJ29: 12836 | BK29: 12668 | BL29: 15307 | BM29: 10124 | BN29: 15774 | BO29: 15773 | BP29: 15862 | BQ29: 14866 | BR29: 13518 | BS29: 11646 | BT29: 14224 | BU29: 13647 | BV29: 10330 | BW29: 15602
A30: 32049 | B30: Secteur 5 | C30: Rayon 1 | D30: 69983441 | E30: 48818333 | F30: 63459439 | G30: 64482757 | H30: 73241359 | I30: 55549933 | J30: 53410041 | K30: 56920199 | L30: 37551867 | M30: 39688149 | N30: 62203482 | O30: 53244446 | P30: 51650421 | Q30: 76035658 | R30: 45495882 | S30: 54513910 | T30: 68501314 | U30: 61592791 | V30: 76910051 | W30: 54534757 | X30: 44077540 | Y30: 77966257 | Z30: 45547104 | AA30: 38119197 | AB30: 3.7 | AC30: 3.76 | AD30: 2.57 | AE30: 2.97 | AF30: 2.88 | AG30: 3.52 | AH30: 3.25 | AI30: 3.47 | AJ30: 2.93 | AK30: 2.36 | AL30: 2.28 | AM30: 2.49 | AN30: 2.5 | AO30: 3.74 | AP30: 2.94 | AQ30: 3.56 | AR30: 3.8 | AS30: 2.45 | AT30: 2.52 | AU30: 2.76 | AV30: 3.91 | AW30: 3.96 | AX30: 3.65 | AY30: 3.61 | AZ30: 14156 | BA30: 11219 | BB30: 10729 | BC30: 14060 | BD30: 13469 | BE30: 14653 | BF30: 14884 | BG30: 13247 | BH30: 12882 | BI30: 12300 | BJ30: 15666 | BK30: 14521 | BL30: 11021 | BM30: 12110 | BN30: 11625 | BO30: 15248 | BP30: 15721 | BQ30: 15578 | BR30: 11564 | BS30: 12219 | BT30: 11369 | BU30: 12963 | BV30: 13360 | BW30: 13700
A31: 33910 | B31: Secteur 5 | C31: Rayon 2 | D31: 80964747 | E31: 73271677 | F31: 56064002 | G31: 79625903 | H31: 68779153 | I31: 67976584 | J31: 55418189 | K31: 45438115 | L31: 67921861 | M31: 63141843 | N31: 36594579 | O31: 81310782 | P31: 83296145 | Q31: 66890018 | R31: 51501761 | S31: 64928294 | T31: 70837975 | U31: 52009629 | V31: 58971657 | W31: 72921965 | X31: 52289465 | Y31: 69406858 | Z31: 71930852 | AA31: 67488396 | AB31: 2.66 | AC31: 3.17 | AD31: 3.69 | AE31: 2.28 | AF31: 2.73 | AG31: 2.47 | AH31: 3.74 | AI31: 2.37 | AJ31: 3.57 | AK31: 3.93 | AL31: 3.84 | AM31: 3.79 | AN31: 3.82 | AO31: 2.57 | AP31: 3.44 | AQ31: 3.22 | AR31: 3.57 | AS31: 3.26 | AT31: 3.95 | AU31: 3.6 | AV31: 3.81 | AW31: 3.69 | AX31: 3.5 | AY31: 2.4 | AZ31: 14445 | BA31: 14014 | BB31: 11610 | BC31: 12145 | BD31: 12922 | BE31: 15568 | BF31: 12985 | BG31: 11628 | BH31: 10245 | BI31: 10947 | BJ31: 12455 | BK31: 14088 | BL31: 12984 | BM31: 13057 | BN31: 15560 | BO31: 10746 | BP31: 12854 | BQ31: 10111 | BR31: 15613 | BS31: 11096 | BT31: 13241 | BU31: 11959 | BV31: 10300 | BW31: 12398
A32: 33690 | B32: Secteur 5 | C32: Rayon 3 | D32: 52404583 | E32: 42999844 | F32: 52710889 | G32: 45365255 | H32: 73366671 | I32: 66171794 | J32: 46280216 | K32: 58988108 | L32: 48582111 | M32: 77201391 | N32: 68234101 | O32: 82030715 | P32: 56275372 | Q32: 60662293 | R32: 66504827 | S32: 58599990 | T32: 68521021 | U32: 76706708 | V32: 45875746 | W32: 79043646 | X32: 38358326 | Y32: 77048919 | Z32: 47179598 | AA32: 51915246 | AB32: 2.42 | AC32: 3.49 | AD32: 2.42 | AE32: 2.27 | AF32: 3.66 | AG32: 2.34 | AH32: 2.68 | AI32: 3.23 | AJ32: 3.76 | AK32: 2.65 | AL32: 3.3 | AM32: 2.4 | AN32: 3.29 | AO32: 3.31 | AP32: 3.9 | AQ32: 2.42 | AR32: 3.44 | AS32: 3.61 | AT32: 3.83 | AU32: 2.29 | AV32: 3.38 | AW32: 3.28 | AX32: 3.44 | AY32: 2.46 | AZ32: 12927 | BA32: 15175 | BB32: 14648 | BC32: 13543 | BD32: 11348 | BE32: 12338 | BF32: 11308 | BG32: 12062 | BH32: 15848 | BI32: 12877 | BJ32: 15796 | BK32: 11194 | BL32: 12319 | BM32: 12099 | BN32: 13191 | BO32: 12335 | BP32: 14603 | BQ32: 13788 | BR32: 10521 | BS32: 11653 | BT32: 10400 | BU32: 13706 | BV32: 10418 | BW32: 14256
A33: 32109 | B33: Secteur 5 | C33: Rayon 4 | D33: 78310286 | E33: 40338974 | F33: 77849280 | G33: 57428653 | H33: 52560682 | I33: 38904680 | J33: 80274896 | K33: 77504803 | L33: 56446614 | M33: 47940390 | N33: 49522179 | O33: 48828393 | P33: 63752091 | Q33: 39615549 | R33: 46004633 | S33: 58511155 | T33: 65719950 | U33: 83090881 | V33: 42835198 | W33: 39912272 | X33: 37342432 | Y33: 66450781 | Z33: 55558572 | AA33: 64333642 | AB33: 3.28 | AC33: 2.36 | AD33: 3.71 | AE33: 3.89 | AF33: 3.25 | AG33: 2.55 | AH33: 3.51 | AI33: 3.82 | AJ33: 3.84 | AK33: 3.3 | AL33: 3.82 | AM33: 2.86 | AN33: 3.87 | AO33: 3.22 | AP33: 2.79 | AQ33: 2.65 | AR33: 3.81 | AS33: 3.56 | AT33: 2.65 | AU33: 3.61 | AV33: 3.66 | AW33: 3.86 | AX33: 3.05 | AY33: 3.22 | AZ33: 14359 | BA33: 13836 | BB33: 15401 | BC33: 12770 | BD33: 14675 | BE33: 14231 | BF33: 14963 | BG33: 14614 | BH33: 13537 | BI33: 14947 | BJ33: 12095 | BK33: 15769 | BL33: 13325 | BM33: 10031 | BN33: 12515 | BO33: 15739 | BP33: 10495 | BQ33: 13003 | BR33: 14606 | BS33: 13893 | BT33: 15018 | BU33: 14213 | BV33: 14287 | BW33: 11247
A34: 32338 | B34: Secteur 5 | C34: Rayon 5 | D34: 74630429 | E34: 58068887 | F34: 66942326 | G34: 42923693 | H34: 67913817 | I34: 40607963 | J34: 44441604 | K34: 56832205 | L34: 60825775 | M34: 79076735 | N34: 82475882 | O34: 83552904 | P34: 55709884 | Q34: 72061795 | R34: 67315361 | S34: 77722644 | T34: 54737959 | U34: 48735066 | V34: 38263762 | W34: 63170019 | X34: 80001086 | Y34: 41888224 | Z34: 37975190 | AA34: 55644441 | AB34: 3.25 | AC34: 2.78 | AD34: 3.01 | AE34: 3.74 | AF34: 3.01 | AG34: 3.63 | AH34: 3.15 | AI34: 3.28 | AJ34: 2.81 | AK34: 2.31 | AL34: 2.48 | AM34: 2.92 | AN34: 3.51 | AO34: 2.95 | AP34: 2.59 | AQ34: 2.79 | AR34: 2.81 | AS34: 3.71 | AT34: 2.69 | AU34: 3.61 | AV34: 3.07 | AW34: 3.33 | AX34: 2.58 | AY34: 2.33 | AZ34: 11647 | BA34: 11128 | BB34: 13172 | BC34: 11348 | BD34: 12305 | BE34: 12503 | BF34: 13142 | BG34: 12669 | BH34: 14943 | BI34: 11583 | BJ34: 11445 | BK34: 10081 | BL34: 13268 | BM34: 11914 | BN34: 15860 | BO34: 14647 | BP34: 14713 | BQ34: 14417 | BR34: 10855 | BS34: 12638 | BT34: 10972 | BU34: 13639 | BV34: 13124 | BW34: 11583
A35: 34797 | B35: Secteur 5 | C35: Rayon 6 | D35: 45136207 | E35: 63033856 | F35: 69872869 | G35: 83915834 | H35: 61582149 | I35: 65186219 | J35: 82538935 | K35: 54007318 | L35: 61492266 | M35: 71199538 | N35: 75282306 | O35: 74919093 | P35: 38644962 | Q35: 43190582 | R35: 53552227 | S35: 44762996 | T35: 58415894 | U35: 79701179 | V35: 74112743 | W35: 63863631 | X35: 37856365 | Y35: 71548873 | Z35: 79143532 | AA35: 61781246 | AB35: 2.89 | AC35: 3.96 | AD35: 2.52 | AE35: 2.6 | AF35: 3.36 | AG35: 2.63 | AH35: 3.68 | AI35: 2.43 | AJ35: 3.02 | AK35: 3.6 | AL35: 3.64 | AM35: 2.4 | AN35: 3.05 | AO35: 3.17 | AP35: 3.04 | AQ35: 3.76 | AR35: 2.37 | AS35: 2.3 | AT35: 3.01 | AU35: 3.6 | AV35: 2.89 | AW35: 3.67 | AX35: 2.61 | AY35: 3.34 | AZ35: 13975 | BA35: 14100 | BB35: 15222 | BC35: 15106 | BD35: 10160 | BE35: 10507 | BF35: 11004 | BG35: 11417 | BH35: 14076 | BI35: 12943 | BJ35: 10272 | BK35: 11172 | BL35: 12825 | BM35: 15220 | BN35: 14993 | BO35: 15650 | BP35: 11513 | BQ35: 10701 | BR35: 12188 | BS35: 12190 | BT35: 14638 | BU35: 12443 | BV35: 15893 | BW35: 11482
A36: 32954 | B36: Secteur 5 | C36: Rayon 7 | D36: 62100627 | E36: 65782586 | F36: 47925306 | G36: 60604975 | H36: 75314708 | I36: 43157858 | J36: 45172149 | K36: 76298873 | L36: 47230604 | M36: 53603999 | N36: 61853506 | O36: 49483326 | P36: 62124413 | Q36: 74595813 | R36: 41698450 | S36: 72213557 | T36: 54642983 | U36: 62060900 | V36: 44248123 | W36: 45398131 | X36: 63880763 | Y36: 52345010 | Z36: 65816206 | AA36: 58115684 | AB36: 3.58 | AC36: 2.65 | AD36: 2.85 | AE36: 2.4 | AF36: 2.38 | AG36: 2.33 | AH36: 3.71 | AI36: 3.57 | AJ36: 2.68 | AK36: 2.96 | AL36: 3.69 | AM36: 3.66 | AN36: 3.75 | AO36: 3.55 | AP36: 3.84 | AQ36: 3.25 | AR36: 3.86 | AS36: 3.15 | AT36: 2.58 | AU36: 3.7 | AV36: 3.66 | AW36: 2.71 | AX36: 2.94 | AY36: 2.49 | AZ36: 14033 | BA36: 14492 | BB36: 15583 | BC36: 11766 | BD36: 13837 | BE36: 12159 | BF36: 15519 | BG36: 10678 | BH36: 10510 | BI36: 15700 | BJ36: 10446 | BK36: 13984 | BL36: 10932 | BM36: 11489 | BN36: 15699 | BO36: 11950 | BP36: 13196 | BQ36: 10473 | BR36: 13168 | BS36: 10080 | BT36: 13641 | BU36: 13625 | BV36: 15162 | BW36: 10640
A37: 33993 | B37: Secteur 5 | C37: Rayon 8 | D37: 61605343 | E37: 69636743 | F37: 78946287 | G37: 52707283 | H37: 74181073 | I37: 52731777 | J37: 72749280 | K37: 50409491 | L37: 60273804 | M37: 71354860 | N37: 63769412 | O37: 68667397 | P37: 64963492 | Q37: 83036187 | R37: 55490875 | S37: 83533142 | T37: 65281541 | U37: 58017724 | V37: 53575443 | W37: 67678970 | X37: 81929966 | Y37: 83331149 | Z37: 37727922 | AA37: 44633551 | AB37: 3.45 | AC37: 2.89 | AD37: 2.29 | AE37: 3.68 | AF37: 3.96 | AG37: 2.72 | AH37: 3.04 | AI37: 2.51 | AJ37: 3.71 | AK37: 3.54 | AL37: 3.69 | AM37: 3.87 | AN37: 2.38 | AO37: 2.38 | AP37: 2.93 | AQ37: 2.99 | AR37: 2.68 | AS37: 2.87 | AT37: 2.75 | AU37: 3.49 | AV37: 3.96 | AW37: 3.58 | AX37: 3.14 | AY37: 2.48 | AZ37: 12508 | BA37: 13291 | BB37: 15181 | BC37: 13533 | BD37: 11641 | BE37: 14682 | BF37: 11419 | BG37: 12112 | BH37: 14994 | BI37: 15390 | BJ37: 15547 | BK37: 11127 | BL37: 11613 | BM37: 15451 | BN37: 12732 | BO37: 13297 | BP37: 10569 | BQ37: 12406 | BR37: 12418 | BS37: 15703 | BT37: 14049 | BU37: 15808 | BV37: 14813 | BW37: 11866
A38: 33044 | B38: Secteur 5 | C38: Rayon 9 | D38: 52746741 | E38: 65370968 | F38: 53833364 | G38: 44677863 | H38: 40119628 | I38: 39092018 | J38: 67773557 | K38: 52459039 | L38: 64359674 | M38: 82139634 | N38: 82591593 | O38: 75772772 | P38: 69466227 | Q38: 52809500 | R38: 69204657 | S38: 42791432 | T38: 75082775 | U38: 61974117 | V38: 76033203 | W38: 42391647 | X38: 39107257 | Y38: 41560366 | Z38: 49733221 | AA38: 57175637 | AB38: 2.67 | AC38: 2.5 | AD38: 3.16 | AE38: 3.57 | AF38: 3.96 | AG38: 3.72 | AH38: 2.73 | AI38: 3.12 | AJ38: 3.4 | AK38: 2.82 | AL38: 2.46 | AM38: 3.47 | AN38: 3.46 | AO38: 3.22 | AP38: 2.81 | AQ38: 2.84 | AR38: 3.65 | AS38: 3.13 | AT38: 3.83 | AU38: 2.78 | AV38: 3.83 | AW38: 3.53 | AX38: 2.61 | AY38: 2.57 | AZ38: 11123 | BA38: 10955 | BB38: 13446 | BC38: 13100 | BD38: 11271 | BE38: 12894 | BF38: 14096 | BG38: 11033 | BH38: 12833 | BI38: 13180 | BJ38: 14743 | BK38: 11551 | BL38: 14442 | BM38: 10690 | BN38: 14762 | BO38: 13642 | BP38: 10637 | BQ38: 13342 | BR38: 11834 | BS38: 12162 | BT38: 14891 | BU38: 12823 | BV38: 11710 | BW38: 14860
A39: 33924 | B39: Secteur 5 | C39: Rayon 10 | D39: 65591923 | E39: 59373634 | F39: 77081412 | G39: 54511487 | H39: 51183368 | I39: 70084668 | J39: 54361509 | K39: 49243389 | L39: 66423762 | M39: 62315389 | N39: 73246849 | O39: 52719836 | P39: 47650362 | Q39: 51714118 | R39: 51460439 | S39: 79212721 | T39: 63139124 | U39: 52085545 | V39: 75034748 | W39: 61991300 | X39: 49915288 | Y39: 70636430 | Z39: 68254924 | AA39: 67900609 | AB39: 2.92 | AC39: 3.74 | AD39: 3.68 | AE39: 2.75 | AF39: 2.82 | AG39: 2.34 | AH39: 3.31 | AI39: 3.87 | AJ39: 3.76 | AK39: 3.54 | AL39: 3.47 | AM39: 2.67 | AN39: 3.77 | AO39: 3.78 | AP39: 3.82 | AQ39: 2.37 | AR39: 3.62 | AS39: 3.48 | AT39: 2.32 | AU39: 3.88 | AV39: 3.75 | AW39: 3.56 | AX39: 3.09 | AY39: 2.68 | AZ39: 12318 | BA39: 15646 | BB39: 10378 | BC39: 10261 | BD39: 10607 | BE39: 12579 | BF39: 15865 | BG39: 10895 | BH39: 14097 | BI39: 13757 | BJ39: 15524 | BK39: 13034 | BL39: 14745 | BM39: 11254 | BN39: 13824 | BO39: 14453 | BP39: 10259 | BQ39: 12248 | BR39: 15346 | BS39: 11836 | BT39: 15091 | BU39: 13969 | BV39: 11924 | BW39: 15723
A40: 32861 | B40: Secteur 5 | C40: Rayon 11 | D40: 47757237 | E40: 63337134 | F40: 75857912 | G40: 60013802 | H40: 51622765 | I40: 76060793 | J40: 56599826 | K40: 51932078 | L40: 44226279 | M40: 65069548 | N40: 47403220 | O40: 41572879 | P40: 51802367 | Q40: 66905052 | R40: 64855297 | S40: 79285541 | T40: 48377025 | U40: 35801396 | V40: 62080959 | W40: 55965122 | X40: 52597368 | Y40: 43817991 | Z40: 41625913 | AA40: 73793075 | AB40: 2.76 | AC40: 3.19 | AD40: 3.95 | AE40: 2.47 | AF40: 2.7 | AG40: 3.65 | AH40: 2.35 | AI40: 2.51 | AJ40: 2.81 | AK40: 2.57 | AL40: 2.34 | AM40: 2.52 | AN40: 2.81 | AO40: 2.45 | AP40: 2.96 | AQ40: 3.2 | AR40: 2.58 | AS40: 2.86 | AT40: 2.92 | AU40: 3.05 | AV40: 3.82 | AW40: 2.99 | AX40: 3.03 | AY40: 3.51 | AZ40: 14413 | BA40: 10715 | BB40: 15132 | BC40: 11746 | BD40: 13957 | BE40: 10796 | BF40: 11226 | BG40: 12592 | BH40: 11795 | BI40: 10103 | BJ40: 13398 | BK40: 14929 | BL40: 12719 | BM40: 13924 | BN40: 14339 | BO40: 11559 | BP40: 15290 | BQ40: 15599 | BR40: 15792 | BS40: 10808 | BT40: 12706 | BU40: 10210 | BV40: 10915 | BW40: 11182
A41: 32392 | B41: Secteur 5 | C41: Rayon 27 | D41: 57210152 | E41: 56775881 | F41: 59718273 | G41: 66268487 | H41: 55561138 | I41: 44894651 | J41: 49917254 | K41: 72852629 | L41: 45919545 | M41: 71422054 | N41: 79167434 | O41: 39183590 | P41: 73926004 | Q41: 62572653 | R41: 35806918 | S41: 78368532 | T41: 59495195 | U41: 38943794 | V41: 74133545 | W41: 64701658 | X41: 80089208 | Y41: 37364690 | Z41: 36968703 | AA41: 38587833 | AB41: 3.33 | AC41: 3.58 | AD41: 3.26 | AE41: 2.76 | AF41: 3.38 | AG41: 2.55 | AH41: 2.55 | AI41: 3.89 | AJ41: 3.78 | AK41: 3.81 | AL41: 3.26 | AM41: 2.43 | AN41: 3.03 | AO41: 2.85 | AP41: 3.78 | AQ41: 2.91 | AR41: 3.49 | AS41: 3.5 | AT41: 2.45 | AU41: 3.29 | AV41: 3.15 | AW41: 3.06 | AX41: 2.54 | AY41: 3.95 | AZ41: 10063 | BA41: 15536 | BB41: 10441 | BC41: 13631 | BD41: 13561 | BE41: 15858 | BF41: 13508 | BG41: 15616 | BH41: 10739 | BI41: 10476 | BJ41: 10581 | BK41: 11564 | BL41: 15681 | BM41: 10394 | BN41: 13599 | BO41: 12718 | BP41: 12251 | BQ41: 14185 | BR41: 11857 | BS41: 15287 | BT41: 11144 | BU41: 14768 | BV41: 12615 | BW41: 12839
A42: 33704 | B42: Secteur 6 | C42: Rayon 28 | D42: 76311887 | E42: 55348730 | F42: 81924794 | G42: 52346504 | H42: 74064140 | I42: 73794281 | J42: 73026062 | K42: 76552663 | L42: 81059464 | M42: 57025672 | N42: 52245099 | O42: 49340419 | P42: 58142334 | Q42: 61076669 | R42: 74420175 | S42: 41820108 | T42: 60173287 | U42: 59253490 | V42: 71127880 | W42: 56280847 | X42: 70283260 | Y42: 46861936 | Z42: 45072888 | AA42: 75471510 | AB42: 2.75 | AC42: 2.29 | AD42: 3.22 | AE42: 3.42 | AF42: 3.21 | AG42: 3.17 | AH42: 3.44 | AI42: 2.49 | AJ42: 3.82 | AK42: 3.71 | AL42: 2.41 | AM42: 3.21 | AN42: 3.49 | AO42: 2.58 | AP42: 3.15 | AQ42: 3.82 | AR42: 3.73 | AS42: 2.42 | AT42: 2.39 | AU42: 2.43 | AV42: 3.71 | AW42: 2.67 | AX42: 2.6 | AY42: 2.7 | AZ42: 15101 | BA42: 14010 | BB42: 12696 | BC42: 14369 | BD42: 14590 | BE42: 11278 | BF42: 14430 | BG42: 10260 | BH42: 15841 | BI42: 14994 | BJ42: 11693 | BK42: 10192 | BL42: 14993 | BM42: 12380 | BN42: 10728 | BO42: 15068 | BP42: 15502 | BQ42: 10882 | BR42: 13433 | BS42: 13635 | BT42: 10929 | BU42: 10555 | BV42: 10833 | BW42: 12413
A43: 32221 | B43: Secteur 6 | C43: Rayon 29 | D43: 61048391 | E43: 56749880 | F43: 37324925 | G43: 81843448 | H43: 69221581 | I43: 66007898 | J43: 51032641 | K43: 74080423 | L43: 68269115 | M43: 56546730 | N43: 43847823 | O43: 57369930 | P43: 81949228 | Q43: 45484626 | R43: 52953593 | S43: 46040029 | T43: 55428498 | U43: 52477305 | V43: 36177582 | W43: 42149747 | X43: 65800048 | Y43: 53114562 | Z43: 47992621 | AA43: 35988483 | AB43: 2.52 | AC43: 3.59 | AD43: 3.91 | AE43: 2.58 | AF43: 2.79 | AG43: 3.76 | AH43: 2.35 | AI43: 2.38 | AJ43: 3.65 | AK43: 3.21 | AL43: 3.49 | AM43: 3.33 | AN43: 3.05 | AO43: 3.26 | AP43: 3.21 | AQ43: 2.82 | AR43: 3.1 | AS43: 3.19 | AT43: 3.84 | AU43: 2.45 | AV43: 2.51 | AW43: 3.41 | AX43: 2.41 | AY43: 2.63 | AZ43: 15756 | BA43: 13535 | BB43: 15644 | BC43: 15798 | BD43: 14011 | BE43: 11395 | BF43: 14674 | BG43: 11492 | BH43: 11389 | BI43: 13947 | BJ43: 15604 | BK43: 12579 | BL43: 14220 | BM43: 11529 | BN43: 11008 | BO43: 15604 | BP43: 11694 | BQ43: 14475 | BR43: 12048 | BS43: 10449 | BT43: 12465 | BU43: 15051 | BV43: 14779 | BW43: 11408
A44: 33841 | B44: Secteur 6 | C44: Rayon 30 | D44: 40821253 | E44: 45652191 | F44: 48501510 | G44: 66534778 | H44: 54987601 | I44: 37113884 | J44: 79342986 | K44: 57759269 | L44: 50844506 | M44: 72974574 | N44: 41962419 | O44: 73448104 | P44: 70058309 | Q44: 37720382 | R44: 65593707 | S44: 51132343 | T44: 55795375 | U44: 36362734 | V44: 38358179 | W44: 66324879 | X44: 41653434 | Y44: 37509603 | Z44: 37752113 | AA44: 63054103 | AB44: 3.63 | AC44: 2.39 | AD44: 2.59 | AE44: 2.32 | AF44: 3.85 | AG44: 3.25 | AH44: 3.26 | AI44: 3.6 | AJ44: 3.35 | AK44: 3.15 | AL44: 3.15 | AM44: 3.28 | AN44: 2.33 | AO44: 3.16 | AP44: 3.16 | AQ44: 3.36 | AR44: 2.59 | AS44: 2.75 | AT44: 3.79 | AU44: 3.32 | AV44: 3.48 | AW44: 3.21 | AX44: 2.33 | AY44: 3.58 | AZ44: 14388 | BA44: 13148 | BB44: 11557 | BC44: 14725 | BD44: 15113 | BE44: 10865 | BF44: 14519 | BG44: 15562 | BH44: 14312 | BI44: 13063 | BJ44: 12303 | BK44: 12495 | BL44: 15010 | BM44: 14619 | BN44: 12622 | BO44: 13167 | BP44: 11514 | BQ44: 10463 | BR44: 12713 | BS44: 12059 | BT44: 12878 | BU44: 13709 | BV44: 11570 | BW44: 15419
A45: 33097 | B45: Secteur 6 | C45: Rayon 31 | D45: 45053857 | E45: 66753117 | F45: 46114002 | G45: 52205189 | H45: 43112385 | I45: 49481804 | J45: 78626234 | K45: 81728978 | L45: 35982593 | M45: 78648778 | N45: 83313607 | O45: 68033901 | P45: 69208973 | Q45: 56200559 | R45: 52334772 | S45: 53223414 | T45: 55606309 | U45: 53458775 | V45: 44162214 | W45: 55166264 | X45: 80734440 | Y45: 45644276 | Z45: 58635417 | AA45: 41475999 | AB45: 3.59 | AC45: 3.23 | AD45: 2.58 | AE45: 3.72 | AF45: 3.93 | AG45: 3.73 | AH45: 3.84 | AI45: 3.89 | AJ45: 3.01 | AK45: 2.31 | AL45: 3.24 | AM45: 2.83 | AN45: 3.43 | AO45: 2.78 | AP45: 2.54 | AQ45: 2.88 | AR45: 2.5 | AS45: 2.43 | AT45: 3.04 | AU45: 2.99 | AV45: 2.61 | AW45: 2.27 | AX45: 3.35 | AY45: 2.85 | AZ45: 11988 | BA45: 14603 | BB45: 14073 | BC45: 11506 | BD45: 15151 | BE45: 13246 | BF45: 14912 | BG45: 15540 | BH45: 11868 | BI45: 12604 | BJ45: 14319 | BK45: 14382 | BL45: 10647 | BM45: 11232 | BN45: 15281 | BO45: 12234 | BP45: 15525 | BQ45: 11161 | BR45: 11385 | BS45: 15502 | BT45: 11267 | BU45: 13364 | BV45: 10524 | BW45: 15299
A46: 33904 | B46: Secteur 6 | C46: Rayon 32 | D46: 70436149 | E46: 60021781 | F46: 46898161 | G46: 61408907 | H46: 46592555 | I46: 43413347 | J46: 40619885 | K46: 74975187 | L46: 63728741 | M46: 63650352 | N46: 52324468 | O46: 72670311 | P46: 47523493 | Q46: 76228630 | R46: 39410567 | S46: 74385301 | T46: 70117080 | U46: 53443186 | V46: 73543074 | W46: 57473583 | X46: 79563053 | Y46: 57774359 | Z46: 77101985 | AA46: 69425326 | AB46: 3.7 | AC46: 3.36 | AD46: 2.6 | AE46: 3.5 | AF46: 3.93 | AG46: 3.16 | AH46: 2.74 | AI46: 2.94 | AJ46: 3.24 | AK46: 2.33 | AL46: 3.96 | AM46: 3.84 | AN46: 3.12 | AO46: 3.76 | AP46: 3.26 | AQ46: 3.47 | AR46: 3.54 | AS46: 3.09 | AT46: 2.43 | AU46: 2.65 | AV46: 2.7 | AW46: 2.62 | AX46: 2.95 | AY46: 3.11 | AZ46: 11002 | BA46: 11936 | BB46: 11709 | BC46: 12926 | BD46: 14203 | BE46: 13803 | BF46: 13516 | BG46: 15894 | BH46: 10705 | BI46: 10372 | BJ46: 14821 | BK46: 13284 | BL46: 14804 | BM46: 12710 | BN46: 15213 | BO46: 13520 | BP46: 11817 | BQ46: 11593 | BR46: 14495 | BS46: 11910 | BT46: 11659 | BU46: 10246 | BV46: 10030 | BW46: 15753
A47: 33545 | B47: Secteur 6 | C47: Rayon 33 | D47: 68772359 | E47: 56315962 | F47: 81310396 | G47: 62472069 | H47: 35939310 | I47: 83678563 | J47: 64838553 | K47: 66066470 | L47: 53377546 | M47: 81774598 | N47: 37096228 | O47: 41100804 | P47: 37492598 | Q47: 77138485 | R47: 79726322 | S47: 36155936 | T47: 59073445 | U47: 74106894 | V47: 43638293 | W47: 53080178 | X47: 64804069 | Y47: 56035876 | Z47: 37953633 | AA47: 49310728 | AB47: 3.94 | AC47: 3.38 | AD47: 3.73 | AE47: 3.53 | AF47: 2.91 | AG47: 2.34 | AH47: 3.69 | AI47: 3.37 | AJ47: 2.82 | AK47: 2.69 | AL47: 2.55 | AM47: 3.37 | AN47: 2.34 | AO47: 2.44 | AP47: 3.35 | AQ47: 3.4 | AR47: 3.22 | AS47: 3.73 | AT47: 2.97 | AU47: 3.63 | AV47: 3.65 | AW47: 2.59 | AX47: 2.3 | AY47: 2.93 | AZ47: 13362 | BA47: 11838 | BB47: 14377 | BC47: 15529 | BD47: 15076 | BE47: 13118 | BF47: 14265 | BG47: 14808 | BH47: 13007 | BI47: 12614 | BJ47: 11375 | BK47: 12074 | BL47: 12745 | BM47: 15238 | BN47: 12925 | BO47: 12503 | BP47: 15203 | BQ47: 13894 | BR47: 14335 | BS47: 14019 | BT47: 14803 | BU47: 10666 | BV47: 15807 | BW47: 14969
A48: 34272 | B48: Secteur 6 | C48: Rayon 34 | D48: 39014807 | E48: 73787477 | F48: 51947521 | G48: 43940769 | H48: 61530068 | I48: 71401348 | J48: 65351732 | K48: 74034110 | L48: 54079399 | M48: 46059595 | N48: 83688231 | O48: 65049219 | P48: 74158286 | Q48: 41241109 | R48: 49374148 | S48: 48575227 | T48: 76328413 | U48: 77303757 | V48: 61536315 | W48: 48232662 | X48: 53994001 | Y48: 45536231 | Z48: 77642258 | AA48: 70286936 | AB48: 2.37 | AC48: 3.42 | AD48: 2.48 | AE48: 3.07 | AF48: 3.84 | AG48: 3.65 | AH48: 3.87 | AI48: 2.55 | AJ48: 3.25 | AK48: 2.67 | AL48: 2.59 | AM48: 3.42 | AN48: 2.54 | AO48: 3.02 | AP48: 3.37 | AQ48: 2.78 | AR48: 3.37 | AS48: 3.35 | AT48: 3.6 | AU48: 2.28 | AV48: 2.4 | AW48: 3.19 | AX48: 3.42 | AY48: 3.85 | AZ48: 12563 | BA48: 13616 | BB48: 13279 | BC48: 14793 | BD48: 13925 | BE48: 15169 | BF48: 14210 | BG48: 13777 | BH48: 11555 | BI48: 11580 | BJ48: 12973 | BK48: 11938 | BL48: 10176 | BM48: 11670 | BN48: 15041 | BO48: 11171 | BP48: 15108 | BQ48: 11315 | BR48: 13725 | BS48: 15340 | BT48: 12165 | BU48: 14972 | BV48: 15891 | BW48: 12982
A49: 33487 | B49: Secteur 6 | C49: Rayon 35 | D49: 77587064 | E49: 38313745 | F49: 63223794 | G49: 37321714 | H49: 43943218 | I49: 57248010 | J49: 73224590 | K49: 72076187 | L49: 36997053 | M49: 67898796 | N49: 72324129 | O49: 82802935 | P49: 70820520 | Q49: 57307365 | R49: 81057991 | S49: 52895563 | T49: 69718823 | U49: 75334981 | V49: 51562560 | W49: 52237913 | X49: 63085744 | Y49: 62317233 | Z49: 60370405 | AA49: 78826368 | AB49: 3.97 | AC49: 2.74 | AD49: 3.62 | AE49: 2.49 | AF49: 3.5 | AG49: 2.6 | AH49: 3.33 | AI49: 2.73 | AJ49: 3.02 | AK49: 3.14 | AL49: 3.17 | AM49: 3.22 | AN49: 3.54 | AO49: 3.61 | AP49: 2.73 | AQ49: 2.55 | AR49: 2.53 | AS49: 3.29 | AT49: 2.29 | AU49: 3.26 | AV49: 3.05 | AW49: 2.32 | AX49: 3.17 | AY49: 3.79 | AZ49: 13900 | BA49: 10620 | BB49: 14549 | BC49: 13956 | BD49: 14602 | BE49: 14339 | BF49: 14024 | BG49: 12278 | BH49: 15770 | BI49: 13926 | BJ49: 12654 | BK49: 14438 | BL49: 14890 | BM49: 11512 | BN49: 13088 | BO49: 11729 | BP49: 10800 | BQ49: 14666 | BR49: 12074 | BS49: 11405 | BT49: 15580 | BU49: 11605 | BV49: 13397 | BW49: 11831
A50: 32991 | B50: Secteur 7 | C50: Rayon 36 | D50: 65637714 | E50: 41748740 | F50: 83041337 | G50: 83543691 | H50: 56361502 | I50: 74922820 | J50: 45220508 | K50: 55715893 | L50: 74476996 | M50: 82259259 | N50: 46468965 | O50: 36051724 | P50: 42079741 | Q50: 63438612 | R50: 78946085 | S50: 77907563 | T50: 68686495 | U50: 47946969 | V50: 43686672 | W50: 62323778 | X50: 52761900 | Y50: 48166680 | Z50: 69226103 | AA50: 45744741 | AB50: 3.67 | AC50: 3.81 | AD50: 2.96 | AE50: 3.28 | AF50: 3.17 | AG50: 2.79 | AH50: 2.3 | AI50: 3.26 | AJ50: 3.29 | AK50: 3.48 | AL50: 3.59 | AM50: 3.63 | AN50: 2.76 | AO50: 3.71 | AP50: 3.26 | AQ50: 2.56 | AR50: 2.53 | AS50: 2.82 | AT50: 3.93 | AU50: 2.33 | AV50: 3.59 | AW50: 2.89 | AX50: 3.53 | AY50: 3.78 | AZ50: 14365 | BA50: 15863 | BB50: 12759 | BC50: 14460 | BD50: 11107 | BE50: 14117 | BF50: 14561 | BG50: 12484 | BH50: 12951 | BI50: 11661 | BJ50: 13297 | BK50: 10216 | BL50: 15584 | BM50: 12708 | BN50: 10967 | BO50: 14380 | BP50: 13467 | BQ50: 15487 | BR50: 15576 | BS50: 10027 | BT50: 11308 | BU50: 12652 | BV50: 13760 | BW50: 12334
A51: 32591 | B51: Secteur 7 | C51: Rayon 37 | D51: 83663060 | E51: 51147218 | F51: 66455078 | G51: 60865556 | H51: 59564149 | I51: 38621641 | J51: 67045887 | K51: 51098317 | L51: 39661879 | M51: 39872774 | N51: 54899494 | O51: 78385923 | P51: 49380460 | Q51: 38270969 | R51: 69783240 | S51: 46203978 | T51: 69167216 | U51: 71716734 | V51: 80127432 | W51: 73539059 | X51: 72855504 | Y51: 59681907 | Z51: 59744746 | AA51: 79310498 | AB51: 3.23 | AC51: 3.93 | AD51: 3.76 | AE51: 3.57 | AF51: 2.68 | AG51: 3 | AH51: 2.87 | AI51: 3.16 | AJ51: 2.74 | AK51: 3.94 | AL51: 3.36 | AM51: 2.45 | AN51: 2.45 | AO51: 3.23 | AP51: 3.97 | AQ51: 2.5 | AR51: 3.78 | AS51: 3.44 | AT51: 2.43 | AU51: 3.92 | AV51: 3.16 | AW51: 3.59 | AX51: 2.31 | AY51: 2.84 | AZ51: 15836 | BA51: 12564 | BB51: 12282 | BC51: 15819 | BD51: 12330 | BE51: 15077 | BF51: 10099 | BG51: 10337 | BH51: 12928 | BI51: 13856 | BJ51: 15648 | BK51: 10409 | BL51: 14205 | BM51: 12655 | BN51: 11016 | BO51: 14396 | BP51: 14054 | BQ51: 12456 | BR51: 13163 | BS51: 13999 | BT51: 13369 | BU51: 13343 | BV51: 10581 | BW51: 15670
A52: 32772 | B52: Secteur 7 | C52: Rayon 49 | D52: 41125245 | E52: 68212862 | F52: 66982076 | G52: 69971600 | H52: 46597279 | I52: 58067313 | J52: 39873555 | K52: 45285258 | L52: 39116880 | M52: 70776909 | N52: 75903482 | O52: 69559126 | P52: 38091883 | Q52: 52793985 | R52: 65905453 | S52: 46990843 | T52: 79486088 | U52: 69140423 | V52: 79860675 | W52: 53385570 | X52: 71597535 | Y52: 58398255 | Z52: 80645740 | AA52: 64779953 | AB52: 2.3 | AC52: 3.83 | AD52: 2.9 | AE52: 2.36 | AF52: 2.97 | AG52: 2.66 | AH52: 3.54 | AI52: 3.96 | AJ52: 3.31 | AK52: 2.48 | AL52: 3.02 | AM52: 3.24 | AN52: 3.17 | AO52: 3.5 | AP52: 2.59 | AQ52: 2.59 | AR52: 3.97 | AS52: 2.88 | AT52: 3.16 | AU52: 3.31 | AV52: 2.97 | AW52: 2.99 | AX52: 3.76 | AY52: 3.14 | AZ52: 10227 | BA52: 12928 | BB52: 13498 | BC52: 15869 | BD52: 12167 | BE52: 10296 | BF52: 14997 | BG52: 13102 | BH52: 13653 | BI52: 13731 | BJ52: 13556 | BK52: 13375 | BL52: 10783 | BM52: 14893 | BN52: 13357 | BO52: 14065 | BP52: 13707 | BQ52: 11327 | BR52: 15495 | BS52: 10256 | BT52: 15879 | BU52: 14892 | BV52: 15110 | BW52: 15327
A53: 33607 | B53: Secteur 7 | C53: Rayon 50 | D53: 74407814 | E53: 50121197 | F53: 50381416 | G53: 46633286 | H53: 75616238 | I53: 76381985 | J53: 49379382 | K53: 59981644 | L53: 53919971 | M53: 76263296 | N53: 68420894 | O53: 57347884 | P53: 58649857 | Q53: 62375606 | R53: 78443843 | S53: 67966062 | T53: 54061278 | U53: 52988642 | V53: 37990234 | W53: 39745419 | X53: 80488131 | Y53: 59348449 | Z53: 53191130 | AA53: 71283229 | AB53: 3.08 | AC53: 3.36 | AD53: 3.2 | AE53: 3.06 | AF53: 3.23 | AG53: 2.41 | AH53: 3.28 | AI53: 2.71 | AJ53: 2.75 | AK53: 3.91 | AL53: 3.04 | AM53: 2.55 | AN53: 2.43 | AO53: 2.35 | AP53: 3.74 | AQ53: 3.74 | AR53: 3.06 | AS53: 3.92 | AT53: 3.52 | AU53: 3.37 | AV53: 2.65 | AW53: 2.34 | AX53: 3.42 | AY53: 3.59 | AZ53: 12747 | BA53: 12759 | BB53: 12987 | BC53: 15792 | BD53: 15327 | BE53: 15707 | BF53: 13189 | BG53: 12310 | BH53: 11488 | BI53: 12458 | BJ53: 14948 | BK53: 11857 | BL53: 12301 | BM53: 10742 | BN53: 15363 | BO53: 12080 | BP53: 11601 | BQ53: 13947 | BR53: 15589 | BS53: 13441 | BT53: 15563 | BU53: 15151 | BV53: 11367 | BW53: 15473
A54: 32263 | B54: Secteur 7 | C54: Rayon 51 | D54: 66913212 | E54: 55561899 | F54: 73277575 | G54: 74547315 | H54: 50628205 | I54: 55863989 | J54: 72659649 | K54: 61250066 | L54: 46900548 | M54: 61246057 | N54: 72571031 | O54: 54512761 | P54: 50451951 | Q54: 56585908 | R54: 58643677 | S54: 81074220 | T54: 45038203 | U54: 49836487 | V54: 51233489 | W54: 82878772 | X54: 68817020 | Y54: 67413182 | Z54: 52504564 | AA54: 41762854 | AB54: 3.07 | AC54: 3.63 | AD54: 3.38 | AE54: 3.8 | AF54: 2.38 | AG54: 3.53 | AH54: 2.52 | AI54: 3.44 | AJ54: 3.76 | AK54: 2.27 | AL54: 3.5 | AM54: 2.72 | AN54: 3.91 | AO54: 3.33 | AP54: 3.62 | AQ54: 2.56 | AR54: 3.82 | AS54: 2.46 | AT54: 2.98 | AU54: 3.7 | AV54: 2.37 | AW54: 3.94 | AX54: 2.6 | AY54: 2.64 | AZ54: 11455 | BA54: 12769 | BB54: 14170 | BC54: 15141 | BD54: 13358 | BE54: 13231 | BF54: 12020 | BG54: 14560 | BH54: 15408 | BI54: 13548 | BJ54: 13580 | BK54: 12335 | BL54: 15157 | BM54: 11983 | BN54: 11979 | BO54: 15606 | BP54: 13973 | BQ54: 13398 | BR54: 11370 | BS54: 13226 | BT54: 15384 | BU54: 14293 | BV54: 12192 | BW54: 10055
A55: 33147 | B55: Secteur 7 | C55: Rayon 52 | D55: 35750874 | E55: 40110732 | F55: 62789222 | G55: 63049395 | H55: 66215501 | I55: 78331122 | J55: 56864618 | K55: 63531487 | L55: 39225467 | M55: 49799277 | N55: 55365719 | O55: 72863448 | P55: 82092068 | Q55: 70435843 | R55: 60589055 | S55: 60781401 | T55: 44043817 | U55: 40707257 | V55: 46273896 | W55: 44371962 | X55: 62140677 | Y55: 39206724 | Z55: 64649429 | AA55: 41161807 | AB55: 3.49 | AC55: 2.79 | AD55: 3.81 | AE55: 3.84 | AF55: 3.66 | AG55: 2.82 | AH55: 3 | AI55: 2.78 | AJ55: 2.91 | AK55: 3.33 | AL55: 3.94 | AM55: 3.84 | AN55: 2.34 | AO55: 2.36 | AP55: 3.25 | AQ55: 3.59 | AR55: 2.69 | AS55: 2.82 | AT55: 2.74 | AU55: 2.96 | AV55: 3.79 | AW55: 2.74 | AX55: 3.69 | AY55: 3.9 | AZ55: 12361 | BA55: 12810 | BB55: 11261 | BC55: 14498 | BD55: 14962 | BE55: 10535 | BF55: 15679 | BG55: 14726 | BH55: 12857 | BI55: 15774 | BJ55: 14574 | BK55: 13496 | BL55: 12309 | BM55: 11319 | BN55: 10385 | BO55: 12014 | BP55: 15118 | BQ55: 15717 | BR55: 13830 | BS55: 11451 | BT55: 12934 | BU55: 14935 | BV55: 14356 | BW55: 13223
A56: 33441 | B56: Secteur 7 | C56: Rayon 53 | D56: 37411734 | E56: 77858700 | F56: 74784933 | G56: 70583559 | H56: 36856158 | I56: 74863259 | J56: 62397751 | K56: 48830592 | L56: 52065573 | M56: 71440889 | N56: 58026512 | O56: 72571058 | P56: 63250741 | Q56: 77604254 | R56: 51865236 | S56: 81428886 | T56: 63450842 | U56: 78417344 | V56: 60339530 | W56: 35848677 | X56: 54735402 | Y56: 37872215 | Z56: 52161315 | AA56: 76867206 | AB56: 3.7 | AC56: 2.58 | AD56: 3.22 | AE56: 3.76 | AF56: 2.87 | AG56: 2.46 | AH56: 3.27 | AI56: 2.81 | AJ56: 2.74 | AK56: 3.76 | AL56: 3.43 | AM56: 2.41 | AN56: 2.59 | AO56: 2.8 | AP56: 2.97 | AQ56: 3.54 | AR56: 3.82 | AS56: 3.01 | AT56: 3.84 | AU56: 2.89 | AV56: 3.86 | AW56: 3.15 | AX56: 3.82 | AY56: 3.35 | AZ56: 10811 | BA56: 14545 | BB56: 11796 | BC56: 11404 | BD56: 14283 | BE56: 13167 | BF56: 11883 | BG56: 12374 | BH56: 12253 | BI56: 15711 | BJ56: 13739 | BK56: 11369 | BL56: 13939 | BM56: 11856 | BN56: 14954 | BO56: 13189 | BP56: 13344 | BQ56: 14716 | BR56: 13347 | BS56: 15839 | BT56: 11769 | BU56: 15346 | BV56: 12403 | BW56: 15464
A57: 33565 | B57: Secteur 7 | C57: Rayon 54 | D57: 39503743 | E57: 55169975 | F57: 80972378 | G57: 40659224 | H57: 76296449 | I57: 81622562 | J57: 59197231 | K57: 72936031 | L57: 47859271 | M57: 51656167 | N57: 71498663 | O57: 42724235 | P57: 36796864 | Q57: 45557716 | R57: 73486688 | S57: 37378659 | T57: 37838245 | U57: 64655359 | V57: 36369192 | W57: 66736981 | X57: 76937335 | Y57: 50498253 | Z57: 77305518 | AA57: 78171630 | AB57: 3.2 | AC57: 3.76 | AD57: 2.78 | AE57: 3.87 | AF57: 3.71 | AG57: 3.55 | AH57: 3.12 | AI57: 3.02 | AJ57: 2.73 | AK57: 3.11 | AL57: 2.4 | AM57: 3.77 | AN57: 3.9 | AO57: 3.55 | AP57: 3.14 | AQ57: 2.53 | AR57: 3.45 | AS57: 3.41 | AT57: 2.88 | AU57: 2.59 | AV57: 2.62 | AW57: 3.53 | AX57: 2.83 | AY57: 3.83 | AZ57: 10609 | BA57: 15696 | BB57: 12103 | BC57: 14873 | BD57: 15786 | BE57: 13391 | BF57: 13796 | BG57: 13203 | BH57: 14128 | BI57: 12636 | BJ57: 13256 | BK57: 13053 | BL57: 11520 | BM57: 10701 | BN57: 10325 | BO57: 13646 | BP57: 13590 | BQ57: 14882 | BR57: 12158 | BS57: 14401 | BT57: 13709 | BU57: 11615 | BV57: 10059 | BW57: 13886
A58: 33984 | B58: Secteur 7 | C58: Rayon 55 | D58: 53292656 | E58: 57066962 | F58: 38304131 | G58: 69702930 | H58: 74353929 | I58: 77160292 | J58: 80191450 | K58: 76192274 | L58: 37815424 | M58: 75438176 | N58: 37318388 | O58: 61793513 | P58: 80814530 | Q58: 50899543 | R58: 48425697 | S58: 36746542 | T58: 67107323 | U58: 41897828 | V58: 53331141 | W58: 57665092 | X58: 68547911 | Y58: 62869102 | Z58: 54532887 | AA58: 50861919 | AB58: 3.27 | AC58: 2.61 | AD58: 2.3 | AE58: 2.68 | AF58: 3.19 | AG58: 3.74 | AH58: 2.86 | AI58: 3.37 | AJ58: 2.37 | AK58: 2.99 | AL58: 2.42 | AM58: 3.53 | AN58: 3.41 | AO58: 3.71 | AP58: 3.58 | AQ58: 2.27 | AR58: 3.47 | AS58: 2.28 | AT58: 3.52 | AU58: 3.35 | AV58: 3.82 | AW58: 3.32 | AX58: 2.78 | AY58: 3.17 | AZ58: 13491 | BA58: 10948 | BB58: 11524 | BC58: 13060 | BD58: 12992 | BE58: 11429 | BF58: 10148 | BG58: 10902 | BH58: 12006 | BI58: 12485 | BJ58: 11437 | BK58: 12955 | BL58: 10874 | BM58: 13479 | BN58: 14601 | BO58: 10445 | BP58: 10926 | BQ58: 13684 | BR58: 14211 | BS58: 14724 | BT58: 10134 | BU58: 11760 | BV58: 13855 | BW58: 12109
A59: 33624 | B59: Secteur 7 | C59: Rayon 56 | D59: 43612345 | E59: 71834187 | F59: 45602401 | G59: 68736652 | H59: 81574964 | I59: 66257236 | J59: 70307260 | K59: 49815961 | L59: 69501388 | M59: 64113170 | N59: 46923362 | O59: 51948354 | P59: 74327121 | Q59: 37399474 | R59: 44099160 | S59: 48327569 | T59: 68872681 | U59: 43614231 | V59: 59213738 | W59: 43605814 | X59: 56632552 | Y59: 53477593 | Z59: 75351658 | AA59: 49471718 | AB59: 3.18 | AC59: 2.32 | AD59: 3.37 | AE59: 3.96 | AF59: 2.82 | AG59: 3.9 | AH59: 3.48 | AI59: 2.8 | AJ59: 2.83 | AK59: 3.06 | AL59: 3.7 | AM59: 3.88 | AN59: 2.67 | AO59: 3.3 | AP59: 3.24 | AQ59: 3.8 | AR59: 2.64 | AS59: 3.62 | AT59: 2.28 | AU59: 2.79 | AV59: 2.5 | AW59: 3.6 | AX59: 3.7 | AY59: 3.83 | AZ59: 12469 | BA59: 10306 | BB59: 10918 | BC59: 12297 | BD59: 15329 | BE59: 10149 | BF59: 14664 | BG59: 15766 | BH59: 11907 | BI59: 15716 | BJ59: 11918 | BK59: 13998 | BL59: 12244 | BM59: 11202 | BN59: 15692 | BO59: 10303 | BP59: 14142 | BQ59: 10179 | BR59: 13309 | BS59: 12907 | BT59: 12850 | BU59: 15171 | BV59: 15217 | BW59: 13488
A60: 32519 | B60: Secteur 7 | C60: Rayon 57 | D60: 51096189 | E60: 68262751 | F60: 68911669 | G60: 72338275 | H60: 44016302 | I60: 50324333 | J60: 43638648 | K60: 83591297 | L60: 47779228 | M60: 79030568 | N60: 80472069 | O60: 73805683 | P60: 83505278 | Q60: 44632831 | R60: 39441052 | S60: 48703428 | T60: 58123825 | U60: 50860424 | V60: 56574551 | W60: 61997729 | X60: 76865705 | Y60: 60265811 | Z60: 53545587 | AA60: 59342850 | AB60: 3.4 | AC60: 3.26 | AD60: 3.92 | AE60: 3.46 | AF60: 3.63 | AG60: 2.32 | AH60: 3.68 | AI60: 3.83 | AJ60: 3.64 | AK60: 3.23 | AL60: 2.49 | AM60: 3.3 | AN60: 3.28 | AO60: 3.12 | AP60: 2.94 | AQ60: 2.95 | AR60: 3.22 | AS60: 3.33 | AT60: 2.78 | AU60: 3.63 | AV60: 2.33 | AW60: 3.66 | AX60: 3.1 | AY60: 2.64 | AZ60: 12499 | BA60: 13300 | BB60: 10144 | BC60: 12300 | BD60: 15469 | BE60: 12375 | BF60: 14017 | BG60: 11422 | BH60: 13290 | BI60: 13318 | BJ60: 10065 | BK60: 15707 | BL60: 15723 | BM60: 13052 | BN60: 13073 | BO60: 15870 | BP60: 12589 | BQ60: 10030 | BR60: 13521 | BS60: 11043 | BT60: 12157 | BU60: 11316 | BV60: 13041 | BW60: 13783
A61: 33836 | B61: Secteur 7 | C61: Rayon 58 | D61: 52870483 | E61: 40467574 | F61: 57659377 | G61: 67332545 | H61: 62170799 | I61: 49660381 | J61: 70271668 | K61: 55209803 | L61: 79792591 | M61: 36249639 | N61: 47439920 | O61: 79110911 | P61: 47148621 | Q61: 39443285 | R61: 67037265 | S61: 65172269 | T61: 36618447 | U61: 43526498 | V61: 60985805 | W61: 46006947 | X61: 52468446 | Y61: 70166195 | Z61: 65116575 | AA61: 57961697 | AB61: 3.74 | AC61: 2.58 | AD61: 2.98 | AE61: 3 | AF61: 3.08 | AG61: 3.54 | AH61: 3.12 | AI61: 3.9 | AJ61: 3.81 | AK61: 3.9 | AL61: 3.67 | AM61: 3.81 | AN61: 3.91 | AO61: 3.27 | AP61: 2.48 | AQ61: 3.32 | AR61: 3.31 | AS61: 2.76 | AT61: 2.31 | AU61: 3.82 | AV61: 3.39 | AW61: 2.42 | AX61: 2.59 | AY61: 3.76 | AZ61: 13116 | BA61: 14549 | BB61: 14502 | BC61: 14580 | BD61: 14814 | BE61: 14574 | BF61: 14130 | BG61: 15731 | BH61: 15499 | BI61: 14459 | BJ61: 15702 | BK61: 11650 | BL61: 12119 | BM61: 14551 | BN61: 15603 | BO61: 11832 | BP61: 11330 | BQ61: 13794 | BR61: 12153 | BS61: 14979 | BT61: 15150 | BU61: 11277 | BV61: 10630 | BW61: 15390
A62: 34129 | B62: Secteur 7 | C62: Rayon 59 | D62: 67693315 | E62: 44981767 | F62: 43699226 | G62: 82984389 | H62: 45525762 | I62: 44930092 | J62: 60598568 | K62: 68571611 | L62: 71976624 | M62: 48367914 | N62: 73997273 | O62: 79015025 | P62: 82839298 | Q62: 66503358 | R62: 51762223 | S62: 43942379 | T62: 59468047 | U62: 82435620 | V62: 74322746 | W62: 42492864 | X62: 61113971 | Y62: 43739693 | Z62: 77296867 | AA62: 75939889 | AB62: 3.15 | AC62: 3.16 | AD62: 3.16 | AE62: 3.77 | AF62: 2.73 | AG62: 3.67 | AH62: 2.71 | AI62: 3.1 | AJ62: 2.65 | AK62: 3.27 | AL62: 3.16 | AM62: 3.01 | AN62: 2.78 | AO62: 3 | AP62: 2.96 | AQ62: 2.36 | AR62: 2.76 | AS62: 3.15 | AT62: 3.43 | AU62: 3.37 | AV62: 2.56 | AW62: 3.16 | AX62: 3.36 | AY62: 3.01 | AZ62: 11944 | BA62: 11104 | BB62: 14688 | BC62: 15562 | BD62: 12554 | BE62: 15275 | BF62: 12225 | BG62: 11928 | BH62: 12396 | BI62: 12798 | BJ62: 14451 | BK62: 14303 | BL62: 13638 | BM62: 14579 | BN62: 15539 | BO62: 12297 | BP62: 15660 | BQ62: 15493 | BR62: 11515 | BS62: 15249 | BT62: 13544 | BU62: 15416 | BV62: 14351 | BW62: 13112
A63: 32743 | B63: Secteur 7 | C63: Rayon 60 | D63: 63780279 | E63: 81775702 | F63: 83016764 | G63: 70323682 | H63: 73246669 | I63: 37065478 | J63: 58486323 | K63: 37981865 | L63: 73635350 | M63: 54797183 | N63: 44200828 | O63: 42540996 | P63: 52830469 | Q63: 77843963 | R63: 81664590 | S63: 77138763 | T63: 43056795 | U63: 57470983 | V63: 68516469 | W63: 42517646 | X63: 36426386 | Y63: 38678054 | Z63: 75757352 | AA63: 53787190 | AB63: 3.88 | AC63: 2.65 | AD63: 2.81 | AE63: 2.85 | AF63: 3.84 | AG63: 3.35 | AH63: 3.05 | AI63: 3.6 | AJ63: 3.83 | AK63: 2.89 | AL63: 3.31 | AM63: 3.03 | AN63: 3.55 | AO63: 2.28 | AP63: 3.32 | AQ63: 2.48 | AR63: 3.5 | AS63: 3.09 | AT63: 2.46 | AU63: 2.92 | AV63: 3.87 | AW63: 2.45 | AX63: 3.68 | AY63: 2.67 | AZ63: 15618 | BA63: 11322 | BB63: 14211 | BC63: 15126 | BD63: 11556 | BE63: 13411 | BF63: 13439 | BG63: 15498 | BH63: 13480 | BI63: 15833 | BJ63: 12316 | BK63: 12101 | BL63: 10559 | BM63: 10106 | BN63: 15818 | BO63: 13458 | BP63: 11214 | BQ63: 10939 | BR63: 10159 | BS63: 10626 | BT63: 10210 | BU63: 12730 | BV63: 10385 | BW63: 12697
A64: 32186 | B64: Secteur 7 | C64: Rayon 61 | D64: 41475255 | E64: 68873878 | F64: 48670853 | G64: 60581258 | H64: 37091099 | I64: 69825082 | J64: 44575862 | K64: 51190746 | L64: 75626404 | M64: 63652638 | N64: 53559042 | O64: 73553566 | P64: 58481191 | Q64: 38362382 | R64: 37119917 | S64: 61356341 | T64: 62537988 | U64: 62709762 | V64: 67390075 | W64: 36619571 | X64: 52461887 | Y64: 55549364 | Z64: 41884454 | AA64: 48960661 | AB64: 3.49 | AC64: 3.24 | AD64: 3.78 | AE64: 3.65 | AF64: 3.63 | AG64: 3.02 | AH64: 3.54 | AI64: 2.81 | AJ64: 3.15 | AK64: 3.79 | AL64: 2.81 | AM64: 3.84 | AN64: 3.76 | AO64: 2.69 | AP64: 3.11 | AQ64: 2.99 | AR64: 2.28 | AS64: 3.26 | AT64: 2.79 | AU64: 3.54 | AV64: 3.32 | AW64: 3.02 | AX64: 3.73 | AY64: 3.39 | AZ64: 11680 | BA64: 12334 | BB64: 11655 | BC64: 15674 | BD64: 15580 | BE64: 11685 | BF64: 11311 | BG64: 14335 | BH64: 13954 | BI64: 15049 | BJ64: 12141 | BK64: 15191 | BL64: 10350 | BM64: 14512 | BN64: 11588 | BO64: 10841 | BP64: 15717 | BQ64: 11488 | BR64: 11703 | BS64: 15683 | BT64: 12162 | BU64: 12159 | BV64: 11691 | BW64: 13655
A65: 32416 | B65: Secteur 7 | C65: Rayon 62 | D65: 61556451 | E65: 64548458 | F65: 79298816 | G65: 61967373 | H65: 54825589 | I65: 67726897 | J65: 42066313 | K65: 59068395 | L65: 53242059 | M65: 51403240 | N65: 73681193 | O65: 39663886 | P65: 59779806 | Q65: 38838549 | R65: 50858036 | S65: 53976955 | T65: 55948523 | U65: 67289361 | V65: 57833393 | W65: 52880105 | X65: 55174796 | Y65: 40362992 | Z65: 65202705 | AA65: 77538055 | AB65: 2.72 | AC65: 2.95 | AD65: 3.14 | AE65: 2.85 | AF65: 2.29 | AG65: 3.09 | AH65: 2.28 | AI65: 2.93 | AJ65: 2.94 | AK65: 3.12 | AL65: 3.85 | AM65: 3.66 | AN65: 2.93 | AO65: 2.4 | AP65: 2.53 | AQ65: 2.36 | AR65: 2.95 | AS65: 3.78 | AT65: 2.33 | AU65: 2.83 | AV65: 3.7 | AW65: 3.83 | AX65: 3 | AY65: 2.35 | AZ65: 12010 | BA65: 12816 | BB65: 12438 | BC65: 10719 | BD65: 14713 | BE65: 14356 | BF65: 11847 | BG65: 15693 | BH65: 15895 | BI65: 14861 | BJ65: 15561 | BK65: 15012 | BL65: 13683 | BM65: 13423 | BN65: 14405 | BO65: 13292 | BP65: 10328 | BQ65: 11927 | BR65: 13882 | BS65: 11453 | BT65: 15759 | BU65: 15146 | BV65: 15394 | BW65: 13282
A66: 32200 | B66: Secteur 7 | C66: Rayon 63 | D66: 73943207 | E66: 41001019 | F66: 40926010 | G66: 57874102 | H66: 83409161 | I66: 46283948 | J66: 53424803 | K66: 41911161 | L66: 44048185 | M66: 72241804 | N66: 36381688 | O66: 83679246 | P66: 48261817 | Q66: 60209577 | R66: 67393024 | S66: 42637370 | T66: 48453956 | U66: 47174956 | V66: 53851452 | W66: 45920168 | X66: 48370184 | Y66: 68287051 | Z66: 68053500 | AA66: 48988229 | AB66: 2.75 | AC66: 2.89 | AD66: 2.67 | AE66: 3.7 | AF66: 2.85 | AG66: 3.93 | AH66: 2.74 | AI66: 2.71 | AJ66: 3.8 | AK66: 3.11 | AL66: 3.27 | AM66: 2.3 | AN66: 3.64 | AO66: 2.82 | AP66: 3.94 | AQ66: 3.03 | AR66: 3.63 | AS66: 3.7 | AT66: 2.29 | AU66: 3.9 | AV66: 3.83 | AW66: 3.85 | AX66: 2.58 | AY66: 3.88 | AZ66: 10283 | BA66: 15292 | BB66: 10916 | BC66: 10307 | BD66: 14121 | BE66: 13848 | BF66: 12899 | BG66: 14903 | BH66: 13875 | BI66: 12060 | BJ66: 10509 | BK66: 10950 | BL66: 12310 | BM66: 11163 | BN66: 15473 | BO66: 14247 | BP66: 14890 | BQ66: 12726 | BR66: 15025 | BS66: 14242 | BT66: 14000 | BU66: 13895 | BV66: 10135 | BW66: 12879
A67: 34005 | B67: Secteur 7 | C67: Rayon 64 | D67: 41419272 | E67: 46658221 | F67: 42771522 | G67: 40431937 | H67: 70536002 | I67: 36653074 | J67: 58401466 | K67: 58549257 | L67: 64554338 | M67: 64117233 | N67: 46871247 | O67: 65993981 | P67: 43990589 | Q67: 46755088 | R67: 57094866 | S67: 45865115 | T67: 44116245 | U67: 61936615 | V67: 48664576 | W67: 57370165 | X67: 64979980 | Y67: 81693672 | Z67: 44967823 | AA67: 55720467 | AB67: 2.43 | AC67: 3.72 | AD67: 3.17 | AE67: 3.66 | AF67: 3.63 | AG67: 3.97 | AH67: 3.75 | AI67: 3.73 | AJ67: 2.69 | AK67: 3.94 | AL67: 3.45 | AM67: 3.74 | AN67: 3.91 | AO67: 3.28 | AP67: 3.95 | AQ67: 3.22 | AR67: 2.5 | AS67: 2.36 | AT67: 3.32 | AU67: 2.3 | AV67: 3.73 | AW67: 2.53 | AX67: 2.79 | AY67: 3.5 | AZ67: 14407 | BA67: 14022 | BB67: 14808 | BC67: 15840 | BD67: 13515 | BE67: 10083 | BF67: 10329 | BG67: 12575 | BH67: 15818 | BI67: 11625 | BJ67: 10494 | BK67: 10967 | BL67: 12903 | BM67: 10921 | BN67: 10774 | BO67: 15784 | BP67: 14133 | BQ67: 11377 | BR67: 10618 | BS67: 13215 | BT67: 14242 | BU67: 12947 | BV67: 11440 | BW67: 10123
A68: 33384 | B68: Secteur 7 | C68: Rayon 65 | D68: 50301092 | E68: 68505050 | F68: 83600268 | G68: 69168203 | H68: 83134731 | I68: 49899194 | J68: 62706136 | K68: 64939697 | L68: 69271049 | M68: 48565427 | N68: 51220787 | O68: 71434729 | P68: 69163475 | Q68: 80485753 | R68: 57760145 | S68: 69322913 | T68: 45116824 | U68: 45992443 | V68: 53144820 | W68: 66780126 | X68: 76953564 | Y68: 67613197 | Z68: 75425897 | AA68: 49906077 | AB68: 3.73 | AC68: 3.64 | AD68: 2.54 | AE68: 3.17 | AF68: 3.04 | AG68: 3.13 | AH68: 3.41 | AI68: 3.47 | AJ68: 3.09 | AK68: 3.43 | AL68: 3.1 | AM68: 2.99 | AN68: 3.69 | AO68: 2.38 | AP68: 3.37 | AQ68: 2.57 | AR68: 3.93 | AS68: 3.9 | AT68: 3.15 | AU68: 2.78 | AV68: 3.61 | AW68: 3.23 | AX68: 2.27 | AY68: 3.92 | AZ68: 12206 | BA68: 15063 | BB68: 14613 | BC68: 14868 | BD68: 12766 | BE68: 15559 | BF68: 11767 | BG68: 11849 | BH68: 12886 | BI68: 12735 | BJ68: 10982 | BK68: 13748 | BL68: 10627 | BM68: 12500 | BN68: 11018 | BO68: 12064 | BP68: 15753 | BQ68: 13218 | BR68: 11586 | BS68: 14295 | BT68: 15554 | BU68: 13434 | BV68: 11160 | BW68: 12992
A69: 33306 | B69: Secteur 7 | C69: Rayon 66 | D69: 43679603 | E69: 71965404 | F69: 76911876 | G69: 70159047 | H69: 49939979 | I69: 57612575 | J69: 66277522 | K69: 61052869 | L69: 45209008 | M69: 65390027 | N69: 59220069 | O69: 77993044 | P69: 62311563 | Q69: 62106298 | R69: 49061991 | S69: 70870391 | T69: 44527816 | U69: 73765504 | V69: 57010069 | W69: 65928983 | X69: 74313035 | Y69: 79889625 | Z69: 43898367 | AA69: 36706934 | AB69: 3.21 | AC69: 3.43 | AD69: 2.94 | AE69: 2.78 | AF69: 3.25 | AG69: 3.63 | AH69: 3.78 | AI69: 2.97 | AJ69: 3.96 | AK69: 3.51 | AL69: 3.69 | AM69: 2.65 | AN69: 2.55 | AO69: 3.12 | AP69: 3.62 | AQ69: 3.77 | AR69: 3.76 | AS69: 3.65 | AT69: 2.81 | AU69: 3.12 | AV69: 2.97 | AW69: 3.56 | AX69: 3.31 | AY69: 3.19 | AZ69: 12670 | BA69: 12746 | BB69: 14168 | BC69: 11327 | BD69: 14927 | BE69: 11340 | BF69: 12047 | BG69: 10854 | BH69: 14150 | BI69: 13927 | BJ69: 13031 | BK69: 11696 | BL69: 12483 | BM69: 11271 | BN69: 14841 | BO69: 15318 | BP69: 12861 | BQ69: 13835 | BR69: 13525 | BS69: 10152 | BT69: 14029 | BU69: 13067 | BV69: 11056 | BW69: 12615
A70: 33482 | B70: Secteur 8 | C70: Rayon 67 | D70: 46608436 | E70: 66082106 | F70: 48393558 | G70: 39606262 | H70: 82390729 | I70: 52875218 | J70: 38948804 | K70: 48772952 | L70: 78561197 | M70: 50406164 | N70: 57053033 | O70: 58912747 | P70: 79149477 | Q70: 79127747 | R70: 54064874 | S70: 82170931 | T70: 46432571 | U70: 38632793 | V70: 39405761 | W70: 43098375 | X70: 66263533 | Y70: 50521278 | Z70: 38248978 | AA70: 49156668 | AB70: 3.09 | AC70: 2.95 | AD70: 3.95 | AE70: 3.46 | AF70: 3.18 | AG70: 3.76 | AH70: 3.78 | AI70: 3.05 | AJ70: 2.79 | AK70: 3.39 | AL70: 3.83 | AM70: 3.03 | AN70: 3.59 | AO70: 2.53 | AP70: 3.13 | AQ70: 3.41 | AR70: 2.44 | AS70: 2.51 | AT70: 2.85 | AU70: 3.3 | AV70: 2.65 | AW70: 3.17 | AX70: 3.48 | AY70: 3.94 | AZ70: 12057 | BA70: 15751 | BB70: 14743 | BC70: 13263 | BD70: 11672 | BE70: 15291 | BF70: 12127 | BG70: 12520 | BH70: 13957 | BI70: 11419 | BJ70: 11401 | BK70: 13406 | BL70: 11081 | BM70: 13894 | BN70: 12733 | BO70: 12098 | BP70: 14067 | BQ70: 15349 | BR70: 10885 | BS70: 10466 | BT70: 11009 | BU70: 12477 | BV70: 11959 | BW70: 10540
A71: 33611 | B71: Secteur 9 | C71: Rayon 68 | D71: 64115229 | E71: 48223607 | F71: 65405624 | G71: 50490081 | H71: 42293918 | I71: 40887201 | J71: 54733787 | K71: 71629974 | L71: 46383930 | M71: 68225463 | N71: 39781110 | O71: 41207379 | P71: 71427654 | Q71: 53810514 | R71: 74354519 | S71: 63324680 | T71: 72735206 | U71: 50379539 | V71: 65197784 | W71: 42131822 | X71: 63986553 | Y71: 83871389 | Z71: 57162952 | AA71: 35712080 | AB71: 3.08 | AC71: 2.76 | AD71: 3.46 | AE71: 3.39 | AF71: 2.71 | AG71: 2.83 | AH71: 3.46 | AI71: 3.95 | AJ71: 3.08 | AK71: 2.5 | AL71: 2.36 | AM71: 2.58 | AN71: 2.38 | AO71: 2.56 | AP71: 2.73 | AQ71: 3.25 | AR71: 2.38 | AS71: 3.43 | AT71: 3.87 | AU71: 3.66 | AV71: 2.72 | AW71: 2.89 | AX71: 3.39 | AY71: 3.31 | AZ71: 14216 | BA71: 10153 | BB71: 15088 | BC71: 15174 | BD71: 10259 | BE71: 12512 | BF71: 15137 | BG71: 12840 | BH71: 13060 | BI71: 10745 | BJ71: 13035 | BK71: 12919 | BL71: 13130 | BM71: 12275 | BN71: 14140 | BO71: 11878 | BP71: 12707 | BQ71: 12474 | BR71: 15646 | BS71: 14469 | BT71: 11811 | BU71: 12690 | BV71: 11549 | BW71: 11612
A72: 32405 | B72: Secteur 9 | C72: Rayon 69 | D72: 79853164 | E72: 45008270 | F72: 66229200 | G72: 35807421 | H72: 81587483 | I72: 68140036 | J72: 57464925 | K72: 50819536 | L72: 68078376 | M72: 57656356 | N72: 67787320 | O72: 51238925 | P72: 59853358 | Q72: 48714771 | R72: 57498529 | S72: 63346632 | T72: 54882170 | U72: 79251015 | V72: 58233260 | W72: 48061810 | X72: 62112549 | Y72: 74493912 | Z72: 62079690 | AA72: 47272418 | AB72: 3.75 | AC72: 2.69 | AD72: 2.97 | AE72: 3.42 | AF72: 2.79 | AG72: 3 | AH72: 3.18 | AI72: 3.44 | AJ72: 2.79 | AK72: 3.08 | AL72: 2.82 | AM72: 3.18 | AN72: 2.57 | AO72: 2.48 | AP72: 2.49 | AQ72: 2.99 | AR72: 3.92 | AS72: 3.31 | AT72: 2.27 | AU72: 3.75 | AV72: 3.68 | AW72: 3.19 | AX72: 3.96 | AY72: 3.34 | AZ72: 12932 | BA72: 13865 | BB72: 12232 | BC72: 11185 | BD72: 13606 | BE72: 14231 | BF72: 10837 | BG72: 11308 | BH72: 12276 | BI72: 13803 | BJ72: 12221 | BK72: 10223 | BL72: 11022 | BM72: 10785 | BN72: 10320 | BO72: 15357 | BP72: 13493 | BQ72: 13599 | BR72: 10854 | BS72: 13765 | BT72: 11062 | BU72: 10984 | BV72: 10531 | BW72: 13310
A73: 32435 | B73: Secteur 9 | C73: Rayon 70 | D73: 52925582 | E73: 44158940 | F73: 74610392 | G73: 37715830 | H73: 75545557 | I73: 63449974 | J73: 77283403 | K73: 58545574 | L73: 60792066 | M73: 79553572 | N73: 69757797 | O73: 73390755 | P73: 46126118 | Q73: 79010483 | R73: 46155619 | S73: 73450204 | T73: 61568836 | U73: 60885896 | V73: 59588771 | W73: 46464576 | X73: 69856759 | Y73: 78741352 | Z73: 57507006 | AA73: 63728733 | AB73: 3.32 | AC73: 2.71 | AD73: 2.81 | AE73: 3.8 | AF73: 2.51 | AG73: 3.54 | AH73: 2.65 | AI73: 3.89 | AJ73: 3.34 | AK73: 2.6 | AL73: 3.65 | AM73: 3.49 | AN73: 3 | AO73: 3.06 | AP73: 2.79 | AQ73: 3.38 | AR73: 3.15 | AS73: 3.6 | AT73: 3.32 | AU73: 3.75 | AV73: 3.07 | AW73: 3.7 | AX73: 2.62 | AY73: 3.12 | AZ73: 14743 | BA73: 11117 | BB73: 11640 | BC73: 14103 | BD73: 12781 | BE73: 12265 | BF73: 14754 | BG73: 12913 | BH73: 11135 | BI73: 11462 | BJ73: 11035 | BK73: 15680 | BL73: 12615 | BM73: 12989 | BN73: 10646 | BO73: 15325 | BP73: 13733 | BQ73: 13328 | BR73: 12429 | BS73: 10355 | BT73: 12775 | BU73: 10984 | BV73: 13584 | BW73: 14295
A74: 33249 | B74: Secteur 9 | C74: Rayon 71 | D74: 60362629 | E74: 54250083 | F74: 55108370 | G74: 40276519 | H74: 78502629 | I74: 44680175 | J74: 60837965 | K74: 41728324 | L74: 71212932 | M74: 46670155 | N74: 77543358 | O74: 61778323 | P74: 60483910 | Q74: 72709660 | R74: 65733040 | S74: 46190783 | T74: 57556019 | U74: 59291706 | V74: 82803637 | W74: 72793977 | X74: 51209790 | Y74: 68715892 | Z74: 36131423 | AA74: 73346063 | AB74: 2.31 | AC74: 3.42 | AD74: 3.84 | AE74: 3.2 | AF74: 2.48 | AG74: 3.93 | AH74: 2.56 | AI74: 3.39 | AJ74: 2.91 | AK74: 2.7 | AL74: 2.97 | AM74: 3.34 | AN74: 3.33 | AO74: 2.36 | AP74: 3.75 | AQ74: 2.6 | AR74: 3.74 | AS74: 3.7 | AT74: 3.28 | AU74: 3.81 | AV74: 2.54 | AW74: 3.8 | AX74: 2.32 | AY74: 3.24 | AZ74: 12325 | BA74: 12116 | BB74: 14006 | BC74: 10218 | BD74: 12961 | BE74: 14331 | BF74: 10650 | BG74: 13101 | BH74: 11002 | BI74: 14146 | BJ74: 12933 | BK74: 10552 | BL74: 10407 | BM74: 12072 | BN74: 14429 | BO74: 13770 | BP74: 11682 | BQ74: 15626 | BR74: 13430 | BS74: 12918 | BT74: 14628 | BU74: 10062 | BV74: 13292 | BW74: 13797
A75: 33639 | B75: Secteur 9 | C75: Rayon 72 | D75: 83896289 | E75: 79289007 | F75: 41204942 | G75: 65603066 | H75: 54559236 | I75: 63345863 | J75: 71213787 | K75: 66026962 | L75: 54019672 | M75: 39869649 | N75: 35847197 | O75: 37163616 | P75: 43426848 | Q75: 71590751 | R75: 77830714 | S75: 78482478 | T75: 46210338 | U75: 37543848 | V75: 79178273 | W75: 80197569 | X75: 36409925 | Y75: 71294890 | Z75: 39671583 | AA75: 44864260 | AB75: 3 | AC75: 3.4 | AD75: 2.29 | AE75: 2.63 | AF75: 2.37 | AG75: 3.41 | AH75: 3.6 | AI75: 3.87 | AJ75: 3.69 | AK75: 3.04 | AL75: 3.16 | AM75: 2.96 | AN75: 2.38 | AO75: 2.58 | AP75: 2.33 | AQ75: 3.06 | AR75: 2.39 | AS75: 3.58 | AT75: 3.04 | AU75: 3.11 | AV75: 3.51 | AW75: 3.14 | AX75: 3.8 | AY75: 2.55 | AZ75: 15658 | BA75: 12681 | BB75: 12626 | BC75: 14407 | BD75: 14897 | BE75: 15107 | BF75: 12969 | BG75: 15252 | BH75: 11211 | BI75: 11071 | BJ75: 13215 | BK75: 10232 | BL75: 10493 | BM75: 12125 | BN75: 10431 | BO75: 10616 | BP75: 12547 | BQ75: 10685 | BR75: 15430 | BS75: 14469 | BT75: 10381 | BU75: 14693 | BV75: 15851 | BW75: 14215
A76: 32329 | B76: Secteur 9 | C76: Rayon 73 | D76: 72269991 | E76: 41606122 | F76: 53345407 | G76: 47655439 | H76: 60752809 | I76: 52235409 | J76: 79071208 | K76: 55190735 | L76: 47887430 | M76: 80874360 | N76: 61494731 | O76: 81086104 | P76: 78291848 | Q76: 82085703 | R76: 59476542 | S76: 54716295 | T76: 63220725 | U76: 44000639 | V76: 73666223 | W76: 54323668 | X76: 81838028 | Y76: 55931033 | Z76: 74496002 | AA76: 49313619 | AB76: 3.3 | AC76: 2.48 | AD76: 2.78 | AE76: 3.4 | AF76: 3.45 | AG76: 3.43 | AH76: 3.56 | AI76: 3.8 | AJ76: 2.88 | AK76: 2.67 | AL76: 3.31 | AM76: 3.54 | AN76: 3.33 | AO76: 2.58 | AP76: 3.77 | AQ76: 3.87 | AR76: 2.44 | AS76: 2.56 | AT76: 3.97 | AU76: 2.56 | AV76: 3.92 | AW76: 3.52 | AX76: 2.67 | AY76: 2.79 | AZ76: 10809 | BA76: 10088 | BB76: 14664 | BC76: 11190 | BD76: 14019 | BE76: 10368 | BF76: 10498 | BG76: 13419 | BH76: 13710 | BI76: 13010 | BJ76: 15836 | BK76: 13855 | BL76: 10983 | BM76: 11674 | BN76: 11861 | BO76: 15687 | BP76: 12056 | BQ76: 15242 | BR76: 15009 | BS76: 14227 | BT76: 10070 | BU76: 15418 | BV76: 15707 | BW76: 12604
A77: 33599 | B77: Secteur 9 | C77: Rayon 74 | D77: 46492825 | E77: 47497912 | F77: 71466522 | G77: 45728696 | H77: 81641915 | I77: 60391461 | J77: 49310977 | K77: 45299925 | L77: 73835616 | M77: 56708970 | N77: 51164968 | O77: 67459353 | P77: 61990735 | Q77: 50712604 | R77: 50051260 | S77: 78230795 | T77: 38961600 | U77: 75930562 | V77: 73852945 | W77: 60811647 | X77: 54628876 | Y77: 67558660 | Z77: 83499182 | AA77: 47566707 | AB77: 2.97 | AC77: 3.46 | AD77: 3.83 | AE77: 2.91 | AF77: 3.31 | AG77: 2.47 | AH77: 3.48 | AI77: 3.06 | AJ77: 3.6 | AK77: 2.3 | AL77: 3.31 | AM77: 2.39 | AN77: 2.73 | AO77: 3.05 | AP77: 3.59 | AQ77: 2.39 | AR77: 2.96 | AS77: 3.85 | AT77: 3.17 | AU77: 3.46 | AV77: 2.28 | AW77: 3.46 | AX77: 3.72 | AY77: 2.84 | AZ77: 11673 | BA77: 14685 | BB77: 11917 | BC77: 12032 | BD77: 14772 | BE77: 13464 | BF77: 11827 | BG77: 14287 | BH77: 14927 | BI77: 13716 | BJ77: 10673 | BK77: 13130 | BL77: 11065 | BM77: 14607 | BN77: 14659 | BO77: 13571 | BP77: 13802 | BQ77: 14920 | BR77: 10806 | BS77: 10223 | BT77: 14975 | BU77: 10287 | BV77: 13746 | BW77: 12513
A78: 32046 | B78: Secteur 9 | C78: Rayon 75 | D78: 75996327 | E78: 66939568 | F78: 47869809 | G78: 70837921 | H78: 38028740 | I78: 63325557 | J78: 57751353 | K78: 71966062 | L78: 78329138 | M78: 61694275 | N78: 62856860 | O78: 68060467 | P78: 79024674 | Q78: 57177452 | R78: 37621715 | S78: 49149584 | T78: 51834154 | U78: 64198931 | V78: 55160750 | W78: 43940450 | X78: 54848669 | Y78: 65112747 | Z78: 48760291 | AA78: 75651939 | AB78: 2.56 | AC78: 2.46 | AD78: 3.73 | AE78: 3.31 | AF78: 2.91 | AG78: 3.75 | AH78: 2.64 | AI78: 3.27 | AJ78: 3.07 | AK78: 2.7 | AL78: 3.49 | AM78: 2.74 | AN78: 3.42 | AO78: 2.72 | AP78: 3.39 | AQ78: 3.13 | AR78: 3.26 | AS78: 3.44 | AT78: 2.29 | AU78: 2.55 | AV78: 2.93 | AW78: 2.97 | AX78: 3.12 | AY78: 3.76 | AZ78: 15023 | BA78: 13819 | BB78: 14417 | BC78: 14213 | BD78: 11258 | BE78: 12747 | BF78: 13108 | BG78: 14436 | BH78: 12290 | BI78: 15690 | BJ78: 15368 | BK78: 12488 | BL78: 10493 | BM78: 11666 | BN78: 14423 | BO78: 12527 | BP78: 14230 | BQ78: 15352 | BR78: 14901 | BS78: 12418 | BT78: 14741 | BU78: 12236 | BV78: 11256 | BW78: 10234
A79: 33098 | B79: Secteur 9 | C79: Rayon 76 | D79: 38943708 | E79: 76237543 | F79: 76412240 | G79: 60868167 | H79: 77998075 | I79: 73228237 | J79: 52239068 | K79: 44733690 | L79: 74326217 | M79: 47325489 | N79: 66562439 | O79: 65557226 | P79: 62732629 | Q79: 46093293 | R79: 53815771 | S79: 75398755 | T79: 64029691 | U79: 76052985 | V79: 80642765 | W79: 38606588 | X79: 79013276 | Y79: 74665420 | Z79: 78133443 | AA79: 37123335 | AB79: 3.92 | AC79: 2.92 | AD79: 3.21 | AE79: 2.62 | AF79: 2.29 | AG79: 2.84 | AH79: 3.62 | AI79: 2.35 | AJ79: 3.62 | AK79: 3.43 | AL79: 3.06 | AM79: 3.79 | AN79: 2.38 | AO79: 2.61 | AP79: 2.69 | AQ79: 3.94 | AR79: 3.85 | AS79: 3.15 | AT79: 2.95 | AU79: 3.17 | AV79: 2.91 | AW79: 3.14 | AX79: 2.62 | AY79: 3.17 | AZ79: 15379 | BA79: 10970 | BB79: 15787 | BC79: 10767 | BD79: 13741 | BE79: 15705 | BF79: 14845 | BG79: 12453 | BH79: 13316 | BI79: 11978 | BJ79: 13647 | BK79: 14617 | BL79: 11984 | BM79: 12428 | BN79: 11209 | BO79: 10662 | BP79: 15019 | BQ79: 15601 | BR79: 11858 | BS79: 11897 | BT79: 12179 | BU79: 13381 | BV79: 14068 | BW79: 11761
A80: 32512 | B80: Secteur 9 | C80: Rayon 77 | D80: 49027866 | E80: 42175374 | F80: 41054070 | G80: 66536931 | H80: 74196280 | I80: 51975525 | J80: 77434612 | K80: 63836003 | L80: 39872141 | M80: 61846673 | N80: 70647609 | O80: 74388019 | P80: 46016509 | Q80: 60578572 | R80: 72109065 | S80: 77978260 | T80: 58330627 | U80: 52438431 | V80: 74232973 | W80: 72906514 | X80: 62985824 | Y80: 63021153 | Z80: 55886410 | AA80: 45392222 | AB80: 2.55 | AC80: 2.56 | AD80: 2.41 | AE80: 2.93 | AF80: 2.8 | AG80: 3.61 | AH80: 2.67 | AI80: 3.13 | AJ80: 2.61 | AK80: 3.25 | AL80: 3.86 | AM80: 3.34 | AN80: 3.22 | AO80: 3.03 | AP80: 3.76 | AQ80: 2.92 | AR80: 3.06 | AS80: 3.78 | AT80: 3.52 | AU80: 3.47 | AV80: 2.32 | AW80: 2.93 | AX80: 3.6 | AY80: 3.79 | AZ80: 12628 | BA80: 14413 | BB80: 15219 | BC80: 10057 | BD80: 13244 | BE80: 15420 | BF80: 10879 | BG80: 14319 | BH80: 15670 | BI80: 13116 | BJ80: 10712 | BK80: 13047 | BL80: 10732 | BM80: 14809 | BN80: 10395 | BO80: 15880 | BP80: 14087 | BQ80: 11232 | BR80: 10092 | BS80: 15886 | BT80: 10683 | BU80: 12771 | BV80: 11519 | BW80: 13952
A81: 32333 | B81: Secteur 10 | C81: Rayon 1 | D81: 72224435 | E81: 66248530 | F81: 62090643 | G81: 53442614 | H81: 38856564 | I81: 82783041 | J81: 48692035 | K81: 51300852 | L81: 82585216 | M81: 57332304 | N81: 42059782 | O81: 47242587 | P81: 59837631 | Q81: 38715353 | R81: 42068477 | S81: 55639626 | T81: 54589178 | U81: 72383307 | V81: 80067863 | W81: 78373371 | X81: 77253003 | Y81: 56657472 | Z81: 75675981 | AA81: 67458393 | AB81: 2.67 | AC81: 2.76 | AD81: 3.95 | AE81: 3.38 | AF81: 3.46 | AG81: 3.11 | AH81: 2.74 | AI81: 2.75 | AJ81: 3.04 | AK81: 2.61 | AL81: 3.41 | AM81: 2.39 | AN81: 2.4 | AO81: 2.81 | AP81: 2.29 | AQ81: 2.38 | AR81: 3.22 | AS81: 3.35 | AT81: 3.62 | AU81: 2.36 | AV81: 3.21 | AW81: 2.5 | AX81: 3.51 | AY81: 3.26 | AZ81: 13616 | BA81: 11501 | BB81: 11179 | BC81: 12669 | BD81: 14962 | BE81: 10830 | BF81: 12679 | BG81: 10279 | BH81: 14868 | BI81: 13328 | BJ81: 12923 | BK81: 13609 | BL81: 15779 | BM81: 13091 | BN81: 10791 | BO81: 12558 | BP81: 11512 | BQ81: 14961 | BR81: 15590 | BS81: 12785 | BT81: 10533 | BU81: 10105 | BV81: 13320 | BW81: 10960
A82: 32242 | B82: Secteur 10 | C82: Rayon 2 | D82: 81379926 | E82: 51383246 | F82: 53085126 | G82: 40113115 | H82: 39589986 | I82: 60094171 | J82: 69244197 | K82: 49214957 | L82: 81050896 | M82: 53047083 | N82: 50312817 | O82: 48189791 | P82: 69830827 | Q82: 41108296 | R82: 46687809 | S82: 67669910 | T82: 76818661 | U82: 47336393 | V82: 63362305 | W82: 38366899 | X82: 38465206 | Y82: 63371032 | Z82: 53054617 | AA82: 41077431 | AB82: 3.61 | AC82: 2.34 | AD82: 2.32 | AE82: 3.29 | AF82: 2.54 | AG82: 3.48 | AH82: 3.16 | AI82: 2.8 | AJ82: 2.48 | AK82: 3.38 | AL82: 3.39 | AM82: 3.16 | AN82: 3.43 | AO82: 3.92 | AP82: 3.59 | AQ82: 3.74 | AR82: 2.87 | AS82: 3.67 | AT82: 2.96 | AU82: 2.84 | AV82: 2.54 | AW82: 2.28 | AX82: 3.47 | AY82: 2.68 | AZ82: 11725 | BA82: 15810 | BB82: 12882 | BC82: 11023 | BD82: 13325 | BE82: 10410 | BF82: 12252 | BG82: 15550 | BH82: 13842 | BI82: 14434 | BJ82: 11612 | BK82: 11251 | BL82: 15299 | BM82: 11298 | BN82: 14012 | BO82: 15390 | BP82: 10962 | BQ82: 14052 | BR82: 14575 | BS82: 13520 | BT82: 13417 | BU82: 10243 | BV82: 11157 | BW82: 10100
A83: 32389 | B83: Secteur 10 | C83: Rayon 3 | D83: 38732200 | E83: 65797774 | F83: 82578718 | G83: 56845024 | H83: 46654041 | I83: 62810570 | J83: 43160458 | K83: 48999934 | L83: 49503844 | M83: 39982739 | N83: 71631656 | O83: 45310749 | P83: 38048730 | Q83: 63143390 | R83: 52306639 | S83: 80323643 | T83: 37756309 | U83: 41087627 | V83: 82016735 | W83: 47734089 | X83: 45276018 | Y83: 72958464 | Z83: 71456357 | AA83: 64723537 | AB83: 2.7 | AC83: 3.11 | AD83: 2.64 | AE83: 3.42 | AF83: 2.66 | AG83: 3.9 | AH83: 3.06 | AI83: 3.92 | AJ83: 2.97 | AK83: 3.53 | AL83: 3.74 | AM83: 2.84 | AN83: 2.51 | AO83: 3.12 | AP83: 3.73 | AQ83: 2.66 | AR83: 3.94 | AS83: 2.92 | AT83: 3.97 | AU83: 2.51 | AV83: 2.94 | AW83: 2.89 | AX83: 3.56 | AY83: 3.42 | AZ83: 10114 | BA83: 14598 | BB83: 12111 | BC83: 12876 | BD83: 13393 | BE83: 14922 | BF83: 10062 | BG83: 12008 | BH83: 15367 | BI83: 13058 | BJ83: 14886 | BK83: 11063 | BL83: 13648 | BM83: 13089 | BN83: 14210 | BO83: 12462 | BP83: 14805 | BQ83: 11575 | BR83: 14473 | BS83: 10197 | BT83: 10519 | BU83: 12724 | BV83: 11410 | BW83: 14592
A84: 33768 | B84: Secteur 10 | C84: Rayon 4 | D84: 76017753 | E84: 59205950 | F84: 66534005 | G84: 49722350 | H84: 58989382 | I84: 70707624 | J84: 56166216 | K84: 82265152 | L84: 65895592 | M84: 51783531 | N84: 78140445 | O84: 56546873 | P84: 63499912 | Q84: 73194892 | R84: 52018882 | S84: 81531057 | T84: 41091575 | U84: 51472582 | V84: 69382247 | W84: 78482481 | X84: 41806748 | Y84: 57029033 | Z84: 70962718 | AA84: 35895929 | AB84: 3.51 | AC84: 3.56 | AD84: 2.52 | AE84: 2.77 | AF84: 3.28 | AG84: 2.4 | AH84: 2.46 | AI84: 2.43 | AJ84: 2.71 | AK84: 2.33 | AL84: 2.28 | AM84: 3.8 | AN84: 2.82 | AO84: 3.75 | AP84: 2.34 | AQ84: 2.64 | AR84: 3.28 | AS84: 3 | AT84: 3.21 | AU84: 2.95 | AV84: 2.83 | AW84: 3 | AX84: 3.09 | AY84: 3 | AZ84: 13733 | BA84: 15778 | BB84: 15612 | BC84: 11363 | BD84: 14291 | BE84: 11298 | BF84: 15130 | BG84: 10061 | BH84: 12377 | BI84: 13028 | BJ84: 12298 | BK84: 14675 | BL84: 14317 | BM84: 10497 | BN84: 10748 | BO84: 14346 | BP84: 13971 | BQ84: 14342 | BR84: 13625 | BS84: 15301 | BT84: 10977 | BU84: 10970 | BV84: 14138 | BW84: 12405

Sheet Base_articles
A1: N° | B1: CR | C1: Secteur | D1: Rayon | E1: M01 | F1: M02 | G1: M03 | H1: M04 | I1: M05 | J1: M06 | K1: M07 | L1: M08 | M1: M09 | N1: M10 | O1: M11 | P1: M12 | Q1: M13 | R1: M14 | S1: M15 | T1: M16 | U1: M17 | V1: M18 | W1: M19 | X1: M20 | Y1: M21 | Z1: M22 | AA1: M23 | AB1: M24
A2: 1 | B2: 33146 | C2: Secteur 1 | D2: Rayon 1 | E2: =SUMIFS(ADHOC!D$4:D$84,ADHOC!$A$4:$A$84,$B2,ADHOC!$B$4:$B$84,$C2,ADHOC!$C$4:$C$84,$D2) -> 55868565 | F2: =SUMIFS(ADHOC!E$4:E$84,ADHOC!$A$4:$A$84,$B2,ADHOC!$B$4:$B$84,$C2,ADHOC!$C$4:$C$84,$D2) -> 36564761 | G2: =SUMIFS(ADHOC!F$4:F$84,ADHOC!$A$4:$A$84,$B2,ADHOC!$B$4:$B$84,$C2,ADHOC!$C$4:$C$84,$D2) -> 38152348 | H2: =SUMIFS(ADHOC!G$4:G$84,ADHOC!$A$4:$A$84,$B2,ADHOC!$B$4:$B$84,$C2,ADHOC!$C$4:$C$84,$D2) -> 45372655 | I2: =SUMIFS(ADHOC!H$4:H$84,ADHOC!$A$4:$A$84,$B2,ADHOC!$B$4:$B$84,$C2,ADHOC!$C$4:$C$84,$D2) -> 47241622 | J2: =SUMIFS(ADHOC!I$4:I$84,ADHOC!$A$4:$A$84,$B2,ADHOC!$B$4:$B$84,$C2,ADHOC!$C$4:$C$84,$D2) -> 46054647 | K2: =SUMIFS(ADHOC!J$4:J$84,ADHOC!$A$4:$A$84,$B2,ADHOC!$B$4:$B$84,$C2,ADHOC!$C$4:$C$84,$D2) -> 55321205 | L2: =SUMIFS(ADHOC!K$4:K$84,ADHOC!$A$4:$A$84,$B2,ADHOC!$B$4:$B$84,$C2,ADHOC!$C$4:$C$84,$D2) -> 51201074 | M2: =SUMIFS(ADHOC!L$4:L$84,ADHOC!$A$4:$A$84,$B2,ADHOC!$B$4:$B$84,$C2,ADHOC!$C$4:$C$84,$D2) -> 76859657 | N2: =SUMIFS(ADHOC!M$4:M$84,ADHOC!$A$4:$A$84,$B2,ADHOC!$B$4:$B$84,$C2,ADHOC!$C$4:$C$84,$D2) -> 42842296 | O2: =SUMIFS(ADHOC!N$4:N$84,ADHOC!$A$4:$A$84,$B2,ADHOC!$B$4:$B$84,$C2,ADHOC!$C$4:$C$84,$D2) -> 44551299 | P2: =SUMIFS(ADHOC!O$4:O$84,ADHOC!$A$4:$A$84,$B2,ADHOC!$B$4:$B$84,$C2,ADHOC!$C$4:$C$84,$D2) -> 66578702 | Q2: =SUMIFS(ADHOC!P$4:P$84,ADHOC!$A$4:$A$84,$B2,ADHOC!$B$4:$B$84,$C2,ADHOC!$C$4:$C$84,$D2) -> 49820989 | R2: =SUMIFS(ADHOC!Q$4:Q$84,ADHOC!$A$4:$A$84,$B2,ADHOC!$B$4:$B$84,$C2,ADHOC!$C$4:$C$84,$D2) -> 77170755 | S2: =SUMIFS(ADHOC!R$4:R$84,ADHOC!$A$4:$A$84,$B2,ADHOC!$B$4:$B$84,$C2,ADHOC!$C$4:$C$84,$D2) -> 44914099 | T2: =SUMIFS(ADHOC!S$4:S$84,ADHOC!$A$4:$A$84,$B2,ADHOC!$B$4:$B$84,$C2,ADHOC!$C$4:$C$84,$D2) -> 74706601 | U2: =SUMIFS(ADHOC!T$4:T$84,ADHOC!$A$4:$A$84,$B2,ADHOC!$B$4:$B$84,$C2,ADHOC!$C$4:$C$84,$D2) -> 38843903 | V2: =SUMIFS(ADHOC!U$4:U$84,ADHOC!$A$4:$A$84,$B2,ADHOC!$B$4:$B$84,$C2,ADHOC!$C$4:$C$84,$D2) -> 43291259 | W2: =SUMIFS(ADHOC!V$4:V$84,ADHOC!$A$4:$A$84,$B2,ADHOC!$B$4:$B$84,$C2,ADHOC!$C$4:$C$84,$D2) -> 69658595 | X2: =SUMIFS(ADHOC!W$4:W$84,ADHOC!$A$4:$A$84,$B2,ADHOC!$B$4:$B$84,$C2,ADHOC!$C$4:$C$84,$D2) -> 58645964 | Y2: =SUMIFS(ADHOC!X$4:X$84,ADHOC!$A$4:$A$84,$B2,ADHOC!$B$4:$B$84,$C2,ADHOC!$C$4:$C$84,$D2) -> 72777204 | Z2: =SUMIFS(ADHOC!Y$4:Y$84,ADHOC!$A$4:$A$84,$B2,ADHOC!$B$4:$B$84,$C2,ADHOC!$C$4:$C$84,$D2) -> 64162503 | AA2: =SUMIFS(ADHOC!Z$4:Z$84,ADHOC!$A$4:$A$84,$B2,ADHOC!$B$4:$B$84,$C2,ADHOC!$C$4:$C$84,$D2) -> 75144326 | AB2: =SUMIFS(ADHOC!AA$4:AA$84,ADHOC!$A$4:$A$84,$B2,ADHOC!$B$4:$B$84,$C2,ADHOC!$C$4:$C$84,$D2) -> 49623626
A3: 2 | B3: 33799 | C3: Secteur 1 | D3: Rayon 2 | E3: =SUMIFS(ADHOC!D$4:D$84,ADHOC!$A$4:$A$84,$B3,ADHOC!$B$4:$B$84,$C3,ADHOC!$C$4:$C$84,$D3) -> 44896078 | F3: =SUMIFS(ADHOC!E$4:E$84,ADHOC!$A$4:$A$84,$B3,ADHOC!$B$4:$B$84,$C3,ADHOC!$C$4:$C$84,$D3) -> 65339693 | G3: =SUMIFS(ADHOC!F$4:F$84,ADHOC!$A$4:$A$84,$B3,ADHOC!$B$4:$B$84,$C3,ADHOC!$C$4:$C$84,$D3) -> 77795178 | H3: =SUMIFS(ADHOC!G$4:G$84,ADHOC!$A$4:$A$84,$B3,ADHOC!$B$4:$B$84,$C3,ADHOC!$C$4:$C$84,$D3) -> 76837638 | I3: =SUMIFS(ADHOC!H$4:H$84,ADHOC!$A$4:$A$84,$B3,ADHOC!$B$4:$B$84,$C3,ADHOC!$C$4:$C$84,$D3) -> 63762622 | J3: =SUMIFS(ADHOC!I$4:I$84,ADHOC!$A$4:$A$84,$B3,ADHOC!$B$4:$B$84,$C3,ADHOC!$C$4:$C$84,$D3) -> 71761430 | K3: =SUMIFS(ADHOC!J$4:J$84,ADHOC!$A$4:$A$84,$B3,ADHOC!$B$4:$B$84,$C3,ADHOC!$C$4:$C$84,$D3) -> 78925410 | L3: =SUMIFS(ADHOC!K$4:K$84,ADHOC!$A$4:$A$84,$B3,ADHOC!$B$4:$B$84,$C3,ADHOC!$C$4:$C$84,$D3) -> 59709777 | M3: =SUMIFS(ADHOC!L$4:L$84,ADHOC!$A$4:$A$84,$B3,ADHOC!$B$4:$B$84,$C3,ADHOC!$C$4:$C$84,$D3) -> 56170638 | N3: =SUMIFS(ADHOC!M$4:M$84,ADHOC!$A$4:$A$84,$B3,ADHOC!$B$4:$B$84,$C3,ADHOC!$C$4:$C$84,$D3) -> 45461920 | O3: =SUMIFS(ADHOC!N$4:N$84,ADHOC!$A$4:$A$84,$B3,ADHOC!$B$4:$B$84,$C3,ADHOC!$C$4:$C$84,$D3) -> 41247172 | P3: =SUMIFS(ADHOC!O$4:O$84,ADHOC!$A$4:$A$84,$B3,ADHOC!$B$4:$B$84,$C3,ADHOC!$C$4:$C$84,$D3) -> 65519854 | Q3: =SUMIFS(ADHOC!P$4:P$84,ADHOC!$A$4:$A$84,$B3,ADHOC!$B$4:$B$84,$C3,ADHOC!$C$4:$C$84,$D3) -> 53469262 | R3: =SUMIFS(ADHOC!Q$4:Q$84,ADHOC!$A$4:$A$84,$B3,ADHOC!$B$4:$B$84,$C3,ADHOC!$C$4:$C$84,$D3) -> 56388878 | S3: =SUMIFS(ADHOC!R$4:R$84,ADHOC!$A$4:$A$84,$B3,ADHOC!$B$4:$B$84,$C3,ADHOC!$C$4:$C$84,$D3) -> 39573574 | T3: =SUMIFS(ADHOC!S$4:S$84,ADHOC!$A$4:$A$84,$B3,ADHOC!$B$4:$B$84,$C3,ADHOC!$C$4:$C$84,$D3) -> 76285938 | U3: =SUMIFS(ADHOC!T$4:T$84,ADHOC!$A$4:$A$84,$B3,ADHOC!$B$4:$B$84,$C3,ADHOC!$C$4:$C$84,$D3) -> 47581711 | V3: =SUMIFS(ADHOC!U$4:U$84,ADHOC!$A$4:$A$84,$B3,ADHOC!$B$4:$B$84,$C3,ADHOC!$C$4:$C$84,$D3) -> 83939729 | W3: =SUMIFS(ADHOC!V$4:V$84,ADHOC!$A$4:$A$84,$B3,ADHOC!$B$4:$B$84,$C3,ADHOC!$C$4:$C$84,$D3) -> 67529178 | X3: =SUMIFS(ADHOC!W$4:W$84,ADHOC!$A$4:$A$84,$B3,ADHOC!$B$4:$B$84,$C3,ADHOC!$C$4:$C$84,$D3) -> 60632794 | Y3: =SUMIFS(ADHOC!X$4:X$84,ADHOC!$A$4:$A$84,$B3,ADHOC!$B$4:$B$84,$C3,ADHOC!$C$4:$C$84,$D3) -> 43188858 | Z3: =SUMIFS(ADHOC!Y$4:Y$84,ADHOC!$A$4:$A$84,$B3,ADHOC!$B$4:$B$84,$C3,ADHOC!$C$4:$C$84,$D3) -> 57928172 | AA3: =SUMIFS(ADHOC!Z$4:Z$84,ADHOC!$A$4:$A$84,$B3,ADHOC!$B$4:$B$84,$C3,ADHOC!$C$4:$C$84,$D3) -> 62538820 | AB3: =SUMIFS(ADHOC!AA$4:AA$84,ADHOC!$A$4:$A$84,$B3,ADHOC!$B$4:$B$84,$C3,ADHOC!$C$4:$C$84,$D3) -> 42026651
A4: 3 | B4: 32168 | C4: Secteur 1 | D4: Rayon 3 | E4: =SUMIFS(ADHOC!D$4:D$84,ADHOC!$A$4:$A$84,$B4,ADHOC!$B$4:$B$84,$C4,ADHOC!$C$4:$C$84,$D4) -> 37459929 | F4: =SUMIFS(ADHOC!E$4:E$84,ADHOC!$A$4:$A$84,$B4,ADHOC!$B$4:$B$84,$C4,ADHOC!$C$4:$C$84,$D4) -> 82874323 | G4: =SUMIFS(ADHOC!F$4:F$84,ADHOC!$A$4:$A$84,$B4,ADHOC!$B$4:$B$84,$C4,ADHOC!$C$4:$C$84,$D4) -> 47852000 | H4: =SUMIFS(ADHOC!G$4:G$84,ADHOC!$A$4:$A$84,$B4,ADHOC!$B$4:$B$84,$C4,ADHOC!$C$4:$C$84,$D4) -> 46502054 | I4: =SUMIFS(ADHOC!H$4:H$84,ADHOC!$A$4:$A$84,$B4,ADHOC!$B$4:$B$84,$C4,ADHOC!$C$4:$C$84,$D4) -> 71566789 | J4: =SUMIFS(ADHOC!I$4:I$84,ADHOC!$A$4:$A$84,$B4,ADHOC!$B$4:$B$84,$C4,ADHOC!$C$4:$C$84,$D4) -> 48178197 | K4: =SUMIFS(ADHOC!J$4:J$84,ADHOC!$A$4:$A$84,$B4,ADHOC!$B$4:$B$84,$C4,ADHOC!$C$4:$C$84,$D4) -> 69823794 | L4: =SUMIFS(ADHOC!K$4:K$84,ADHOC!$A$4:$A$84,$B4,ADHOC!$B$4:$B$84,$C4,ADHOC!$C$4:$C$84,$D4) -> 79502011 | M4: =SUMIFS(ADHOC!L$4:L$84,ADHOC!$A$4:$A$84,$B4,ADHOC!$B$4:$B$84,$C4,ADHOC!$C$4:$C$84,$D4) -> 73930746 | N4: =SUMIFS(ADHOC!M$4:M$84,ADHOC!$A$4:$A$84,$B4,ADHOC!$B$4:$B$84,$C4,ADHOC!$C$4:$C$84,$D4) -> 70796303 | O4: =SUMIFS(ADHOC!N$4:N$84,ADHOC!$A$4:$A$84,$B4,ADHOC!$B$4:$B$84,$C4,ADHOC!$C$4:$C$84,$D4) -> 73323611 | P4: =SUMIFS(ADHOC!O$4:O$84,ADHOC!$A$4:$A$84,$B4,ADHOC!$B$4:$B$84,$C4,ADHOC!$C$4:$C$84,$D4) -> 70144155 | Q4: =SUMIFS(ADHOC!P$4:P$84,ADHOC!$A$4:$A$84,$B4,ADHOC!$B$4:$B$84,$C4,ADHOC!$C$4:$C$84,$D4) -> 73894824 | R4: =SUMIFS(ADHOC!Q$4:Q$84,ADHOC!$A$4:$A$84,$B4,ADHOC!$B$4:$B$84,$C4,ADHOC!$C$4:$C$84,$D4) -> 74826218 | S4: =SUMIFS(ADHOC!R$4:R$84,ADHOC!$A$4:$A$84,$B4,ADHOC!$B$4:$B$84,$C4,ADHOC!$C$4:$C$84,$D4) -> 44287407 | T4: =SUMIFS(ADHOC!S$4:S$84,ADHOC!$A$4:$A$84,$B4,ADHOC!$B$4:$B$84,$C4,ADHOC!$C$4:$C$84,$D4) -> 64691277 | U4: =SUMIFS(ADHOC!T$4:T$84,ADHOC!$A$4:$A$84,$B4,ADHOC!$B$4:$B$84,$C4,ADHOC!$C$4:$C$84,$D4) -> 45533007 | V4: =SUMIFS(ADHOC!U$4:U$84,ADHOC!$A$4:$A$84,$B4,ADHOC!$B$4:$B$84,$C4,ADHOC!$C$4:$C$84,$D4) -> 52524026 | W4: =SUMIFS(ADHOC!V$4:V$84,ADHOC!$A$4:$A$84,$B4,ADHOC!$B$4:$B$84,$C4,ADHOC!$C$4:$C$84,$D4) -> 61193876 | X4: =SUMIFS(ADHOC!W$4:W$84,ADHOC!$A$4:$A$84,$B4,ADHOC!$B$4:$B$84,$C4,ADHOC!$C$4:$C$84,$D4) -> 80040867 | Y4: =SUMIFS(ADHOC!X$4:X$84,ADHOC!$A$4:$A$84,$B4,ADHOC!$B$4:$B$84,$C4,ADHOC!$C$4:$C$84,$D4) -> 80450375 | Z4: =SUMIFS(ADHOC!Y$4:Y$84,ADHOC!$A$4:$A$84,$B4,ADHOC!$B$4:$B$84,$C4,ADHOC!$C$4:$C$84,$D4) -> 45220508 | AA4: =SUMIFS(ADHOC!Z$4:Z$84,ADHOC!$A$4:$A$84,$B4,ADHOC!$B$4:$B$84,$C4,ADHOC!$C$4:$C$84,$D4) -> 83296413 | AB4: =SUMIFS(ADHOC!AA$4:AA$84,ADHOC!$A$4:$A$84,$B4,ADHOC!$B$4:$B$84,$C4,ADHOC!$C$4:$C$84,$D4) -> 41907054
A5: 4 | B5: 32794 | C5: Secteur 1 | D5: Rayon 4 | E5: =SUMIFS(ADHOC!D$4:D$84,ADHOC!$A$4:$A$84,$B5,ADHOC!$B$4:$B$84,$C5,ADHOC!$C$4:$C$84,$D5) -> 59381310 | F5: =SUMIFS(ADHOC!E$4:E$84,ADHOC!$A$4:$A$84,$B5,ADHOC!$B$4:$B$84,$C5,ADHOC!$C$4:$C$84,$D5) -> 65457329 | G5: =SUMIFS(ADHOC!F$4:F$84,ADHOC!$A$4:$A$84,$B5,ADHOC!$B$4:$B$84,$C5,ADHOC!$C$4:$C$84,$D5) -> 59259343 | H5: =SUMIFS(ADHOC!G$4:G$84,ADHOC!$A$4:$A$84,$B5,ADHOC!$B$4:$B$84,$C5,ADHOC!$C$4:$C$84,$D5) -> 52572870 | I5: =SUMIFS(ADHOC!H$4:H$84,ADHOC!$A$4:$A$84,$B5,ADHOC!$B$4:$B$84,$C5,ADHOC!$C$4:$C$84,$D5) -> 53150707 | J5: =SUMIFS(ADHOC!I$4:I$84,ADHOC!$A$4:$A$84,$B5,ADHOC!$B$4:$B$84,$C5,ADHOC!$C$4:$C$84,$D5) -> 77527796 | K5: =SUMIFS(ADHOC!J$4:J$84,ADHOC!$A$4:$A$84,$B5,ADHOC!$B$4:$B$84,$C5,ADHOC!$C$4:$C$84,$D5) -> 84051900 | L5: =SUMIFS(ADHOC!K$4:K$84,ADHOC!$A$4:$A$84,$B5,ADHOC!$B$4:$B$84,$C5,ADHOC!$C$4:$C$84,$D5) -> 47461978 | M5: =SUMIFS(ADHOC!L$4:L$84,ADHOC!$A$4:$A$84,$B5,ADHOC!$B$4:$B$84,$C5,ADHOC!$C$4:$C$84,$D5) -> 45874443 | N5: =SUMIFS(ADHOC!M$4:M$84,ADHOC!$A$4:$A$84,$B5,ADHOC!$B$4:$B$84,$C5,ADHOC!$C$4:$C$84,$D5) -> 75684632 | O5: =SUMIFS(ADHOC!N$4:N$84,ADHOC!$A$4:$A$84,$B5,ADHOC!$B$4:$B$84,$C5,ADHOC!$C$4:$C$84,$D5) -> 47756782 | P5: =SUMIFS(ADHOC!O$4:O$84,ADHOC!$A$4:$A$84,$B5,ADHOC!$B$4:$B$84,$C5,ADHOC!$C$4:$C$84,$D5) -> 64069862 | Q5: =SUMIFS(ADHOC!P$4:P$84,ADHOC!$A$4:$A$84,$B5,ADHOC!$B$4:$B$84,$C5,ADHOC!$C$4:$C$84,$D5) -> 52398063 | R5: =SUMIFS(ADHOC!Q$4:Q$84,ADHOC!$A$4:$A$84,$B5,ADHOC!$B$4:$B$84,$C5,ADHOC!$C$4:$C$84,$D5) -> 80526962 | S5: =SUMIFS(ADHOC!R$4:R$84,ADHOC!$A$4:$A$84,$B5,ADHOC!$B$4:$B$84,$C5,ADHOC!$C$4:$C$84,$D5) -> 61751863 | T5: =SUMIFS(ADHOC!S$4:S$84,ADHOC!$A$4:$A$84,$B5,ADHOC!$B$4:$B$84,$C5,ADHOC!$C$4:$C$84,$D5) -> 82223463 | U5: =SUMIFS(ADHOC!T$4:T$84,ADHOC!$A$4:$A$84,$B5,ADHOC!$B$4:$B$84,$C5,ADHOC!$C$4:$C$84,$D5) -> 72482443 | V5: =SUMIFS(ADHOC!U$4:U$84,ADHOC!$A$4:$A$84,$B5,ADHOC!$B$4:$B$84,$C5,ADHOC!$C$4:$C$84,$D5) -> 44564588 | W5: =SUMIFS(ADHOC!V$4:V$84,ADHOC!$A$4:$A$84,$B5,ADHOC!$B$4:$B$84,$C5,ADHOC!$C$4:$C$84,$D5) -> 56772746 | X5: =SUMIFS(ADHOC!W$4:W$84,ADHOC!$A$4:$A$84,$B5,ADHOC!$B$4:$B$84,$C5,ADHOC!$C$4:$C$84,$D5) -> 74996697 | Y5: =SUMIFS(ADHOC!X$4:X$84,ADHOC!$A$4:$A$84,$B5,ADHOC!$B$4:$B$84,$C5,ADHOC!$C$4:$C$84,$D5) -> 50272902 | Z5: =SUMIFS(ADHOC!Y$4:Y$84,ADHOC!$A$4:$A$84,$B5,ADHOC!$B$4:$B$84,$C5,ADHOC!$C$4:$C$84,$D5) -> 67916920 | AA5: =SUMIFS(ADHOC!Z$4:Z$84,ADHOC!$A$4:$A$84,$B5,ADHOC!$B$4:$B$84,$C5,ADHOC!$C$4:$C$84,$D5) -> 58528924 | AB5: =SUMIFS(ADHOC!AA$4:AA$84,ADHOC!$A$4:$A$84,$B5,ADHOC!$B$4:$B$84,$C5,ADHOC!$C$4:$C$84,$D5) -> 60973085
A6: 5 | B6: 32639 | C6: Secteur 1 | D6: Rayon 5 | E6: =SUMIFS(ADHOC!D$4:D$84,ADHOC!$A$4:$A$84,$B6,ADHOC!$B$4:$B$84,$C6,ADHOC!$C$4:$C$84,$D6) -> 68907762 | F6: =SUMIFS(ADHOC!E$4:E$84,ADHOC!$A$4:$A$84,$B6,ADHOC!$B$4:$B$84,$C6,ADHOC!$C$4:$C$84,$D6) -> 43425267 | G6: =SUMIFS(ADHOC!F$4:F$84,ADHOC!$A$4:$A$84,$B6,ADHOC!$B$4:$B$84,$C6,ADHOC!$C$4:$C$84,$D6) -> 67752774 | H6: =SUMIFS(ADHOC!G$4:G$84,ADHOC!$A$4:$A$84,$B6,ADHOC!$B$4:$B$84,$C6,ADHOC!$C$4:$C$84,$D6) -> 70813575 | I6: =SUMIFS(ADHOC!H$4:H$84,ADHOC!$A$4:$A$84,$B6,ADHOC!$B$4:$B$84,$C6,ADHOC!$C$4:$C$84,$D6) -> 51596517 | J6: =SUMIFS(ADHOC!I$4:I$84,ADHOC!$A$4:$A$84,$B6,ADHOC!$B$4:$B$84,$C6,ADHOC!$C$4:$C$84,$D6) -> 59644536 | K6: =SUMIFS(ADHOC!J$4:J$84,ADHOC!$A$4:$A$84,$B6,ADHOC!$B$4:$B$84,$C6,ADHOC!$C$4:$C$84,$D6) -> 49329791 | L6: =SUMIFS(ADHOC!K$4:K$84,ADHOC!$A$4:$A$84,$B6,ADHOC!$B$4:$B$84,$C6,ADHOC!$C$4:$C$84,$D6) -> 52185574 | M6: =SUMIFS(ADHOC!L$4:L$84,ADHOC!$A$4:$A$84,$B6,ADHOC!$B$4:$B$84,$C6,ADHOC!$C$4:$C$84,$D6) -> 61815832 | N6: =SUMIFS(ADHOC!M$4:M$84,ADHOC!$A$4:$A$84,$B6,ADHOC!$B$4:$B$84,$C6,ADHOC!$C$4:$C$84,$D6) -> 84091998 | O6: =SUMIFS(ADHOC!N$4:N$84,ADHOC!$A$4:$A$84,$B6,ADHOC!$B$4:$B$84,$C6,ADHOC!$C$4:$C$84,$D6) -> 67686290 | P6: =SUMIFS(ADHOC!O$4:O$84,ADHOC!$A$4:$A$84,$B6,ADHOC!$B$4:$B$84,$C6,ADHOC!$C$4:$C$84,$D6) -> 51019116 | Q6: =SUMIFS(ADHOC!P$4:P$84,ADHOC!$A$4:$A$84,$B6,ADHOC!$B$4:$B$84,$C6,ADHOC!$C$4:$C$84,$D6) -> 70142057 | R6: =SUMIFS(ADHOC!Q$4:Q$84,ADHOC!$A$4:$A$84,$B6,ADHOC!$B$4:$B$84,$C6,ADHOC!$C$4:$C$84,$D6) -> 48223269 | S6: =SUMIFS(ADHOC!R$4:R$84,ADHOC!$A$4:$A$84,$B6,ADHOC!$B$4:$B$84,$C6,ADHOC!$C$4:$C$84,$D6) -> 76370457 | T6: =SUMIFS(ADHOC!S$4:S$84,ADHOC!$A$4:$A$84,$B6,ADHOC!$B$4:$B$84,$C6,ADHOC!$C$4:$C$84,$D6) -> 69984552 | U6: =SUMIFS(ADHOC!T$4:T$84,ADHOC!$A$4:$A$84,$B6,ADHOC!$B$4:$B$84,$C6,ADHOC!$C$4:$C$84,$D6) -> 64746318 | V6: =SUMIFS(ADHOC!U$4:U$84,ADHOC!$A$4:$A$84,$B6,ADHOC!$B$4:$B$84,$C6,ADHOC!$C$4:$C$84,$D6) -> 43099027 | W6: =SUMIFS(ADHOC!V$4:V$84,ADHOC!$A$4:$A$84,$B6,ADHOC!$B$4:$B$84,$C6,ADHOC!$C$4:$C$84,$D6) -> 66172074 | X6: =SUMIFS(ADHOC!W$4:W$84,ADHOC!$A$4:$A$84,$B6,ADHOC!$B$4:$B$84,$C6,ADHOC!$C$4:$C$84,$D6) -> 65771960 | Y6: =SUMIFS(ADHOC!X$4:X$84,ADHOC!$A$4:$A$84,$B6,ADHOC!$B$4:$B$84,$C6,ADHOC!$C$4:$C$84,$D6) -> 45182762 | Z6: =SUMIFS(ADHOC!Y$4:Y$84,ADHOC!$A$4:$A$84,$B6,ADHOC!$B$4:$B$84,$C6,ADHOC!$C$4:$C$84,$D6) -> 39435789 | AA6: =SUMIFS(ADHOC!Z$4:Z$84,ADHOC!$A$4:$A$84,$B6,ADHOC!$B$4:$B$84,$C6,ADHOC!$C$4:$C$84,$D6) -> 45431555 | AB6: =SUMIFS(ADHOC!AA$4:AA$84,ADHOC!$A$4:$A$84,$B6,ADHOC!$B$4:$B$84,$C6,ADHOC!$C$4:$C$84,$D6) -> 39227019
A7: 6 | B7: 33307 | C7: Secteur 1 | D7: Rayon 6 | E7: =SUMIFS(ADHOC!D$4:D$84,ADHOC!$A$4:$A$84,$B7,ADHOC!$B$4:$B$84,$C7,ADHOC!$C$4:$C$84,$D7) -> 63897154 | F7: =SUMIFS(ADHOC!E$4:E$84,ADHOC!$A$4:$A$84,$B7,ADHOC!$B$4:$B$84,$C7,ADHOC!$C$4:$C$84,$D7) -> 74969783 | G7: =SUMIFS(ADHOC!F$4:F$84,ADHOC!$A$4:$A$84,$B7,ADHOC!$B$4:$B$84,$C7,ADHOC!$C$4:$C$84,$D7) -> 36984018 | H7: =SUMIFS(ADHOC!G$4:G$84,ADHOC!$A$4:$A$84,$B7,ADHOC!$B$4:$B$84,$C7,ADHOC!$C$4:$C$84,$D7) -> 81227673 | I7: =SUMIFS(ADHOC!H$4:H$84,ADHOC!$A$4:$A$84,$B7,ADHOC!$B$4:$B$84,$C7,ADHOC!$C$4:$C$84,$D7) -> 37676677 | J7: =SUMIFS(ADHOC!I$4:I$84,ADHOC!$A$4:$A$84,$B7,ADHOC!$B$4:$B$84,$C7,ADHOC!$C$4:$C$84,$D7) -> 45200760 | K7: =SUMIFS(ADHOC!J$4:J$84,ADHOC!$A$4:$A$84,$B7,ADHOC!$B$4:$B$84,$C7,ADHOC!$C$4:$C$84,$D7) -> 45462166 | L7: =SUMIFS(ADHOC!K$4:K$84,ADHOC!$A$4:$A$84,$B7,ADHOC!$B$4:$B$84,$C7,ADHOC!$C$4:$C$84,$D7) -> 46661730 | M7: =SUMIFS(ADHOC!L$4:L$84,ADHOC!$A$4:$A$84,$B7,ADHOC!$B$4:$B$84,$C7,ADHOC!$C$4:$C$84,$D7) -> 44115203 | N7: =SUMIFS(ADHOC!M$4:M$84,ADHOC!$A$4:$A$84,$B7,ADHOC!$B$4:$B$84,$C7,ADHOC!$C$4:$C$84,$D7) -> 72699855 | O7: =SUMIFS(ADHOC!N$4:N$84,ADHOC!$A$4:$A$84,$B7,ADHOC!$B$4:$B$84,$C7,ADHOC!$C$4:$C$84,$D7) -> 71821254 | P7: =SUMIFS(ADHOC!O$4:O$84,ADHOC!$A$4:$A$84,$B7,ADHOC!$B$4:$B$84,$C7,ADHOC!$C$4:$C$84,$D7) -> 68126750 | Q7: =SUMIFS(ADHOC!P$4:P$84,ADHOC!$A$4:$A$84,$B7,ADHOC!$B$4:$B$84,$C7,ADHOC!$C$4:$C$84,$D7) -> 78060657 | R7: =SUMIFS(ADHOC!Q$4:Q$84,ADHOC!$A$4:$A$84,$B7,ADHOC!$B$4:$B$84,$C7,ADHOC!$C$4:$C$84,$D7) -> 40662857 | S7: =SUMIFS(ADHOC!R$4:R$84,ADHOC!$A$4:$A$84,$B7,ADHOC!$B$4:$B$84,$C7,ADHOC!$C$4:$C$84,$D7) -> 81145053 | T7: =SUMIFS(ADHOC!S$4:S$84,ADHOC!$A$4:$A$84,$B7,ADHOC!$B$4:$B$84,$C7,ADHOC!$C$4:$C$84,$D7) -> 74809610 | U7: =SUMIFS(ADHOC!T$4:T$84,ADHOC!$A$4:$A$84,$B7,ADHOC!$B$4:$B$84,$C7,ADHOC!$C$4:$C$84,$D7) -> 57661803 | V7: =SUMIFS(ADHOC!U$4:U$84,ADHOC!$A$4:$A$84,$B7,ADHOC!$B$4:$B$84,$C7,ADHOC!$C$4:$C$84,$D7) -> 41169890 | W7: =SUMIFS(ADHOC!V$4:V$84,ADHOC!$A$4:$A$84,$B7,ADHOC!$B$4:$B$84,$C7,ADHOC!$C$4:$C$84,$D7) -> 72589677 | X7: =SUMIFS(ADHOC!W$4:W$84,ADHOC!$A$4:$A$84,$B7,ADHOC!$B$4:$B$84,$C7,ADHOC!$C$4:$C$84,$D7) -> 37122087 | Y7: =SUMIFS(ADHOC!X$4:X$84,ADHOC!$A$4:$A$84,$B7,ADHOC!$B$4:$B$84,$C7,ADHOC!$C$4:$C$84,$D7) -> 75272381 | Z7: =SUMIFS(ADHOC!Y$4:Y$84,ADHOC!$A$4:$A$84,$B7,ADHOC!$B$4:$B$84,$C7,ADHOC!$C$4:$C$84,$D7) -> 57927975 | AA7: =SUMIFS(ADHOC!Z$4:Z$84,ADHOC!$A$4:$A$84,$B7,ADHOC!$B$4:$B$84,$C7,ADHOC!$C$4:$C$84,$D7) -> 62235444 | AB7: =SUMIFS(ADHOC!AA$4:AA$84,ADHOC!$A$4:$A$84,$B7,ADHOC!$B$4:$B$84,$C7,ADHOC!$C$4:$C$84,$D7) -> 83129462
A8: 7 | B8: 32136 | C8: Secteur 1 | D8: Rayon 7 | E8: =SUMIFS(ADHOC!D$4:D$84,ADHOC!$A$4:$A$84,$B8,ADHOC!$B$4:$B$84,$C8,ADHOC!$C$4:$C$84,$D8) -> 57909313 | F8: =SUMIFS(ADHOC!E$4:E$84,ADHOC!$A$4:$A$84,$B8,ADHOC!$B$4:$B$84,$C8,ADHOC!$C$4:$C$84,$D8) -> 83462573 | G8: =SUMIFS(ADHOC!F$4:F$84,ADHOC!$A$4:$A$84,$B8,ADHOC!$B$4:$B$84,$C8,ADHOC!$C$4:$C$84,$D8) -> 38076019 | H8: =SUMIFS(ADHOC!G$4:G$84,ADHOC!$A$4:$A$84,$B8,ADHOC!$B$4:$B$84,$C8,ADHOC!$C$4:$C$84,$D8) -> 77585905 | I8: =SUMIFS(ADHOC!H$4:H$84,ADHOC!$A$4:$A$84,$B8,ADHOC!$B$4:$B$84,$C8,ADHOC!$C$4:$C$84,$D8) -> 75583309 | J8: =SUMIFS(ADHOC!I$4:I$84,ADHOC!$A$4:$A$84,$B8,ADHOC!$B$4:$B$84,$C8,ADHOC!$C$4:$C$84,$D8) -> 65809729 | K8: =SUMIFS(ADHOC!J$4:J$84,ADHOC!$A$4:$A$84,$B8,ADHOC!$B$4:$B$84,$C8,ADHOC!$C$4:$C$84,$D8) -> 55616654 | L8: =SUMIFS(ADHOC!K$4:K$84,ADHOC!$A$4:$A$84,$B8,ADHOC!$B$4:$B$84,$C8,ADHOC!$C$4:$C$84,$D8) -> 36257137 | M8: =SUMIFS(ADHOC!L$4:L$84,ADHOC!$A$4:$A$84,$B8,ADHOC!$B$4:$B$84,$C8,ADHOC!$C$4:$C$84,$D8) -> 36683178 | N8: =SUMIFS(ADHOC!M$4:M$84,ADHOC!$A$4:$A$84,$B8,ADHOC!$B$4:$B$84,$C8,ADHOC!$C$4:$C$84,$D8) -> 66984300 | O8: =SUMIFS(ADHOC!N$4:N$84,ADHOC!$A$4:$A$84,$B8,ADHOC!$B$4:$B$84,$C8,ADHOC!$C$4:$C$84,$D8) -> 76077911 | P8: =SUMIFS(ADHOC!O$4:O$84,ADHOC!$A$4:$A$84,$B8,ADHOC!$B$4:$B$84,$C8,ADHOC!$C$4:$C$84,$D8) -> 61051618 | Q8: =SUMIFS(ADHOC!P$4:P$84,ADHOC!$A$4:$A$84,$B8,ADHOC!$B$4:$B$84,$C8,ADHOC!$C$4:$C$84,$D8) -> 56826436 | R8: =SUMIFS(ADHOC!Q$4:Q$84,ADHOC!$A$4:$A$84,$B8,ADHOC!$B$4:$B$84,$C8,ADHOC!$C$4:$C$84,$D8) -> 47917857 | S8: =SUMIFS(ADHOC!R$4:R$84,ADHOC!$A$4:$A$84,$B8,ADHOC!$B$4:$B$84,$C8,ADHOC!$C$4:$C$84,$D8) -> 58345328 | T8: =SUMIFS(ADHOC!S$4:S$84,ADHOC!$A$4:$A$84,$B8,ADHOC!$B$4:$B$84,$C8,ADHOC!$C$4:$C$84,$D8) -> 67878959 | U8: =SUMIFS(ADHOC!T$4:T$84,ADHOC!$A$4:$A$84,$B8,ADHOC!$B$4:$B$84,$C8,ADHOC!$C$4:$C$84,$D8) -> 74454780 | V8: =SUMIFS(ADHOC!U$4:U$84,ADHOC!$A$4:$A$84,$B8,ADHOC!$B$4:$B$84,$C8,ADHOC!$C$4:$C$84,$D8) -> 58178506 | W8: =SUMIFS(ADHOC!V$4:V$84,ADHOC!$A$4:$A$84,$B8,ADHOC!$B$4:$B$84,$C8,ADHOC!$C$4:$C$84,$D8) -> 61093422 | X8: =SUMIFS(ADHOC!W$4:W$84,ADHOC!$A$4:$A$84,$B8,ADHOC!$B$4:$B$84,$C8,ADHOC!$C$4:$C$84,$D8) -> 58499906 | Y8: =SUMIFS(ADHOC!X$4:X$84,ADHOC!$A$4:$A$84,$B8,ADHOC!$B$4:$B$84,$C8,ADHOC!$C$4:$C$84,$D8) -> 39224789 | Z8: =SUMIFS(ADHOC!Y$4:Y$84,ADHOC!$A$4:$A$84,$B8,ADHOC!$B$4:$B$84,$C8,ADHOC!$C$4:$C$84,$D8) -> 37101197 | AA8: =SUMIFS(ADHOC!Z$4:Z$84,ADHOC!$A$4:$A$84,$B8,ADHOC!$B$4:$B$84,$C8,ADHOC!$C$4:$C$84,$D8) -> 43129965 | AB8: =SUMIFS(ADHOC!AA$4:AA$84,ADHOC!$A$4:$A$84,$B8,ADHOC!$B$4:$B$84,$C8,ADHOC!$C$4:$C$84,$D8) -> 83596153
A9: 8 | B9: 32937 | C9: Secteur 1 | D9: Rayon 8 | E9: =SUMIFS(ADHOC!D$4:D$84,ADHOC!$A$4:$A$84,$B9,ADHOC!$B$4:$B$84,$C9,ADHOC!$C$4:$C$84,$D9) -> 52003311 | F9: =SUMIFS(ADHOC!E$4:E$84,ADHOC!$A$4:$A$84,$B9,ADHOC!$B$4:$B$84,$C9,ADHOC!$C$4:$C$84,$D9) -> 38187827 | G9: =SUMIFS(ADHOC!F$4:F$84,ADHOC!$A$4:$A$84,$B9,ADHOC!$B$4:$B$84,$C9,ADHOC!$C$4:$C$84,$D9) -> 44120887 | H9: =SUMIFS(ADHOC!G$4:G$84,ADHOC!$A$4:$A$84,$B9,ADHOC!$B$4:$B$84,$C9,ADHOC!$C$4:$C$84,$D9) -> 70937315 | I9: =SUMIFS(ADHOC!H$4:H$84,ADHOC!$A$4:$A$84,$B9,ADHOC!$B$4:$B$84,$C9,ADHOC!$C$4:$C$84,$D9) -> 38973172 | J9: =SUMIFS(ADHOC!I$4:I$84,ADHOC!$A$4:$A$84,$B9,ADHOC!$B$4:$B$84,$C9,ADHOC!$C$4:$C$84,$D9) -> 68052655 | K9: =SUMIFS(ADHOC!J$4:J$84,ADHOC!$A$4:$A$84,$B9,ADHOC!$B$4:$B$84,$C9,ADHOC!$C$4:$C$84,$D9) -> 58597151 | L9: =SUMIFS(ADHOC!K$4:K$84,ADHOC!$A$4:$A$84,$B9,ADHOC!$B$4:$B$84,$C9,ADHOC!$C$4:$C$84,$D9) -> 46275717 | M9: =SUMIFS(ADHOC!L$4:L$84,ADHOC!$A$4:$A$84,$B9,ADHOC!$B$4:$B$84,$C9,ADHOC!$C$4:$C$84,$D9) -> 36034890 | N9: =SUMIFS(ADHOC!M$4:M$84,ADHOC!$A$4:$A$84,$B9,ADHOC!$B$4:$B$84,$C9,ADHOC!$C$4:$C$84,$D9) -> 36209475 | O9: =SUMIFS(ADHOC!N$4:N$84,ADHOC!$A$4:$A$84,$B9,ADHOC!$B$4:$B$84,$C9,ADHOC!$C$4:$C$84,$D9) -> 54552182 | P9: =SUMIFS(ADHOC!O$4:O$84,ADHOC!$A$4:$A$84,$B9,ADHOC!$B$4:$B$84,$C9,ADHOC!$C$4:$C$84,$D9) -> 63853517 | Q9: =SUMIFS(ADHOC!P$4:P$84,ADHOC!$A$4:$A$84,$B9,ADHOC!$B$4:$B$84,$C9,ADHOC!$C$4:$C$84,$D9) -> 63658273 | R9: =SUMIFS(ADHOC!Q$4:Q$84,ADHOC!$A$4:$A$84,$B9,ADHOC!$B$4:$B$84,$C9,ADHOC!$C$4:$C$84,$D9) -> 45740244 | S9: =SUMIFS(ADHOC!R$4:R$84,ADHOC!$A$4:$A$84,$B9,ADHOC!$B$4:$B$84,$C9,ADHOC!$C$4:$C$84,$D9) -> 51483663 | T9: =SUMIFS(ADHOC!S$4:S$84,ADHOC!$A$4:$A$84,$B9,ADHOC!$B$4:$B$84,$C9,ADHOC!$C$4:$C$84,$D9) -> 55316531 | U9: =SUMIFS(ADHOC!T$4:T$84,ADHOC!$A$4:$A$84,$B9,ADHOC!$B$4:$B$84,$C9,ADHOC!$C$4:$C$84,$D9) -> 65776489 | V9: =SUMIFS(ADHOC!U$4:U$84,ADHOC!$A$4:$A$84,$B9,ADHOC!$B$4:$B$84,$C9,ADHOC!$C$4:$C$84,$D9) -> 58594261 | W9: =SUMIFS(ADHOC!V$4:V$84,ADHOC!$A$4:$A$84,$B9,ADHOC!$B$4:$B$84,$C9,ADHOC!$C$4:$C$84,$D9) -> 69436378 | X9: =SUMIFS(ADHOC!W$4:W$84,ADHOC!$A$4:$A$84,$B9,ADHOC!$B$4:$B$84,$C9,ADHOC!$C$4:$C$84,$D9) -> 68430579 | Y9: =SUMIFS(ADHOC!X$4:X$84,ADHOC!$A$4:$A$84,$B9,ADHOC!$B$4:$B$84,$C9,ADHOC!$C$4:$C$84,$D9) -> 68419558 | Z9: =SUMIFS(ADHOC!Y$4:Y$84,ADHOC!$A$4:$A$84,$B9,ADHOC!$B$4:$B$84,$C9,ADHOC!$C$4:$C$84,$D9) -> 74883752 | AA9: =SUMIFS(ADHOC!Z$4:Z$84,ADHOC!$A$4:$A$84,$B9,ADHOC!$B$4:$B$84,$C9,ADHOC!$C$4:$C$84,$D9) -> 56230041 | AB9: =SUMIFS(ADHOC!AA$4:AA$84,ADHOC!$A$4:$A$84,$B9,ADHOC!$B$4:$B$84,$C9,ADHOC!$C$4:$C$84,$D9) -> 62213990
A10: 9 | B10: 33679 | C10: Secteur 1 | D10: Rayon 9 | E10: =SUMIFS(ADHOC!D$4:D$84,ADHOC!$A$4:$A$84,$B10,ADHOC!$B$4:$B$84,$C10,ADHOC!$C$4:$C$84,$D10) -> 66961571 | F10: =SUMIFS(ADHOC!E$4:E$84,ADHOC!$A$4:$A$84,$B10,ADHOC!$B$4:$B$84,$C10,ADHOC!$C$4:$C$84,$D10) -> 45861660 | G10: =SUMIFS(ADHOC!F$4:F$84,ADHOC!$A$4:$A$84,$B10,ADHOC!$B$4:$B$84,$C10,ADHOC!$C$4:$C$84,$D10) -> 81915349 | H10: =SUMIFS(ADHOC!G$4:G$84,ADHOC!$A$4:$A$84,$B10,ADHOC!$B$4:$B$84,$C10,ADHOC!$C$4:$C$84,$D10) -> 60014062 | I10: =SUMIFS(ADHOC!H$4:H$84,ADHOC!$A$4:$A$84,$B10,ADHOC!$B$4:$B$84,$C10,ADHOC!$C$4:$C$84,$D10) -> 45949968 | J10: =SUMIFS(ADHOC!I$4:I$84,ADHOC!$A$4:$A$84,$B10,ADHOC!$B$4:$B$84,$C10,ADHOC!$C$4:$C$84,$D10) -> 78033102 | K10: =SUMIFS(ADHOC!J$4:J$84,ADHOC!$A$4:$A$84,$B10,ADHOC!$B$4:$B$84,$C10,ADHOC!$C$4:$C$84,$D10) -> 59755398 | L10: =SUMIFS(ADHOC!K$4:K$84,ADHOC!$A$4:$A$84,$B10,ADHOC!$B$4:$B$84,$C10,ADHOC!$C$4:$C$84,$D10) -> 43409489 | M10: =SUMIFS(ADHOC!L$4:L$84,ADHOC!$A$4:$A$84,$B10,ADHOC!$B$4:$B$84,$C10,ADHOC!$C$4:$C$84,$D10) -> 44125106 | N10: =SUMIFS(ADHOC!M$4:M$84,ADHOC!$A$4:$A$84,$B10,ADHOC!$B$4:$B$84,$C10,ADHOC!$C$4:$C$84,$D10) -> 79783880 | O10: =SUMIFS(ADHOC!N$4:N$84,ADHOC!$A$4:$A$84,$B10,ADHOC!$B$4:$B$84,$C10,ADHOC!$C$4:$C$84,$D10) -> 52235491 | P10: =SUMIFS(ADHOC!O$4:O$84,ADHOC!$A$4:$A$84,$B10,ADHOC!$B$4:$B$84,$C10,ADHOC!$C$4:$C$84,$D10) -> 69101378 | Q10: =SUMIFS(ADHOC!P$4:P$84,ADHOC!$A$4:$A$84,$B10,ADHOC!$B$4:$B$84,$C10,ADHOC!$C$4:$C$84,$D10) -> 52737636 | R10: =SUMIFS(ADHOC!Q$4:Q$84,ADHOC!$A$4:$A$84,$B10,ADHOC!$B$4:$B$84,$C10,ADHOC!$C$4:$C$84,$D10) -> 64423659 | S10: =SUMIFS(ADHOC!R$4:R$84,ADHOC!$A$4:$A$84,$B10,ADHOC!$B$4:$B$84,$C10,ADHOC!$C$4:$C$84,$D10) -> 38017511 | T10: =SUMIFS(ADHOC!S$4:S$84,ADHOC!$A$4:$A$84,$B10,ADHOC!$B$4:$B$84,$C10,ADHOC!$C$4:$C$84,$D10) -> 82316367 | U10: =SUMIFS(ADHOC!T$4:T$84,ADHOC!$A$4:$A$84,$B10,ADHOC!$B$4:$B$84,$C10,ADHOC!$C$4:$C$84,$D10) -> 74329138 | V10: =SUMIFS(ADHOC!U$4:U$84,ADHOC!$A$4:$A$84,$B10,ADHOC!$B$4:$B$84,$C10,ADHOC!$C$4:$C$84,$D10) -> 79342999 | W10: =SUMIFS(ADHOC!V$4:V$84,ADHOC!$A$4:$A$84,$B10,ADHOC!$B$4:$B$84,$C10,ADHOC!$C$4:$C$84,$D10) -> 39871856 | X10: =SUMIFS(ADHOC!W$4:W$84,ADHOC!$A$4:$A$84,$B10,ADHOC!$B$4:$B$84,$C10,ADHOC!$C$4:$C$84,$D10) -> 71344237 | Y10: =SUMIFS(ADHOC!X$4:X$84,ADHOC!$A$4:$A$84,$B10,ADHOC!$B$4:$B$84,$C10,ADHOC!$C$4:$C$84,$D10) -> 69100508 | Z10: =SUMIFS(ADHOC!Y$4:Y$84,ADHOC!$A$4:$A$84,$B10,ADHOC!$B$4:$B$84,$C10,ADHOC!$C$4:$C$84,$D10) -> 70227439 | AA10: =SUMIFS(ADHOC!Z$4:Z$84,ADHOC!$A$4:$A$84,$B10,ADHOC!$B$4:$B$84,$C10,ADHOC!$C$4:$C$84,$D10) -> 73633143 | AB10: =SUMIFS(ADHOC!AA$4:AA$84,ADHOC!$A$4:$A$84,$B10,ADHOC!$B$4:$B$84,$C10,ADHOC!$C$4:$C$84,$D10) -> 58924904
A11: 10 | B11: 33324 | C11: Secteur 1 | D11: Rayon 10 | E11: =SUMIFS(ADHOC!D$4:D$84,ADHOC!$A$4:$A$84,$B11,ADHOC!$B$4:$B$84,$C11,ADHOC!$C$4:$C$84,$D11) -> 76828644 | F11: =SUMIFS(ADHOC!E$4:E$84,ADHOC!$A$4:$A$84,$B11,ADHOC!$B$4:$B$84,$C11,ADHOC!$C$4:$C$84,$D11) -> 36180908 | G11: =SUMIFS(ADHOC!F$4:F$84,ADHOC!$A$4:$A$84,$B11,ADHOC!$B$4:$B$84,$C11,ADHOC!$C$4:$C$84,$D11) -> 54531352 | H11: =SUMIFS(ADHOC!G$4:G$84,ADHOC!$A$4:$A$84,$B11,ADHOC!$B$4:$B$84,$C11,ADHOC!$C$4:$C$84,$D11) -> 74576397 | I11: =SUMIFS(ADHOC!H$4:H$84,ADHOC!$A$4:$A$84,$B11,ADHOC!$B$4:$B$84,$C11,ADHOC!$C$4:$C$84,$D11) -> 70404885 | J11: =SUMIFS(ADHOC!I$4:I$84,ADHOC!$A$4:$A$84,$B11,ADHOC!$B$4:$B$84,$C11,ADHOC!$C$4:$C$84,$D11) -> 68984648 | K11: =SUMIFS(ADHOC!J$4:J$84,ADHOC!$A$4:$A$84,$B11,ADHOC!$B$4:$B$84,$C11,ADHOC!$C$4:$C$84,$D11) -> 58412326 | L11: =SUMIFS(ADHOC!K$4:K$84,ADHOC!$A$4:$A$84,$B11,ADHOC!$B$4:$B$84,$C11,ADHOC!$C$4:$C$84,$D11) -> 57480984 | M11: =SUMIFS(ADHOC!L$4:L$84,ADHOC!$A$4:$A$84,$B11,ADHOC!$B$4:$B$84,$C11,ADHOC!$C$4:$C$84,$D11) -> 47560853 | N11: =SUMIFS(ADHOC!M$4:M$84,ADHOC!$A$4:$A$84,$B11,ADHOC!$B$4:$B$84,$C11,ADHOC!$C$4:$C$84,$D11) -> 48930704 | O11: =SUMIFS(ADHOC!N$4:N$84,ADHOC!$A$4:$A$84,$B11,ADHOC!$B$4:$B$84,$C11,ADHOC!$C$4:$C$84,$D11) -> 39244432 | P11: =SUMIFS(ADHOC!O$4:O$84,ADHOC!$A$4:$A$84,$B11,ADHOC!$B$4:$B$84,$C11,ADHOC!$C$4:$C$84,$D11) -> 58498320 | Q11: =SUMIFS(ADHOC!P$4:P$84,ADHOC!$A$4:$A$84,$B11,ADHOC!$B$4:$B$84,$C11,ADHOC!$C$4:$C$84,$D11) -> 42268858 | R11: =SUMIFS(ADHOC!Q$4:Q$84,ADHOC!$A$4:$A$84,$B11,ADHOC!$B$4:$B$84,$C11,ADHOC!$C$4:$C$84,$D11) -> 40439929 | S11: =SUMIFS(ADHOC!R$4:R$84,ADHOC!$A$4:$A$84,$B11,ADHOC!$B$4:$B$84,$C11,ADHOC!$C$4:$C$84,$D11) -> 55338466 | T11: =SUMIFS(ADHOC!S$4:S$84,ADHOC!$A$4:$A$84,$B11,ADHOC!$B$4:$B$84,$C11,ADHOC!$C$4:$C$84,$D11) -> 76712851 | U11: =SUMIFS(ADHOC!T$4:T$84,ADHOC!$A$4:$A$84,$B11,ADHOC!$B$4:$B$84,$C11,ADHOC!$C$4:$C$84,$D11) -> 38795312 | V11: =SUMIFS(ADHOC!U$4:U$84,ADHOC!$A$4:$A$84,$B11,ADHOC!$B$4:$B$84,$C11,ADHOC!$C$4:$C$84,$D11) -> 64745420 | W11: =SUMIFS(ADHOC!V$4:V$84,ADHOC!$A$4:$A$84,$B11,ADHOC!$B$4:$B$84,$C11,ADHOC!$C$4:$C$84,$D11) -> 60070140 | X11: =SUMIFS(ADHOC!W$4:W$84,ADHOC!$A$4:$A$84,$B11,ADHOC!$B$4:$B$84,$C11,ADHOC!$C$4:$C$84,$D11) -> 57056407 | Y11: =SUMIFS(ADHOC!X$4:X$84,ADHOC!$A$4:$A$84,$B11,ADHOC!$B$4:$B$84,$C11,ADHOC!$C$4:$C$84,$D11) -> 50027492 | Z11: =SUMIFS(ADHOC!Y$4:Y$84,ADHOC!$A$4:$A$84,$B11,ADHOC!$B$4:$B$84,$C11,ADHOC!$C$4:$C$84,$D11) -> 63762390 | AA11: =SUMIFS(ADHOC!Z$4:Z$84,ADHOC!$A$4:$A$84,$B11,ADHOC!$B$4:$B$84,$C11,ADHOC!$C$4:$C$84,$D11) -> 78960440 | AB11: =SUMIFS(ADHOC!AA$4:AA$84,ADHOC!$A$4:$A$84,$B11,ADHOC!$B$4:$B$84,$C11,ADHOC!$C$4:$C$84,$D11) -> 57840112
A12: 11 | B12: 33291 | C12: Secteur 2 | D12: Rayon 11 | E12: =SUMIFS(ADHOC!D$4:D$84,ADHOC!$A$4:$A$84,$B12,ADHOC!$B$4:$B$84,$C12,ADHOC!$C$4:$C$84,$D12) -> 51750209 | F12: =SUMIFS(ADHOC!E$4:E$84,ADHOC!$A$4:$A$84,$B12,ADHOC!$B$4:$B$84,$C12,ADHOC!$C$4:$C$84,$D12) -> 75023992 | G12: =SUMIFS(ADHOC!F$4:F$84,ADHOC!$A$4:$A$84,$B12,ADHOC!$B$4:$B$84,$C12,ADHOC!$C$4:$C$84,$D12) -> 39484027 | H12: =SUMIFS(ADHOC!G$4:G$84,ADHOC!$A$4:$A$84,$B12,ADHOC!$B$4:$B$84,$C12,ADHOC!$C$4:$C$84,$D12) -> 59257383 | I12: =SUMIFS(ADHOC!H$4:H$84,ADHOC!$A$4:$A$84,$B12,ADHOC!$B$4:$B$84,$C12,ADHOC!$C$4:$C$84,$D12) -> 79534580 | J12: =SUMIFS(ADHOC!I$4:I$84,ADHOC!$A$4:$A$84,$B12,ADHOC!$B$4:$B$84,$C12,ADHOC!$C$4:$C$84,$D12) -> 70726676 | K12: =SUMIFS(ADHOC!J$4:J$84,ADHOC!$A$4:$A$84,$B12,ADHOC!$B$4:$B$84,$C12,ADHOC!$C$4:$C$84,$D12) -> 69757068 | L12: =SUMIFS(ADHOC!K$4:K$84,ADHOC!$A$4:$A$84,$B12,ADHOC!$B$4:$B$84,$C12,ADHOC!$C$4:$C$84,$D12) -> 72182153 | M12: =SUMIFS(ADHOC!L$4:L$84,ADHOC!$A$4:$A$84,$B12,ADHOC!$B$4:$B$84,$C12,ADHOC!$C$4:$C$84,$D12) -> 79463910 | N12: =SUMIFS(ADHOC!M$4:M$84,ADHOC!$A$4:$A$84,$B12,ADHOC!$B$4:$B$84,$C12,ADHOC!$C$4:$C$84,$D12) -> 41295127 | O12: =SUMIFS(ADHOC!N$4:N$84,ADHOC!$A$4:$A$84,$B12,ADHOC!$B$4:$B$84,$C12,ADHOC!$C$4:$C$84,$D12) -> 83136151 | P12: =SUMIFS(ADHOC!O$4:O$84,ADHOC!$A$4:$A$84,$B12,ADHOC!$B$4:$B$84,$C12,ADHOC!$C$4:$C$84,$D12) -> 78238314 | Q12: =SUMIFS(ADHOC!P$4:P$84,ADHOC!$A$4:$A$84,$B12,ADHOC!$B$4:$B$84,$C12,ADHOC!$C$4:$C$84,$D12) -> 82440149 | R12: =SUMIFS(ADHOC!Q$4:Q$84,ADHOC!$A$4:$A$84,$B12,ADHOC!$B$4:$B$84,$C12,ADHOC!$C$4:$C$84,$D12) -> 36416576 | S12: =SUMIFS(ADHOC!R$4:R$84,ADHOC!$A$4:$A$84,$B12,ADHOC!$B$4:$B$84,$C12,ADHOC!$C$4:$C$84,$D12) -> 83249504 | T12: =SUMIFS(ADHOC!S$4:S$84,ADHOC!$A$4:$A$84,$B12,ADHOC!$B$4:$B$84,$C12,ADHOC!$C$4:$C$84,$D12) -> 45981887 | U12: =SUMIFS(ADHOC!T$4:T$84,ADHOC!$A$4:$A$84,$B12,ADHOC!$B$4:$B$84,$C12,ADHOC!$C$4:$C$84,$D12) -> 35904340 | V12: =SUMIFS(ADHOC!U$4:U$84,ADHOC!$A$4:$A$84,$B12,ADHOC!$B$4:$B$84,$C12,ADHOC!$C$4:$C$84,$D12) -> 47853298 | W12: =SUMIFS(ADHOC!V$4:V$84,ADHOC!$A$4:$A$84,$B12,ADHOC!$B$4:$B$84,$C12,ADHOC!$C$4:$C$84,$D12) -> 61819126 | X12: =SUMIFS(ADHOC!W$4:W$84,ADHOC!$A$4:$A$84,$B12,ADHOC!$B$4:$B$84,$C12,ADHOC!$C$4:$C$84,$D12) -> 62060915 | Y12: =SUMIFS(ADHOC!X$4:X$84,ADHOC!$A$4:$A$84,$B12,ADHOC!$B$4:$B$84,$C12,ADHOC!$C$4:$C$84,$D12) -> 52957918 | Z12: =SUMIFS(ADHOC!Y$4:Y$84,ADHOC!$A$4:$A$84,$B12,ADHOC!$B$4:$B$84,$C12,ADHOC!$C$4:$C$84,$D12) -> 62312205 | AA12: =SUMIFS(ADHOC!Z$4:Z$84,ADHOC!$A$4:$A$84,$B12,ADHOC!$B$4:$B$84,$C12,ADHOC!$C$4:$C$84,$D12) -> 64622389 | AB12: =SUMIFS(ADHOC!AA$4:AA$84,ADHOC!$A$4:$A$84,$B12,ADHOC!$B$4:$B$84,$C12,ADHOC!$C$4:$C$84,$D12) -> 82900865
A13: 12 | B13: 34647 | C13: Secteur 2 | D13: Rayon 12 | E13: =SUMIFS(ADHOC!D$4:D$84,ADHOC!$A$4:$A$84,$B13,ADHOC!$B$4:$B$84,$C13,ADHOC!$C$4:$C$84,$D13) -> 83658616 | F13: =SUMIFS(ADHOC!E$4:E$84,ADHOC!$A$4:$A$84,$B13,ADHOC!$B$4:$B$84,$C13,ADHOC!$C$4:$C$84,$D13) -> 67363510 | G13: =SUMIFS(ADHOC!F$4:F$84,ADHOC!$A$4:$A$84,$B13,ADHOC!$B$4:$B$84,$C13,ADHOC!$C$4:$C$84,$D13) -> 38275542 | H13: =SUMIFS(ADHOC!G$4:G$84,ADHOC!$A$4:$A$84,$B13,ADHOC!$B$4:$B$84,$C13,ADHOC!$C$4:$C$84,$D13) -> 62747553 | I13: =SUMIFS(ADHOC!H$4:H$84,ADHOC!$A$4:$A$84,$B13,ADHOC!$B$4:$B$84,$C13,ADHOC!$C$4:$C$84,$D13) -> 81137324 | J13: =SUMIFS(ADHOC!I$4:I$84,ADHOC!$A$4:$A$84,$B13,ADHOC!$B$4:$B$84,$C13,ADHOC!$C$4:$C$84,$D13) -> 67012077 | K13: =SUMIFS(ADHOC!J$4:J$84,ADHOC!$A$4:$A$84,$B13,ADHOC!$B$4:$B$84,$C13,ADHOC!$C$4:$C$84,$D13) -> 41972049 | L13: =SUMIFS(ADHOC!K$4:K$84,ADHOC!$A$4:$A$84,$B13,ADHOC!$B$4:$B$84,$C13,ADHOC!$C$4:$C$84,$D13) -> 38468475 | M13: =SUMIFS(ADHOC!L$4:L$84,ADHOC!$A$4:$A$84,$B13,ADHOC!$B$4:$B$84,$C13,ADHOC!$C$4:$C$84,$D13) -> 60122678 | N13: =SUMIFS(ADHOC!M$4:M$84,ADHOC!$A$4:$A$84,$B13,ADHOC!$B$4:$B$84,$C13,ADHOC!$C$4:$C$84,$D13) -> 59428395 | O13: =SUMIFS(ADHOC!N$4:N$84,ADHOC!$A$4:$A$84,$B13,ADHOC!$B$4:$B$84,$C13,ADHOC!$C$4:$C$84,$D13) -> 71188853 | P13: =SUMIFS(ADHOC!O$4:O$84,ADHOC!$A$4:$A$84,$B13,ADHOC!$B$4:$B$84,$C13,ADHOC!$C$4:$C$84,$D13) -> 38903244 | Q13: =SUMIFS(ADHOC!P$4:P$84,ADHOC!$A$4:$A$84,$B13,ADHOC!$B$4:$B$84,$C13,ADHOC!$C$4:$C$84,$D13) -> 55630932 | R13: =SUMIFS(ADHOC!Q$4:Q$84,ADHOC!$A$4:$A$84,$B13,ADHOC!$B$4:$B$84,$C13,ADHOC!$C$4:$C$84,$D13) -> 38789451 | S13: =SUMIFS(ADHOC!R$4:R$84,ADHOC!$A$4:$A$84,$B13,ADHOC!$B$4:$B$84,$C13,ADHOC!$C$4:$C$84,$D13) -> 55986755 | T13: =SUMIFS(ADHOC!S$4:S$84,ADHOC!$A$4:$A$84,$B13,ADHOC!$B$4:$B$84,$C13,ADHOC!$C$4:$C$84,$D13) -> 61206779 | U13: =SUMIFS(ADHOC!T$4:T$84,ADHOC!$A$4:$A$84,$B13,ADHOC!$B$4:$B$84,$C13,ADHOC!$C$4:$C$84,$D13) -> 38875534 | V13: =SUMIFS(ADHOC!U$4:U$84,ADHOC!$A$4:$A$84,$B13,ADHOC!$B$4:$B$84,$C13,ADHOC!$C$4:$C$84,$D13) -> 53341185 | W13: =SUMIFS(ADHOC!V$4:V$84,ADHOC!$A$4:$A$84,$B13,ADHOC!$B$4:$B$84,$C13,ADHOC!$C$4:$C$84,$D13) -> 59672232 | X13: =SUMIFS(ADHOC!W$4:W$84,ADHOC!$A$4:$A$84,$B13,ADHOC!$B$4:$B$84,$C13,ADHOC!$C$4:$C$84,$D13) -> 43722471 | Y13: =SUMIFS(ADHOC!X$4:X$84,ADHOC!$A$4:$A$84,$B13,ADHOC!$B$4:$B$84,$C13,ADHOC!$C$4:$C$84,$D13) -> 75587915 | Z13: =SUMIFS(ADHOC!Y$4:Y$84,ADHOC!$A$4:$A$84,$B13,ADHOC!$B$4:$B$84,$C13,ADHOC!$C$4:$C$84,$D13) -> 62204517 | AA13: =SUMIFS(ADHOC!Z$4:Z$84,ADHOC!$A$4:$A$84,$B13,ADHOC!$B$4:$B$84,$C13,ADHOC!$C$4:$C$84,$D13) -> 57444490 | AB13: =SUMIFS(ADHOC!AA$4:AA$84,ADHOC!$A$4:$A$84,$B13,ADHOC!$B$4:$B$84,$C13,ADHOC!$C$4:$C$84,$D13) -> 62953066
A14: 13 | B14: 33892 | C14: Secteur 2 | D14: Rayon 13 | E14: =SUMIFS(ADHOC!D$4:D$84,ADHOC!$A$4:$A$84,$B14,ADHOC!$B$4:$B$84,$C14,ADHOC!$C$4:$C$84,$D14) -> 59587906 | F14: =SUMIFS(ADHOC!E$4:E$84,ADHOC!$A$4:$A$84,$B14,ADHOC!$B$4:$B$84,$C14,ADHOC!$C$4:$C$84,$D14) -> 63707232 | G14: =SUMIFS(ADHOC!F$4:F$84,ADHOC!$A$4:$A$84,$B14,ADHOC!$B$4:$B$84,$C14,ADHOC!$C$4:$C$84,$D14) -> 52181480 | H14: =SUMIFS(ADHOC!G$4:G$84,ADHOC!$A$4:$A$84,$B14,ADHOC!$B$4:$B$84,$C14,ADHOC!$C$4:$C$84,$D14) -> 57287755 | I14: =SUMIFS(ADHOC!H$4:H$84,ADHOC!$A$4:$A$84,$B14,ADHOC!$B$4:$B$84,$C14,ADHOC!$C$4:$C$84,$D14) -> 55588752 | J14: =SUMIFS(ADHOC!I$4:I$84,ADHOC!$A$4:$A$84,$B14,ADHOC!$B$4:$B$84,$C14,ADHOC!$C$4:$C$84,$D14) -> 47938819 | K14: =SUMIFS(ADHOC!J$4:J$84,ADHOC!$A$4:$A$84,$B14,ADHOC!$B$4:$B$84,$C14,ADHOC!$C$4:$C$84,$D14) -> 55878367 | L14: =SUMIFS(ADHOC!K$4:K$84,ADHOC!$A$4:$A$84,$B14,ADHOC!$B$4:$B$84,$C14,ADHOC!$C$4:$C$84,$D14) -> 82151924 | M14: =SUMIFS(ADHOC!L$4:L$84,ADHOC!$A$4:$A$84,$B14,ADHOC!$B$4:$B$84,$C14,ADHOC!$C$4:$C$84,$D14) -> 42086614 | N14: =SUMIFS(ADHOC!M$4:M$84,ADHOC!$A$4:$A$84,$B14,ADHOC!$B$4:$B$84,$C14,ADHOC!$C$4:$C$84,$D14) -> 76826382 | O14: =SUMIFS(ADHOC!N$4:N$84,ADHOC!$A$4:$A$84,$B14,ADHOC!$B$4:$B$84,$C14,ADHOC!$C$4:$C$84,$D14) -> 67733007 | P14: =SUMIFS(ADHOC!O$4:O$84,ADHOC!$A$4:$A$84,$B14,ADHOC!$B$4:$B$84,$C14,ADHOC!$C$4:$C$84,$D14) -> 81258843 | Q14: =SUMIFS(ADHOC!P$4:P$84,ADHOC!$A$4:$A$84,$B14,ADHOC!$B$4:$B$84,$C14,ADHOC!$C$4:$C$84,$D14) -> 76513061 | R14: =SUMIFS(ADHOC!Q$4:Q$84,ADHOC!$A$4:$A$84,$B14,ADHOC!$B$4:$B$84,$C14,ADHOC!$C$4:$C$84,$D14) -> 61441303 | S14: =SUMIFS(ADHOC!R$4:R$84,ADHOC!$A$4:$A$84,$B14,ADHOC!$B$4:$B$84,$C14,ADHOC!$C$4:$C$84,$D14) -> 50929748 | T14: =SUMIFS(ADHOC!S$4:S$84,ADHOC!$A$4:$A$84,$B14,ADHOC!$B$4:$B$84,$C14,ADHOC!$C$4:$C$84,$D14) -> 40632898 | U14: =SUMIFS(ADHOC!T$4:T$84,ADHOC!$A$4:$A$84,$B14,ADHOC!$B$4:$B$84,$C14,ADHOC!$C$4:$C$84,$D14) -> 45333053 | V14: =SUMIFS(ADHOC!U$4:U$84,ADHOC!$A$4:$A$84,$B14,ADHOC!$B$4:$B$84,$C14,ADHOC!$C$4:$C$84,$D14) -> 38871640 | W14: =SUMIFS(ADHOC!V$4:V$84,ADHOC!$A$4:$A$84,$B14,ADHOC!$B$4:$B$84,$C14,ADHOC!$C$4:$C$84,$D14) -> 59095217 | X14: =SUMIFS(ADHOC!W$4:W$84,ADHOC!$A$4:$A$84,$B14,ADHOC!$B$4:$B$84,$C14,ADHOC!$C$4:$C$84,$D14) -> 45313193 | Y14: =SUMIFS(ADHOC!X$4:X$84,ADHOC!$A$4:$A$84,$B14,ADHOC!$B$4:$B$84,$C14,ADHOC!$C$4:$C$84,$D14) -> 78821935 | Z14: =SUMIFS(ADHOC!Y$4:Y$84,ADHOC!$A$4:$A$84,$B14,ADHOC!$B$4:$B$84,$C14,ADHOC!$C$4:$C$84,$D14) -> 48379939 | AA14: =SUMIFS(ADHOC!Z$4:Z$84,ADHOC!$A$4:$A$84,$B14,ADHOC!$B$4:$B$84,$C14,ADHOC!$C$4:$C$84,$D14) -> 73660045 | AB14: =SUMIFS(ADHOC!AA$4:AA$84,ADHOC!$A$4:$A$84,$B14,ADHOC!$B$4:$B$84,$C14,ADHOC!$C$4:$C$84,$D14) -> 83060604
A15: 14 | B15: 33018 | C15: Secteur 2 | D15: Rayon 14 | E15: =SUMIFS(ADHOC!D$4:D$84,ADHOC!$A$4:$A$84,$B15,ADHOC!$B$4:$B$84,$C15,ADHOC!$C$4:$C$84,$D15) -> 37005055 | F15: =SUMIFS(ADHOC!E$4:E$84,ADHOC!$A$4:$A$84,$B15,ADHOC!$B$4:$B$84,$C15,ADHOC!$C$4:$C$84,$D15) -> 80025495 | G15: =SUMIFS(ADHOC!F$4:F$84,ADHOC!$A$4:$A$84,$B15,ADHOC!$B$4:$B$84,$C15,ADHOC!$C$4:$C$84,$D15) -> 60200411 | H15: =SUMIFS(ADHOC!G$4:G$84,ADHOC!$A$4:$A$84,$B15,ADHOC!$B$4:$B$84,$C15,ADHOC!$C$4:$C$84,$D15) -> 59981543 | I15: =SUMIFS(ADHOC!H$4:H$84,ADHOC!$A$4:$A$84,$B15,ADHOC!$B$4:$B$84,$C15,ADHOC!$C$4:$C$84,$D15) -> 44147602 | J15: =SUMIFS(ADHOC!I$4:I$84,ADHOC!$A$4:$A$84,$B15,ADHOC!$B$4:$B$84,$C15,ADHOC!$C$4:$C$84,$D15) -> 51458706 | K15: =SUMIFS(ADHOC!J$4:J$84,ADHOC!$A$4:$A$84,$B15,ADHOC!$B$4:$B$84,$C15,ADHOC!$C$4:$C$84,$D15) -> 44849922 | L15: =SUMIFS(ADHOC!K$4:K$84,ADHOC!$A$4:$A$84,$B15,ADHOC!$B$4:$B$84,$C15,ADHOC!$C$4:$C$84,$D15) -> 72905918 | M15: =SUMIFS(ADHOC!L$4:L$84,ADHOC!$A$4:$A$84,$B15,ADHOC!$B$4:$B$84,$C15,ADHOC!$C$4:$C$84,$D15) -> 61028492 | N15: =SUMIFS(ADHOC!M$4:M$84,ADHOC!$A$4:$A$84,$B15,ADHOC!$B$4:$B$84,$C15,ADHOC!$C$4:$C$84,$D15) -> 45888923 | O15: =SUMIFS(ADHOC!N$4:N$84,ADHOC!$A$4:$A$84,$B15,ADHOC!$B$4:$B$84,$C15,ADHOC!$C$4:$C$84,$D15) -> 58724147 | P15: =SUMIFS(ADHOC!O$4:O$84,ADHOC!$A$4:$A$84,$B15,ADHOC!$B$4:$B$84,$C15,ADHOC!$C$4:$C$84,$D15) -> 54894512 | Q15: =SUMIFS(ADHOC!P$4:P$84,ADHOC!$A$4:$A$84,$B15,ADHOC!$B$4:$B$84,$C15,ADHOC!$C$4:$C$84,$D15) -> 46520908 | R15: =SUMIFS(ADHOC!Q$4:Q$84,ADHOC!$A$4:$A$84,$B15,ADHOC!$B$4:$B$84,$C15,ADHOC!$C$4:$C$84,$D15) -> 83524527 | S15: =SUMIFS(ADHOC!R$4:R$84,ADHOC!$A$4:$A$84,$B15,ADHOC!$B$4:$B$84,$C15,ADHOC!$C$4:$C$84,$D15) -> 50937624 | T15: =SUMIFS(ADHOC!S$4:S$84,ADHOC!$A$4:$A$84,$B15,ADHOC!$B$4:$B$84,$C15,ADHOC!$C$4:$C$84,$D15) -> 83487144 | U15: =SUMIFS(ADHOC!T$4:T$84,ADHOC!$A$4:$A$84,$B15,ADHOC!$B$4:$B$84,$C15,ADHOC!$C$4:$C$84,$D15) -> 58404626 | V15: =SUMIFS(ADHOC!U$4:U$84,ADHOC!$A$4:$A$84,$B15,ADHOC!$B$4:$B$84,$C15,ADHOC!$C$4:$C$84,$D15) -> 39208964 | W15: =SUMIFS(ADHOC!V$4:V$84,ADHOC!$A$4:$A$84,$B15,ADHOC!$B$4:$B$84,$C15,ADHOC!$C$4:$C$84,$D15) -> 77933569 | X15: =SUMIFS(ADHOC!W$4:W$84,ADHOC!$A$4:$A$84,$B15,ADHOC!$B$4:$B$84,$C15,ADHOC!$C$4:$C$84,$D15) -> 46413303 | Y15: =SUMIFS(ADHOC!X$4:X$84,ADHOC!$A$4:$A$84,$B15,ADHOC!$B$4:$B$84,$C15,ADHOC!$C$4:$C$84,$D15) -> 70677490 | Z15: =SUMIFS(ADHOC!Y$4:Y$84,ADHOC!$A$4:$A$84,$B15,ADHOC!$B$4:$B$84,$C15,ADHOC!$C$4:$C$84,$D15) -> 55290176 | AA15: =SUMIFS(ADHOC!Z$4:Z$84,ADHOC!$A$4:$A$84,$B15,ADHOC!$B$4:$B$84,$C15,ADHOC!$C$4:$C$84,$D15) -> 68523175 | AB15: =SUMIFS(ADHOC!AA$4:AA$84,ADHOC!$A$4:$A$84,$B15,ADHOC!$B$4:$B$84,$C15,ADHOC!$C$4:$C$84,$D15) -> 69714211
A16: 15 | B16: 33462 | C16: Secteur 2 | D16: Rayon 15 | E16: =SUMIFS(ADHOC!D$4:D$84,ADHOC!$A$4:$A$84,$B16,ADHOC!$B$4:$B$84,$C16,ADHOC!$C$4:$C$84,$D16) -> 36361194 | F16: =SUMIFS(ADHOC!E$4:E$84,ADHOC!$A$4:$A$84,$B16,ADHOC!$B$4:$B$84,$C16,ADHOC!$C$4:$C$84,$D16) -> 38343495 | G16: =SUMIFS(ADHOC!F$4:F$84,ADHOC!$A$4:$A$84,$B16,ADHOC!$B$4:$B$84,$C16,ADHOC!$C$4:$C$84,$D16) -> 48228227 | H16: =SUMIFS(ADHOC!G$4:G$84,ADHOC!$A$4:$A$84,$B16,ADHOC!$B$4:$B$84,$C16,ADHOC!$C$4:$C$84,$D16) -> 57874294 | I16: =SUMIFS(ADHOC!H$4:H$84,ADHOC!$A$4:$A$84,$B16,ADHOC!$B$4:$B$84,$C16,ADHOC!$C$4:$C$84,$D16) -> 80798265 | J16: =SUMIFS(ADHOC!I$4:I$84,ADHOC!$A$4:$A$84,$B16,ADHOC!$B$4:$B$84,$C16,ADHOC!$C$4:$C$84,$D16) -> 61878310 | K16: =SUMIFS(ADHOC!J$4:J$84,ADHOC!$A$4:$A$84,$B16,ADHOC!$B$4:$B$84,$C16,ADHOC!$C$4:$C$84,$D16) -> 61730989 | L16: =SUMIFS(ADHOC!K$4:K$84,ADHOC!$A$4:$A$84,$B16,ADHOC!$B$4:$B$84,$C16,ADHOC!$C$4:$C$84,$D16) -> 47562900 | M16: =SUMIFS(ADHOC!L$4:L$84,ADHOC!$A$4:$A$84,$B16,ADHOC!$B$4:$B$84,$C16,ADHOC!$C$4:$C$84,$D16) -> 64642221 | N16: =SUMIFS(ADHOC!M$4:M$84,ADHOC!$A$4:$A$84,$B16,ADHOC!$B$4:$B$84,$C16,ADHOC!$C$4:$C$84,$D16) -> 60930309 | O16: =SUMIFS(ADHOC!N$4:N$84,ADHOC!$A$4:$A$84,$B16,ADHOC!$B$4:$B$84,$C16,ADHOC!$C$4:$C$84,$D16) -> 56410201 | P16: =SUMIFS(ADHOC!O$4:O$84,ADHOC!$A$4:$A$84,$B16,ADHOC!$B$4:$B$84,$C16,ADHOC!$C$4:$C$84,$D16) -> 79028842 | Q16: =SUMIFS(ADHOC!P$4:P$84,ADHOC!$A$4:$A$84,$B16,ADHOC!$B$4:$B$84,$C16,ADHOC!$C$4:$C$84,$D16) -> 71570489 | R16: =SUMIFS(ADHOC!Q$4:Q$84,ADHOC!$A$4:$A$84,$B16,ADHOC!$B$4:$B$84,$C16,ADHOC!$C$4:$C$84,$D16) -> 78916022 | S16: =SUMIFS(ADHOC!R$4:R$84,ADHOC!$A$4:$A$84,$B16,ADHOC!$B$4:$B$84,$C16,ADHOC!$C$4:$C$84,$D16) -> 50965805 | T16: =SUMIFS(ADHOC!S$4:S$84,ADHOC!$A$4:$A$84,$B16,ADHOC!$B$4:$B$84,$C16,ADHOC!$C$4:$C$84,$D16) -> 52191409 | U16: =SUMIFS(ADHOC!T$4:T$84,ADHOC!$A$4:$A$84,$B16,ADHOC!$B$4:$B$84,$C16,ADHOC!$C$4:$C$84,$D16) -> 54150579 | V16: =SUMIFS(ADHOC!U$4:U$84,ADHOC!$A$4:$A$84,$B16,ADHOC!$B$4:$B$84,$C16,ADHOC!$C$4:$C$84,$D16) -> 59282291 | W16: =SUMIFS(ADHOC!V$4:V$84,ADHOC!$A$4:$A$84,$B16,ADHOC!$B$4:$B$84,$C16,ADHOC!$C$4:$C$84,$D16) -> 80553019 | X16: =SUMIFS(ADHOC!W$4:W$84,ADHOC!$A$4:$A$84,$B16,ADHOC!$B$4:$B$84,$C16,ADHOC!$C$4:$C$84,$D16) -> 71035589 | Y16: =SUMIFS(ADHOC!X$4:X$84,ADHOC!$A$4:$A$84,$B16,ADHOC!$B$4:$B$84,$C16,ADHOC!$C$4:$C$84,$D16) -> 36492495 | Z16: =SUMIFS(ADHOC!Y$4:Y$84,ADHOC!$A$4:$A$84,$B16,ADHOC!$B$4:$B$84,$C16,ADHOC!$C$4:$C$84,$D16) -> 53622165 | AA16: =SUMIFS(ADHOC!Z$4:Z$84,ADHOC!$A$4:$A$84,$B16,ADHOC!$B$4:$B$84,$C16,ADHOC!$C$4:$C$84,$D16) -> 76767933 | AB16: =SUMIFS(ADHOC!AA$4:AA$84,ADHOC!$A$4:$A$84,$B16,ADHOC!$B$4:$B$84,$C16,ADHOC!$C$4:$C$84,$D16) -> 55547389
A17: 16 | B17: 33024 | C17: Secteur 3 | D17: Rayon 16 | E17: =SUMIFS(ADHOC!D$4:D$84,ADHOC!$A$4:$A$84,$B17,ADHOC!$B$4:$B$84,$C17,ADHOC!$C$4:$C$84,$D17) -> 44781816 | F17: =SUMIFS(ADHOC!E$4:E$84,ADHOC!$A$4:$A$84,$B17,ADHOC!$B$4:$B$84,$C17,ADHOC!$C$4:$C$84,$D17) -> 63677789 | G17: =SUMIFS(ADHOC!F$4:F$84,ADHOC!$A$4:$A$84,$B17,ADHOC!$B$4:$B$84,$C17,ADHOC!$C$4:$C$84,$D17) -> 60203529 | H17: =SUMIFS(ADHOC!G$4:G$84,ADHOC!$A$4:$A$84,$B17,ADHOC!$B$4:$B$84,$C17,ADHOC!$C$4:$C$84,$D17) -> 36580662 | I17: =SUMIFS(ADHOC!H$4:H$84,ADHOC!$A$4:$A$84,$B17,ADHOC!$B$4:$B$84,$C17,ADHOC!$C$4:$C$84,$D17) -> 77910470 | J17: =SUMIFS(ADHOC!I$4:I$84,ADHOC!$A$4:$A$84,$B17,ADHOC!$B$4:$B$84,$C17,ADHOC!$C$4:$C$84,$D17) -> 72997412 | K17: =SUMIFS(ADHOC!J$4:J$84,ADHOC!$A$4:$A$84,$B17,ADHOC!$B$4:$B$84,$C17,ADHOC!$C$4:$C$84,$D17) -> 46626161 | L17: =SUMIFS(ADHOC!K$4:K$84,ADHOC!$A$4:$A$84,$B17,ADHOC!$B$4:$B$84,$C17,ADHOC!$C$4:$C$84,$D17) -> 52650644 | M17: =SUMIFS(ADHOC!L$4:L$84,ADHOC!$A$4:$A$84,$B17,ADHOC!$B$4:$B$84,$C17,ADHOC!$C$4:$C$84,$D17) -> 80692068 | N17: =SUMIFS(ADHOC!M$4:M$84,ADHOC!$A$4:$A$84,$B17,ADHOC!$B$4:$B$84,$C17,ADHOC!$C$4:$C$84,$D17) -> 59815663 | O17: =SUMIFS(ADHOC!N$4:N$84,ADHOC!$A$4:$A$84,$B17,ADHOC!$B$4:$B$84,$C17,ADHOC!$C$4:$C$84,$D17) -> 44561130 | P17: =SUMIFS(ADHOC!O$4:O$84,ADHOC!$A$4:$A$84,$B17,ADHOC!$B$4:$B$84,$C17,ADHOC!$C$4:$C$84,$D17) -> 80916822 | Q17: =SUMIFS(ADHOC!P$4:P$84,ADHOC!$A$4:$A$84,$B17,ADHOC!$B$4:$B$84,$C17,ADHOC!$C$4:$C$84,$D17) -> 81730867 | R17: =SUMIFS(ADHOC!Q$4:Q$84,ADHOC!$A$4:$A$84,$B17,ADHOC!$B$4:$B$84,$C17,ADHOC!$C$4:$C$84,$D17) -> 63728210 | S17: =SUMIFS(ADHOC!R$4:R$84,ADHOC!$A$4:$A$84,$B17,ADHOC!$B$4:$B$84,$C17,ADHOC!$C$4:$C$84,$D17) -> 56856778 | T17: =SUMIFS(ADHOC!S$4:S$84,ADHOC!$A$4:$A$84,$B17,ADHOC!$B$4:$B$84,$C17,ADHOC!$C$4:$C$84,$D17) -> 75345010 | U17: =SUMIFS(ADHOC!T$4:T$84,ADHOC!$A$4:$A$84,$B17,ADHOC!$B$4:$B$84,$C17,ADHOC!$C$4:$C$84,$D17) -> 53899413 | V17: =SUMIFS(ADHOC!U$4:U$84,ADHOC!$A$4:$A$84,$B17,ADHOC!$B$4:$B$84,$C17,ADHOC!$C$4:$C$84,$D17) -> 75939980 | W17: =SUMIFS(ADHOC!V$4:V$84,ADHOC!$A$4:$A$84,$B17,ADHOC!$B$4:$B$84,$C17,ADHOC!$C$4:$C$84,$D17) -> 76666095 | X17: =SUMIFS(ADHOC!W$4:W$84,ADHOC!$A$4:$A$84,$B17,ADHOC!$B$4:$B$84,$C17,ADHOC!$C$4:$C$84,$D17) -> 46093676 | Y17: =SUMIFS(ADHOC!X$4:X$84,ADHOC!$A$4:$A$84,$B17,ADHOC!$B$4:$B$84,$C17,ADHOC!$C$4:$C$84,$D17) -> 43424346 | Z17: =SUMIFS(ADHOC!Y$4:Y$84,ADHOC!$A$4:$A$84,$B17,ADHOC!$B$4:$B$84,$C17,ADHOC!$C$4:$C$84,$D17) -> 74330384 | AA17: =SUMIFS(ADHOC!Z$4:Z$84,ADHOC!$A$4:$A$84,$B17,ADHOC!$B$4:$B$84,$C17,ADHOC!$C$4:$C$84,$D17) -> 75562065 | AB17: =SUMIFS(ADHOC!AA$4:AA$84,ADHOC!$A$4:$A$84,$B17,ADHOC!$B$4:$B$84,$C17,ADHOC!$C$4:$C$84,$D17) -> 83710658
A18: 17 | B18: 33867 | C18: Secteur 3 | D18: Rayon 17 | E18: =SUMIFS(ADHOC!D$4:D$84,ADHOC!$A$4:$A$84,$B18,ADHOC!$B$4:$B$84,$C18,ADHOC!$C$4:$C$84,$D18) -> 75337570 | F18: =SUMIFS(ADHOC!E$4:E$84,ADHOC!$A$4:$A$84,$B18,ADHOC!$B$4:$B$84,$C18,ADHOC!$C$4:$C$84,$D18) -> 38498653 | G18: =SUMIFS(ADHOC!F$4:F$84,ADHOC!$A$4:$A$84,$B18,ADHOC!$B$4:$B$84,$C18,ADHOC!$C$4:$C$84,$D18) -> 37941421 | H18: =SUMIFS(ADHOC!G$4:G$84,ADHOC!$A$4:$A$84,$B18,ADHOC!$B$4:$B$84,$C18,ADHOC!$C$4:$C$84,$D18) -> 71050980 | I18: =SUMIFS(ADHOC!H$4:H$84,ADHOC!$A$4:$A$84,$B18,ADHOC!$B$4:$B$84,$C18,ADHOC!$C$4:$C$84,$D18) -> 73556177 | J18: =SUMIFS(ADHOC!I$4:I$84,ADHOC!$A$4:$A$84,$B18,ADHOC!$B$4:$B$84,$C18,ADHOC!$C$4:$C$84,$D18) -> 71786454 | K18: =SUMIFS(ADHOC!J$4:J$84,ADHOC!$A$4:$A$84,$B18,ADHOC!$B$4:$B$84,$C18,ADHOC!$C$4:$C$84,$D18) -> 64257562 | L18: =SUMIFS(ADHOC!K$4:K$84,ADHOC!$A$4:$A$84,$B18,ADHOC!$B$4:$B$84,$C18,ADHOC!$C$4:$C$84,$D18) -> 47266314 | M18: =SUMIFS(ADHOC!L$4:L$84,ADHOC!$A$4:$A$84,$B18,ADHOC!$B$4:$B$84,$C18,ADHOC!$C$4:$C$84,$D18) -> 72949536 | N18: =SUMIFS(ADHOC!M$4:M$84,ADHOC!$A$4:$A$84,$B18,ADHOC!$B$4:$B$84,$C18,ADHOC!$C$4:$C$84,$D18) -> 40074679 | O18: =SUMIFS(ADHOC!N$4:N$84,ADHOC!$A$4:$A$84,$B18,ADHOC!$B$4:$B$84,$C18,ADHOC!$C$4:$C$84,$D18) -> 35887128 | P18: =SUMIFS(ADHOC!O$4:O$84,ADHOC!$A$4:$A$84,$B18,ADHOC!$B$4:$B$84,$C18,ADHOC!$C$4:$C$84,$D18) -> 79120995 | Q18: =SUMIFS(ADHOC!P$4:P$84,ADHOC!$A$4:$A$84,$B18,ADHOC!$B$4:$B$84,$C18,ADHOC!$C$4:$C$84,$D18) -> 57640256 | R18: =SUMIFS(ADHOC!Q$4:Q$84,ADHOC!$A$4:$A$84,$B18,ADHOC!$B$4:$B$84,$C18,ADHOC!$C$4:$C$84,$D18) -> 55049482 | S18: =SUMIFS(ADHOC!R$4:R$84,ADHOC!$A$4:$A$84,$B18,ADHOC!$B$4:$B$84,$C18,ADHOC!$C$4:$C$84,$D18) -> 44534813 | T18: =SUMIFS(ADHOC!S$4:S$84,ADHOC!$A$4:$A$84,$B18,ADHOC!$B$4:$B$84,$C18,ADHOC!$C$4:$C$84,$D18) -> 53788353 | U18: =SUMIFS(ADHOC!T$4:T$84,ADHOC!$A$4:$A$84,$B18,ADHOC!$B$4:$B$84,$C18,ADHOC!$C$4:$C$84,$D18) -> 64087900 | V18: =SUMIFS(ADHOC!U$4:U$84,ADHOC!$A$4:$A$84,$B18,ADHOC!$B$4:$B$84,$C18,ADHOC!$C$4:$C$84,$D18) -> 60257545 | W18: =SUMIFS(ADHOC!V$4:V$84,ADHOC!$A$4:$A$84,$B18,ADHOC!$B$4:$B$84,$C18,ADHOC!$C$4:$C$84,$D18) -> 48367680 | X18: =SUMIFS(ADHOC!W$4:W$84,ADHOC!$A$4:$A$84,$B18,ADHOC!$B$4:$B$84,$C18,ADHOC!$C$4:$C$84,$D18) -> 62858508 | Y18: =SUMIFS(ADHOC!X$4:X$84,ADHOC!$A$4:$A$84,$B18,ADHOC!$B$4:$B$84,$C18,ADHOC!$C$4:$C$84,$D18) -> 72645593 | Z18: =SUMIFS(ADHOC!Y$4:Y$84,ADHOC!$A$4:$A$84,$B18,ADHOC!$B$4:$B$84,$C18,ADHOC!$C$4:$C$84,$D18) -> 43209133 | AA18: =SUMIFS(ADHOC!Z$4:Z$84,ADHOC!$A$4:$A$84,$B18,ADHOC!$B$4:$B$84,$C18,ADHOC!$C$4:$C$84,$D18) -> 73720186 | AB18: =SUMIFS(ADHOC!AA$4:AA$84,ADHOC!$A$4:$A$84,$B18,ADHOC!$B$4:$B$84,$C18,ADHOC!$C$4:$C$84,$D18) -> 60211636
A19: 18 | B19: 32701 | C19: Secteur 3 | D19: Rayon 18 | E19: =SUMIFS(ADHOC!D$4:D$84,ADHOC!$A$4:$A$84,$B19,ADHOC!$B$4:$B$84,$C19,ADHOC!$C$4:$C$84,$D19) -> 80604211 | F19: =SUMIFS(ADHOC!E$4:E$84,ADHOC!$A$4:$A$84,$B19,ADHOC!$B$4:$B$84,$C19,ADHOC!$C$4:$C$84,$D19) -> 63146704 | G19: =SUMIFS(ADHOC!F$4:F$84,ADHOC!$A$4:$A$84,$B19,ADHOC!$B$4:$B$84,$C19,ADHOC!$C$4:$C$84,$D19) -> 62036579 | H19: =SUMIFS(ADHOC!G$4:G$84,ADHOC!$A$4:$A$84,$B19,ADHOC!$B$4:$B$84,$C19,ADHOC!$C$4:$C$84,$D19) -> 38635500 | I19: =SUMIFS(ADHOC!H$4:H$84,ADHOC!$A$4:$A$84,$B19,ADHOC!$B$4:$B$84,$C19,ADHOC!$C$4:$C$84,$D19) -> 78042681 | J19: =SUMIFS(ADHOC!I$4:I$84,ADHOC!$A$4:$A$84,$B19,ADHOC!$B$4:$B$84,$C19,ADHOC!$C$4:$C$84,$D19) -> 63216818 | K19: =SUMIFS(ADHOC!J$4:J$84,ADHOC!$A$4:$A$84,$B19,ADHOC!$B$4:$B$84,$C19,ADHOC!$C$4:$C$84,$D19) -> 81378979 | L19: =SUMIFS(ADHOC!K$4:K$84,ADHOC!$A$4:$A$84,$B19,ADHOC!$B$4:$B$84,$C19,ADHOC!$C$4:$C$84,$D19) -> 73121439 | M19: =SUMIFS(ADHOC!L$4:L$84,ADHOC!$A$4:$A$84,$B19,ADHOC!$B$4:$B$84,$C19,ADHOC!$C$4:$C$84,$D19) -> 46070408 | N19: =SUMIFS(ADHOC!M$4:M$84,ADHOC!$A$4:$A$84,$B19,ADHOC!$B$4:$B$84,$C19,ADHOC!$C$4:$C$84,$D19) -> 70347727 | O19: =SUMIFS(ADHOC!N$4:N$84,ADHOC!$A$4:$A$84,$B19,ADHOC!$B$4:$B$84,$C19,ADHOC!$C$4:$C$84,$D19) -> 69385924 | P19: =SUMIFS(ADHOC!O$4:O$84,ADHOC!$A$4:$A$84,$B19,ADHOC!$B$4:$B$84,$C19,ADHOC!$C$4:$C$84,$D19) -> 54433454 | Q19: =SUMIFS(ADHOC!P$4:P$84,ADHOC!$A$4:$A$84,$B19,ADHOC!$B$4:$B$84,$C19,ADHOC!$C$4:$C$84,$D19) -> 39860642 | R19: =SUMIFS(ADHOC!Q$4:Q$84,ADHOC!$A$4:$A$84,$B19,ADHOC!$B$4:$B$84,$C19,ADHOC!$C$4:$C$84,$D19) -> 83853156 | S19: =SUMIFS(ADHOC!R$4:R$84,ADHOC!$A$4:$A$84,$B19,ADHOC!$B$4:$B$84,$C19,ADHOC!$C$4:$C$84,$D19) -> 41306696 | T19: =SUMIFS(ADHOC!S$4:S$84,ADHOC!$A$4:$A$84,$B19,ADHOC!$B$4:$B$84,$C19,ADHOC!$C$4:$C$84,$D19) -> 56580142 | U19: =SUMIFS(ADHOC!T$4:T$84,ADHOC!$A$4:$A$84,$B19,ADHOC!$B$4:$B$84,$C19,ADHOC!$C$4:$C$84,$D19) -> 74546632 | V19: =SUMIFS(ADHOC!U$4:U$84,ADHOC!$A$4:$A$84,$B19,ADHOC!$B$4:$B$84,$C19,ADHOC!$C$4:$C$84,$D19) -> 65368726 | W19: =SUMIFS(ADHOC!V$4:V$84,ADHOC!$A$4:$A$84,$B19,ADHOC!$B$4:$B$84,$C19,ADHOC!$C$4:$C$84,$D19) -> 77322382 | X19: =SUMIFS(ADHOC!W$4:W$84,ADHOC!$A$4:$A$84,$B19,ADHOC!$B$4:$B$84,$C19,ADHOC!$C$4:$C$84,$D19) -> 39160409 | Y19: =SUMIFS(ADHOC!X$4:X$84,ADHOC!$A$4:$A$84,$B19,ADHOC!$B$4:$B$84,$C19,ADHOC!$C$4:$C$84,$D19) -> 62037580 | Z19: =SUMIFS(ADHOC!Y$4:Y$84,ADHOC!$A$4:$A$84,$B19,ADHOC!$B$4:$B$84,$C19,ADHOC!$C$4:$C$84,$D19) -> 78802232 | AA19: =SUMIFS(ADHOC!Z$4:Z$84,ADHOC!$A$4:$A$84,$B19,ADHOC!$B$4:$B$84,$C19,ADHOC!$C$4:$C$84,$D19) -> 67318150 | AB19: =SUMIFS(ADHOC!AA$4:AA$84,ADHOC!$A$4:$A$84,$B19,ADHOC!$B$4:$B$84,$C19,ADHOC!$C$4:$C$84,$D19) -> 52418145
A20: 19 | B20: 32565 | C20: Secteur 3 | D20: Rayon 19 | E20: =SUMIFS(ADHOC!D$4:D$84,ADHOC!$A$4:$A$84,$B20,ADHOC!$B$4:$B$84,$C20,ADHOC!$C$4:$C$84,$D20) -> 49503779 | F20: =SUMIFS(ADHOC!E$4:E$84,ADHOC!$A$4:$A$84,$B20,ADHOC!$B$4:$B$84,$C20,ADHOC!$C$4:$C$84,$D20) -> 59040604 | G20: =SUMIFS(ADHOC!F$4:F$84,ADHOC!$A$4:$A$84,$B20,ADHOC!$B$4:$B$84,$C20,ADHOC!$C$4:$C$84,$D20) -> 37322351 | H20: =SUMIFS(ADHOC!G$4:G$84,ADHOC!$A$4:$A$84,$B20,ADHOC!$B$4:$B$84,$C20,ADHOC!$C$4:$C$84,$D20) -> 62481457 | I20: =SUMIFS(ADHOC!H$4:H$84,ADHOC!$A$4:$A$84,$B20,ADHOC!$B$4:$B$84,$C20,ADHOC!$C$4:$C$84,$D20) -> 41547471 | J20: =SUMIFS(ADHOC!I$4:I$84,ADHOC!$A$4:$A$84,$B20,ADHOC!$B$4:$B$84,$C20,ADHOC!$C$4:$C$84,$D20) -> 61343598 | K20: =SUMIFS(ADHOC!J$4:J$84,ADHOC!$A$4:$A$84,$B20,ADHOC!$B$4:$B$84,$C20,ADHOC!$C$4:$C$84,$D20) -> 57737155 | L20: =SUMIFS(ADHOC!K$4:K$84,ADHOC!$A$4:$A$84,$B20,ADHOC!$B$4:$B$84,$C20,ADHOC!$C$4:$C$84,$D20) -> 40547774 | M20: =SUMIFS(ADHOC!L$4:L$84,ADHOC!$A$4:$A$84,$B20,ADHOC!$B$4:$B$84,$C20,ADHOC!$C$4:$C$84,$D20) -> 75243944 | N20: =SUMIFS(ADHOC!M$4:M$84,ADHOC!$A$4:$A$84,$B20,ADHOC!$B$4:$B$84,$C20,ADHOC!$C$4:$C$84,$D20) -> 62984032 | O20: =SUMIFS(ADHOC!N$4:N$84,ADHOC!$A$4:$A$84,$B20,ADHOC!$B$4:$B$84,$C20,ADHOC!$C$4:$C$84,$D20) -> 52712648 | P20: =SUMIFS(ADHOC!O$4:O$84,ADHOC!$A$4:$A$84,$B20,ADHOC!$B$4:$B$84,$C20,ADHOC!$C$4:$C$84,$D20) -> 71108976 | Q20: =SUMIFS(ADHOC!P$4:P$84,ADHOC!$A$4:$A$84,$B20,ADHOC!$B$4:$B$84,$C20,ADHOC!$C$4:$C$84,$D20) -> 82487345 | R20: =SUMIFS(ADHOC!Q$4:Q$84,ADHOC!$A$4:$A$84,$B20,ADHOC!$B$4:$B$84,$C20,ADHOC!$C$4:$C$84,$D20) -> 68649775 | S20: =SUMIFS(ADHOC!R$4:R$84,ADHOC!$A$4:$A$84,$B20,ADHOC!$B$4:$B$84,$C20,ADHOC!$C$4:$C$84,$D20) -> 54060889 | T20: =SUMIFS(ADHOC!S$4:S$84,ADHOC!$A$4:$A$84,$B20,ADHOC!$B$4:$B$84,$C20,ADHOC!$C$4:$C$84,$D20) -> 42920644 | U20: =SUMIFS(ADHOC!T$4:T$84,ADHOC!$A$4:$A$84,$B20,ADHOC!$B$4:$B$84,$C20,ADHOC!$C$4:$C$84,$D20) -> 71484072 | V20: =SUMIFS(ADHOC!U$4:U$84,ADHOC!$A$4:$A$84,$B20,ADHOC!$B$4:$B$84,$C20,ADHOC!$C$4:$C$84,$D20) -> 76037565 | W20: =SUMIFS(ADHOC!V$4:V$84,ADHOC!$A$4:$A$84,$B20,ADHOC!$B$4:$B$84,$C20,ADHOC!$C$4:$C$84,$D20) -> 36006038 | X20: =SUMIFS(ADHOC!W$4:W$84,ADHOC!$A$4:$A$84,$B20,ADHOC!$B$4:$B$84,$C20,ADHOC!$C$4:$C$84,$D20) -> 36874464 | Y20: =SUMIFS(ADHOC!X$4:X$84,ADHOC!$A$4:$A$84,$B20,ADHOC!$B$4:$B$84,$C20,ADHOC!$C$4:$C$84,$D20) -> 50547396 | Z20: =SUMIFS(ADHOC!Y$4:Y$84,ADHOC!$A$4:$A$84,$B20,ADHOC!$B$4:$B$84,$C20,ADHOC!$C$4:$C$84,$D20) -> 41136654 | AA20: =SUMIFS(ADHOC!Z$4:Z$84,ADHOC!$A$4:$A$84,$B20,ADHOC!$B$4:$B$84,$C20,ADHOC!$C$4:$C$84,$D20) -> 71835602 | AB20: =SUMIFS(ADHOC!AA$4:AA$84,ADHOC!$A$4:$A$84,$B20,ADHOC!$B$4:$B$84,$C20,ADHOC!$C$4:$C$84,$D20) -> 79349644
A21: 20 | B21: 33494 | C21: Secteur 3 | D21: Rayon 20 | E21: =SUMIFS(ADHOC!D$4:D$84,ADHOC!$A$4:$A$84,$B21,ADHOC!$B$4:$B$84,$C21,ADHOC!$C$4:$C$84,$D21) -> 56464668 | F21: =SUMIFS(ADHOC!E$4:E$84,ADHOC!$A$4:$A$84,$B21,ADHOC!$B$4:$B$84,$C21,ADHOC!$C$4:$C$84,$D21) -> 70190359 | G21: =SUMIFS(ADHOC!F$4:F$84,ADHOC!$A$4:$A$84,$B21,ADHOC!$B$4:$B$84,$C21,ADHOC!$C$4:$C$84,$D21) -> 80327295 | H21: =SUMIFS(ADHOC!G$4:G$84,ADHOC!$A$4:$A$84,$B21,ADHOC!$B$4:$B$84,$C21,ADHOC!$C$4:$C$84,$D21) -> 50156863 | I21: =SUMIFS(ADHOC!H$4:H$84,ADHOC!$A$4:$A$84,$B21,ADHOC!$B$4:$B$84,$C21,ADHOC!$C$4:$C$84,$D21) -> 50332334 | J21: =SUMIFS(ADHOC!I$4:I$84,ADHOC!$A$4:$A$84,$B21,ADHOC!$B$4:$B$84,$C21,ADHOC!$C$4:$C$84,$D21) -> 42765729 | K21: =SUMIFS(ADHOC!J$4:J$84,ADHOC!$A$4:$A$84,$B21,ADHOC!$B$4:$B$84,$C21,ADHOC!$C$4:$C$84,$D21) -> 79467731 | L21: =SUMIFS(ADHOC!K$4:K$84,ADHOC!$A$4:$A$84,$B21,ADHOC!$B$4:$B$84,$C21,ADHOC!$C$4:$C$84,$D21) -> 47486491 | M21: =SUMIFS(ADHOC!L$4:L$84,ADHOC!$A$4:$A$84,$B21,ADHOC!$B$4:$B$84,$C21,ADHOC!$C$4:$C$84,$D21) -> 42641116 | N21: =SUMIFS(ADHOC!M$4:M$84,ADHOC!$A$4:$A$84,$B21,ADHOC!$B$4:$B$84,$C21,ADHOC!$C$4:$C$84,$D21) -> 76493737 | O21: =SUMIFS(ADHOC!N$4:N$84,ADHOC!$A$4:$A$84,$B21,ADHOC!$B$4:$B$84,$C21,ADHOC!$C$4:$C$84,$D21) -> 70921003 | P21: =SUMIFS(ADHOC!O$4:O$84,ADHOC!$A$4:$A$84,$B21,ADHOC!$B$4:$B$84,$C21,ADHOC!$C$4:$C$84,$D21) -> 36231407 | Q21: =SUMIFS(ADHOC!P$4:P$84,ADHOC!$A$4:$A$84,$B21,ADHOC!$B$4:$B$84,$C21,ADHOC!$C$4:$C$84,$D21) -> 78787739 | R21: =SUMIFS(ADHOC!Q$4:Q$84,ADHOC!$A$4:$A$84,$B21,ADHOC!$B$4:$B$84,$C21,ADHOC!$C$4:$C$84,$D21) -> 64781389 | S21: =SUMIFS(ADHOC!R$4:R$84,ADHOC!$A$4:$A$84,$B21,ADHOC!$B$4:$B$84,$C21,ADHOC!$C$4:$C$84,$D21) -> 58102468 | T21: =SUMIFS(ADHOC!S$4:S$84,ADHOC!$A$4:$A$84,$B21,ADHOC!$B$4:$B$84,$C21,ADHOC!$C$4:$C$84,$D21) -> 78696130 | U21: =SUMIFS(ADHOC!T$4:T$84,ADHOC!$A$4:$A$84,$B21,ADHOC!$B$4:$B$84,$C21,ADHOC!$C$4:$C$84,$D21) -> 40897802 | V21: =SUMIFS(ADHOC!U$4:U$84,ADHOC!$A$4:$A$84,$B21,ADHOC!$B$4:$B$84,$C21,ADHOC!$C$4:$C$84,$D21) -> 75955498 | W21: =SUMIFS(ADHOC!V$4:V$84,ADHOC!$A$4:$A$84,$B21,ADHOC!$B$4:$B$84,$C21,ADHOC!$C$4:$C$84,$D21) -> 72904091 | X21: =SUMIFS(ADHOC!W$4:W$84,ADHOC!$A$4:$A$84,$B21,ADHOC!$B$4:$B$84,$C21,ADHOC!$C$4:$C$84,$D21) -> 65653598 | Y21: =SUMIFS(ADHOC!X$4:X$84,ADHOC!$A$4:$A$84,$B21,ADHOC!$B$4:$B$84,$C21,ADHOC!$C$4:$C$84,$D21) -> 49374888 | Z21: =SUMIFS(ADHOC!Y$4:Y$84,ADHOC!$A$4:$A$84,$B21,ADHOC!$B$4:$B$84,$C21,ADHOC!$C$4:$C$84,$D21) -> 75956692 | AA21: =SUMIFS(ADHOC!Z$4:Z$84,ADHOC!$A$4:$A$84,$B21,ADHOC!$B$4:$B$84,$C21,ADHOC!$C$4:$C$84,$D21) -> 76980391 | AB21: =SUMIFS(ADHOC!AA$4:AA$84,ADHOC!$A$4:$A$84,$B21,ADHOC!$B$4:$B$84,$C21,ADHOC!$C$4:$C$84,$D21) -> 53588233
A22: 21 | B22: 32881 | C22: Secteur 3 | D22: Rayon 21 | E22: =SUMIFS(ADHOC!D$4:D$84,ADHOC!$A$4:$A$84,$B22,ADHOC!$B$4:$B$84,$C22,ADHOC!$C$4:$C$84,$D22) -> 38924139 | F22: =SUMIFS(ADHOC!E$4:E$84,ADHOC!$A$4:$A$84,$B22,ADHOC!$B$4:$B$84,$C22,ADHOC!$C$4:$C$84,$D22) -> 48736788 | G22: =SUMIFS(ADHOC!F$4:F$84,ADHOC!$A$4:$A$84,$B22,ADHOC!$B$4:$B$84,$C22,ADHOC!$C$4:$C$84,$D22) -> 60420168 | H22: =SUMIFS(ADHOC!G$4:G$84,ADHOC!$A$4:$A$84,$B22,ADHOC!$B$4:$B$84,$C22,ADHOC!$C$4:$C$84,$D22) -> 82508155 | I22: =SUMIFS(ADHOC!H$4:H$84,ADHOC!$A$4:$A$84,$B22,ADHOC!$B$4:$B$84,$C22,ADHOC!$C$4:$C$84,$D22) -> 35984469 | J22: =SUMIFS(ADHOC!I$4:I$84,ADHOC!$A$4:$A$84,$B22,ADHOC!$B$4:$B$84,$C22,ADHOC!$C$4:$C$84,$D22) -> 49268076 | K22: =SUMIFS(ADHOC!J$4:J$84,ADHOC!$A$4:$A$84,$B22,ADHOC!$B$4:$B$84,$C22,ADHOC!$C$4:$C$84,$D22) -> 56066490 | L22: =SUMIFS(ADHOC!K$4:K$84,ADHOC!$A$4:$A$84,$B22,ADHOC!$B$4:$B$84,$C22,ADHOC!$C$4:$C$84,$D22) -> 66150152 | M22: =SUMIFS(ADHOC!L$4:L$84,ADHOC!$A$4:$A$84,$B22,ADHOC!$B$4:$B$84,$C22,ADHOC!$C$4:$C$84,$D22) -> 55231696 | N22: =SUMIFS(ADHOC!M$4:M$84,ADHOC!$A$4:$A$84,$B22,ADHOC!$B$4:$B$84,$C22,ADHOC!$C$4:$C$84,$D22) -> 59155556 | O22: =SUMIFS(ADHOC!N$4:N$84,ADHOC!$A$4:$A$84,$B22,ADHOC!$B$4:$B$84,$C22,ADHOC!$C$4:$C$84,$D22) -> 61560945 | P22: =SUMIFS(ADHOC!O$4:O$84,ADHOC!$A$4:$A$84,$B22,ADHOC!$B$4:$B$84,$C22,ADHOC!$C$4:$C$84,$D22) -> 70516481 | Q22: =SUMIFS(ADHOC!P$4:P$84,ADHOC!$A$4:$A$84,$B22,ADHOC!$B$4:$B$84,$C22,ADHOC!$C$4:$C$84,$D22) -> 56395720 | R22: =SUMIFS(ADHOC!Q$4:Q$84,ADHOC!$A$4:$A$84,$B22,ADHOC!$B$4:$B$84,$C22,ADHOC!$C$4:$C$84,$D22) -> 83323798 | S22: =SUMIFS(ADHOC!R$4:R$84,ADHOC!$A$4:$A$84,$B22,ADHOC!$B$4:$B$84,$C22,ADHOC!$C$4:$C$84,$D22) -> 61510345 | T22: =SUMIFS(ADHOC!S$4:S$84,ADHOC!$A$4:$A$84,$B22,ADHOC!$B$4:$B$84,$C22,ADHOC!$C$4:$C$84,$D22) -> 74363619 | U22: =SUMIFS(ADHOC!T$4:T$84,ADHOC!$A$4:$A$84,$B22,ADHOC!$B$4:$B$84,$C22,ADHOC!$C$4:$C$84,$D22) -> 76434557 | V22: =SUMIFS(ADHOC!U$4:U$84,ADHOC!$A$4:$A$84,$B22,ADHOC!$B$4:$B$84,$C22,ADHOC!$C$4:$C$84,$D22) -> 64805382 | W22: =SUMIFS(ADHOC!V$4:V$84,ADHOC!$A$4:$A$84,$B22,ADHOC!$B$4:$B$84,$C22,ADHOC!$C$4:$C$84,$D22) -> 40115374 | X22: =SUMIFS(ADHOC!W$4:W$84,ADHOC!$A$4:$A$84,$B22,ADHOC!$B$4:$B$84,$C22,ADHOC!$C$4:$C$84,$D22) -> 77455439 | Y22: =SUMIFS(ADHOC!X$4:X$84,ADHOC!$A$4:$A$84,$B22,ADHOC!$B$4:$B$84,$C22,ADHOC!$C$4:$C$84,$D22) -> 40514731 | Z22: =SUMIFS(ADHOC!Y$4:Y$84,ADHOC!$A$4:$A$84,$B22,ADHOC!$B$4:$B$84,$C22,ADHOC!$C$4:$C$84,$D22) -> 53681657 | AA22: =SUMIFS(ADHOC!Z$4:Z$84,ADHOC!$A$4:$A$84,$B22,ADHOC!$B$4:$B$84,$C22,ADHOC!$C$4:$C$84,$D22) -> 41158388 | AB22: =SUMIFS(ADHOC!AA$4:AA$84,ADHOC!$A$4:$A$84,$B22,ADHOC!$B$4:$B$84,$C22,ADHOC!$C$4:$C$84,$D22) -> 53009542
A23: 22 | B23: 33604 | C23: Secteur 3 | D23: Rayon 22 | E23: =SUMIFS(ADHOC!D$4:D$84,ADHOC!$A$4:$A$84,$B23,ADHOC!$B$4:$B$84,$C23,ADHOC!$C$4:$C$84,$D23) -> 69851315 | F23: =SUMIFS(ADHOC!E$4:E$84,ADHOC!$A$4:$A$84,$B23,ADHOC!$B$4:$B$84,$C23,ADHOC!$C$4:$C$84,$D23) -> 41616111 | G23: =SUMIFS(ADHOC!F$4:F$84,ADHOC!$A$4:$A$84,$B23,ADHOC!$B$4:$B$84,$C23,ADHOC!$C$4:$C$84,$D23) -> 84078112 | H23: =SUMIFS(ADHOC!G$4:G$84,ADHOC!$A$4:$A$84,$B23,ADHOC!$B$4:$B$84,$C23,ADHOC!$C$4:$C$84,$D23) -> 83845635 | I23: =SUMIFS(ADHOC!H$4:H$84,ADHOC!$A$4:$A$84,$B23,ADHOC!$B$4:$B$84,$C23,ADHOC!$C$4:$C$84,$D23) -> 41877986 | J23: =SUMIFS(ADHOC!I$4:I$84,ADHOC!$A$4:$A$84,$B23,ADHOC!$B$4:$B$84,$C23,ADHOC!$C$4:$C$84,$D23) -> 73016961 | K23: =SUMIFS(ADHOC!J$4:J$84,ADHOC!$A$4:$A$84,$B23,ADHOC!$B$4:$B$84,$C23,ADHOC!$C$4:$C$84,$D23) -> 44518973 | L23: =SUMIFS(ADHOC!K$4:K$84,ADHOC!$A$4:$A$84,$B23,ADHOC!$B$4:$B$84,$C23,ADHOC!$C$4:$C$84,$D23) -> 39618924 | M23: =SUMIFS(ADHOC!L$4:L$84,ADHOC!$A$4:$A$84,$B23,ADHOC!$B$4:$B$84,$C23,ADHOC!$C$4:$C$84,$D23) -> 67358720 | N23: =SUMIFS(ADHOC!M$4:M$84,ADHOC!$A$4:$A$84,$B23,ADHOC!$B$4:$B$84,$C23,ADHOC!$C$4:$C$84,$D23) -> 62995327 | O23: =SUMIFS(ADHOC!N$4:N$84,ADHOC!$A$4:$A$84,$B23,ADHOC!$B$4:$B$84,$C23,ADHOC!$C$4:$C$84,$D23) -> 47749683 | P23: =SUMIFS(ADHOC!O$4:O$84,ADHOC!$A$4:$A$84,$B23,ADHOC!$B$4:$B$84,$C23,ADHOC!$C$4:$C$84,$D23) -> 79312188 | Q23: =SUMIFS(ADHOC!P$4:P$84,ADHOC!$A$4:$A$84,$B23,ADHOC!$B$4:$B$84,$C23,ADHOC!$C$4:$C$84,$D23) -> 68069491 | R23: =SUMIFS(ADHOC!Q$4:Q$84,ADHOC!$A$4:$A$84,$B23,ADHOC!$B$4:$B$84,$C23,ADHOC!$C$4:$C$84,$D23) -> 74036200 | S23: =SUMIFS(ADHOC!R$4:R$84,ADHOC!$A$4:$A$84,$B23,ADHOC!$B$4:$B$84,$C23,ADHOC!$C$4:$C$84,$D23) -> 39101620 | T23: =SUMIFS(ADHOC!S$4:S$84,ADHOC!$A$4:$A$84,$B23,ADHOC!$B$4:$B$84,$C23,ADHOC!$C$4:$C$84,$D23) -> 79331402 | U23: =SUMIFS(ADHOC!T$4:T$84,ADHOC!$A$4:$A$84,$B23,ADHOC!$B$4:$B$84,$C23,ADHOC!$C$4:$C$84,$D23) -> 41154712 | V23: =SUMIFS(ADHOC!U$4:U$84,ADHOC!$A$4:$A$84,$B23,ADHOC!$B$4:$B$84,$C23,ADHOC!$C$4:$C$84,$D23) -> 50898326 | W23: =SUMIFS(ADHOC!V$4:V$84,ADHOC!$A$4:$A$84,$B23,ADHOC!$B$4:$B$84,$C23,ADHOC!$C$4:$C$84,$D23) -> 80932494 | X23: =SUMIFS(ADHOC!W$4:W$84,ADHOC!$A$4:$A$84,$B23,ADHOC!$B$4:$B$84,$C23,ADHOC!$C$4:$C$84,$D23) -> 69770568 | Y23: =SUMIFS(ADHOC!X$4:X$84,ADHOC!$A$4:$A$84,$B23,ADHOC!$B$4:$B$84,$C23,ADHOC!$C$4:$C$84,$D23) -> 54264618 | Z23: =SUMIFS(ADHOC!Y$4:Y$84,ADHOC!$A$4:$A$84,$B23,ADHOC!$B$4:$B$84,$C23,ADHOC!$C$4:$C$84,$D23) -> 77436192 | AA23: =SUMIFS(ADHOC!Z$4:Z$84,ADHOC!$A$4:$A$84,$B23,ADHOC!$B$4:$B$84,$C23,ADHOC!$C$4:$C$84,$D23) -> 82472627 | AB23: =SUMIFS(ADHOC!AA$4:AA$84,ADHOC!$A$4:$A$84,$B23,ADHOC!$B$4:$B$84,$C23,ADHOC!$C$4:$C$84,$D23) -> 78838462
A24: 23 | B24: 33310 | C24: Secteur 4 | D24: Rayon 23 | E24: =SUMIFS(ADHOC!D$4:D$84,ADHOC!$A$4:$A$84,$B24,ADHOC!$B$4:$B$84,$C24,ADHOC!$C$4:$C$84,$D24) -> 65033753 | F24: =SUMIFS(ADHOC!E$4:E$84,ADHOC!$A$4:$A$84,$B24,ADHOC!$B$4:$B$84,$C24,ADHOC!$C$4:$C$84,$D24) -> 37832321 | G24: =SUMIFS(ADHOC!F$4:F$84,ADHOC!$A$4:$A$84,$B24,ADHOC!$B$4:$B$84,$C24,ADHOC!$C$4:$C$84,$D24) -> 83329077 | H24: =SUMIFS(ADHOC!G$4:G$84,ADHOC!$A$4:$A$84,$B24,ADHOC!$B$4:$B$84,$C24,ADHOC!$C$4:$C$84,$D24) -> 82868007 | I24: =SUMIFS(ADHOC!H$4:H$84,ADHOC!$A$4:$A$84,$B24,ADHOC!$B$4:$B$84,$C24,ADHOC!$C$4:$C$84,$D24) -> 66384594 | J24: =SUMIFS(ADHOC!I$4:I$84,ADHOC!$A$4:$A$84,$B24,ADHOC!$B$4:$B$84,$C24,ADHOC!$C$4:$C$84,$D24) -> 68149766 | K24: =SUMIFS(ADHOC!J$4:J$84,ADHOC!$A$4:$A$84,$B24,ADHOC!$B$4:$B$84,$C24,ADHOC!$C$4:$C$84,$D24) -> 57119528 | L24: =SUMIFS(ADHOC!K$4:K$84,ADHOC!$A$4:$A$84,$B24,ADHOC!$B$4:$B$84,$C24,ADHOC!$C$4:$C$84,$D24) -> 57838568 | M24: =SUMIFS(ADHOC!L$4:L$84,ADHOC!$A$4:$A$84,$B24,ADHOC!$B$4:$B$84,$C24,ADHOC!$C$4:$C$84,$D24) -> 77639887 | N24: =SUMIFS(ADHOC!M$4:M$84,ADHOC!$A$4:$A$84,$B24,ADHOC!$B$4:$B$84,$C24,ADHOC!$C$4:$C$84,$D24) -> 57332516 | O24: =SUMIFS(ADHOC!N$4:N$84,ADHOC!$A$4:$A$84,$B24,ADHOC!$B$4:$B$84,$C24,ADHOC!$C$4:$C$84,$D24) -> 72633901 | P24: =SUMIFS(ADHOC!O$4:O$84,ADHOC!$A$4:$A$84,$B24,ADHOC!$B$4:$B$84,$C24,ADHOC!$C$4:$C$84,$D24) -> 58070614 | Q24: =SUMIFS(ADHOC!P$4:P$84,ADHOC!$A$4:$A$84,$B24,ADHOC!$B$4:$B$84,$C24,ADHOC!$C$4:$C$84,$D24) -> 74476952 | R24: =SUMIFS(ADHOC!Q$4:Q$84,ADHOC!$A$4:$A$84,$B24,ADHOC!$B$4:$B$84,$C24,ADHOC!$C$4:$C$84,$D24) -> 55579470 | S24: =SUMIFS(ADHOC!R$4:R$84,ADHOC!$A$4:$A$84,$B24,ADHOC!$B$4:$B$84,$C24,ADHOC!$C$4:$C$84,$D24) -> 65858297 | T24: =SUMIFS(ADHOC!S$4:S$84,ADHOC!$A$4:$A$84,$B24,ADHOC!$B$4:$B$84,$C24,ADHOC!$C$4:$C$84,$D24) -> 82745065 | U24: =SUMIFS(ADHOC!T$4:T$84,ADHOC!$A$4:$A$84,$B24,ADHOC!$B$4:$B$84,$C24,ADHOC!$C$4:$C$84,$D24) -> 35700540 | V24: =SUMIFS(ADHOC!U$4:U$84,ADHOC!$A$4:$A$84,$B24,ADHOC!$B$4:$B$84,$C24,ADHOC!$C$4:$C$84,$D24) -> 45646915 | W24: =SUMIFS(ADHOC!V$4:V$84,ADHOC!$A$4:$A$84,$B24,ADHOC!$B$4:$B$84,$C24,ADHOC!$C$4:$C$84,$D24) -> 59821256 | X24: =SUMIFS(ADHOC!W$4:W$84,ADHOC!$A$4:$A$84,$B24,ADHOC!$B$4:$B$84,$C24,ADHOC!$C$4:$C$84,$D24) -> 73363695 | Y24: =SUMIFS(ADHOC!X$4:X$84,ADHOC!$A$4:$A$84,$B24,ADHOC!$B$4:$B$84,$C24,ADHOC!$C$4:$C$84,$D24) -> 62530751 | Z24: =SUMIFS(ADHOC!Y$4:Y$84,ADHOC!$A$4:$A$84,$B24,ADHOC!$B$4:$B$84,$C24,ADHOC!$C$4:$C$84,$D24) -> 50260973 | AA24: =SUMIFS(ADHOC!Z$4:Z$84,ADHOC!$A$4:$A$84,$B24,ADHOC!$B$4:$B$84,$C24,ADHOC!$C$4:$C$84,$D24) -> 41421262 | AB24: =SUMIFS(ADHOC!AA$4:AA$84,ADHOC!$A$4:$A$84,$B24,ADHOC!$B$4:$B$84,$C24,ADHOC!$C$4:$C$84,$D24) -> 69788711
A25: 24 | B25: 32554 | C25: Secteur 4 | D25: Rayon 24 | E25: =SUMIFS(ADHOC!D$4:D$84,ADHOC!$A$4:$A$84,$B25,ADHOC!$B$4:$B$84,$C25,ADHOC!$C$4:$C$84,$D25) -> 57598965 | F25: =SUMIFS(ADHOC!E$4:E$84,ADHOC!$A$4:$A$84,$B25,ADHOC!$B$4:$B$84,$C25,ADHOC!$C$4:$C$84,$D25) -> 52522627 | G25: =SUMIFS(ADHOC!F$4:F$84,ADHOC!$A$4:$A$84,$B25,ADHOC!$B$4:$B$84,$C25,ADHOC!$C$4:$C$84,$D25) -> 38358395 | H25: =SUMIFS(ADHOC!G$4:G$84,ADHOC!$A$4:$A$84,$B25,ADHOC!$B$4:$B$84,$C25,ADHOC!$C$4:$C$84,$D25) -> 82912707 | I25: =SUMIFS(ADHOC!H$4:H$84,ADHOC!$A$4:$A$84,$B25,ADHOC!$B$4:$B$84,$C25,ADHOC!$C$4:$C$84,$D25) -> 67185510 | J25: =SUMIFS(ADHOC!I$4:I$84,ADHOC!$A$4:$A$84,$B25,ADHOC!$B$4:$B$84,$C25,ADHOC!$C$4:$C$84,$D25) -> 76937510 | K25: =SUMIFS(ADHOC!J$4:J$84,ADHOC!$A$4:$A$84,$B25,ADHOC!$B$4:$B$84,$C25,ADHOC!$C$4:$C$84,$D25) -> 43836239 | L25: =SUMIFS(ADHOC!K$4:K$84,ADHOC!$A$4:$A$84,$B25,ADHOC!$B$4:$B$84,$C25,ADHOC!$C$4:$C$84,$D25) -> 73339383 | M25: =SUMIFS(ADHOC!L$4:L$84,ADHOC!$A$4:$A$84,$B25,ADHOC!$B$4:$B$84,$C25,ADHOC!$C$4:$C$84,$D25) -> 36018150 | N25: =SUMIFS(ADHOC!M$4:M$84,ADHOC!$A$4:$A$84,$B25,ADHOC!$B$4:$B$84,$C25,ADHOC!$C$4:$C$84,$D25) -> 46863641 | O25: =SUMIFS(ADHOC!N$4:N$84,ADHOC!$A$4:$A$84,$B25,ADHOC!$B$4:$B$84,$C25,ADHOC!$C$4:$C$84,$D25) -> 68212553 | P25: =SUMIFS(ADHOC!O$4:O$84,ADHOC!$A$4:$A$84,$B25,ADHOC!$B$4:$B$84,$C25,ADHOC!$C$4:$C$84,$D25) -> 50442979 | Q25: =SUMIFS(ADHOC!P$4:P$84,ADHOC!$A$4:$A$84,$B25,ADHOC!$B$4:$B$84,$C25,ADHOC!$C$4:$C$84,$D25) -> 82008338 | R25: =SUMIFS(ADHOC!Q$4:Q$84,ADHOC!$A$4:$A$84,$B25,ADHOC!$B$4:$B$84,$C25,ADHOC!$C$4:$C$84,$D25) -> 77699476 | S25: =SUMIFS(ADHOC!R$4:R$84,ADHOC!$A$4:$A$84,$B25,ADHOC!$B$4:$B$84,$C25,ADHOC!$C$4:$C$84,$D25) -> 72585415 | T25: =SUMIFS(ADHOC!S$4:S$84,ADHOC!$A$4:$A$84,$B25,ADHOC!$B$4:$B$84,$C25,ADHOC!$C$4:$C$84,$D25) -> 79074699 | U25: =SUMIFS(ADHOC!T$4:T$84,ADHOC!$A$4:$A$84,$B25,ADHOC!$B$4:$B$84,$C25,ADHOC!$C$4:$C$84,$D25) -> 83201116 | V25: =SUMIFS(ADHOC!U$4:U$84,ADHOC!$A$4:$A$84,$B25,ADHOC!$B$4:$B$84,$C25,ADHOC!$C$4:$C$84,$D25) -> 63571778 | W25: =SUMIFS(ADHOC!V$4:V$84,ADHOC!$A$4:$A$84,$B25,ADHOC!$B$4:$B$84,$C25,ADHOC!$C$4:$C$84,$D25) -> 39719888 | X25: =SUMIFS(ADHOC!W$4:W$84,ADHOC!$A$4:$A$84,$B25,ADHOC!$B$4:$B$84,$C25,ADHOC!$C$4:$C$84,$D25) -> 74946315 | Y25: =SUMIFS(ADHOC!X$4:X$84,ADHOC!$A$4:$A$84,$B25,ADHOC!$B$4:$B$84,$C25,ADHOC!$C$4:$C$84,$D25) -> 36321706 | Z25: =SUMIFS(ADHOC!Y$4:Y$84,ADHOC!$A$4:$A$84,$B25,ADHOC!$B$4:$B$84,$C25,ADHOC!$C$4:$C$84,$D25) -> 78023964 | AA25: =SUMIFS(ADHOC!Z$4:Z$84,ADHOC!$A$4:$A$84,$B25,ADHOC!$B$4:$B$84,$C25,ADHOC!$C$4:$C$84,$D25) -> 69990786 | AB25: =SUMIFS(ADHOC!AA$4:AA$84,ADHOC!$A$4:$A$84,$B25,ADHOC!$B$4:$B$84,$C25,ADHOC!$C$4:$C$84,$D25) -> 41784038
A26: 25 | B26: 32203 | C26: Secteur 4 | D26: Rayon 25 | E26: =SUMIFS(ADHOC!D$4:D$84,ADHOC!$A$4:$A$84,$B26,ADHOC!$B$4:$B$84,$C26,ADHOC!$C$4:$C$84,$D26) -> 72592495 | F26: =SUMIFS(ADHOC!E$4:E$84,ADHOC!$A$4:$A$84,$B26,ADHOC!$B$4:$B$84,$C26,ADHOC!$C$4:$C$84,$D26) -> 79270784 | G26: =SUMIFS(ADHOC!F$4:F$84,ADHOC!$A$4:$A$84,$B26,ADHOC!$B$4:$B$84,$C26,ADHOC!$C$4:$C$84,$D26) -> 53784449 | H26: =SUMIFS(ADHOC!G$4:G$84,ADHOC!$A$4:$A$84,$B26,ADHOC!$B$4:$B$84,$C26,ADHOC!$C$4:$C$84,$D26) -> 48756101 | I26: =SUMIFS(ADHOC!H$4:H$84,ADHOC!$A$4:$A$84,$B26,ADHOC!$B$4:$B$84,$C26,ADHOC!$C$4:$C$84,$D26) -> 75222142 | J26: =SUMIFS(ADHOC!I$4:I$84,ADHOC!$A$4:$A$84,$B26,ADHOC!$B$4:$B$84,$C26,ADHOC!$C$4:$C$84,$D26) -> 64481936 | K26: =SUMIFS(ADHOC!J$4:J$84,ADHOC!$A$4:$A$84,$B26,ADHOC!$B$4:$B$84,$C26,ADHOC!$C$4:$C$84,$D26) -> 61902798 | L26: =SUMIFS(ADHOC!K$4:K$84,ADHOC!$A$4:$A$84,$B26,ADHOC!$B$4:$B$84,$C26,ADHOC!$C$4:$C$84,$D26) -> 47765015 | M26: =SUMIFS(ADHOC!L$4:L$84,ADHOC!$A$4:$A$84,$B26,ADHOC!$B$4:$B$84,$C26,ADHOC!$C$4:$C$84,$D26) -> 70830566 | N26: =SUMIFS(ADHOC!M$4:M$84,ADHOC!$A$4:$A$84,$B26,ADHOC!$B$4:$B$84,$C26,ADHOC!$C$4:$C$84,$D26) -> 77746584 | O26: =SUMIFS(ADHOC!N$4:N$84,ADHOC!$A$4:$A$84,$B26,ADHOC!$B$4:$B$84,$C26,ADHOC!$C$4:$C$84,$D26) -> 42951160 | P26: =SUMIFS(ADHOC!O$4:O$84,ADHOC!$A$4:$A$84,$B26,ADHOC!$B$4:$B$84,$C26,ADHOC!$C$4:$C$84,$D26) -> 49448785 | Q26: =SUMIFS(ADHOC!P$4:P$84,ADHOC!$A$4:$A$84,$B26,ADHOC!$B$4:$B$84,$C26,ADHOC!$C$4:$C$84,$D26) -> 62381136 | R26: =SUMIFS(ADHOC!Q$4:Q$84,ADHOC!$A$4:$A$84,$B26,ADHOC!$B$4:$B$84,$C26,ADHOC!$C$4:$C$84,$D26) -> 64112236 | S26: =SUMIFS(ADHOC!R$4:R$84,ADHOC!$A$4:$A$84,$B26,ADHOC!$B$4:$B$84,$C26,ADHOC!$C$4:$C$84,$D26) -> 68750265 | T26: =SUMIFS(ADHOC!S$4:S$84,ADHOC!$A$4:$A$84,$B26,ADHOC!$B$4:$B$84,$C26,ADHOC!$C$4:$C$84,$D26) -> 66189239 | U26: =SUMIFS(ADHOC!T$4:T$84,ADHOC!$A$4:$A$84,$B26,ADHOC!$B$4:$B$84,$C26,ADHOC!$C$4:$C$84,$D26) -> 43054172 | V26: =SUMIFS(ADHOC!U$4:U$84,ADHOC!$A$4:$A$84,$B26,ADHOC!$B$4:$B$84,$C26,ADHOC!$C$4:$C$84,$D26) -> 50136392 | W26: =SUMIFS(ADHOC!V$4:V$84,ADHOC!$A$4:$A$84,$B26,ADHOC!$B$4:$B$84,$C26,ADHOC!$C$4:$C$84,$D26) -> 69557192 | X26: =SUMIFS(ADHOC!W$4:W$84,ADHOC!$A$4:$A$84,$B26,ADHOC!$B$4:$B$84,$C26,ADHOC!$C$4:$C$84,$D26) -> 74361400 | Y26: =SUMIFS(ADHOC!X$4:X$84,ADHOC!$A$4:$A$84,$B26,ADHOC!$B$4:$B$84,$C26,ADHOC!$C$4:$C$84,$D26) -> 77802138 | Z26: =SUMIFS(ADHOC!Y$4:Y$84,ADHOC!$A$4:$A$84,$B26,ADHOC!$B$4:$B$84,$C26,ADHOC!$C$4:$C$84,$D26) -> 45327176 | AA26: =SUMIFS(ADHOC!Z$4:Z$84,ADHOC!$A$4:$A$84,$B26,ADHOC!$B$4:$B$84,$C26,ADHOC!$C$4:$C$84,$D26) -> 61255405 | AB26: =SUMIFS(ADHOC!AA$4:AA$84,ADHOC!$A$4:$A$84,$B26,ADHOC!$B$4:$B$84,$C26,ADHOC!$C$4:$C$84,$D26) -> 83740166
A27: 26 | B27: 33885 | C27: Secteur 4 | D27: Rayon 26 | E27: =SUMIFS(ADHOC!D$4:D$84,ADHOC!$A$4:$A$84,$B27,ADHOC!$B$4:$B$84,$C27,ADHOC!$C$4:$C$84,$D27) -> 66584445 | F27: =SUMIFS(ADHOC!E$4:E$84,ADHOC!$A$4:$A$84,$B27,ADHOC!$B$4:$B$84,$C27,ADHOC!$C$4:$C$84,$D27) -> 57489077 | G27: =SUMIFS(ADHOC!F$4:F$84,ADHOC!$A$4:$A$84,$B27,ADHOC!$B$4:$B$84,$C27,ADHOC!$C$4:$C$84,$D27) -> 72346940 | H27: =SUMIFS(ADHOC!G$4:G$84,ADHOC!$A$4:$A$84,$B27,ADHOC!$B$4:$B$84,$C27,ADHOC!$C$4:$C$84,$D27) -> 67326132 | I27: =SUMIFS(ADHOC!H$4:H$84,ADHOC!$A$4:$A$84,$B27,ADHOC!$B$4:$B$84,$C27,ADHOC!$C$4:$C$84,$D27) -> 77957184 | J27: =SUMIFS(ADHOC!I$4:I$84,ADHOC!$A$4:$A$84,$B27,ADHOC!$B$4:$B$84,$C27,ADHOC!$C$4:$C$84,$D27) -> 47533735 | K27: =SUMIFS(ADHOC!J$4:J$84,ADHOC!$A$4:$A$84,$B27,ADHOC!$B$4:$B$84,$C27,ADHOC!$C$4:$C$84,$D27) -> 50808323 | L27: =SUMIFS(ADHOC!K$4:K$84,ADHOC!$A$4:$A$84,$B27,ADHOC!$B$4:$B$84,$C27,ADHOC!$C$4:$C$84,$D27) -> 43407788 | M27: =SUMIFS(ADHOC!L$4:L$84,ADHOC!$A$4:$A$84,$B27,ADHOC!$B$4:$B$84,$C27,ADHOC!$C$4:$C$84,$D27) -> 43800847 | N27: =SUMIFS(ADHOC!M$4:M$84,ADHOC!$A$4:$A$84,$B27,ADHOC!$B$4:$B$84,$C27,ADHOC!$C$4:$C$84,$D27) -> 59730647 | O27: =SUMIFS(ADHOC!N$4:N$84,ADHOC!$A$4:$A$84,$B27,ADHOC!$B$4:$B$84,$C27,ADHOC!$C$4:$C$84,$D27) -> 82884477 | P27: =SUMIFS(ADHOC!O$4:O$84,ADHOC!$A$4:$A$84,$B27,ADHOC!$B$4:$B$84,$C27,ADHOC!$C$4:$C$84,$D27) -> 53710733 | Q27: =SUMIFS(ADHOC!P$4:P$84,ADHOC!$A$4:$A$84,$B27,ADHOC!$B$4:$B$84,$C27,ADHOC!$C$4:$C$84,$D27) -> 49931288 | R27: =SUMIFS(ADHOC!Q$4:Q$84,ADHOC!$A$4:$A$84,$B27,ADHOC!$B$4:$B$84,$C27,ADHOC!$C$4:$C$84,$D27) -> 82927215 | S27: =SUMIFS(ADHOC!R$4:R$84,ADHOC!$A$4:$A$84,$B27,ADHOC!$B$4:$B$84,$C27,ADHOC!$C$4:$C$84,$D27) -> 80796613 | T27: =SUMIFS(ADHOC!S$4:S$84,ADHOC!$A$4:$A$84,$B27,ADHOC!$B$4:$B$84,$C27,ADHOC!$C$4:$C$84,$D27) -> 43806566 | U27: =SUMIFS(ADHOC!T$4:T$84,ADHOC!$A$4:$A$84,$B27,ADHOC!$B$4:$B$84,$C27,ADHOC!$C$4:$C$84,$D27) -> 60365593 | V27: =SUMIFS(ADHOC!U$4:U$84,ADHOC!$A$4:$A$84,$B27,ADHOC!$B$4:$B$84,$C27,ADHOC!$C$4:$C$84,$D27) -> 71141019 | W27: =SUMIFS(ADHOC!V$4:V$84,ADHOC!$A$4:$A$84,$B27,ADHOC!$B$4:$B$84,$C27,ADHOC!$C$4:$C$84,$D27) -> 75097275 | X27: =SUMIFS(ADHOC!W$4:W$84,ADHOC!$A$4:$A$84,$B27,ADHOC!$B$4:$B$84,$C27,ADHOC!$C$4:$C$84,$D27) -> 83522496 | Y27: =SUMIFS(ADHOC!X$4:X$84,ADHOC!$A$4:$A$84,$B27,ADHOC!$B$4:$B$84,$C27,ADHOC!$C$4:$C$84,$D27) -> 58209920 | Z27: =SUMIFS(ADHOC!Y$4:Y$84,ADHOC!$A$4:$A$84,$B27,ADHOC!$B$4:$B$84,$C27,ADHOC!$C$4:$C$84,$D27) -> 54458622 | AA27: =SUMIFS(ADHOC!Z$4:Z$84,ADHOC!$A$4:$A$84,$B27,ADHOC!$B$4:$B$84,$C27,ADHOC!$C$4:$C$84,$D27) -> 71055656 | AB27: =SUMIFS(ADHOC!AA$4:AA$84,ADHOC!$A$4:$A$84,$B27,ADHOC!$B$4:$B$84,$C27,ADHOC!$C$4:$C$84,$D27) -> 37584450
A28: 27 | B28: 32049 | C28: Secteur 5 | D28: Rayon 1 | E28: =SUMIFS(ADHOC!D$4:D$84,ADHOC!$A$4:$A$84,$B28,ADHOC!$B$4:$B$84,$C28,ADHOC!$C$4:$C$84,$D28) -> 69983441 | F28: =SUMIFS(ADHOC!E$4:E$84,ADHOC!$A$4:$A$84,$B28,ADHOC!$B$4:$B$84,$C28,ADHOC!$C$4:$C$84,$D28) -> 48818333 | G28: =SUMIFS(ADHOC!F$4:F$84,ADHOC!$A$4:$A$84,$B28,ADHOC!$B$4:$B$84,$C28,ADHOC!$C$4:$C$84,$D28) -> 63459439 | H28: =SUMIFS(ADHOC!G$4:G$84,ADHOC!$A$4:$A$84,$B28,ADHOC!$B$4:$B$84,$C28,ADHOC!$C$4:$C$84,$D28) -> 64482757 | I28: =SUMIFS(ADHOC!H$4:H$84,ADHOC!$A$4:$A$84,$B28,ADHOC!$B$4:$B$84,$C28,ADHOC!$C$4:$C$84,$D28) -> 73241359 | J28: =SUMIFS(ADHOC!I$4:I$84,ADHOC!$A$4:$A$84,$B28,ADHOC!$B$4:$B$84,$C28,ADHOC!$C$4:$C$84,$D28) -> 55549933 | K28: =SUMIFS(ADHOC!J$4:J$84,ADHOC!$A$4:$A$84,$B28,ADHOC!$B$4:$B$84,$C28,ADHOC!$C$4:$C$84,$D28) -> 53410041 | L28: =SUMIFS(ADHOC!K$4:K$84,ADHOC!$A$4:$A$84,$B28,ADHOC!$B$4:$B$84,$C28,ADHOC!$C$4:$C$84,$D28) -> 56920199 | M28: =SUMIFS(ADHOC!L$4:L$84,ADHOC!$A$4:$A$84,$B28,ADHOC!$B$4:$B$84,$C28,ADHOC!$C$4:$C$84,$D28) -> 37551867 | N28: =SUMIFS(ADHOC!M$4:M$84,ADHOC!$A$4:$A$84,$B28,ADHOC!$B$4:$B$84,$C28,ADHOC!$C$4:$C$84,$D28) -> 39688149 | O28: =SUMIFS(ADHOC!N$4:N$84,ADHOC!$A$4:$A$84,$B28,ADHOC!$B$4:$B$84,$C28,ADHOC!$C$4:$C$84,$D28) -> 62203482 | P28: =SUMIFS(ADHOC!O$4:O$84,ADHOC!$A$4:$A$84,$B28,ADHOC!$B$4:$B$84,$C28,ADHOC!$C$4:$C$84,$D28) -> 53244446 | Q28: =SUMIFS(ADHOC!P$4:P$84,ADHOC!$A$4:$A$84,$B28,ADHOC!$B$4:$B$84,$C28,ADHOC!$C$4:$C$84,$D28) -> 51650421 | R28: =SUMIFS(ADHOC!Q$4:Q$84,ADHOC!$A$4:$A$84,$B28,ADHOC!$B$4:$B$84,$C28,ADHOC!$C$4:$C$84,$D28) -> 76035658 | S28: =SUMIFS(ADHOC!R$4:R$84,ADHOC!$A$4:$A$84,$B28,ADHOC!$B$4:$B$84,$C28,ADHOC!$C$4:$C$84,$D28) -> 45495882 | T28: =SUMIFS(ADHOC!S$4:S$84,ADHOC!$A$4:$A$84,$B28,ADHOC!$B$4:$B$84,$C28,ADHOC!$C$4:$C$84,$D28) -> 54513910 | U28: =SUMIFS(ADHOC!T$4:T$84,ADHOC!$A$4:$A$84,$B28,ADHOC!$B$4:$B$84,$C28,ADHOC!$C$4:$C$84,$D28) -> 68501314 | V28: =SUMIFS(ADHOC!U$4:U$84,ADHOC!$A$4:$A$84,$B28,ADHOC!$B$4:$B$84,$C28,ADHOC!$C$4:$C$84,$D28) -> 61592791 | W28: =SUMIFS(ADHOC!V$4:V$84,ADHOC!$A$4:$A$84,$B28,ADHOC!$B$4:$B$84,$C28,ADHOC!$C$4:$C$84,$D28) -> 76910051 | X28: =SUMIFS(ADHOC!W$4:W$84,ADHOC!$A$4:$A$84,$B28,ADHOC!$B$4:$B$84,$C28,ADHOC!$C$4:$C$84,$D28) -> 54534757 | Y28: =SUMIFS(ADHOC!X$4:X$84,ADHOC!$A$4:$A$84,$B28,ADHOC!$B$4:$B$84,$C28,ADHOC!$C$4:$C$84,$D28) -> 44077540 | Z28: =SUMIFS(ADHOC!Y$4:Y$84,ADHOC!$A$4:$A$84,$B28,ADHOC!$B$4:$B$84,$C28,ADHOC!$C$4:$C$84,$D28) -> 77966257 | AA28: =SUMIFS(ADHOC!Z$4:Z$84,ADHOC!$A$4:$A$84,$B28,ADHOC!$B$4:$B$84,$C28,ADHOC!$C$4:$C$84,$D28) -> 45547104 | AB28: =SUMIFS(ADHOC!AA$4:AA$84,ADHOC!$A$4:$A$84,$B28,ADHOC!$B$4:$B$84,$C28,ADHOC!$C$4:$C$84,$D28) -> 38119197
A29: 28 | B29: 33910 | C29: Secteur 5 | D29: Rayon 2 | E29: =SUMIFS(ADHOC!D$4:D$84,ADHOC!$A$4:$A$84,$B29,ADHOC!$B$4:$B$84,$C29,ADHOC!$C$4:$C$84,$D29) -> 80964747 | F29: =SUMIFS(ADHOC!E$4:E$84,ADHOC!$A$4:$A$84,$B29,ADHOC!$B$4:$B$84,$C29,ADHOC!$C$4:$C$84,$D29) -> 73271677 | G29: =SUMIFS(ADHOC!F$4:F$84,ADHOC!$A$4:$A$84,$B29,ADHOC!$B$4:$B$84,$C29,ADHOC!$C$4:$C$84,$D29) -> 56064002 | H29: =SUMIFS(ADHOC!G$4:G$84,ADHOC!$A$4:$A$84,$B29,ADHOC!$B$4:$B$84,$C29,ADHOC!$C$4:$C$84,$D29) -> 79625903 | I29: =SUMIFS(ADHOC!H$4:H$84,ADHOC!$A$4:$A$84,$B29,ADHOC!$B$4:$B$84,$C29,ADHOC!$C$4:$C$84,$D29) -> 68779153 | J29: =SUMIFS(ADHOC!I$4:I$84,ADHOC!$A$4:$A$84,$B29,ADHOC!$B$4:$B$84,$C29,ADHOC!$C$4:$C$84,$D29) -> 67976584 | K29: =SUMIFS(ADHOC!J$4:J$84,ADHOC!$A$4:$A$84,$B29,ADHOC!$B$4:$B$84,$C29,ADHOC!$C$4:$C$84,$D29) -> 55418189 | L29: =SUMIFS(ADHOC!K$4:K$84,ADHOC!$A$4:$A$84,$B29,ADHOC!$B$4:$B$84,$C29,ADHOC!$C$4:$C$84,$D29) -> 45438115 | M29: =SUMIFS(ADHOC!L$4:L$84,ADHOC!$A$4:$A$84,$B29,ADHOC!$B$4:$B$84,$C29,ADHOC!$C$4:$C$84,$D29) -> 67921861 | N29: =SUMIFS(ADHOC!M$4:M$84,ADHOC!$A$4:$A$84,$B29,ADHOC!$B$4:$B$84,$C29,ADHOC!$C$4:$C$84,$D29) -> 63141843 | O29: =SUMIFS(ADHOC!N$4:N$84,ADHOC!$A$4:$A$84,$B29,ADHOC!$B$4:$B$84,$C29,ADHOC!$C$4:$C$84,$D29) -> 36594579 | P29: =SUMIFS(ADHOC!O$4:O$84,ADHOC!$A$4:$A$84,$B29,ADHOC!$B$4:$B$84,$C29,ADHOC!$C$4:$C$84,$D29) -> 81310782 | Q29: =SUMIFS(ADHOC!P$4:P$84,ADHOC!$A$4:$A$84,$B29,ADHOC!$B$4:$B$84,$C29,ADHOC!$C$4:$C$84,$D29) -> 83296145 | R29: =SUMIFS(ADHOC!Q$4:Q$84,ADHOC!$A$4:$A$84,$B29,ADHOC!$B$4:$B$84,$C29,ADHOC!$C$4:$C$84,$D29) -> 66890018 | S29: =SUMIFS(ADHOC!R$4:R$84,ADHOC!$A$4:$A$84,$B29,ADHOC!$B$4:$B$84,$C29,ADHOC!$C$4:$C$84,$D29) -> 51501761 | T29: =SUMIFS(ADHOC!S$4:S$84,ADHOC!$A$4:$A$84,$B29,ADHOC!$B$4:$B$84,$C29,ADHOC!$C$4:$C$84,$D29) -> 64928294 | U29: =SUMIFS(ADHOC!T$4:T$84,ADHOC!$A$4:$A$84,$B29,ADHOC!$B$4:$B$84,$C29,ADHOC!$C$4:$C$84,$D29) -> 70837975 | V29: =SUMIFS(ADHOC!U$4:U$84,ADHOC!$A$4:$A$84,$B29,ADHOC!$B$4:$B$84,$C29,ADHOC!$C$4:$C$84,$D29) -> 52009629 | W29: =SUMIFS(ADHOC!V$4:V$84,ADHOC!$A$4:$A$84,$B29,ADHOC!$B$4:$B$84,$C29,ADHOC!$C$4:$C$84,$D29) -> 58971657 | X29: =SUMIFS(ADHOC!W$4:W$84,ADHOC!$A$4:$A$84,$B29,ADHOC!$B$4:$B$84,$C29,ADHOC!$C$4:$C$84,$D29) -> 72921965 | Y29: =SUMIFS(ADHOC!X$4:X$84,ADHOC!$A$4:$A$84,$B29,ADHOC!$B$4:$B$84,$C29,ADHOC!$C$4:$C$84,$D29) -> 52289465 | Z29: =SUMIFS(ADHOC!Y$4:Y$84,ADHOC!$A$4:$A$84,$B29,ADHOC!$B$4:$B$84,$C29,ADHOC!$C$4:$C$84,$D29) -> 69406858 | AA29: =SUMIFS(ADHOC!Z$4:Z$84,ADHOC!$A$4:$A$84,$B29,ADHOC!$B$4:$B$84,$C29,ADHOC!$C$4:$C$84,$D29) -> 71930852 | AB29: =SUMIFS(ADHOC!AA$4:AA$84,ADHOC!$A$4:$A$84,$B29,ADHOC!$B$4:$B$84,$C29,ADHOC!$C$4:$C$84,$D29) -> 67488396
A30: 29 | B30: 33690 | C30: Secteur 5 | D30: Rayon 3 | E30: =SUMIFS(ADHOC!D$4:D$84,ADHOC!$A$4:$A$84,$B30,ADHOC!$B$4:$B$84,$C30,ADHOC!$C$4:$C$84,$D30) -> 52404583 | F30: =SUMIFS(ADHOC!E$4:E$84,ADHOC!$A$4:$A$84,$B30,ADHOC!$B$4:$B$84,$C30,ADHOC!$C$4:$C$84,$D30) -> 42999844 | G30: =SUMIFS(ADHOC!F$4:F$84,ADHOC!$A$4:$A$84,$B30,ADHOC!$B$4:$B$84,$C30,ADHOC!$C$4:$C$84,$D30) -> 52710889 | H30: =SUMIFS(ADHOC!G$4:G$84,ADHOC!$A$4:$A$84,$B30,ADHOC!$B$4:$B$84,$C30,ADHOC!$C$4:$C$84,$D30) -> 45365255 | I30: =SUMIFS(ADHOC!H$4:H$84,ADHOC!$A$4:$A$84,$B30,ADHOC!$B$4:$B$84,$C30,ADHOC!$C$4:$C$84,$D30) -> 73366671 | J30: =SUMIFS(ADHOC!I$4:I$84,ADHOC!$A$4:$A$84,$B30,ADHOC!$B$4:$B$84,$C30,ADHOC!$C$4:$C$84,$D30) -> 66171794 | K30: =SUMIFS(ADHOC!J$4:J$84,ADHOC!$A$4:$A$84,$B30,ADHOC!$B$4:$B$84,$C30,ADHOC!$C$4:$C$84,$D30) -> 46280216 | L30: =SUMIFS(ADHOC!K$4:K$84,ADHOC!$A$4:$A$84,$B30,ADHOC!$B$4:$B$84,$C30,ADHOC!$C$4:$C$84,$D30) -> 58988108 | M30: =SUMIFS(ADHOC!L$4:L$84,ADHOC!$A$4:$A$84,$B30,ADHOC!$B$4:$B$84,$C30,ADHOC!$C$4:$C$84,$D30) -> 48582111 | N30: =SUMIFS(ADHOC!M$4:M$84,ADHOC!$A$4:$A$84,$B30,ADHOC!$B$4:$B$84,$C30,ADHOC!$C$4:$C$84,$D30) -> 77201391 | O30: =SUMIFS(ADHOC!N$4:N$84,ADHOC!$A$4:$A$84,$B30,ADHOC!$B$4:$B$84,$C30,ADHOC!$C$4:$C$84,$D30) -> 68234101 | P30: =SUMIFS(ADHOC!O$4:O$84,ADHOC!$A$4:$A$84,$B30,ADHOC!$B$4:$B$84,$C30,ADHOC!$C$4:$C$84,$D30) -> 82030715 | Q30: =SUMIFS(ADHOC!P$4:P$84,ADHOC!$A$4:$A$84,$B30,ADHOC!$B$4:$B$84,$C30,ADHOC!$C$4:$C$84,$D30) -> 56275372 | R30: =SUMIFS(ADHOC!Q$4:Q$84,ADHOC!$A$4:$A$84,$B30,ADHOC!$B$4:$B$84,$C30,ADHOC!$C$4:$C$84,$D30) -> 60662293 | S30: =SUMIFS(ADHOC!R$4:R$84,ADHOC!$A$4:$A$84,$B30,ADHOC!$B$4:$B$84,$C30,ADHOC!$C$4:$C$84,$D30) -> 66504827 | T30: =SUMIFS(ADHOC!S$4:S$84,ADHOC!$A$4:$A$84,$B30,ADHOC!$B$4:$B$84,$C30,ADHOC!$C$4:$C$84,$D30) -> 58599990 | U30: =SUMIFS(ADHOC!T$4:T$84,ADHOC!$A$4:$A$84,$B30,ADHOC!$B$4:$B$84,$C30,ADHOC!$C$4:$C$84,$D30) -> 68521021 | V30: =SUMIFS(ADHOC!U$4:U$84,ADHOC!$A$4:$A$84,$B30,ADHOC!$B$4:$B$84,$C30,ADHOC!$C$4:$C$84,$D30) -> 76706708 | W30: =SUMIFS(ADHOC!V$4:V$84,ADHOC!$A$4:$A$84,$B30,ADHOC!$B$4:$B$84,$C30,ADHOC!$C$4:$C$84,$D30) -> 45875746 | X30: =SUMIFS(ADHOC!W$4:W$84,ADHOC!$A$4:$A$84,$B30,ADHOC!$B$4:$B$84,$C30,ADHOC!$C$4:$C$84,$D30) -> 79043646 | Y30: =SUMIFS(ADHOC!X$4:X$84,ADHOC!$A$4:$A$84,$B30,ADHOC!$B$4:$B$84,$C30,ADHOC!$C$4:$C$84,$D30) -> 38358326 | Z30: =SUMIFS(ADHOC!Y$4:Y$84,ADHOC!$A$4:$A$84,$B30,ADHOC!$B$4:$B$84,$C30,ADHOC!$C$4:$C$84,$D30) -> 77048919 | AA30: =SUMIFS(ADHOC!Z$4:Z$84,ADHOC!$A$4:$A$84,$B30,ADHOC!$B$4:$B$84,$C30,ADHOC!$C$4:$C$84,$D30) -> 47179598 | AB30: =SUMIFS(ADHOC!AA$4:AA$84,ADHOC!$A$4:$A$84,$B30,ADHOC!$B$4:$B$84,$C30,ADHOC!$C$4:$C$84,$D30) -> 51915246
A31: 30 | B31: 32109 | C31: Secteur 5 | D31: Rayon 4 | E31: =SUMIFS(ADHOC!D$4:D$84,ADHOC!$A$4:$A$84,$B31,ADHOC!$B$4:$B$84,$C31,ADHOC!$C$4:$C$84,$D31) -> 78310286 | F31: =SUMIFS(ADHOC!E$4:E$84,ADHOC!$A$4:$A$84,$B31,ADHOC!$B$4:$B$84,$C31,ADHOC!$C$4:$C$84,$D31) -> 40338974 | G31: =SUMIFS(ADHOC!F$4:F$84,ADHOC!$A$4:$A$84,$B31,ADHOC!$B$4:$B$84,$C31,ADHOC!$C$4:$C$84,$D31) -> 77849280 | H31: =SUMIFS(ADHOC!G$4:G$84,ADHOC!$A$4:$A$84,$B31,ADHOC!$B$4:$B$84,$C31,ADHOC!$C$4:$C$84,$D31) -> 57428653 | I31: =SUMIFS(ADHOC!H$4:H$84,ADHOC!$A$4:$A$84,$B31,ADHOC!$B$4:$B$84,$C31,ADHOC!$C$4:$C$84,$D31) -> 52560682 | J31: =SUMIFS(ADHOC!I$4:I$84,ADHOC!$A$4:$A$84,$B31,ADHOC!$B$4:$B$84,$C31,ADHOC!$C$4:$C$84,$D31) -> 38904680 | K31: =SUMIFS(ADHOC!J$4:J$84,ADHOC!$A$4:$A$84,$B31,ADHOC!$B$4:$B$84,$C31,ADHOC!$C$4:$C$84,$D31) -> 80274896 | L31: =SUMIFS(ADHOC!K$4:K$84,ADHOC!$A$4:$A$84,$B31,ADHOC!$B$4:$B$84,$C31,ADHOC!$C$4:$C$84,$D31) -> 77504803 | M31: =SUMIFS(ADHOC!L$4:L$84,ADHOC!$A$4:$A$84,$B31,ADHOC!$B$4:$B$84,$C31,ADHOC!$C$4:$C$84,$D31) -> 56446614 | N31: =SUMIFS(ADHOC!M$4:M$84,ADHOC!$A$4:$A$84,$B31,ADHOC!$B$4:$B$84,$C31,ADHOC!$C$4:$C$84,$D31) -> 47940390 | O31: =SUMIFS(ADHOC!N$4:N$84,ADHOC!$A$4:$A$84,$B31,ADHOC!$B$4:$B$84,$C31,ADHOC!$C$4:$C$84,$D31) -> 49522179 | P31: =SUMIFS(ADHOC!O$4:O$84,ADHOC!$A$4:$A$84,$B31,ADHOC!$B$4:$B$84,$C31,ADHOC!$C$4:$C$84,$D31) -> 48828393 | Q31: =SUMIFS(ADHOC!P$4:P$84,ADHOC!$A$4:$A$84,$B31,ADHOC!$B$4:$B$84,$C31,ADHOC!$C$4:$C$84,$D31) -> 63752091 | R31: =SUMIFS(ADHOC!Q$4:Q$84,ADHOC!$A$4:$A$84,$B31,ADHOC!$B$4:$B$84,$C31,ADHOC!$C$4:$C$84,$D31) -> 39615549 | S31: =SUMIFS(ADHOC!R$4:R$84,ADHOC!$A$4:$A$84,$B31,ADHOC!$B$4:$B$84,$C31,ADHOC!$C$4:$C$84,$D31) -> 46004633 | T31: =SUMIFS(ADHOC!S$4:S$84,ADHOC!$A$4:$A$84,$B31,ADHOC!$B$4:$B$84,$C31,ADHOC!$C$4:$C$84,$D31) -> 58511155 | U31: =SUMIFS(ADHOC!T$4:T$84,ADHOC!$A$4:$A$84,$B31,ADHOC!$B$4:$B$84,$C31,ADHOC!$C$4:$C$84,$D31) -> 65719950 | V31: =SUMIFS(ADHOC!U$4:U$84,ADHOC!$A$4:$A$84,$B31,ADHOC!$B$4:$B$84,$C31,ADHOC!$C$4:$C$84,$D31) -> 83090881 | W31: =SUMIFS(ADHOC!V$4:V$84,ADHOC!$A$4:$A$84,$B31,ADHOC!$B$4:$B$84,$C31,ADHOC!$C$4:$C$84,$D31) -> 42835198 | X31: =SUMIFS(ADHOC!W$4:W$84,ADHOC!$A$4:$A$84,$B31,ADHOC!$B$4:$B$84,$C31,ADHOC!$C$4:$C$84,$D31) -> 39912272 | Y31: =SUMIFS(ADHOC!X$4:X$84,ADHOC!$A$4:$A$84,$B31,ADHOC!$B$4:$B$84,$C31,ADHOC!$C$4:$C$84,$D31) -> 37342432 | Z31: =SUMIFS(ADHOC!Y$4:Y$84,ADHOC!$A$4:$A$84,$B31,ADHOC!$B$4:$B$84,$C31,ADHOC!$C$4:$C$84,$D31) -> 66450781 | AA31: =SUMIFS(ADHOC!Z$4:Z$84,ADHOC!$A$4:$A$84,$B31,ADHOC!$B$4:$B$84,$C31,ADHOC!$C$4:$C$84,$D31) -> 55558572 | AB31: =SUMIFS(ADHOC!AA$4:AA$84,ADHOC!$A$4:$A$84,$B31,ADHOC!$B$4:$B$84,$C31,ADHOC!$C$4:$C$84,$D31) -> 64333642
A32: 31 | B32: 32338 | C32: Secteur 5 | D32: Rayon 5 | E32: =SUMIFS(ADHOC!D$4:D$84,ADHOC!$A$4:$A$84,$B32,ADHOC!$B$4:$B$84,$C32,ADHOC!$C$4:$C$84,$D32) -> 74630429 | F32: =SUMIFS(ADHOC!E$4:E$84,ADHOC!$A$4:$A$84,$B32,ADHOC!$B$4:$B$84,$C32,ADHOC!$C$4:$C$84,$D32) -> 58068887 | G32: =SUMIFS(ADHOC!F$4:F$84,ADHOC!$A$4:$A$84,$B32,ADHOC!$B$4:$B$84,$C32,ADHOC!$C$4:$C$84,$D32) -> 66942326 | H32: =SUMIFS(ADHOC!G$4:G$84,ADHOC!$A$4:$A$84,$B32,ADHOC!$B$4:$B$84,$C32,ADHOC!$C$4:$C$84,$D32) -> 42923693 | I32: =SUMIFS(ADHOC!H$4:H$84,ADHOC!$A$4:$A$84,$B32,ADHOC!$B$4:$B$84,$C32,ADHOC!$C$4:$C$84,$D32) -> 67913817 | J32: =SUMIFS(ADHOC!I$4:I$84,ADHOC!$A$4:$A$84,$B32,ADHOC!$B$4:$B$84,$C32,ADHOC!$C$4:$C$84,$D32) -> 40607963 | K32: =SUMIFS(ADHOC!J$4:J$84,ADHOC!$A$4:$A$84,$B32,ADHOC!$B$4:$B$84,$C32,ADHOC!$C$4:$C$84,$D32) -> 44441604 | L32: =SUMIFS(ADHOC!K$4:K$84,ADHOC!$A$4:$A$84,$B32,ADHOC!$B$4:$B$84,$C32,ADHOC!$C$4:$C$84,$D32) -> 56832205 | M32: =SUMIFS(ADHOC!L$4:L$84,ADHOC!$A$4:$A$84,$B32,ADHOC!$B$4:$B$84,$C32,ADHOC!$C$4:$C$84,$D32) -> 60825775 | N32: =SUMIFS(ADHOC!M$4:M$84,ADHOC!$A$4:$A$84,$B32,ADHOC!$B$4:$B$84,$C32,ADHOC!$C$4:$C$84,$D32) -> 79076735 | O32: =SUMIFS(ADHOC!N$4:N$84,ADHOC!$A$4:$A$84,$B32,ADHOC!$B$4:$B$84,$C32,ADHOC!$C$4:$C$84,$D32) -> 82475882 | P32: =SUMIFS(ADHOC!O$4:O$84,ADHOC!$A$4:$A$84,$B32,ADHOC!$B$4:$B$84,$C32,ADHOC!$C$4:$C$84,$D32) -> 83552904 | Q32: =SUMIFS(ADHOC!P$4:P$84,ADHOC!$A$4:$A$84,$B32,ADHOC!$B$4:$B$84,$C32,ADHOC!$C$4:$C$84,$D32) -> 55709884 | R32: =SUMIFS(ADHOC!Q$4:Q$84,ADHOC!$A$4:$A$84,$B32,ADHOC!$B$4:$B$84,$C32,ADHOC!$C$4:$C$84,$D32) -> 72061795 | S32: =SUMIFS(ADHOC!R$4:R$84,ADHOC!$A$4:$A$84,$B32,ADHOC!$B$4:$B$84,$C32,ADHOC!$C$4:$C$84,$D32) -> 67315361 | T32: =SUMIFS(ADHOC!S$4:S$84,ADHOC!$A$4:$A$84,$B32,ADHOC!$B$4:$B$84,$C32,ADHOC!$C$4:$C$84,$D32) -> 77722644 | U32: =SUMIFS(ADHOC!T$4:T$84,ADHOC!$A$4:$A$84,$B32,ADHOC!$B$4:$B$84,$C32,ADHOC!$C$4:$C$84,$D32) -> 54737959 | V32: =SUMIFS(ADHOC!U$4:U$84,ADHOC!$A$4:$A$84,$B32,ADHOC!$B$4:$B$84,$C32,ADHOC!$C$4:$C$84,$D32) -> 48735066 | W32: =SUMIFS(ADHOC!V$4:V$84,ADHOC!$A$4:$A$84,$B32,ADHOC!$B$4:$B$84,$C32,ADHOC!$C$4:$C$84,$D32) -> 38263762 | X32: =SUMIFS(ADHOC!W$4:W$84,ADHOC!$A$4:$A$84,$B32,ADHOC!$B$4:$B$84,$C32,ADHOC!$C$4:$C$84,$D32) -> 63170019 | Y32: =SUMIFS(ADHOC!X$4:X$84,ADHOC!$A$4:$A$84,$B32,ADHOC!$B$4:$B$84,$C32,ADHOC!$C$4:$C$84,$D32) -> 80001086 | Z32: =SUMIFS(ADHOC!Y$4:Y$84,ADHOC!$A$4:$A$84,$B32,ADHOC!$B$4:$B$84,$C32,ADHOC!$C$4:$C$84,$D32) -> 41888224 | AA32: =SUMIFS(ADHOC!Z$4:Z$84,ADHOC!$A$4:$A$84,$B32,ADHOC!$B$4:$B$84,$C32,ADHOC!$C$4:$C$84,$D32) -> 37975190 | AB32: =SUMIFS(ADHOC!AA$4:AA$84,ADHOC!$A$4:$A$84,$B32,ADHOC!$B$4:$B$84,$C32,ADHOC!$C$4:$C$84,$D32) -> 55644441
A33: 32 | B33: 34797 | C33: Secteur 5 | D33: Rayon 6 | E33: =SUMIFS(ADHOC!D$4:D$84,ADHOC!$A$4:$A$84,$B33,ADHOC!$B$4:$B$84,$C33,ADHOC!$C$4:$C$84,$D33) -> 45136207 | F33: =SUMIFS(ADHOC!E$4:E$84,ADHOC!$A$4:$A$84,$B33,ADHOC!$B$4:$B$84,$C33,ADHOC!$C$4:$C$84,$D33) -> 63033856 | G33: =SUMIFS(ADHOC!F$4:F$84,ADHOC!$A$4:$A$84,$B33,ADHOC!$B$4:$B$84,$C33,ADHOC!$C$4:$C$84,$D33) -> 69872869 | H33: =SUMIFS(ADHOC!G$4:G$84,ADHOC!$A$4:$A$84,$B33,ADHOC!$B$4:$B$84,$C33,ADHOC!$C$4:$C$84,$D33) -> 83915834 | I33: =SUMIFS(ADHOC!H$4:H$84,ADHOC!$A$4:$A$84,$B33,ADHOC!$B$4:$B$84,$C33,ADHOC!$C$4:$C$84,$D33) -> 61582149 | J33: =SUMIFS(ADHOC!I$4:I$84,ADHOC!$A$4:$A$84,$B33,ADHOC!$B$4:$B$84,$C33,ADHOC!$C$4:$C$84,$D33) -> 65186219 | K33: =SUMIFS(ADHOC!J$4:J$84,ADHOC!$A$4:$A$84,$B33,ADHOC!$B$4:$B$84,$C33,ADHOC!$C$4:$C$84,$D33) -> 82538935 | L33: =SUMIFS(ADHOC!K$4:K$84,ADHOC!$A$4:$A$84,$B33,ADHOC!$B$4:$B$84,$C33,ADHOC!$C$4:$C$84,$D33) -> 54007318 | M33: =SUMIFS(ADHOC!L$4:L$84,ADHOC!$A$4:$A$84,$B33,ADHOC!$B$4:$B$84,$C33,ADHOC!$C$4:$C$84,$D33) -> 61492266 | N33: =SUMIFS(ADHOC!M$4:M$84,ADHOC!$A$4:$A$84,$B33,ADHOC!$B$4:$B$84,$C33,ADHOC!$C$4:$C$84,$D33) -> 71199538 | O33: =SUMIFS(ADHOC!N$4:N$84,ADHOC!$A$4:$A$84,$B33,ADHOC!$B$4:$B$84,$C33,ADHOC!$C$4:$C$84,$D33) -> 75282306 | P33: =SUMIFS(ADHOC!O$4:O$84,ADHOC!$A$4:$A$84,$B33,ADHOC!$B$4:$B$84,$C33,ADHOC!$C$4:$C$84,$D33) -> 74919093 | Q33: =SUMIFS(ADHOC!P$4:P$84,ADHOC!$A$4:$A$84,$B33,ADHOC!$B$4:$B$84,$C33,ADHOC!$C$4:$C$84,$D33) -> 38644962 | R33: =SUMIFS(ADHOC!Q$4:Q$84,ADHOC!$A$4:$A$84,$B33,ADHOC!$B$4:$B$84,$C33,ADHOC!$C$4:$C$84,$D33) -> 43190582 | S33: =SUMIFS(ADHOC!R$4:R$84,ADHOC!$A$4:$A$84,$B33,ADHOC!$B$4:$B$84,$C33,ADHOC!$C$4:$C$84,$D33) -> 53552227 | T33: =SUMIFS(ADHOC!S$4:S$84,ADHOC!$A$4:$A$84,$B33,ADHOC!$B$4:$B$84,$C33,ADHOC!$C$4:$C$84,$D33) -> 44762996 | U33: =SUMIFS(ADHOC!T$4:T$84,ADHOC!$A$4:$A$84,$B33,ADHOC!$B$4:$B$84,$C33,ADHOC!$C$4:$C$84,$D33) -> 58415894 | V33: =SUMIFS(ADHOC!U$4:U$84,ADHOC!$A$4:$A$84,$B33,ADHOC!$B$4:$B$84,$C33,ADHOC!$C$4:$C$84,$D33) -> 79701179 | W33: =SUMIFS(ADHOC!V$4:V$84,ADHOC!$A$4:$A$84,$B33,ADHOC!$B$4:$B$84,$C33,ADHOC!$C$4:$C$84,$D33) -> 74112743 | X33: =SUMIFS(ADHOC!W$4:W$84,ADHOC!$A$4:$A$84,$B33,ADHOC!$B$4:$B$84,$C33,ADHOC!$C$4:$C$84,$D33) -> 63863631 | Y33: =SUMIFS(ADHOC!X$4:X$84,ADHOC!$A$4:$A$84,$B33,ADHOC!$B$4:$B$84,$C33,ADHOC!$C$4:$C$84,$D33) -> 37856365 | Z33: =SUMIFS(ADHOC!Y$4:Y$84,ADHOC!$A$4:$A$84,$B33,ADHOC!$B$4:$B$84,$C33,ADHOC!$C$4:$C$84,$D33) -> 71548873 | AA33: =SUMIFS(ADHOC!Z$4:Z$84,ADHOC!$A$4:$A$84,$B33,ADHOC!$B$4:$B$84,$C33,ADHOC!$C$4:$C$84,$D33) -> 79143532 | AB33: =SUMIFS(ADHOC!AA$4:AA$84,ADHOC!$A$4:$A$84,$B33,ADHOC!$B$4:$B$84,$C33,ADHOC!$C$4:$C$84,$D33) -> 61781246
A34: 33 | B34: 32954 | C34: Secteur 5 | D34: Rayon 7 | E34: =SUMIFS(ADHOC!D$4:D$84,ADHOC!$A$4:$A$84,$B34,ADHOC!$B$4:$B$84,$C34,ADHOC!$C$4:$C$84,$D34) -> 62100627 | F34: =SUMIFS(ADHOC!E$4:E$84,ADHOC!$A$4:$A$84,$B34,ADHOC!$B$4:$B$84,$C34,ADHOC!$C$4:$C$84,$D34) -> 65782586 | G34: =SUMIFS(ADHOC!F$4:F$84,ADHOC!$A$4:$A$84,$B34,ADHOC!$B$4:$B$84,$C34,ADHOC!$C$4:$C$84,$D34) -> 47925306 | H34: =SUMIFS(ADHOC!G$4:G$84,ADHOC!$A$4:$A$84,$B34,ADHOC!$B$4:$B$84,$C34,ADHOC!$C$4:$C$84,$D34) -> 60604975 | I34: =SUMIFS(ADHOC!H$4:H$84,ADHOC!$A$4:$A$84,$B34,ADHOC!$B$4:$B$84,$C34,ADHOC!$C$4:$C$84,$D34) -> 75314708 | J34: =SUMIFS(ADHOC!I$4:I$84,ADHOC!$A$4:$A$84,$B34,ADHOC!$B$4:$B$84,$C34,ADHOC!$C$4:$C$84,$D34) -> 43157858 | K34: =SUMIFS(ADHOC!J$4:J$84,ADHOC!$A$4:$A$84,$B34,ADHOC!$B$4:$B$84,$C34,ADHOC!$C$4:$C$84,$D34) -> 45172149 | L34: =SUMIFS(ADHOC!K$4:K$84,ADHOC!$A$4:$A$84,$B34,ADHOC!$B$4:$B$84,$C34,ADHOC!$C$4:$C$84,$D34) -> 76298873 | M34: =SUMIFS(ADHOC!L$4:L$84,ADHOC!$A$4:$A$84,$B34,ADHOC!$B$4:$B$84,$C34,ADHOC!$C$4:$C$84,$D34) -> 47230604 | N34: =SUMIFS(ADHOC!M$4:M$84,ADHOC!$A$4:$A$84,$B34,ADHOC!$B$4:$B$84,$C34,ADHOC!$C$4:$C$84,$D34) -> 53603999 | O34: =SUMIFS(ADHOC!N$4:N$84,ADHOC!$A$4:$A$84,$B34,ADHOC!$B$4:$B$84,$C34,ADHOC!$C$4:$C$84,$D34) -> 61853506 | P34: =SUMIFS(ADHOC!O$4:O$84,ADHOC!$A$4:$A$84,$B34,ADHOC!$B$4:$B$84,$C34,ADHOC!$C$4:$C$84,$D34) -> 49483326 | Q34: =SUMIFS(ADHOC!P$4:P$84,ADHOC!$A$4:$A$84,$B34,ADHOC!$B$4:$B$84,$C34,ADHOC!$C$4:$C$84,$D34) -> 62124413 | R34: =SUMIFS(ADHOC!Q$4:Q$84,ADHOC!$A$4:$A$84,$B34,ADHOC!$B$4:$B$84,$C34,ADHOC!$C$4:$C$84,$D34) -> 74595813 | S34: =SUMIFS(ADHOC!R$4:R$84,ADHOC!$A$4:$A$84,$B34,ADHOC!$B$4:$B$84,$C34,ADHOC!$C$4:$C$84,$D34) -> 41698450 | T34: =SUMIFS(ADHOC!S$4:S$84,ADHOC!$A$4:$A$84,$B34,ADHOC!$B$4:$B$84,$C34,ADHOC!$C$4:$C$84,$D34) -> 72213557 | U34: =SUMIFS(ADHOC!T$4:T$84,ADHOC!$A$4:$A$84,$B34,ADHOC!$B$4:$B$84,$C34,ADHOC!$C$4:$C$84,$D34) -> 54642983 | V34: =SUMIFS(ADHOC!U$4:U$84,ADHOC!$A$4:$A$84,$B34,ADHOC!$B$4:$B$84,$C34,ADHOC!$C$4:$C$84,$D34) -> 62060900 | W34: =SUMIFS(ADHOC!V$4:V$84,ADHOC!$A$4:$A$84,$B34,ADHOC!$B$4:$B$84,$C34,ADHOC!$C$4:$C$84,$D34) -> 44248123 | X34: =SUMIFS(ADHOC!W$4:W$84,ADHOC!$A$4:$A$84,$B34,ADHOC!$B$4:$B$84,$C34,ADHOC!$C$4:$C$84,$D34) -> 45398131 | Y34: =SUMIFS(ADHOC!X$4:X$84,ADHOC!$A$4:$A$84,$B34,ADHOC!$B$4:$B$84,$C34,ADHOC!$C$4:$C$84,$D34) -> 63880763 | Z34: =SUMIFS(ADHOC!Y$4:Y$84,ADHOC!$A$4:$A$84,$B34,ADHOC!$B$4:$B$84,$C34,ADHOC!$C$4:$C$84,$D34) -> 52345010 | AA34: =SUMIFS(ADHOC!Z$4:Z$84,ADHOC!$A$4:$A$84,$B34,ADHOC!$B$4:$B$84,$C34,ADHOC!$C$4:$C$84,$D34) -> 65816206 | AB34: =SUMIFS(ADHOC!AA$4:AA$84,ADHOC!$A$4:$A$84,$B34,ADHOC!$B$4:$B$84,$C34,ADHOC!$C$4:$C$84,$D34) -> 58115684
A35: 34 | B35: 33993 | C35: Secteur 5 | D35: Rayon 8 | E35: =SUMIFS(ADHOC!D$4:D$84,ADHOC!$A$4:$A$84,$B35,ADHOC!$B$4:$B$84,$C35,ADHOC!$C$4:$C$84,$D35) -> 61605343 | F35: =SUMIFS(ADHOC!E$4:E$84,ADHOC!$A$4:$A$84,$B35,ADHOC!$B$4:$B$84,$C35,ADHOC!$C$4:$C$84,$D35) -> 69636743 | G35: =SUMIFS(ADHOC!F$4:F$84,ADHOC!$A$4:$A$84,$B35,ADHOC!$B$4:$B$84,$C35,ADHOC!$C$4:$C$84,$D35) -> 78946287 | H35: =SUMIFS(ADHOC!G$4:G$84,ADHOC!$A$4:$A$84,$B35,ADHOC!$B$4:$B$84,$C35,ADHOC!$C$4:$C$84,$D35) -> 52707283 | I35: =SUMIFS(ADHOC!H$4:H$84,ADHOC!$A$4:$A$84,$B35,ADHOC!$B$4:$B$84,$C35,ADHOC!$C$4:$C$84,$D35) -> 74181073 | J35: =SUMIFS(ADHOC!I$4:I$84,ADHOC!$A$4:$A$84,$B35,ADHOC!$B$4:$B$84,$C35,ADHOC!$C$4:$C$84,$D35) -> 52731777 | K35: =SUMIFS(ADHOC!J$4:J$84,ADHOC!$A$4:$A$84,$B35,ADHOC!$B$4:$B$84,$C35,ADHOC!$C$4:$C$84,$D35) -> 72749280 | L35: =SUMIFS(ADHOC!K$4:K$84,ADHOC!$A$4:$A$84,$B35,ADHOC!$B$4:$B$84,$C35,ADHOC!$C$4:$C$84,$D35) -> 50409491 | M35: =SUMIFS(ADHOC!L$4:L$84,ADHOC!$A$4:$A$84,$B35,ADHOC!$B$4:$B$84,$C35,ADHOC!$C$4:$C$84,$D35) -> 60273804 | N35: =SUMIFS(ADHOC!M$4:M$84,ADHOC!$A$4:$A$84,$B35,ADHOC!$B$4:$B$84,$C35,ADHOC!$C$4:$C$84,$D35) -> 71354860 | O35: =SUMIFS(ADHOC!N$4:N$84,ADHOC!$A$4:$A$84,$B35,ADHOC!$B$4:$B$84,$C35,ADHOC!$C$4:$C$84,$D35) -> 63769412 | P35: =SUMIFS(ADHOC!O$4:O$84,ADHOC!$A$4:$A$84,$B35,ADHOC!$B$4:$B$84,$C35,ADHOC!$C$4:$C$84,$D35) -> 68667397 | Q35: =SUMIFS(ADHOC!P$4:P$84,ADHOC!$A$4:$A$84,$B35,ADHOC!$B$4:$B$84,$C35,ADHOC!$C$4:$C$84,$D35) -> 64963492 | R35: =SUMIFS(ADHOC!Q$4:Q$84,ADHOC!$A$4:$A$84,$B35,ADHOC!$B$4:$B$84,$C35,ADHOC!$C$4:$C$84,$D35) -> 83036187 | S35: =SUMIFS(ADHOC!R$4:R$84,ADHOC!$A$4:$A$84,$B35,ADHOC!$B$4:$B$84,$C35,ADHOC!$C$4:$C$84,$D35) -> 55490875 | T35: =SUMIFS(ADHOC!S$4:S$84,ADHOC!$A$4:$A$84,$B35,ADHOC!$B$4:$B$84,$C35,ADHOC!$C$4:$C$84,$D35) -> 83533142 | U35: =SUMIFS(ADHOC!T$4:T$84,ADHOC!$A$4:$A$84,$B35,ADHOC!$B$4:$B$84,$C35,ADHOC!$C$4:$C$84,$D35) -> 65281541 | V35: =SUMIFS(ADHOC!U$4:U$84,ADHOC!$A$4:$A$84,$B35,ADHOC!$B$4:$B$84,$C35,ADHOC!$C$4:$C$84,$D35) -> 58017724 | W35: =SUMIFS(ADHOC!V$4:V$84,ADHOC!$A$4:$A$84,$B35,ADHOC!$B$4:$B$84,$C35,ADHOC!$C$4:$C$84,$D35) -> 53575443 | X35: =SUMIFS(ADHOC!W$4:W$84,ADHOC!$A$4:$A$84,$B35,ADHOC!$B$4:$B$84,$C35,ADHOC!$C$4:$C$84,$D35) -> 67678970 | Y35: =SUMIFS(ADHOC!X$4:X$84,ADHOC!$A$4:$A$84,$B35,ADHOC!$B$4:$B$84,$C35,ADHOC!$C$4:$C$84,$D35) -> 81929966 | Z35: =SUMIFS(ADHOC!Y$4:Y$84,ADHOC!$A$4:$A$84,$B35,ADHOC!$B$4:$B$84,$C35,ADHOC!$C$4:$C$84,$D35) -> 83331149 | AA35: =SUMIFS(ADHOC!Z$4:Z$84,ADHOC!$A$4:$A$84,$B35,ADHOC!$B$4:$B$84,$C35,ADHOC!$C$4:$C$84,$D35) -> 37727922 | AB35: =SUMIFS(ADHOC!AA$4:AA$84,ADHOC!$A$4:$A$84,$B35,ADHOC!$B$4:$B$84,$C35,ADHOC!$C$4:$C$84,$D35) -> 44633551
A36: 35 | B36: 33044 | C36: Secteur 5 | D36: Rayon 9 | E36: =SUMIFS(ADHOC!D$4:D$84,ADHOC!$A$4:$A$84,$B36,ADHOC!$B$4:$B$84,$C36,ADHOC!$C$4:$C$84,$D36) -> 52746741 | F36: =SUMIFS(ADHOC!E$4:E$84,ADHOC!$A$4:$A$84,$B36,ADHOC!$B$4:$B$84,$C36,ADHOC!$C$4:$C$84,$D36) -> 65370968 | G36: =SUMIFS(ADHOC!F$4:F$84,ADHOC!$A$4:$A$84,$B36,ADHOC!$B$4:$B$84,$C36,ADHOC!$C$4:$C$84,$D36) -> 53833364 | H36: =SUMIFS(ADHOC!G$4:G$84,ADHOC!$A$4:$A$84,$B36,ADHOC!$B$4:$B$84,$C36,ADHOC!$C$4:$C$84,$D36) -> 44677863 | I36: =SUMIFS(ADHOC!H$4:H$84,ADHOC!$A$4:$A$84,$B36,ADHOC!$B$4:$B$84,$C36,ADHOC!$C$4:$C$84,$D36) -> 40119628 | J36: =SUMIFS(ADHOC!I$4:I$84,ADHOC!$A$4:$A$84,$B36,ADHOC!$B$4:$B$84,$C36,ADHOC!$C$4:$C$84,$D36) -> 39092018 | K36: =SUMIFS(ADHOC!J$4:J$84,ADHOC!$A$4:$A$84,$B36,ADHOC!$B$4:$B$84,$C36,ADHOC!$C$4:$C$84,$D36) -> 67773557 | L36: =SUMIFS(ADHOC!K$4:K$84,ADHOC!$A$4:$A$84,$B36,ADHOC!$B$4:$B$84,$C36,ADHOC!$C$4:$C$84,$D36) -> 52459039 | M36: =SUMIFS(ADHOC!L$4:L$84,ADHOC!$A$4:$A$84,$B36,ADHOC!$B$4:$B$84,$C36,ADHOC!$C$4:$C$84,$D36) -> 64359674 | N36: =SUMIFS(ADHOC!M$4:M$84,ADHOC!$A$4:$A$84,$B36,ADHOC!$B$4:$B$84,$C36,ADHOC!$C$4:$C$84,$D36) -> 82139634 | O36: =SUMIFS(ADHOC!N$4:N$84,ADHOC!$A$4:$A$84,$B36,ADHOC!$B$4:$B$84,$C36,ADHOC!$C$4:$C$84,$D36) -> 82591593 | P36: =SUMIFS(ADHOC!O$4:O$84,ADHOC!$A$4:$A$84,$B36,ADHOC!$B$4:$B$84,$C36,ADHOC!$C$4:$C$84,$D36) -> 75772772 | Q36: =SUMIFS(ADHOC!P$4:P$84,ADHOC!$A$4:$A$84,$B36,ADHOC!$B$4:$B$84,$C36,ADHOC!$C$4:$C$84,$D36) -> 69466227 | R36: =SUMIFS(ADHOC!Q$4:Q$84,ADHOC!$A$4:$A$84,$B36,ADHOC!$B$4:$B$84,$C36,ADHOC!$C$4:$C$84,$D36) -> 52809500 | S36: =SUMIFS(ADHOC!R$4:R$84,ADHOC!$A$4:$A$84,$B36,ADHOC!$B$4:$B$84,$C36,ADHOC!$C$4:$C$84,$D36) -> 69204657 | T36: =SUMIFS(ADHOC!S$4:S$84,ADHOC!$A$4:$A$84,$B36,ADHOC!$B$4:$B$84,$C36,ADHOC!$C$4:$C$84,$D36) -> 42791432 | U36: =SUMIFS(ADHOC!T$4:T$84,ADHOC!$A$4:$A$84,$B36,ADHOC!$B$4:$B$84,$C36,ADHOC!$C$4:$C$84,$D36) -> 75082775 | V36: =SUMIFS(ADHOC!U$4:U$84,ADHOC!$A$4:$A$84,$B36,ADHOC!$B$4:$B$84,$C36,ADHOC!$C$4:$C$84,$D36) -> 61974117 | W36: =SUMIFS(ADHOC!V$4:V$84,ADHOC!$A$4:$A$84,$B36,ADHOC!$B$4:$B$84,$C36,ADHOC!$C$4:$C$84,$D36) -> 76033203 | X36: =SUMIFS(ADHOC!W$4:W$84,ADHOC!$A$4:$A$84,$B36,ADHOC!$B$4:$B$84,$C36,ADHOC!$C$4:$C$84,$D36) -> 42391647 | Y36: =SUMIFS(ADHOC!X$4:X$84,ADHOC!$A$4:$A$84,$B36,ADHOC!$B$4:$B$84,$C36,ADHOC!$C$4:$C$84,$D36) -> 39107257 | Z36: =SUMIFS(ADHOC!Y$4:Y$84,ADHOC!$A$4:$A$84,$B36,ADHOC!$B$4:$B$84,$C36,ADHOC!$C$4:$C$84,$D36) -> 41560366 | AA36: =SUMIFS(ADHOC!Z$4:Z$84,ADHOC!$A$4:$A$84,$B36,ADHOC!$B$4:$B$84,$C36,ADHOC!$C$4:$C$84,$D36) -> 49733221 | AB36: =SUMIFS(ADHOC!AA$4:AA$84,ADHOC!$A$4:$A$84,$B36,ADHOC!$B$4:$B$84,$C36,ADHOC!$C$4:$C$84,$D36) -> 57175637
A37: 36 | B37: 33924 | C37: Secteur 5 | D37: Rayon 10 | E37: =SUMIFS(ADHOC!D$4:D$84,ADHOC!$A$4:$A$84,$B37,ADHOC!$B$4:$B$84,$C37,ADHOC!$C$4:$C$84,$D37) -> 65591923 | F37: =SUMIFS(ADHOC!E$4:E$84,ADHOC!$A$4:$A$84,$B37,ADHOC!$B$4:$B$84,$C37,ADHOC!$C$4:$C$84,$D37) -> 59373634 | G37: =SUMIFS(ADHOC!F$4:F$84,ADHOC!$A$4:$A$84,$B37,ADHOC!$B$4:$B$84,$C37,ADHOC!$C$4:$C$84,$D37) -> 77081412 | H37: =SUMIFS(ADHOC!G$4:G$84,ADHOC!$A$4:$A$84,$B37,ADHOC!$B$4:$B$84,$C37,ADHOC!$C$4:$C$84,$D37) -> 54511487 | I37: =SUMIFS(ADHOC!H$4:H$84,ADHOC!$A$4:$A$84,$B37,ADHOC!$B$4:$B$84,$C37,ADHOC!$C$4:$C$84,$D37) -> 51183368 | J37: =SUMIFS(ADHOC!I$4:I$84,ADHOC!$A$4:$A$84,$B37,ADHOC!$B$4:$B$84,$C37,ADHOC!$C$4:$C$84,$D37) -> 70084668 | K37: =SUMIFS(ADHOC!J$4:J$84,ADHOC!$A$4:$A$84,$B37,ADHOC!$B$4:$B$84,$C37,ADHOC!$C$4:$C$84,$D37) -> 54361509 | L37: =SUMIFS(ADHOC!K$4:K$84,ADHOC!$A$4:$A$84,$B37,ADHOC!$B$4:$B$84,$C37,ADHOC!$C$4:$C$84,$D37) -> 49243389 | M37: =SUMIFS(ADHOC!L$4:L$84,ADHOC!$A$4:$A$84,$B37,ADHOC!$B$4:$B$84,$C37,ADHOC!$C$4:$C$84,$D37) -> 66423762 | N37: =SUMIFS(ADHOC!M$4:M$84,ADHOC!$A$4:$A$84,$B37,ADHOC!$B$4:$B$84,$C37,ADHOC!$C$4:$C$84,$D37) -> 62315389 | O37: =SUMIFS(ADHOC!N$4:N$84,ADHOC!$A$4:$A$84,$B37,ADHOC!$B$4:$B$84,$C37,ADHOC!$C$4:$C$84,$D37) -> 73246849 | P37: =SUMIFS(ADHOC!O$4:O$84,ADHOC!$A$4:$A$84,$B37,ADHOC!$B$4:$B$84,$C37,ADHOC!$C$4:$C$84,$D37) -> 52719836 | Q37: =SUMIFS(ADHOC!P$4:P$84,ADHOC!$A$4:$A$84,$B37,ADHOC!$B$4:$B$84,$C37,ADHOC!$C$4:$C$84,$D37) -> 47650362 | R37: =SUMIFS(ADHOC!Q$4:Q$84,ADHOC!$A$4:$A$84,$B37,ADHOC!$B$4:$B$84,$C37,ADHOC!$C$4:$C$84,$D37) -> 51714118 | S37: =SUMIFS(ADHOC!R$4:R$84,ADHOC!$A$4:$A$84,$B37,ADHOC!$B$4:$B$84,$C37,ADHOC!$C$4:$C$84,$D37) -> 51460439 | T37: =SUMIFS(ADHOC!S$4:S$84,ADHOC!$A$4:$A$84,$B37,ADHOC!$B$4:$B$84,$C37,ADHOC!$C$4:$C$84,$D37) -> 79212721 | U37: =SUMIFS(ADHOC!T$4:T$84,ADHOC!$A$4:$A$84,$B37,ADHOC!$B$4:$B$84,$C37,ADHOC!$C$4:$C$84,$D37) -> 63139124 | V37: =SUMIFS(ADHOC!U$4:U$84,ADHOC!$A$4:$A$84,$B37,ADHOC!$B$4:$B$84,$C37,ADHOC!$C$4:$C$84,$D37) -> 52085545 | W37: =SUMIFS(ADHOC!V$4:V$84,ADHOC!$A$4:$A$84,$B37,ADHOC!$B$4:$B$84,$C37,ADHOC!$C$4:$C$84,$D37) -> 75034748 | X37: =SUMIFS(ADHOC!W$4:W$84,ADHOC!$A$4:$A$84,$B37,ADHOC!$B$4:$B$84,$C37,ADHOC!$C$4:$C$84,$D37) -> 61991300 | Y37: =SUMIFS(ADHOC!X$4:X$84,ADHOC!$A$4:$A$84,$B37,ADHOC!$B$4:$B$84,$C37,ADHOC!$C$4:$C$84,$D37) -> 49915288 | Z37: =SUMIFS(ADHOC!Y$4:Y$84,ADHOC!$A$4:$A$84,$B37,ADHOC!$B$4:$B$84,$C37,ADHOC!$C$4:$C$84,$D37) -> 70636430 | AA37: =SUMIFS(ADHOC!Z$4:Z$84,ADHOC!$A$4:$A$84,$B37,ADHOC!$B$4:$B$84,$C37,ADHOC!$C$4:$C$84,$D37) -> 68254924 | AB37: =SUMIFS(ADHOC!AA$4:AA$84,ADHOC!$A$4:$A$84,$B37,ADHOC!$B$4:$B$84,$C37,ADHOC!$C$4:$C$84,$D37) -> 67900609
A38: 37 | B38: 32861 | C38: Secteur 5 | D38: Rayon 11 | E38: =SUMIFS(ADHOC!D$4:D$84,ADHOC!$A$4:$A$84,$B38,ADHOC!$B$4:$B$84,$C38,ADHOC!$C$4:$C$84,$D38) -> 47757237 | F38: =SUMIFS(ADHOC!E$4:E$84,ADHOC!$A$4:$A$84,$B38,ADHOC!$B$4:$B$84,$C38,ADHOC!$C$4:$C$84,$D38) -> 63337134 | G38: =SUMIFS(ADHOC!F$4:F$84,ADHOC!$A$4:$A$84,$B38,ADHOC!$B$4:$B$84,$C38,ADHOC!$C$4:$C$84,$D38) -> 75857912 | H38: =SUMIFS(ADHOC!G$4:G$84,ADHOC!$A$4:$A$84,$B38,ADHOC!$B$4:$B$84,$C38,ADHOC!$C$4:$C$84,$D38) -> 60013802 | I38: =SUMIFS(ADHOC!H$4:H$84,ADHOC!$A$4:$A$84,$B38,ADHOC!$B$4:$B$84,$C38,ADHOC!$C$4:$C$84,$D38) -> 51622765 | J38: =SUMIFS(ADHOC!I$4:I$84,ADHOC!$A$4:$A$84,$B38,ADHOC!$B$4:$B$84,$C38,ADHOC!$C$4:$C$84,$D38) -> 76060793 | K38: =SUMIFS(ADHOC!J$4:J$84,ADHOC!$A$4:$A$84,$B38,ADHOC!$B$4:$B$84,$C38,ADHOC!$C$4:$C$84,$D38) -> 56599826 | L38: =SUMIFS(ADHOC!K$4:K$84,ADHOC!$A$4:$A$84,$B38,ADHOC!$B$4:$B$84,$C38,ADHOC!$C$4:$C$84,$D38) -> 51932078 | M38: =SUMIFS(ADHOC!L$4:L$84,ADHOC!$A$4:$A$84,$B38,ADHOC!$B$4:$B$84,$C38,ADHOC!$C$4:$C$84,$D38) -> 44226279 | N38: =SUMIFS(ADHOC!M$4:M$84,ADHOC!$A$4:$A$84,$B38,ADHOC!$B$4:$B$84,$C38,ADHOC!$C$4:$C$84,$D38) -> 65069548 | O38: =SUMIFS(ADHOC!N$4:N$84,ADHOC!$A$4:$A$84,$B38,ADHOC!$B$4:$B$84,$C38,ADHOC!$C$4:$C$84,$D38) -> 47403220 | P38: =SUMIFS(ADHOC!O$4:O$84,ADHOC!$A$4:$A$84,$B38,ADHOC!$B$4:$B$84,$C38,ADHOC!$C$4:$C$84,$D38) -> 41572879 | Q38: =SUMIFS(ADHOC!P$4:P$84,ADHOC!$A$4:$A$84,$B38,ADHOC!$B$4:$B$84,$C38,ADHOC!$C$4:$C$84,$D38) -> 51802367 | R38: =SUMIFS(ADHOC!Q$4:Q$84,ADHOC!$A$4:$A$84,$B38,ADHOC!$B$4:$B$84,$C38,ADHOC!$C$4:$C$84,$D38) -> 66905052 | S38: =SUMIFS(ADHOC!R$4:R$84,ADHOC!$A$4:$A$84,$B38,ADHOC!$B$4:$B$84,$C38,ADHOC!$C$4:$C$84,$D38) -> 64855297 | T38: =SUMIFS(ADHOC!S$4:S$84,ADHOC!$A$4:$A$84,$B38,ADHOC!$B$4:$B$84,$C38,ADHOC!$C$4:$C$84,$D38) -> 79285541 | U38: =SUMIFS(ADHOC!T$4:T$84,ADHOC!$A$4:$A$84,$B38,ADHOC!$B$4:$B$84,$C38,ADHOC!$C$4:$C$84,$D38) -> 48377025 | V38: =SUMIFS(ADHOC!U$4:U$84,ADHOC!$A$4:$A$84,$B38,ADHOC!$B$4:$B$84,$C38,ADHOC!$C$4:$C$84,$D38) -> 35801396 | W38: =SUMIFS(ADHOC!V$4:V$84,ADHOC!$A$4:$A$84,$B38,ADHOC!$B$4:$B$84,$C38,ADHOC!$C$4:$C$84,$D38) -> 62080959 | X38: =SUMIFS(ADHOC!W$4:W$84,ADHOC!$A$4:$A$84,$B38,ADHOC!$B$4:$B$84,$C38,ADHOC!$C$4:$C$84,$D38) -> 55965122 | Y38: =SUMIFS(ADHOC!X$4:X$84,ADHOC!$A$4:$A$84,$B38,ADHOC!$B$4:$B$84,$C38,ADHOC!$C$4:$C$84,$D38) -> 52597368 | Z38: =SUMIFS(ADHOC!Y$4:Y$84,ADHOC!$A$4:$A$84,$B38,ADHOC!$B$4:$B$84,$C38,ADHOC!$C$4:$C$84,$D38) -> 43817991 | AA38: =SUMIFS(ADHOC!Z$4:Z$84,ADHOC!$A$4:$A$84,$B38,ADHOC!$B$4:$B$84,$C38,ADHOC!$C$4:$C$84,$D38) -> 41625913 | AB38: =SUMIFS(ADHOC!AA$4:AA$84,ADHOC!$A$4:$A$84,$B38,ADHOC!$B$4:$B$84,$C38,ADHOC!$C$4:$C$84,$D38) -> 73793075
A39: 38 | B39: 32392 | C39: Secteur 5 | D39: Rayon 27 | E39: =SUMIFS(ADHOC!D$4:D$84,ADHOC!$A$4:$A$84,$B39,ADHOC!$B$4:$B$84,$C39,ADHOC!$C$4:$C$84,$D39) -> 57210152 | F39: =SUMIFS(ADHOC!E$4:E$84,ADHOC!$A$4:$A$84,$B39,ADHOC!$B$4:$B$84,$C39,ADHOC!$C$4:$C$84,$D39) -> 56775881 | G39: =SUMIFS(ADHOC!F$4:F$84,ADHOC!$A$4:$A$84,$B39,ADHOC!$B$4:$B$84,$C39,ADHOC!$C$4:$C$84,$D39) -> 59718273 | H39: =SUMIFS(ADHOC!G$4:G$84,ADHOC!$A$4:$A$84,$B39,ADHOC!$B$4:$B$84,$C39,ADHOC!$C$4:$C$84,$D39) -> 66268487 | I39: =SUMIFS(ADHOC!H$4:H$84,ADHOC!$A$4:$A$84,$B39,ADHOC!$B$4:$B$84,$C39,ADHOC!$C$4:$C$84,$D39) -> 55561138 | J39: =SUMIFS(ADHOC!I$4:I$84,ADHOC!$A$4:$A$84,$B39,ADHOC!$B$4:$B$84,$C39,ADHOC!$C$4:$C$84,$D39) -> 44894651 | K39: =SUMIFS(ADHOC!J$4:J$84,ADHOC!$A$4:$A$84,$B39,ADHOC!$B$4:$B$84,$C39,ADHOC!$C$4:$C$84,$D39) -> 49917254 | L39: =SUMIFS(ADHOC!K$4:K$84,ADHOC!$A$4:$A$84,$B39,ADHOC!$B$4:$B$84,$C39,ADHOC!$C$4:$C$84,$D39) -> 72852629 | M39: =SUMIFS(ADHOC!L$4:L$84,ADHOC!$A$4:$A$84,$B39,ADHOC!$B$4:$B$84,$C39,ADHOC!$C$4:$C$84,$D39) -> 45919545 | N39: =SUMIFS(ADHOC!M$4:M$84,ADHOC!$A$4:$A$84,$B39,ADHOC!$B$4:$B$84,$C39,ADHOC!$C$4:$C$84,$D39) -> 71422054 | O39: =SUMIFS(ADHOC!N$4:N$84,ADHOC!$A$4:$A$84,$B39,ADHOC!$B$4:$B$84,$C39,ADHOC!$C$4:$C$84,$D39) -> 79167434 | P39: =SUMIFS(ADHOC!O$4:O$84,ADHOC!$A$4:$A$84,$B39,ADHOC!$B$4:$B$84,$C39,ADHOC!$C$4:$C$84,$D39) -> 39183590 | Q39: =SUMIFS(ADHOC!P$4:P$84,ADHOC!$A$4:$A$84,$B39,ADHOC!$B$4:$B$84,$C39,ADHOC!$C$4:$C$84,$D39) -> 73926004 | R39: =SUMIFS(ADHOC!Q$4:Q$84,ADHOC!$A$4:$A$84,$B39,ADHOC!$B$4:$B$84,$C39,ADHOC!$C$4:$C$84,$D39) -> 62572653 | S39: =SUMIFS(ADHOC!R$4:R$84,ADHOC!$A$4:$A$84,$B39,ADHOC!$B$4:$B$84,$C39,ADHOC!$C$4:$C$84,$D39) -> 35806918 | T39: =SUMIFS(ADHOC!S$4:S$84,ADHOC!$A$4:$A$84,$B39,ADHOC!$B$4:$B$84,$C39,ADHOC!$C$4:$C$84,$D39) -> 78368532 | U39: =SUMIFS(ADHOC!T$4:T$84,ADHOC!$A$4:$A$84,$B39,ADHOC!$B$4:$B$84,$C39,ADHOC!$C$4:$C$84,$D39) -> 59495195 | V39: =SUMIFS(ADHOC!U$4:U$84,ADHOC!$A$4:$A$84,$B39,ADHOC!$B$4:$B$84,$C39,ADHOC!$C$4:$C$84,$D39) -> 38943794 | W39: =SUMIFS(ADHOC!V$4:V$84,ADHOC!$A$4:$A$84,$B39,ADHOC!$B$4:$B$84,$C39,ADHOC!$C$4:$C$84,$D39) -> 74133545 | X39: =SUMIFS(ADHOC!W$4:W$84,ADHOC!$A$4:$A$84,$B39,ADHOC!$B$4:$B$84,$C39,ADHOC!$C$4:$C$84,$D39) -> 64701658 | Y39: =SUMIFS(ADHOC!X$4:X$84,ADHOC!$A$4:$A$84,$B39,ADHOC!$B$4:$B$84,$C39,ADHOC!$C$4:$C$84,$D39) -> 80089208 | Z39: =SUMIFS(ADHOC!Y$4:Y$84,ADHOC!$A$4:$A$84,$B39,ADHOC!$B$4:$B$84,$C39,ADHOC!$C$4:$C$84,$D39) -> 37364690 | AA39: =SUMIFS(ADHOC!Z$4:Z$84,ADHOC!$A$4:$A$84,$B39,ADHOC!$B$4:$B$84,$C39,ADHOC!$C$4:$C$84,$D39) -> 36968703 | AB39: =SUMIFS(ADHOC!AA$4:AA$84,ADHOC!$A$4:$A$84,$B39,ADHOC!$B$4:$B$84,$C39,ADHOC!$C$4:$C$84,$D39) -> 38587833
A40: 39 | B40: 33704 | C40: Secteur 6 | D40: Rayon 28 | E40: =SUMIFS(ADHOC!D$4:D$84,ADHOC!$A$4:$A$84,$B40,ADHOC!$B$4:$B$84,$C40,ADHOC!$C$4:$C$84,$D40) -> 76311887 | F40: =SUMIFS(ADHOC!E$4:E$84,ADHOC!$A$4:$A$84,$B40,ADHOC!$B$4:$B$84,$C40,ADHOC!$C$4:$C$84,$D40) -> 55348730 | G40: =SUMIFS(ADHOC!F$4:F$84,ADHOC!$A$4:$A$84,$B40,ADHOC!$B$4:$B$84,$C40,ADHOC!$C$4:$C$84,$D40) -> 81924794 | H40: =SUMIFS(ADHOC!G$4:G$84,ADHOC!$A$4:$A$84,$B40,ADHOC!$B$4:$B$84,$C40,ADHOC!$C$4:$C$84,$D40) -> 52346504 | I40: =SUMIFS(ADHOC!H$4:H$84,ADHOC!$A$4:$A$84,$B40,ADHOC!$B$4:$B$84,$C40,ADHOC!$C$4:$C$84,$D40) -> 74064140 | J40: =SUMIFS(ADHOC!I$4:I$84,ADHOC!$A$4:$A$84,$B40,ADHOC!$B$4:$B$84,$C40,ADHOC!$C$4:$C$84,$D40) -> 73794281 | K40: =SUMIFS(ADHOC!J$4:J$84,ADHOC!$A$4:$A$84,$B40,ADHOC!$B$4:$B$84,$C40,ADHOC!$C$4:$C$84,$D40) -> 73026062 | L40: =SUMIFS(ADHOC!K$4:K$84,ADHOC!$A$4:$A$84,$B40,ADHOC!$B$4:$B$84,$C40,ADHOC!$C$4:$C$84,$D40) -> 76552663 | M40: =SUMIFS(ADHOC!L$4:L$84,ADHOC!$A$4:$A$84,$B40,ADHOC!$B$4:$B$84,$C40,ADHOC!$C$4:$C$84,$D40) -> 81059464 | N40: =SUMIFS(ADHOC!M$4:M$84,ADHOC!$A$4:$A$84,$B40,ADHOC!$B$4:$B$84,$C40,ADHOC!$C$4:$C$84,$D40) -> 57025672 | O40: =SUMIFS(ADHOC!N$4:N$84,ADHOC!$A$4:$A$84,$B40,ADHOC!$B$4:$B$84,$C40,ADHOC!$C$4:$C$84,$D40) -> 52245099 | P40: =SUMIFS(ADHOC!O$4:O$84,ADHOC!$A$4:$A$84,$B40,ADHOC!$B$4:$B$84,$C40,ADHOC!$C$4:$C$84,$D40) -> 49340419 | Q40: =SUMIFS(ADHOC!P$4:P$84,ADHOC!$A$4:$A$84,$B40,ADHOC!$B$4:$B$84,$C40,ADHOC!$C$4:$C$84,$D40) -> 58142334 | R40: =SUMIFS(ADHOC!Q$4:Q$84,ADHOC!$A$4:$A$84,$B40,ADHOC!$B$4:$B$84,$C40,ADHOC!$C$4:$C$84,$D40) -> 61076669 | S40: =SUMIFS(ADHOC!R$4:R$84,ADHOC!$A$4:$A$84,$B40,ADHOC!$B$4:$B$84,$C40,ADHOC!$C$4:$C$84,$D40) -> 74420175 | T40: =SUMIFS(ADHOC!S$4:S$84,ADHOC!$A$4:$A$84,$B40,ADHOC!$B$4:$B$84,$C40,ADHOC!$C$4:$C$84,$D40) -> 41820108 | U40: =SUMIFS(ADHOC!T$4:T$84,ADHOC!$A$4:$A$84,$B40,ADHOC!$B$4:$B$84,$C40,ADHOC!$C$4:$C$84,$D40) -> 60173287 | V40: =SUMIFS(ADHOC!U$4:U$84,ADHOC!$A$4:$A$84,$B40,ADHOC!$B$4:$B$84,$C40,ADHOC!$C$4:$C$84,$D40) -> 59253490 | W40: =SUMIFS(ADHOC!V$4:V$84,ADHOC!$A$4:$A$84,$B40,ADHOC!$B$4:$B$84,$C40,ADHOC!$C$4:$C$84,$D40) -> 71127880 | X40: =SUMIFS(ADHOC!W$4:W$84,ADHOC!$A$4:$A$84,$B40,ADHOC!$B$4:$B$84,$C40,ADHOC!$C$4:$C$84,$D40) -> 56280847 | Y40: =SUMIFS(ADHOC!X$4:X$84,ADHOC!$A$4:$A$84,$B40,ADHOC!$B$4:$B$84,$C40,ADHOC!$C$4:$C$84,$D40) -> 70283260 | Z40: =SUMIFS(ADHOC!Y$4:Y$84,ADHOC!$A$4:$A$84,$B40,ADHOC!$B$4:$B$84,$C40,ADHOC!$C$4:$C$84,$D40) -> 46861936 | AA40: =SUMIFS(ADHOC!Z$4:Z$84,ADHOC!$A$4:$A$84,$B40,ADHOC!$B$4:$B$84,$C40,ADHOC!$C$4:$C$84,$D40) -> 45072888 | AB40: =SUMIFS(ADHOC!AA$4:AA$84,ADHOC!$A$4:$A$84,$B40,ADHOC!$B$4:$B$84,$C40,ADHOC!$C$4:$C$84,$D40) -> 75471510
A41: 40 | B41: 32221 | C41: Secteur 6 | D41: Rayon 29 | E41: =SUMIFS(ADHOC!D$4:D$84,ADHOC!$A$4:$A$84,$B41,ADHOC!$B$4:$B$84,$C41,ADHOC!$C$4:$C$84,$D41) -> 61048391 | F41: =SUMIFS(ADHOC!E$4:E$84,ADHOC!$A$4:$A$84,$B41,ADHOC!$B$4:$B$84,$C41,ADHOC!$C$4:$C$84,$D41) -> 56749880 | G41: =SUMIFS(ADHOC!F$4:F$84,ADHOC!$A$4:$A$84,$B41,ADHOC!$B$4:$B$84,$C41,ADHOC!$C$4:$C$84,$D41) -> 37324925 | H41: =SUMIFS(ADHOC!G$4:G$84,ADHOC!$A$4:$A$84,$B41,ADHOC!$B$4:$B$84,$C41,ADHOC!$C$4:$C$84,$D41) -> 81843448 | I41: =SUMIFS(ADHOC!H$4:H$84,ADHOC!$A$4:$A$84,$B41,ADHOC!$B$4:$B$84,$C41,ADHOC!$C$4:$C$84,$D41) -> 69221581 | J41: =SUMIFS(ADHOC!I$4:I$84,ADHOC!$A$4:$A$84,$B41,ADHOC!$B$4:$B$84,$C41,ADHOC!$C$4:$C$84,$D41) -> 66007898 | K41: =SUMIFS(ADHOC!J$4:J$84,ADHOC!$A$4:$A$84,$B41,ADHOC!$B$4:$B$84,$C41,ADHOC!$C$4:$C$84,$D41) -> 51032641 | L41: =SUMIFS(ADHOC!K$4:K$84,ADHOC!$A$4:$A$84,$B41,ADHOC!$B$4:$B$84,$C41,ADHOC!$C$4:$C$84,$D41) -> 74080423 | M41: =SUMIFS(ADHOC!L$4:L$84,ADHOC!$A$4:$A$84,$B41,ADHOC!$B$4:$B$84,$C41,ADHOC!$C$4:$C$84,$D41) -> 68269115 | N41: =SUMIFS(ADHOC!M$4:M$84,ADHOC!$A$4:$A$84,$B41,ADHOC!$B$4:$B$84,$C41,ADHOC!$C$4:$C$84,$D41) -> 56546730 | O41: =SUMIFS(ADHOC!N$4:N$84,ADHOC!$A$4:$A$84,$B41,ADHOC!$B$4:$B$84,$C41,ADHOC!$C$4:$C$84,$D41) -> 43847823 | P41: =SUMIFS(ADHOC!O$4:O$84,ADHOC!$A$4:$A$84,$B41,ADHOC!$B$4:$B$84,$C41,ADHOC!$C$4:$C$84,$D41) -> 57369930 | Q41: =SUMIFS(ADHOC!P$4:P$84,ADHOC!$A$4:$A$84,$B41,ADHOC!$B$4:$B$84,$C41,ADHOC!$C$4:$C$84,$D41) -> 81949228 | R41: =SUMIFS(ADHOC!Q$4:Q$84,ADHOC!$A$4:$A$84,$B41,ADHOC!$B$4:$B$84,$C41,ADHOC!$C$4:$C$84,$D41) -> 45484626 | S41: =SUMIFS(ADHOC!R$4:R$84,ADHOC!$A$4:$A$84,$B41,ADHOC!$B$4:$B$84,$C41,ADHOC!$C$4:$C$84,$D41) -> 52953593 | T41: =SUMIFS(ADHOC!S$4:S$84,ADHOC!$A$4:$A$84,$B41,ADHOC!$B$4:$B$84,$C41,ADHOC!$C$4:$C$84,$D41) -> 46040029 | U41: =SUMIFS(ADHOC!T$4:T$84,ADHOC!$A$4:$A$84,$B41,ADHOC!$B$4:$B$84,$C41,ADHOC!$C$4:$C$84,$D41) -> 55428498 | V41: =SUMIFS(ADHOC!U$4:U$84,ADHOC!$A$4:$A$84,$B41,ADHOC!$B$4:$B$84,$C41,ADHOC!$C$4:$C$84,$D41) -> 52477305 | W41: =SUMIFS(ADHOC!V$4:V$84,ADHOC!$A$4:$A$84,$B41,ADHOC!$B$4:$B$84,$C41,ADHOC!$C$4:$C$84,$D41) -> 36177582 | X41: =SUMIFS(ADHOC!W$4:W$84,ADHOC!$A$4:$A$84,$B41,ADHOC!$B$4:$B$84,$C41,ADHOC!$C$4:$C$84,$D41) -> 42149747 | Y41: =SUMIFS(ADHOC!X$4:X$84,ADHOC!$A$4:$A$84,$B41,ADHOC!$B$4:$B$84,$C41,ADHOC!$C$4:$C$84,$D41) -> 65800048 | Z41: =SUMIFS(ADHOC!Y$4:Y$84,ADHOC!$A$4:$A$84,$B41,ADHOC!$B$4:$B$84,$C41,ADHOC!$C$4:$C$84,$D41) -> 53114562 | AA41: =SUMIFS(ADHOC!Z$4:Z$84,ADHOC!$A$4:$A$84,$B41,ADHOC!$B$4:$B$84,$C41,ADHOC!$C$4:$C$84,$D41) -> 47992621 | AB41: =SUMIFS(ADHOC!AA$4:AA$84,ADHOC!$A$4:$A$84,$B41,ADHOC!$B$4:$B$84,$C41,ADHOC!$C$4:$C$84,$D41) -> 35988483
A42: 41 | B42: 33841 | C42: Secteur 6 | D42: Rayon 30 | E42: =SUMIFS(ADHOC!D$4:D$84,ADHOC!$A$4:$A$84,$B42,ADHOC!$B$4:$B$84,$C42,ADHOC!$C$4:$C$84,$D42) -> 40821253 | F42: =SUMIFS(ADHOC!E$4:E$84,ADHOC!$A$4:$A$84,$B42,ADHOC!$B$4:$B$84,$C42,ADHOC!$C$4:$C$84,$D42) -> 45652191 | G42: =SUMIFS(ADHOC!F$4:F$84,ADHOC!$A$4:$A$84,$B42,ADHOC!$B$4:$B$84,$C42,ADHOC!$C$4:$C$84,$D42) -> 48501510 | H42: =SUMIFS(ADHOC!G$4:G$84,ADHOC!$A$4:$A$84,$B42,ADHOC!$B$4:$B$84,$C42,ADHOC!$C$4:$C$84,$D42) -> 66534778 | I42: =SUMIFS(ADHOC!H$4:H$84,ADHOC!$A$4:$A$84,$B42,ADHOC!$B$4:$B$84,$C42,ADHOC!$C$4:$C$84,$D42) -> 54987601 | J42: =SUMIFS(ADHOC!I$4:I$84,ADHOC!$A$4:$A$84,$B42,ADHOC!$B$4:$B$84,$C42,ADHOC!$C$4:$C$84,$D42) -> 37113884 | K42: =SUMIFS(ADHOC!J$4:J$84,ADHOC!$A$4:$A$84,$B42,ADHOC!$B$4:$B$84,$C42,ADHOC!$C$4:$C$84,$D42) -> 79342986 | L42: =SUMIFS(ADHOC!K$4:K$84,ADHOC!$A$4:$A$84,$B42,ADHOC!$B$4:$B$84,$C42,ADHOC!$C$4:$C$84,$D42) -> 57759269 | M42: =SUMIFS(ADHOC!L$4:L$84,ADHOC!$A$4:$A$84,$B42,ADHOC!$B$4:$B$84,$C42,ADHOC!$C$4:$C$84,$D42) -> 50844506 | N42: =SUMIFS(ADHOC!M$4:M$84,ADHOC!$A$4:$A$84,$B42,ADHOC!$B$4:$B$84,$C42,ADHOC!$C$4:$C$84,$D42) -> 72974574 | O42: =SUMIFS(ADHOC!N$4:N$84,ADHOC!$A$4:$A$84,$B42,ADHOC!$B$4:$B$84,$C42,ADHOC!$C$4:$C$84,$D42) -> 41962419 | P42: =SUMIFS(ADHOC!O$4:O$84,ADHOC!$A$4:$A$84,$B42,ADHOC!$B$4:$B$84,$C42,ADHOC!$C$4:$C$84,$D42) -> 73448104 | Q42: =SUMIFS(ADHOC!P$4:P$84,ADHOC!$A$4:$A$84,$B42,ADHOC!$B$4:$B$84,$C42,ADHOC!$C$4:$C$84,$D42) -> 70058309 | R42: =SUMIFS(ADHOC!Q$4:Q$84,ADHOC!$A$4:$A$84,$B42,ADHOC!$B$4:$B$84,$C42,ADHOC!$C$4:$C$84,$D42) -> 37720382 | S42: =SUMIFS(ADHOC!R$4:R$84,ADHOC!$A$4:$A$84,$B42,ADHOC!$B$4:$B$84,$C42,ADHOC!$C$4:$C$84,$D42) -> 65593707 | T42: =SUMIFS(ADHOC!S$4:S$84,ADHOC!$A$4:$A$84,$B42,ADHOC!$B$4:$B$84,$C42,ADHOC!$C$4:$C$84,$D42) -> 51132343 | U42: =SUMIFS(ADHOC!T$4:T$84,ADHOC!$A$4:$A$84,$B42,ADHOC!$B$4:$B$84,$C42,ADHOC!$C$4:$C$84,$D42) -> 55795375 | V42: =SUMIFS(ADHOC!U$4:U$84,ADHOC!$A$4:$A$84,$B42,ADHOC!$B$4:$B$84,$C42,ADHOC!$C$4:$C$84,$D42) -> 36362734 | W42: =SUMIFS(ADHOC!V$4:V$84,ADHOC!$A$4:$A$84,$B42,ADHOC!$B$4:$B$84,$C42,ADHOC!$C$4:$C$84,$D42) -> 38358179 | X42: =SUMIFS(ADHOC!W$4:W$84,ADHOC!$A$4:$A$84,$B42,ADHOC!$B$4:$B$84,$C42,ADHOC!$C$4:$C$84,$D42) -> 66324879 | Y42: =SUMIFS(ADHOC!X$4:X$84,ADHOC!$A$4:$A$84,$B42,ADHOC!$B$4:$B$84,$C42,ADHOC!$C$4:$C$84,$D42) -> 41653434 | Z42: =SUMIFS(ADHOC!Y$4:Y$84,ADHOC!$A$4:$A$84,$B42,ADHOC!$B$4:$B$84,$C42,ADHOC!$C$4:$C$84,$D42) -> 37509603 | AA42: =SUMIFS(ADHOC!Z$4:Z$84,ADHOC!$A$4:$A$84,$B42,ADHOC!$B$4:$B$84,$C42,ADHOC!$C$4:$C$84,$D42) -> 37752113 | AB42: =SUMIFS(ADHOC!AA$4:AA$84,ADHOC!$A$4:$A$84,$B42,ADHOC!$B$4:$B$84,$C42,ADHOC!$C$4:$C$84,$D42) -> 63054103
A43: 42 | B43: 33097 | C43: Secteur 6 | D43: Rayon 31 | E43: =SUMIFS(ADHOC!D$4:D$84,ADHOC!$A$4:$A$84,$B43,ADHOC!$B$4:$B$84,$C43,ADHOC!$C$4:$C$84,$D43) -> 45053857 | F43: =SUMIFS(ADHOC!E$4:E$84,ADHOC!$A$4:$A$84,$B43,ADHOC!$B$4:$B$84,$C43,ADHOC!$C$4:$C$84,$D43) -> 66753117 | G43: =SUMIFS(ADHOC!F$4:F$84,ADHOC!$A$4:$A$84,$B43,ADHOC!$B$4:$B$84,$C43,ADHOC!$C$4:$C$84,$D43) -> 46114002 | H43: =SUMIFS(ADHOC!G$4:G$84,ADHOC!$A$4:$A$84,$B43,ADHOC!$B$4:$B$84,$C43,ADHOC!$C$4:$C$84,$D43) -> 52205189 | I43: =SUMIFS(ADHOC!H$4:H$84,ADHOC!$A$4:$A$84,$B43,ADHOC!$B$4:$B$84,$C43,ADHOC!$C$4:$C$84,$D43) -> 43112385 | J43: =SUMIFS(ADHOC!I$4:I$84,ADHOC!$A$4:$A$84,$B43,ADHOC!$B$4:$B$84,$C43,ADHOC!$C$4:$C$84,$D43) -> 49481804 | K43: =SUMIFS(ADHOC!J$4:J$84,ADHOC!$A$4:$A$84,$B43,ADHOC!$B$4:$B$84,$C43,ADHOC!$C$4:$C$84,$D43) -> 78626234 | L43: =SUMIFS(ADHOC!K$4:K$84,ADHOC!$A$4:$A$84,$B43,ADHOC!$B$4:$B$84,$C43,ADHOC!$C$4:$C$84,$D43) -> 81728978 | M43: =SUMIFS(ADHOC!L$4:L$84,ADHOC!$A$4:$A$84,$B43,ADHOC!$B$4:$B$84,$C43,ADHOC!$C$4:$C$84,$D43) -> 35982593 | N43: =SUMIFS(ADHOC!M$4:M$84,ADHOC!$A$4:$A$84,$B43,ADHOC!$B$4:$B$84,$C43,ADHOC!$C$4:$C$84,$D43) -> 78648778 | O43: =SUMIFS(ADHOC!N$4:N$84,ADHOC!$A$4:$A$84,$B43,ADHOC!$B$4:$B$84,$C43,ADHOC!$C$4:$C$84,$D43) -> 83313607 | P43: =SUMIFS(ADHOC!O$4:O$84,ADHOC!$A$4:$A$84,$B43,ADHOC!$B$4:$B$84,$C43,ADHOC!$C$4:$C$84,$D43) -> 68033901 | Q43: =SUMIFS(ADHOC!P$4:P$84,ADHOC!$A$4:$A$84,$B43,ADHOC!$B$4:$B$84,$C43,ADHOC!$C$4:$C$84,$D43) -> 69208973 | R43: =SUMIFS(ADHOC!Q$4:Q$84,ADHOC!$A$4:$A$84,$B43,ADHOC!$B$4:$B$84,$C43,ADHOC!$C$4:$C$84,$D43) -> 56200559 | S43: =SUMIFS(ADHOC!R$4:R$84,ADHOC!$A$4:$A$84,$B43,ADHOC!$B$4:$B$84,$C43,ADHOC!$C$4:$C$84,$D43) -> 52334772 | T43: =SUMIFS(ADHOC!S$4:S$84,ADHOC!$A$4:$A$84,$B43,ADHOC!$B$4:$B$84,$C43,ADHOC!$C$4:$C$84,$D43) -> 53223414 | U43: =SUMIFS(ADHOC!T$4:T$84,ADHOC!$A$4:$A$84,$B43,ADHOC!$B$4:$B$84,$C43,ADHOC!$C$4:$C$84,$D43) -> 55606309 | V43: =SUMIFS(ADHOC!U$4:U$84,ADHOC!$A$4:$A$84,$B43,ADHOC!$B$4:$B$84,$C43,ADHOC!$C$4:$C$84,$D43) -> 53458775 | W43: =SUMIFS(ADHOC!V$4:V$84,ADHOC!$A$4:$A$84,$B43,ADHOC!$B$4:$B$84,$C43,ADHOC!$C$4:$C$84,$D43) -> 44162214 | X43: =SUMIFS(ADHOC!W$4:W$84,ADHOC!$A$4:$A$84,$B43,ADHOC!$B$4:$B$84,$C43,ADHOC!$C$4:$C$84,$D43) -> 55166264 | Y43: =SUMIFS(ADHOC!X$4:X$84,ADHOC!$A$4:$A$84,$B43,ADHOC!$B$4:$B$84,$C43,ADHOC!$C$4:$C$84,$D43) -> 80734440 | Z43: =SUMIFS(ADHOC!Y$4:Y$84,ADHOC!$A$4:$A$84,$B43,ADHOC!$B$4:$B$84,$C43,ADHOC!$C$4:$C$84,$D43) -> 45644276 | AA43: =SUMIFS(ADHOC!Z$4:Z$84,ADHOC!$A$4:$A$84,$B43,ADHOC!$B$4:$B$84,$C43,ADHOC!$C$4:$C$84,$D43) -> 58635417 | AB43: =SUMIFS(ADHOC!AA$4:AA$84,ADHOC!$A$4:$A$84,$B43,ADHOC!$B$4:$B$84,$C43,ADHOC!$C$4:$C$84,$D43) -> 41475999
A44: 43 | B44: 33904 | C44: Secteur 6 | D44: Rayon 32 | E44: =SUMIFS(ADHOC!D$4:D$84,ADHOC!$A$4:$A$84,$B44,ADHOC!$B$4:$B$84,$C44,ADHOC!$C$4:$C$84,$D44) -> 70436149 | F44: =SUMIFS(ADHOC!E$4:E$84,ADHOC!$A$4:$A$84,$B44,ADHOC!$B$4:$B$84,$C44,ADHOC!$C$4:$C$84,$D44) -> 60021781 | G44: =SUMIFS(ADHOC!F$4:F$84,ADHOC!$A$4:$A$84,$B44,ADHOC!$B$4:$B$84,$C44,ADHOC!$C$4:$C$84,$D44) -> 46898161 | H44: =SUMIFS(ADHOC!G$4:G$84,ADHOC!$A$4:$A$84,$B44,ADHOC!$B$4:$B$84,$C44,ADHOC!$C$4:$C$84,$D44) -> 61408907 | I44: =SUMIFS(ADHOC!H$4:H$84,ADHOC!$A$4:$A$84,$B44,ADHOC!$B$4:$B$84,$C44,ADHOC!$C$4:$C$84,$D44) -> 46592555 | J44: =SUMIFS(ADHOC!I$4:I$84,ADHOC!$A$4:$A$84,$B44,ADHOC!$B$4:$B$84,$C44,ADHOC!$C$4:$C$84,$D44) -> 43413347 | K44: =SUMIFS(ADHOC!J$4:J$84,ADHOC!$A$4:$A$84,$B44,ADHOC!$B$4:$B$84,$C44,ADHOC!$C$4:$C$84,$D44) -> 40619885 | L44: =SUMIFS(ADHOC!K$4:K$84,ADHOC!$A$4:$A$84,$B44,ADHOC!$B$4:$B$84,$C44,ADHOC!$C$4:$C$84,$D44) -> 74975187 | M44: =SUMIFS(ADHOC!L$4:L$84,ADHOC!$A$4:$A$84,$B44,ADHOC!$B$4:$B$84,$C44,ADHOC!$C$4:$C$84,$D44) -> 63728741 | N44: =SUMIFS(ADHOC!M$4:M$84,ADHOC!$A$4:$A$84,$B44,ADHOC!$B$4:$B$84,$C44,ADHOC!$C$4:$C$84,$D44) -> 63650352 | O44: =SUMIFS(ADHOC!N$4:N$84,ADHOC!$A$4:$A$84,$B44,ADHOC!$B$4:$B$84,$C44,ADHOC!$C$4:$C$84,$D44) -> 52324468 | P44: =SUMIFS(ADHOC!O$4:O$84,ADHOC!$A$4:$A$84,$B44,ADHOC!$B$4:$B$84,$C44,ADHOC!$C$4:$C$84,$D44) -> 72670311 | Q44: =SUMIFS(ADHOC!P$4:P$84,ADHOC!$A$4:$A$84,$B44,ADHOC!$B$4:$B$84,$C44,ADHOC!$C$4:$C$84,$D44) -> 47523493 | R44: =SUMIFS(ADHOC!Q$4:Q$84,ADHOC!$A$4:$A$84,$B44,ADHOC!$B$4:$B$84,$C44,ADHOC!$C$4:$C$84,$D44) -> 76228630 | S44: =SUMIFS(ADHOC!R$4:R$84,ADHOC!$A$4:$A$84,$B44,ADHOC!$B$4:$B$84,$C44,ADHOC!$C$4:$C$84,$D44) -> 39410567 | T44: =SUMIFS(ADHOC!S$4:S$84,ADHOC!$A$4:$A$84,$B44,ADHOC!$B$4:$B$84,$C44,ADHOC!$C$4:$C$84,$D44) -> 74385301 | U44: =SUMIFS(ADHOC!T$4:T$84,ADHOC!$A$4:$A$84,$B44,ADHOC!$B$4:$B$84,$C44,ADHOC!$C$4:$C$84,$D44) -> 70117080 | V44: =SUMIFS(ADHOC!U$4:U$84,ADHOC!$A$4:$A$84,$B44,ADHOC!$B$4:$B$84,$C44,ADHOC!$C$4:$C$84,$D44) -> 53443186 | W44: =SUMIFS(ADHOC!V$4:V$84,ADHOC!$A$4:$A$84,$B44,ADHOC!$B$4:$B$84,$C44,ADHOC!$C$4:$C$84,$D44) -> 73543074 | X44: =SUMIFS(ADHOC!W$4:W$84,ADHOC!$A$4:$A$84,$B44,ADHOC!$B$4:$B$84,$C44,ADHOC!$C$4:$C$84,$D44) -> 57473583 | Y44: =SUMIFS(ADHOC!X$4:X$84,ADHOC!$A$4:$A$84,$B44,ADHOC!$B$4:$B$84,$C44,ADHOC!$C$4:$C$84,$D44) -> 79563053 | Z44: =SUMIFS(ADHOC!Y$4:Y$84,ADHOC!$A$4:$A$84,$B44,ADHOC!$B$4:$B$84,$C44,ADHOC!$C$4:$C$84,$D44) -> 57774359 | AA44: =SUMIFS(ADHOC!Z$4:Z$84,ADHOC!$A$4:$A$84,$B44,ADHOC!$B$4:$B$84,$C44,ADHOC!$C$4:$C$84,$D44) -> 77101985 | AB44: =SUMIFS(ADHOC!AA$4:AA$84,ADHOC!$A$4:$A$84,$B44,ADHOC!$B$4:$B$84,$C44,ADHOC!$C$4:$C$84,$D44) -> 69425326
A45: 44 | B45: 33545 | C45: Secteur 6 | D45: Rayon 33 | E45: =SUMIFS(ADHOC!D$4:D$84,ADHOC!$A$4:$A$84,$B45,ADHOC!$B$4:$B$84,$C45,ADHOC!$C$4:$C$84,$D45) -> 68772359 | F45: =SUMIFS(ADHOC!E$4:E$84,ADHOC!$A$4:$A$84,$B45,ADHOC!$B$4:$B$84,$C45,ADHOC!$C$4:$C$84,$D45) -> 56315962 | G45: =SUMIFS(ADHOC!F$4:F$84,ADHOC!$A$4:$A$84,$B45,ADHOC!$B$4:$B$84,$C45,ADHOC!$C$4:$C$84,$D45) -> 81310396 | H45: =SUMIFS(ADHOC!G$4:G$84,ADHOC!$A$4:$A$84,$B45,ADHOC!$B$4:$B$84,$C45,ADHOC!$C$4:$C$84,$D45) -> 62472069 | I45: =SUMIFS(ADHOC!H$4:H$84,ADHOC!$A$4:$A$84,$B45,ADHOC!$B$4:$B$84,$C45,ADHOC!$C$4:$C$84,$D45) -> 35939310 | J45: =SUMIFS(ADHOC!I$4:I$84,ADHOC!$A$4:$A$84,$B45,ADHOC!$B$4:$B$84,$C45,ADHOC!$C$4:$C$84,$D45) -> 83678563 | K45: =SUMIFS(ADHOC!J$4:J$84,ADHOC!$A$4:$A$84,$B45,ADHOC!$B$4:$B$84,$C45,ADHOC!$C$4:$C$84,$D45) -> 64838553 | L45: =SUMIFS(ADHOC!K$4:K$84,ADHOC!$A$4:$A$84,$B45,ADHOC!$B$4:$B$84,$C45,ADHOC!$C$4:$C$84,$D45) -> 66066470 | M45: =SUMIFS(ADHOC!L$4:L$84,ADHOC!$A$4:$A$84,$B45,ADHOC!$B$4:$B$84,$C45,ADHOC!$C$4:$C$84,$D45) -> 53377546 | N45: =SUMIFS(ADHOC!M$4:M$84,ADHOC!$A$4:$A$84,$B45,ADHOC!$B$4:$B$84,$C45,ADHOC!$C$4:$C$84,$D45) -> 81774598 | O45: =SUMIFS(ADHOC!N$4:N$84,ADHOC!$A$4:$A$84,$B45,ADHOC!$B$4:$B$84,$C45,ADHOC!$C$4:$C$84,$D45) -> 37096228 | P45: =SUMIFS(ADHOC!O$4:O$84,ADHOC!$A$4:$A$84,$B45,ADHOC!$B$4:$B$84,$C45,ADHOC!$C$4:$C$84,$D45) -> 41100804 | Q45: =SUMIFS(ADHOC!P$4:P$84,ADHOC!$A$4:$A$84,$B45,ADHOC!$B$4:$B$84,$C45,ADHOC!$C$4:$C$84,$D45) -> 37492598 | R45: =SUMIFS(ADHOC!Q$4:Q$84,ADHOC!$A$4:$A$84,$B45,ADHOC!$B$4:$B$84,$C45,ADHOC!$C$4:$C$84,$D45) -> 77138485 | S45: =SUMIFS(ADHOC!R$4:R$84,ADHOC!$A$4:$A$84,$B45,ADHOC!$B$4:$B$84,$C45,ADHOC!$C$4:$C$84,$D45) -> 79726322 | T45: =SUMIFS(ADHOC!S$4:S$84,ADHOC!$A$4:$A$84,$B45,ADHOC!$B$4:$B$84,$C45,ADHOC!$C$4:$C$84,$D45) -> 36155936 | U45: =SUMIFS(ADHOC!T$4:T$84,ADHOC!$A$4:$A$84,$B45,ADHOC!$B$4:$B$84,$C45,ADHOC!$C$4:$C$84,$D45) -> 59073445 | V45: =SUMIFS(ADHOC!U$4:U$84,ADHOC!$A$4:$A$84,$B45,ADHOC!$B$4:$B$84,$C45,ADHOC!$C$4:$C$84,$D45) -> 74106894 | W45: =SUMIFS(ADHOC!V$4:V$84,ADHOC!$A$4:$A$84,$B45,ADHOC!$B$4:$B$84,$C45,ADHOC!$C$4:$C$84,$D45) -> 43638293 | X45: =SUMIFS(ADHOC!W$4:W$84,ADHOC!$A$4:$A$84,$B45,ADHOC!$B$4:$B$84,$C45,ADHOC!$C$4:$C$84,$D45) -> 53080178 | Y45: =SUMIFS(ADHOC!X$4:X$84,ADHOC!$A$4:$A$84,$B45,ADHOC!$B$4:$B$84,$C45,ADHOC!$C$4:$C$84,$D45) -> 64804069 | Z45: =SUMIFS(ADHOC!Y$4:Y$84,ADHOC!$A$4:$A$84,$B45,ADHOC!$B$4:$B$84,$C45,ADHOC!$C$4:$C$84,$D45) -> 56035876 | AA45: =SUMIFS(ADHOC!Z$4:Z$84,ADHOC!$A$4:$A$84,$B45,ADHOC!$B$4:$B$84,$C45,ADHOC!$C$4:$C$84,$D45) -> 37953633 | AB45: =SUMIFS(ADHOC!AA$4:AA$84,ADHOC!$A$4:$A$84,$B45,ADHOC!$B$4:$B$84,$C45,ADHOC!$C$4:$C$84,$D45) -> 49310728
A46: 45 | B46: 34272 | C46: Secteur 6 | D46: Rayon 34 | E46: =SUMIFS(ADHOC!D$4:D$84,ADHOC!$A$4:$A$84,$B46,ADHOC!$B$4:$B$84,$C46,ADHOC!$C$4:$C$84,$D46) -> 39014807 | F46: =SUMIFS(ADHOC!E$4:E$84,ADHOC!$A$4:$A$84,$B46,ADHOC!$B$4:$B$84,$C46,ADHOC!$C$4:$C$84,$D46) -> 73787477 | G46: =SUMIFS(ADHOC!F$4:F$84,ADHOC!$A$4:$A$84,$B46,ADHOC!$B$4:$B$84,$C46,ADHOC!$C$4:$C$84,$D46) -> 51947521 | H46: =SUMIFS(ADHOC!G$4:G$84,ADHOC!$A$4:$A$84,$B46,ADHOC!$B$4:$B$84,$C46,ADHOC!$C$4:$C$84,$D46) -> 43940769 | I46: =SUMIFS(ADHOC!H$4:H$84,ADHOC!$A$4:$A$84,$B46,ADHOC!$B$4:$B$84,$C46,ADHOC!$C$4:$C$84,$D46) -> 61530068 | J46: =SUMIFS(ADHOC!I$4:I$84,ADHOC!$A$4:$A$84,$B46,ADHOC!$B$4:$B$84,$C46,ADHOC!$C$4:$C$84,$D46) -> 71401348 | K46: =SUMIFS(ADHOC!J$4:J$84,ADHOC!$A$4:$A$84,$B46,ADHOC!$B$4:$B$84,$C46,ADHOC!$C$4:$C$84,$D46) -> 65351732 | L46: =SUMIFS(ADHOC!K$4:K$84,ADHOC!$A$4:$A$84,$B46,ADHOC!$B$4:$B$84,$C46,ADHOC!$C$4:$C$84,$D46) -> 74034110 | M46: =SUMIFS(ADHOC!L$4:L$84,ADHOC!$A$4:$A$84,$B46,ADHOC!$B$4:$B$84,$C46,ADHOC!$C$4:$C$84,$D46) -> 54079399 | N46: =SUMIFS(ADHOC!M$4:M$84,ADHOC!$A$4:$A$84,$B46,ADHOC!$B$4:$B$84,$C46,ADHOC!$C$4:$C$84,$D46) -> 46059595 | O46: =SUMIFS(ADHOC!N$4:N$84,ADHOC!$A$4:$A$84,$B46,ADHOC!$B$4:$B$84,$C46,ADHOC!$C$4:$C$84,$D46) -> 83688231 | P46: =SUMIFS(ADHOC!O$4:O$84,ADHOC!$A$4:$A$84,$B46,ADHOC!$B$4:$B$84,$C46,ADHOC!$C$4:$C$84,$D46) -> 65049219 | Q46: =SUMIFS(ADHOC!P$4:P$84,ADHOC!$A$4:$A$84,$B46,ADHOC!$B$4:$B$84,$C46,ADHOC!$C$4:$C$84,$D46) -> 74158286 | R46: =SUMIFS(ADHOC!Q$4:Q$84,ADHOC!$A$4:$A$84,$B46,ADHOC!$B$4:$B$84,$C46,ADHOC!$C$4:$C$84,$D46) -> 41241109 | S46: =SUMIFS(ADHOC!R$4:R$84,ADHOC!$A$4:$A$84,$B46,ADHOC!$B$4:$B$84,$C46,ADHOC!$C$4:$C$84,$D46) -> 49374148 | T46: =SUMIFS(ADHOC!S$4:S$84,ADHOC!$A$4:$A$84,$B46,ADHOC!$B$4:$B$84,$C46,ADHOC!$C$4:$C$84,$D46) -> 48575227 | U46: =SUMIFS(ADHOC!T$4:T$84,ADHOC!$A$4:$A$84,$B46,ADHOC!$B$4:$B$84,$C46,ADHOC!$C$4:$C$84,$D46) -> 76328413 | V46: =SUMIFS(ADHOC!U$4:U$84,ADHOC!$A$4:$A$84,$B46,ADHOC!$B$4:$B$84,$C46,ADHOC!$C$4:$C$84,$D46) -> 77303757 | W46: =SUMIFS(ADHOC!V$4:V$84,ADHOC!$A$4:$A$84,$B46,ADHOC!$B$4:$B$84,$C46,ADHOC!$C$4:$C$84,$D46) -> 61536315 | X46: =SUMIFS(ADHOC!W$4:W$84,ADHOC!$A$4:$A$84,$B46,ADHOC!$B$4:$B$84,$C46,ADHOC!$C$4:$C$84,$D46) -> 48232662 | Y46: =SUMIFS(ADHOC!X$4:X$84,ADHOC!$A$4:$A$84,$B46,ADHOC!$B$4:$B$84,$C46,ADHOC!$C$4:$C$84,$D46) -> 53994001 | Z46: =SUMIFS(ADHOC!Y$4:Y$84,ADHOC!$A$4:$A$84,$B46,ADHOC!$B$4:$B$84,$C46,ADHOC!$C$4:$C$84,$D46) -> 45536231 | AA46: =SUMIFS(ADHOC!Z$4:Z$84,ADHOC!$A$4:$A$84,$B46,ADHOC!$B$4:$B$84,$C46,ADHOC!$C$4:$C$84,$D46) -> 77642258 | AB46: =SUMIFS(ADHOC!AA$4:AA$84,ADHOC!$A$4:$A$84,$B46,ADHOC!$B$4:$B$84,$C46,ADHOC!$C$4:$C$84,$D46) -> 70286936
A47: 46 | B47: 33487 | C47: Secteur 6 | D47: Rayon 35 | E47: =SUMIFS(ADHOC!D$4:D$84,ADHOC!$A$4:$A$84,$B47,ADHOC!$B$4:$B$84,$C47,ADHOC!$C$4:$C$84,$D47) -> 77587064 | F47: =SUMIFS(ADHOC!E$4:E$84,ADHOC!$A$4:$A$84,$B47,ADHOC!$B$4:$B$84,$C47,ADHOC!$C$4:$C$84,$D47) -> 38313745 | G47: =SUMIFS(ADHOC!F$4:F$84,ADHOC!$A$4:$A$84,$B47,ADHOC!$B$4:$B$84,$C47,ADHOC!$C$4:$C$84,$D47) -> 63223794 | H47: =SUMIFS(ADHOC!G$4:G$84,ADHOC!$A$4:$A$84,$B47,ADHOC!$B$4:$B$84,$C47,ADHOC!$C$4:$C$84,$D47) -> 37321714 | I47: =SUMIFS(ADHOC!H$4:H$84,ADHOC!$A$4:$A$84,$B47,ADHOC!$B$4:$B$84,$C47,ADHOC!$C$4:$C$84,$D47) -> 43943218 | J47: =SUMIFS(ADHOC!I$4:I$84,ADHOC!$A$4:$A$84,$B47,ADHOC!$B$4:$B$84,$C47,ADHOC!$C$4:$C$84,$D47) -> 57248010 | K47: =SUMIFS(ADHOC!J$4:J$84,ADHOC!$A$4:$A$84,$B47,ADHOC!$B$4:$B$84,$C47,ADHOC!$C$4:$C$84,$D47) -> 73224590 | L47: =SUMIFS(ADHOC!K$4:K$84,ADHOC!$A$4:$A$84,$B47,ADHOC!$B$4:$B$84,$C47,ADHOC!$C$4:$C$84,$D47) -> 72076187 | M47: =SUMIFS(ADHOC!L$4:L$84,ADHOC!$A$4:$A$84,$B47,ADHOC!$B$4:$B$84,$C47,ADHOC!$C$4:$C$84,$D47) -> 36997053 | N47: =SUMIFS(ADHOC!M$4:M$84,ADHOC!$A$4:$A$84,$B47,ADHOC!$B$4:$B$84,$C47,ADHOC!$C$4:$C$84,$D47) -> 67898796 | O47: =SUMIFS(ADHOC!N$4:N$84,ADHOC!$A$4:$A$84,$B47,ADHOC!$B$4:$B$84,$C47,ADHOC!$C$4:$C$84,$D47) -> 72324129 | P47: =SUMIFS(ADHOC!O$4:O$84,ADHOC!$A$4:$A$84,$B47,ADHOC!$B$4:$B$84,$C47,ADHOC!$C$4:$C$84,$D47) -> 82802935 | Q47: =SUMIFS(ADHOC!P$4:P$84,ADHOC!$A$4:$A$84,$B47,ADHOC!$B$4:$B$84,$C47,ADHOC!$C$4:$C$84,$D47) -> 70820520 | R47: =SUMIFS(ADHOC!Q$4:Q$84,ADHOC!$A$4:$A$84,$B47,ADHOC!$B$4:$B$84,$C47,ADHOC!$C$4:$C$84,$D47) -> 57307365 | S47: =SUMIFS(ADHOC!R$4:R$84,ADHOC!$A$4:$A$84,$B47,ADHOC!$B$4:$B$84,$C47,ADHOC!$C$4:$C$84,$D47) -> 81057991 | T47: =SUMIFS(ADHOC!S$4:S$84,ADHOC!$A$4:$A$84,$B47,ADHOC!$B$4:$B$84,$C47,ADHOC!$C$4:$C$84,$D47) -> 52895563 | U47: =SUMIFS(ADHOC!T$4:T$84,ADHOC!$A$4:$A$84,$B47,ADHOC!$B$4:$B$84,$C47,ADHOC!$C$4:$C$84,$D47) -> 69718823 | V47: =SUMIFS(ADHOC!U$4:U$84,ADHOC!$A$4:$A$84,$B47,ADHOC!$B$4:$B$84,$C47,ADHOC!$C$4:$C$84,$D47) -> 75334981 | W47: =SUMIFS(ADHOC!V$4:V$84,ADHOC!$A$4:$A$84,$B47,ADHOC!$B$4:$B$84,$C47,ADHOC!$C$4:$C$84,$D47) -> 51562560 | X47: =SUMIFS(ADHOC!W$4:W$84,ADHOC!$A$4:$A$84,$B47,ADHOC!$B$4:$B$84,$C47,ADHOC!$C$4:$C$84,$D47) -> 52237913 | Y47: =SUMIFS(ADHOC!X$4:X$84,ADHOC!$A$4:$A$84,$B47,ADHOC!$B$4:$B$84,$C47,ADHOC!$C$4:$C$84,$D47) -> 63085744 | Z47: =SUMIFS(ADHOC!Y$4:Y$84,ADHOC!$A$4:$A$84,$B47,ADHOC!$B$4:$B$84,$C47,ADHOC!$C$4:$C$84,$D47) -> 62317233 | AA47: =SUMIFS(ADHOC!Z$4:Z$84,ADHOC!$A$4:$A$84,$B47,ADHOC!$B$4:$B$84,$C47,ADHOC!$C$4:$C$84,$D47) -> 60370405 | AB47: =SUMIFS(ADHOC!AA$4:AA$84,ADHOC!$A$4:$A$84,$B47,ADHOC!$B$4:$B$84,$C47,ADHOC!$C$4:$C$84,$D47) -> 78826368
A48: 47 | B48: 32991 | C48: Secteur 7 | D48: Rayon 36 | E48: =SUMIFS(ADHOC!D$4:D$84,ADHOC!$A$4:$A$84,$B48,ADHOC!$B$4:$B$84,$C48,ADHOC!$C$4:$C$84,$D48) -> 65637714 | F48: =SUMIFS(ADHOC!E$4:E$84,ADHOC!$A$4:$A$84,$B48,ADHOC!$B$4:$B$84,$C48,ADHOC!$C$4:$C$84,$D48) -> 41748740 | G48: =SUMIFS(ADHOC!F$4:F$84,ADHOC!$A$4:$A$84,$B48,ADHOC!$B$4:$B$84,$C48,ADHOC!$C$4:$C$84,$D48) -> 83041337 | H48: =SUMIFS(ADHOC!G$4:G$84,ADHOC!$A$4:$A$84,$B48,ADHOC!$B$4:$B$84,$C48,ADHOC!$C$4:$C$84,$D48) -> 83543691 | I48: =SUMIFS(ADHOC!H$4:H$84,ADHOC!$A$4:$A$84,$B48,ADHOC!$B$4:$B$84,$C48,ADHOC!$C$4:$C$84,$D48) -> 56361502 | J48: =SUMIFS(ADHOC!I$4:I$84,ADHOC!$A$4:$A$84,$B48,ADHOC!$B$4:$B$84,$C48,ADHOC!$C$4:$C$84,$D48) -> 74922820 | K48: =SUMIFS(ADHOC!J$4:J$84,ADHOC!$A$4:$A$84,$B48,ADHOC!$B$4:$B$84,$C48,ADHOC!$C$4:$C$84,$D48) -> 45220508 | L48: =SUMIFS(ADHOC!K$4:K$84,ADHOC!$A$4:$A$84,$B48,ADHOC!$B$4:$B$84,$C48,ADHOC!$C$4:$C$84,$D48) -> 55715893 | M48: =SUMIFS(ADHOC!L$4:L$84,ADHOC!$A$4:$A$84,$B48,ADHOC!$B$4:$B$84,$C48,ADHOC!$C$4:$C$84,$D48) -> 74476996 | N48: =SUMIFS(ADHOC!M$4:M$84,ADHOC!$A$4:$A$84,$B48,ADHOC!$B$4:$B$84,$C48,ADHOC!$C$4:$C$84,$D48) -> 82259259 | O48: =SUMIFS(ADHOC!N$4:N$84,ADHOC!$A$4:$A$84,$B48,ADHOC!$B$4:$B$84,$C48,ADHOC!$C$4:$C$84,$D48) -> 46468965 | P48: =SUMIFS(ADHOC!O$4:O$84,ADHOC!$A$4:$A$84,$B48,ADHOC!$B$4:$B$84,$C48,ADHOC!$C$4:$C$84,$D48) -> 36051724 | Q48: =SUMIFS(ADHOC!P$4:P$84,ADHOC!$A$4:$A$84,$B48,ADHOC!$B$4:$B$84,$C48,ADHOC!$C$4:$C$84,$D48) -> 42079741 | R48: =SUMIFS(ADHOC!Q$4:Q$84,ADHOC!$A$4:$A$84,$B48,ADHOC!$B$4:$B$84,$C48,ADHOC!$C$4:$C$84,$D48) -> 63438612 | S48: =SUMIFS(ADHOC!R$4:R$84,ADHOC!$A$4:$A$84,$B48,ADHOC!$B$4:$B$84,$C48,ADHOC!$C$4:$C$84,$D48) -> 78946085 | T48: =SUMIFS(ADHOC!S$4:S$84,ADHOC!$A$4:$A$84,$B48,ADHOC!$B$4:$B$84,$C48,ADHOC!$C$4:$C$84,$D48) -> 77907563 | U48: =SUMIFS(ADHOC!T$4:T$84,ADHOC!$A$4:$A$84,$B48,ADHOC!$B$4:$B$84,$C48,ADHOC!$C$4:$C$84,$D48) -> 68686495 | V48: =SUMIFS(ADHOC!U$4:U$84,ADHOC!$A$4:$A$84,$B48,ADHOC!$B$4:$B$84,$C48,ADHOC!$C$4:$C$84,$D48) -> 47946969 | W48: =SUMIFS(ADHOC!V$4:V$84,ADHOC!$A$4:$A$84,$B48,ADHOC!$B$4:$B$84,$C48,ADHOC!$C$4:$C$84,$D48) -> 43686672 | X48: =SUMIFS(ADHOC!W$4:W$84,ADHOC!$A$4:$A$84,$B48,ADHOC!$B$4:$B$84,$C48,ADHOC!$C$4:$C$84,$D48) -> 62323778 | Y48: =SUMIFS(ADHOC!X$4:X$84,ADHOC!$A$4:$A$84,$B48,ADHOC!$B$4:$B$84,$C48,ADHOC!$C$4:$C$84,$D48) -> 52761900 | Z48: =SUMIFS(ADHOC!Y$4:Y$84,ADHOC!$A$4:$A$84,$B48,ADHOC!$B$4:$B$84,$C48,ADHOC!$C$4:$C$84,$D48) -> 48166680 | AA48: =SUMIFS(ADHOC!Z$4:Z$84,ADHOC!$A$4:$A$84,$B48,ADHOC!$B$4:$B$84,$C48,ADHOC!$C$4:$C$84,$D48) -> 69226103 | AB48: =SUMIFS(ADHOC!AA$4:AA$84,ADHOC!$A$4:$A$84,$B48,ADHOC!$B$4:$B$84,$C48,ADHOC!$C$4:$C$84,$D48) -> 45744741
A49: 48 | B49: 32591 | C49: Secteur 7 | D49: Rayon 37 | E49: =SUMIFS(ADHOC!D$4:D$84,ADHOC!$A$4:$A$84,$B49,ADHOC!$B$4:$B$84,$C49,ADHOC!$C$4:$C$84,$D49) -> 83663060 | F49: =SUMIFS(ADHOC!E$4:E$84,ADHOC!$A$4:$A$84,$B49,ADHOC!$B$4:$B$84,$C49,ADHOC!$C$4:$C$84,$D49) -> 51147218 | G49: =SUMIFS(ADHOC!F$4:F$84,ADHOC!$A$4:$A$84,$B49,ADHOC!$B$4:$B$84,$C49,ADHOC!$C$4:$C$84,$D49) -> 66455078 | H49: =SUMIFS(ADHOC!G$4:G$84,ADHOC!$A$4:$A$84,$B49,ADHOC!$B$4:$B$84,$C49,ADHOC!$C$4:$C$84,$D49) -> 60865556 | I49: =SUMIFS(ADHOC!H$4:H$84,ADHOC!$A$4:$A$84,$B49,ADHOC!$B$4:$B$84,$C49,ADHOC!$C$4:$C$84,$D49) -> 59564149 | J49: =SUMIFS(ADHOC!I$4:I$84,ADHOC!$A$4:$A$84,$B49,ADHOC!$B$4:$B$84,$C49,ADHOC!$C$4:$C$84,$D49) -> 38621641 | K49: =SUMIFS(ADHOC!J$4:J$84,ADHOC!$A$4:$A$84,$B49,ADHOC!$B$4:$B$84,$C49,ADHOC!$C$4:$C$84,$D49) -> 67045887 | L49: =SUMIFS(ADHOC!K$4:K$84,ADHOC!$A$4:$A$84,$B49,ADHOC!$B$4:$B$84,$C49,ADHOC!$C$4:$C$84,$D49) -> 51098317 | M49: =SUMIFS(ADHOC!L$4:L$84,ADHOC!$A$4:$A$84,$B49,ADHOC!$B$4:$B$84,$C49,ADHOC!$C$4:$C$84,$D49) -> 39661879 | N49: =SUMIFS(ADHOC!M$4:M$84,ADHOC!$A$4:$A$84,$B49,ADHOC!$B$4:$B$84,$C49,ADHOC!$C$4:$C$84,$D49) -> 39872774 | O49: =SUMIFS(ADHOC!N$4:N$84,ADHOC!$A$4:$A$84,$B49,ADHOC!$B$4:$B$84,$C49,ADHOC!$C$4:$C$84,$D49) -> 54899494 | P49: =SUMIFS(ADHOC!O$4:O$84,ADHOC!$A$4:$A$84,$B49,ADHOC!$B$4:$B$84,$C49,ADHOC!$C$4:$C$84,$D49) -> 78385923 | Q49: =SUMIFS(ADHOC!P$4:P$84,ADHOC!$A$4:$A$84,$B49,ADHOC!$B$4:$B$84,$C49,ADHOC!$C$4:$C$84,$D49) -> 49380460 | R49: =SUMIFS(ADHOC!Q$4:Q$84,ADHOC!$A$4:$A$84,$B49,ADHOC!$B$4:$B$84,$C49,ADHOC!$C$4:$C$84,$D49) -> 38270969 | S49: =SUMIFS(ADHOC!R$4:R$84,ADHOC!$A$4:$A$84,$B49,ADHOC!$B$4:$B$84,$C49,ADHOC!$C$4:$C$84,$D49) -> 69783240 | T49: =SUMIFS(ADHOC!S$4:S$84,ADHOC!$A$4:$A$84,$B49,ADHOC!$B$4:$B$84,$C49,ADHOC!$C$4:$C$84,$D49) -> 46203978 | U49: =SUMIFS(ADHOC!T$4:T$84,ADHOC!$A$4:$A$84,$B49,ADHOC!$B$4:$B$84,$C49,ADHOC!$C$4:$C$84,$D49) -> 69167216 | V49: =SUMIFS(ADHOC!U$4:U$84,ADHOC!$A$4:$A$84,$B49,ADHOC!$B$4:$B$84,$C49,ADHOC!$C$4:$C$84,$D49) -> 71716734 | W49: =SUMIFS(ADHOC!V$4:V$84,ADHOC!$A$4:$A$84,$B49,ADHOC!$B$4:$B$84,$C49,ADHOC!$C$4:$C$84,$D49) -> 80127432 | X49: =SUMIFS(ADHOC!W$4:W$84,ADHOC!$A$4:$A$84,$B49,ADHOC!$B$4:$B$84,$C49,ADHOC!$C$4:$C$84,$D49) -> 73539059 | Y49: =SUMIFS(ADHOC!X$4:X$84,ADHOC!$A$4:$A$84,$B49,ADHOC!$B$4:$B$84,$C49,ADHOC!$C$4:$C$84,$D49) -> 72855504 | Z49: =SUMIFS(ADHOC!Y$4:Y$84,ADHOC!$A$4:$A$84,$B49,ADHOC!$B$4:$B$84,$C49,ADHOC!$C$4:$C$84,$D49) -> 59681907 | AA49: =SUMIFS(ADHOC!Z$4:Z$84,ADHOC!$A$4:$A$84,$B49,ADHOC!$B$4:$B$84,$C49,ADHOC!$C$4:$C$84,$D49) -> 59744746 | AB49: =SUMIFS(ADHOC!AA$4:AA$84,ADHOC!$A$4:$A$84,$B49,ADHOC!$B$4:$B$84,$C49,ADHOC!$C$4:$C$84,$D49) -> 79310498
A50: 49 | B50: 32772 | C50: Secteur 7 | D50: Rayon 49 | E50: =SUMIFS(ADHOC!D$4:D$84,ADHOC!$A$4:$A$84,$B50,ADHOC!$B$4:$B$84,$C50,ADHOC!$C$4:$C$84,$D50) -> 41125245 | F50: =SUMIFS(ADHOC!E$4:E$84,ADHOC!$A$4:$A$84,$B50,ADHOC!$B$4:$B$84,$C50,ADHOC!$C$4:$C$84,$D50) -> 68212862 | G50: =SUMIFS(ADHOC!F$4:F$84,ADHOC!$A$4:$A$84,$B50,ADHOC!$B$4:$B$84,$C50,ADHOC!$C$4:$C$84,$D50) -> 66982076 | H50: =SUMIFS(ADHOC!G$4:G$84,ADHOC!$A$4:$A$84,$B50,ADHOC!$B$4:$B$84,$C50,ADHOC!$C$4:$C$84,$D50) -> 69971600 | I50: =SUMIFS(ADHOC!H$4:H$84,ADHOC!$A$4:$A$84,$B50,ADHOC!$B$4:$B$84,$C50,ADHOC!$C$4:$C$84,$D50) -> 46597279 | J50: =SUMIFS(ADHOC!I$4:I$84,ADHOC!$A$4:$A$84,$B50,ADHOC!$B$4:$B$84,$C50,ADHOC!$C$4:$C$84,$D50) -> 58067313 | K50: =SUMIFS(ADHOC!J$4:J$84,ADHOC!$A$4:$A$84,$B50,ADHOC!$B$4:$B$84,$C50,ADHOC!$C$4:$C$84,$D50) -> 39873555 | L50: =SUMIFS(ADHOC!K$4:K$84,ADHOC!$A$4:$A$84,$B50,ADHOC!$B$4:$B$84,$C50,ADHOC!$C$4:$C$84,$D50) -> 45285258 | M50: =SUMIFS(ADHOC!L$4:L$84,ADHOC!$A$4:$A$84,$B50,ADHOC!$B$4:$B$84,$C50,ADHOC!$C$4:$C$84,$D50) -> 39116880 | N50: =SUMIFS(ADHOC!M$4:M$84,ADHOC!$A$4:$A$84,$B50,ADHOC!$B$4:$B$84,$C50,ADHOC!$C$4:$C$84,$D50) -> 70776909 | O50: =SUMIFS(ADHOC!N$4:N$84,ADHOC!$A$4:$A$84,$B50,ADHOC!$B$4:$B$84,$C50,ADHOC!$C$4:$C$84,$D50) -> 75903482 | P50: =SUMIFS(ADHOC!O$4:O$84,ADHOC!$A$4:$A$84,$B50,ADHOC!$B$4:$B$84,$C50,ADHOC!$C$4:$C$84,$D50) -> 69559126 | Q50: =SUMIFS(ADHOC!P$4:P$84,ADHOC!$A$4:$A$84,$B50,ADHOC!$B$4:$B$84,$C50,ADHOC!$C$4:$C$84,$D50) -> 38091883 | R50: =SUMIFS(ADHOC!Q$4:Q$84,ADHOC!$A$4:$A$84,$B50,ADHOC!$B$4:$B$84,$C50,ADHOC!$C$4:$C$84,$D50) -> 52793985 | S50: =SUMIFS(ADHOC!R$4:R$84,ADHOC!$A$4:$A$84,$B50,ADHOC!$B$4:$B$84,$C50,ADHOC!$C$4:$C$84,$D50) -> 65905453 | T50: =SUMIFS(ADHOC!S$4:S$84,ADHOC!$A$4:$A$84,$B50,ADHOC!$B$4:$B$84,$C50,ADHOC!$C$4:$C$84,$D50) -> 46990843 | U50: =SUMIFS(ADHOC!T$4:T$84,ADHOC!$A$4:$A$84,$B50,ADHOC!$B$4:$B$84,$C50,ADHOC!$C$4:$C$84,$D50) -> 79486088 | V50: =SUMIFS(ADHOC!U$4:U$84,ADHOC!$A$4:$A$84,$B50,ADHOC!$B$4:$B$84,$C50,ADHOC!$C$4:$C$84,$D50) -> 69140423 | W50: =SUMIFS(ADHOC!V$4:V$84,ADHOC!$A$4:$A$84,$B50,ADHOC!$B$4:$B$84,$C50,ADHOC!$C$4:$C$84,$D50) -> 79860675 | X50: =SUMIFS(ADHOC!W$4:W$84,ADHOC!$A$4:$A$84,$B50,ADHOC!$B$4:$B$84,$C50,ADHOC!$C$4:$C$84,$D50) -> 53385570 | Y50: =SUMIFS(ADHOC!X$4:X$84,ADHOC!$A$4:$A$84,$B50,ADHOC!$B$4:$B$84,$C50,ADHOC!$C$4:$C$84,$D50) -> 71597535 | Z50: =SUMIFS(ADHOC!Y$4:Y$84,ADHOC!$A$4:$A$84,$B50,ADHOC!$B$4:$B$84,$C50,ADHOC!$C$4:$C$84,$D50) -> 58398255 | AA50: =SUMIFS(ADHOC!Z$4:Z$84,ADHOC!$A$4:$A$84,$B50,ADHOC!$B$4:$B$84,$C50,ADHOC!$C$4:$C$84,$D50) -> 80645740 | AB50: =SUMIFS(ADHOC!AA$4:AA$84,ADHOC!$A$4:$A$84,$B50,ADHOC!$B$4:$B$84,$C50,ADHOC!$C$4:$C$84,$D50) -> 64779953
A51: 50 | B51: 33607 | C51: Secteur 7 | D51: Rayon 50 | E51: =SUMIFS(ADHOC!D$4:D$84,ADHOC!$A$4:$A$84,$B51,ADHOC!$B$4:$B$84,$C51,ADHOC!$C$4:$C$84,$D51) -> 74407814 | F51: =SUMIFS(ADHOC!E$4:E$84,ADHOC!$A$4:$A$84,$B51,ADHOC!$B$4:$B$84,$C51,ADHOC!$C$4:$C$84,$D51) -> 50121197 | G51: =SUMIFS(ADHOC!F$4:F$84,ADHOC!$A$4:$A$84,$B51,ADHOC!$B$4:$B$84,$C51,ADHOC!$C$4:$C$84,$D51) -> 50381416 | H51: =SUMIFS(ADHOC!G$4:G$84,ADHOC!$A$4:$A$84,$B51,ADHOC!$B$4:$B$84,$C51,ADHOC!$C$4:$C$84,$D51) -> 46633286 | I51: =SUMIFS(ADHOC!H$4:H$84,ADHOC!$A$4:$A$84,$B51,ADHOC!$B$4:$B$84,$C51,ADHOC!$C$4:$C$84,$D51) -> 75616238 | J51: =SUMIFS(ADHOC!I$4:I$84,ADHOC!$A$4:$A$84,$B51,ADHOC!$B$4:$B$84,$C51,ADHOC!$C$4:$C$84,$D51) -> 76381985 | K51: =SUMIFS(ADHOC!J$4:J$84,ADHOC!$A$4:$A$84,$B51,ADHOC!$B$4:$B$84,$C51,ADHOC!$C$4:$C$84,$D51) -> 49379382 | L51: =SUMIFS(ADHOC!K$4:K$84,ADHOC!$A$4:$A$84,$B51,ADHOC!$B$4:$B$84,$C51,ADHOC!$C$4:$C$84,$D51) -> 59981644 | M51: =SUMIFS(ADHOC!L$4:L$84,ADHOC!$A$4:$A$84,$B51,ADHOC!$B$4:$B$84,$C51,ADHOC!$C$4:$C$84,$D51) -> 53919971 | N51: =SUMIFS(ADHOC!M$4:M$84,ADHOC!$A$4:$A$84,$B51,ADHOC!$B$4:$B$84,$C51,ADHOC!$C$4:$C$84,$D51) -> 76263296 | O51: =SUMIFS(ADHOC!N$4:N$84,ADHOC!$A$4:$A$84,$B51,ADHOC!$B$4:$B$84,$C51,ADHOC!$C$4:$C$84,$D51) -> 68420894 | P51: =SUMIFS(ADHOC!O$4:O$84,ADHOC!$A$4:$A$84,$B51,ADHOC!$B$4:$B$84,$C51,ADHOC!$C$4:$C$84,$D51) -> 57347884 | Q51: =SUMIFS(ADHOC!P$4:P$84,ADHOC!$A$4:$A$84,$B51,ADHOC!$B$4:$B$84,$C51,ADHOC!$C$4:$C$84,$D51) -> 58649857 | R51: =SUMIFS(ADHOC!Q$4:Q$84,ADHOC!$A$4:$A$84,$B51,ADHOC!$B$4:$B$84,$C51,ADHOC!$C$4:$C$84,$D51) -> 62375606 | S51: =SUMIFS(ADHOC!R$4:R$84,ADHOC!$A$4:$A$84,$B51,ADHOC!$B$4:$B$84,$C51,ADHOC!$C$4:$C$84,$D51) -> 78443843 | T51: =SUMIFS(ADHOC!S$4:S$84,ADHOC!$A$4:$A$84,$B51,ADHOC!$B$4:$B$84,$C51,ADHOC!$C$4:$C$84,$D51) -> 67966062 | U51: =SUMIFS(ADHOC!T$4:T$84,ADHOC!$A$4:$A$84,$B51,ADHOC!$B$4:$B$84,$C51,ADHOC!$C$4:$C$84,$D51) -> 54061278 | V51: =SUMIFS(ADHOC!U$4:U$84,ADHOC!$A$4:$A$84,$B51,ADHOC!$B$4:$B$84,$C51,ADHOC!$C$4:$C$84,$D51) -> 52988642 | W51: =SUMIFS(ADHOC!V$4:V$84,ADHOC!$A$4:$A$84,$B51,ADHOC!$B$4:$B$84,$C51,ADHOC!$C$4:$C$84,$D51) -> 37990234 | X51: =SUMIFS(ADHOC!W$4:W$84,ADHOC!$A$4:$A$84,$B51,ADHOC!$B$4:$B$84,$C51,ADHOC!$C$4:$C$84,$D51) -> 39745419 | Y51: =SUMIFS(ADHOC!X$4:X$84,ADHOC!$A$4:$A$84,$B51,ADHOC!$B$4:$B$84,$C51,ADHOC!$C$4:$C$84,$D51) -> 80488131 | Z51: =SUMIFS(ADHOC!Y$4:Y$84,ADHOC!$A$4:$A$84,$B51,ADHOC!$B$4:$B$84,$C51,ADHOC!$C$4:$C$84,$D51) -> 59348449 | AA51: =SUMIFS(ADHOC!Z$4:Z$84,ADHOC!$A$4:$A$84,$B51,ADHOC!$B$4:$B$84,$C51,ADHOC!$C$4:$C$84,$D51) -> 53191130 | AB51: =SUMIFS(ADHOC!AA$4:AA$84,ADHOC!$A$4:$A$84,$B51,ADHOC!$B$4:$B$84,$C51,ADHOC!$C$4:$C$84,$D51) -> 71283229
A52: 51 | B52: 32263 | C52: Secteur 7 | D52: Rayon 51 | E52: =SUMIFS(ADHOC!D$4:D$84,ADHOC!$A$4:$A$84,$B52,ADHOC!$B$4:$B$84,$C52,ADHOC!$C$4:$C$84,$D52) -> 66913212 | F52: =SUMIFS(ADHOC!E$4:E$84,ADHOC!$A$4:$A$84,$B52,ADHOC!$B$4:$B$84,$C52,ADHOC!$C$4:$C$84,$D52) -> 55561899 | G52: =SUMIFS(ADHOC!F$4:F$84,ADHOC!$A$4:$A$84,$B52,ADHOC!$B$4:$B$84,$C52,ADHOC!$C$4:$C$84,$D52) -> 73277575 | H52: =SUMIFS(ADHOC!G$4:G$84,ADHOC!$A$4:$A$84,$B52,ADHOC!$B$4:$B$84,$C52,ADHOC!$C$4:$C$84,$D52) -> 74547315 | I52: =SUMIFS(ADHOC!H$4:H$84,ADHOC!$A$4:$A$84,$B52,ADHOC!$B$4:$B$84,$C52,ADHOC!$C$4:$C$84,$D52) -> 50628205 | J52: =SUMIFS(ADHOC!I$4:I$84,ADHOC!$A$4:$A$84,$B52,ADHOC!$B$4:$B$84,$C52,ADHOC!$C$4:$C$84,$D52) -> 55863989 | K52: =SUMIFS(ADHOC!J$4:J$84,ADHOC!$A$4:$A$84,$B52,ADHOC!$B$4:$B$84,$C52,ADHOC!$C$4:$C$84,$D52) -> 72659649 | L52: =SUMIFS(ADHOC!K$4:K$84,ADHOC!$A$4:$A$84,$B52,ADHOC!$B$4:$B$84,$C52,ADHOC!$C$4:$C$84,$D52) -> 61250066 | M52: =SUMIFS(ADHOC!L$4:L$84,ADHOC!$A$4:$A$84,$B52,ADHOC!$B$4:$B$84,$C52,ADHOC!$C$4:$C$84,$D52) -> 46900548 | N52: =SUMIFS(ADHOC!M$4:M$84,ADHOC!$A$4:$A$84,$B52,ADHOC!$B$4:$B$84,$C52,ADHOC!$C$4:$C$84,$D52) -> 61246057 | O52: =SUMIFS(ADHOC!N$4:N$84,ADHOC!$A$4:$A$84,$B52,ADHOC!$B$4:$B$84,$C52,ADHOC!$C$4:$C$84,$D52) -> 72571031 | P52: =SUMIFS(ADHOC!O$4:O$84,ADHOC!$A$4:$A$84,$B52,ADHOC!$B$4:$B$84,$C52,ADHOC!$C$4:$C$84,$D52) -> 54512761 | Q52: =SUMIFS(ADHOC!P$4:P$84,ADHOC!$A$4:$A$84,$B52,ADHOC!$B$4:$B$84,$C52,ADHOC!$C$4:$C$84,$D52) -> 50451951 | R52: =SUMIFS(ADHOC!Q$4:Q$84,ADHOC!$A$4:$A$84,$B52,ADHOC!$B$4:$B$84,$C52,ADHOC!$C$4:$C$84,$D52) -> 56585908 | S52: =SUMIFS(ADHOC!R$4:R$84,ADHOC!$A$4:$A$84,$B52,ADHOC!$B$4:$B$84,$C52,ADHOC!$C$4:$C$84,$D52) -> 58643677 | T52: =SUMIFS(ADHOC!S$4:S$84,ADHOC!$A$4:$A$84,$B52,ADHOC!$B$4:$B$84,$C52,ADHOC!$C$4:$C$84,$D52) -> 81074220 | U52: =SUMIFS(ADHOC!T$4:T$84,ADHOC!$A$4:$A$84,$B52,ADHOC!$B$4:$B$84,$C52,ADHOC!$C$4:$C$84,$D52) -> 45038203 | V52: =SUMIFS(ADHOC!U$4:U$84,ADHOC!$A$4:$A$84,$B52,ADHOC!$B$4:$B$84,$C52,ADHOC!$C$4:$C$84,$D52) -> 49836487 | W52: =SUMIFS(ADHOC!V$4:V$84,ADHOC!$A$4:$A$84,$B52,ADHOC!$B$4:$B$84,$C52,ADHOC!$C$4:$C$84,$D52) -> 51233489 | X52: =SUMIFS(ADHOC!W$4:W$84,ADHOC!$A$4:$A$84,$B52,ADHOC!$B$4:$B$84,$C52,ADHOC!$C$4:$C$84,$D52) -> 82878772 | Y52: =SUMIFS(ADHOC!X$4:X$84,ADHOC!$A$4:$A$84,$B52,ADHOC!$B$4:$B$84,$C52,ADHOC!$C$4:$C$84,$D52) -> 68817020 | Z52: =SUMIFS(ADHOC!Y$4:Y$84,ADHOC!$A$4:$A$84,$B52,ADHOC!$B$4:$B$84,$C52,ADHOC!$C$4:$C$84,$D52) -> 67413182 | AA52: =SUMIFS(ADHOC!Z$4:Z$84,ADHOC!$A$4:$A$84,$B52,ADHOC!$B$4:$B$84,$C52,ADHOC!$C$4:$C$84,$D52) -> 52504564 | AB52: =SUMIFS(ADHOC!AA$4:AA$84,ADHOC!$A$4:$A$84,$B52,ADHOC!$B$4:$B$84,$C52,ADHOC!$C$4:$C$84,$D52) -> 41762854
A53: 52 | B53: 33147 | C53: Secteur 7 | D53: Rayon 52 | E53: =SUMIFS(ADHOC!D$4:D$84,ADHOC!$A$4:$A$84,$B53,ADHOC!$B$4:$B$84,$C53,ADHOC!$C$4:$C$84,$D53) -> 35750874 | F53: =SUMIFS(ADHOC!E$4:E$84,ADHOC!$A$4:$A$84,$B53,ADHOC!$B$4:$B$84,$C53,ADHOC!$C$4:$C$84,$D53) -> 40110732 | G53: =SUMIFS(ADHOC!F$4:F$84,ADHOC!$A$4:$A$84,$B53,ADHOC!$B$4:$B$84,$C53,ADHOC!$C$4:$C$84,$D53) -> 62789222 | H53: =SUMIFS(ADHOC!G$4:G$84,ADHOC!$A$4:$A$84,$B53,ADHOC!$B$4:$B$84,$C53,ADHOC!$C$4:$C$84,$D53) -> 63049395 | I53: =SUMIFS(ADHOC!H$4:H$84,ADHOC!$A$4:$A$84,$B53,ADHOC!$B$4:$B$84,$C53,ADHOC!$C$4:$C$84,$D53) -> 66215501 | J53: =SUMIFS(ADHOC!I$4:I$84,ADHOC!$A$4:$A$84,$B53,ADHOC!$B$4:$B$84,$C53,ADHOC!$C$4:$C$84,$D53) -> 78331122 | K53: =SUMIFS(ADHOC!J$4:J$84,ADHOC!$A$4:$A$84,$B53,ADHOC!$B$4:$B$84,$C53,ADHOC!$C$4:$C$84,$D53) -> 56864618 | L53: =SUMIFS(ADHOC!K$4:K$84,ADHOC!$A$4:$A$84,$B53,ADHOC!$B$4:$B$84,$C53,ADHOC!$C$4:$C$84,$D53) -> 63531487 | M53: =SUMIFS(ADHOC!L$4:L$84,ADHOC!$A$4:$A$84,$B53,ADHOC!$B$4:$B$84,$C53,ADHOC!$C$4:$C$84,$D53) -> 39225467 | N53: =SUMIFS(ADHOC!M$4:M$84,ADHOC!$A$4:$A$84,$B53,ADHOC!$B$4:$B$84,$C53,ADHOC!$C$4:$C$84,$D53) -> 49799277 | O53: =SUMIFS(ADHOC!N$4:N$84,ADHOC!$A$4:$A$84,$B53,ADHOC!$B$4:$B$84,$C53,ADHOC!$C$4:$C$84,$D53) -> 55365719 | P53: =SUMIFS(ADHOC!O$4:O$84,ADHOC!$A$4:$A$84,$B53,ADHOC!$B$4:$B$84,$C53,ADHOC!$C$4:$C$84,$D53) -> 72863448 | Q53: =SUMIFS(ADHOC!P$4:P$84,ADHOC!$A$4:$A$84,$B53,ADHOC!$B$4:$B$84,$C53,ADHOC!$C$4:$C$84,$D53) -> 82092068 | R53: =SUMIFS(ADHOC!Q$4:Q$84,ADHOC!$A$4:$A$84,$B53,ADHOC!$B$4:$B$84,$C53,ADHOC!$C$4:$C$84,$D53) -> 70435843 | S53: =SUMIFS(ADHOC!R$4:R$84,ADHOC!$A$4:$A$84,$B53,ADHOC!$B$4:$B$84,$C53,ADHOC!$C$4:$C$84,$D53) -> 60589055 | T53: =SUMIFS(ADHOC!S$4:S$84,ADHOC!$A$4:$A$84,$B53,ADHOC!$B$4:$B$84,$C53,ADHOC!$C$4:$C$84,$D53) -> 60781401 | U53: =SUMIFS(ADHOC!T$4:T$84,ADHOC!$A$4:$A$84,$B53,ADHOC!$B$4:$B$84,$C53,ADHOC!$C$4:$C$84,$D53) -> 44043817 | V53: =SUMIFS(ADHOC!U$4:U$84,ADHOC!$A$4:$A$84,$B53,ADHOC!$B$4:$B$84,$C53,ADHOC!$C$4:$C$84,$D53) -> 40707257 | W53: =SUMIFS(ADHOC!V$4:V$84,ADHOC!$A$4:$A$84,$B53,ADHOC!$B$4:$B$84,$C53,ADHOC!$C$4:$C$84,$D53) -> 46273896 | X53: =SUMIFS(ADHOC!W$4:W$84,ADHOC!$A$4:$A$84,$B53,ADHOC!$B$4:$B$84,$C53,ADHOC!$C$4:$C$84,$D53) -> 44371962 | Y53: =SUMIFS(ADHOC!X$4:X$84,ADHOC!$A$4:$A$84,$B53,ADHOC!$B$4:$B$84,$C53,ADHOC!$C$4:$C$84,$D53) -> 62140677 | Z53: =SUMIFS(ADHOC!Y$4:Y$84,ADHOC!$A$4:$A$84,$B53,ADHOC!$B$4:$B$84,$C53,ADHOC!$C$4:$C$84,$D53) -> 39206724 | AA53: =SUMIFS(ADHOC!Z$4:Z$84,ADHOC!$A$4:$A$84,$B53,ADHOC!$B$4:$B$84,$C53,ADHOC!$C$4:$C$84,$D53) -> 64649429 | AB53: =SUMIFS(ADHOC!AA$4:AA$84,ADHOC!$A$4:$A$84,$B53,ADHOC!$B$4:$B$84,$C53,ADHOC!$C$4:$C$84,$D53) -> 41161807
A54: 53 | B54: 33441 | C54: Secteur 7 | D54: Rayon 53 | E54: =SUMIFS(ADHOC!D$4:D$84,ADHOC!$A$4:$A$84,$B54,ADHOC!$B$4:$B$84,$C54,ADHOC!$C$4:$C$84,$D54) -> 37411734 | F54: =SUMIFS(ADHOC!E$4:E$84,ADHOC!$A$4:$A$84,$B54,ADHOC!$B$4:$B$84,$C54,ADHOC!$C$4:$C$84,$D54) -> 77858700 | G54: =SUMIFS(ADHOC!F$4:F$84,ADHOC!$A$4:$A$84,$B54,ADHOC!$B$4:$B$84,$C54,ADHOC!$C$4:$C$84,$D54) -> 74784933 | H54: =SUMIFS(ADHOC!G$4:G$84,ADHOC!$A$4:$A$84,$B54,ADHOC!$B$4:$B$84,$C54,ADHOC!$C$4:$C$84,$D54) -> 70583559 | I54: =SUMIFS(ADHOC!H$4:H$84,ADHOC!$A$4:$A$84,$B54,ADHOC!$B$4:$B$84,$C54,ADHOC!$C$4:$C$84,$D54) -> 36856158 | J54: =SUMIFS(ADHOC!I$4:I$84,ADHOC!$A$4:$A$84,$B54,ADHOC!$B$4:$B$84,$C54,ADHOC!$C$4:$C$84,$D54) -> 74863259 | K54: =SUMIFS(ADHOC!J$4:J$84,ADHOC!$A$4:$A$84,$B54,ADHOC!$B$4:$B$84,$C54,ADHOC!$C$4:$C$84,$D54) -> 62397751 | L54: =SUMIFS(ADHOC!K$4:K$84,ADHOC!$A$4:$A$84,$B54,ADHOC!$B$4:$B$84,$C54,ADHOC!$C$4:$C$84,$D54) -> 48830592 | M54: =SUMIFS(ADHOC!L$4:L$84,ADHOC!$A$4:$A$84,$B54,ADHOC!$B$4:$B$84,$C54,ADHOC!$C$4:$C$84,$D54) -> 52065573 | N54: =SUMIFS(ADHOC!M$4:M$84,ADHOC!$A$4:$A$84,$B54,ADHOC!$B$4:$B$84,$C54,ADHOC!$C$4:$C$84,$D54) -> 71440889 | O54: =SUMIFS(ADHOC!N$4:N$84,ADHOC!$A$4:$A$84,$B54,ADHOC!$B$4:$B$84,$C54,ADHOC!$C$4:$C$84,$D54) -> 58026512 | P54: =SUMIFS(ADHOC!O$4:O$84,ADHOC!$A$4:$A$84,$B54,ADHOC!$B$4:$B$84,$C54,ADHOC!$C$4:$C$84,$D54) -> 72571058 | Q54: =SUMIFS(ADHOC!P$4:P$84,ADHOC!$A$4:$A$84,$B54,ADHOC!$B$4:$B$84,$C54,ADHOC!$C$4:$C$84,$D54) -> 63250741 | R54: =SUMIFS(ADHOC!Q$4:Q$84,ADHOC!$A$4:$A$84,$B54,ADHOC!$B$4:$B$84,$C54,ADHOC!$C$4:$C$84,$D54) -> 77604254 | S54: =SUMIFS(ADHOC!R$4:R$84,ADHOC!$A$4:$A$84,$B54,ADHOC!$B$4:$B$84,$C54,ADHOC!$C$4:$C$84,$D54) -> 51865236 | T54: =SUMIFS(ADHOC!S$4:S$84,ADHOC!$A$4:$A$84,$B54,ADHOC!$B$4:$B$84,$C54,ADHOC!$C$4:$C$84,$D54) -> 81428886 | U54: =SUMIFS(ADHOC!T$4:T$84,ADHOC!$A$4:$A$84,$B54,ADHOC!$B$4:$B$84,$C54,ADHOC!$C$4:$C$84,$D54) -> 63450842 | V54: =SUMIFS(ADHOC!U$4:U$84,ADHOC!$A$4:$A$84,$B54,ADHOC!$B$4:$B$84,$C54,ADHOC!$C$4:$C$84,$D54) -> 78417344 | W54: =SUMIFS(ADHOC!V$4:V$84,ADHOC!$A$4:$A$84,$B54,ADHOC!$B$4:$B$84,$C54,ADHOC!$C$4:$C$84,$D54) -> 60339530 | X54: =SUMIFS(ADHOC!W$4:W$84,ADHOC!$A$4:$A$84,$B54,ADHOC!$B$4:$B$84,$C54,ADHOC!$C$4:$C$84,$D54) -> 35848677 | Y54: =SUMIFS(ADHOC!X$4:X$84,ADHOC!$A$4:$A$84,$B54,ADHOC!$B$4:$B$84,$C54,ADHOC!$C$4:$C$84,$D54) -> 54735402 | Z54: =SUMIFS(ADHOC!Y$4:Y$84,ADHOC!$A$4:$A$84,$B54,ADHOC!$B$4:$B$84,$C54,ADHOC!$C$4:$C$84,$D54) -> 37872215 | AA54: =SUMIFS(ADHOC!Z$4:Z$84,ADHOC!$A$4:$A$84,$B54,ADHOC!$B$4:$B$84,$C54,ADHOC!$C$4:$C$84,$D54) -> 52161315 | AB54: =SUMIFS(ADHOC!AA$4:AA$84,ADHOC!$A$4:$A$84,$B54,ADHOC!$B$4:$B$84,$C54,ADHOC!$C$4:$C$84,$D54) -> 76867206
A55: 54 | B55: 33565 | C55: Secteur 7 | D55: Rayon 54 | E55: =SUMIFS(ADHOC!D$4:D$84,ADHOC!$A$4:$A$84,$B55,ADHOC!$B$4:$B$84,$C55,ADHOC!$C$4:$C$84,$D55) -> 39503743 | F55: =SUMIFS(ADHOC!E$4:E$84,ADHOC!$A$4:$A$84,$B55,ADHOC!$B$4:$B$84,$C55,ADHOC!$C$4:$C$84,$D55) -> 55169975 | G55: =SUMIFS(ADHOC!F$4:F$84,ADHOC!$A$4:$A$84,$B55,ADHOC!$B$4:$B$84,$C55,ADHOC!$C$4:$C$84,$D55) -> 80972378 | H55: =SUMIFS(ADHOC!G$4:G$84,ADHOC!$A$4:$A$84,$B55,ADHOC!$B$4:$B$84,$C55,ADHOC!$C$4:$C$84,$D55) -> 40659224 | I55: =SUMIFS(ADHOC!H$4:H$84,ADHOC!$A$4:$A$84,$B55,ADHOC!$B$4:$B$84,$C55,ADHOC!$C$4:$C$84,$D55) -> 76296449 | J55: =SUMIFS(ADHOC!I$4:I$84,ADHOC!$A$4:$A$84,$B55,ADHOC!$B$4:$B$84,$C55,ADHOC!$C$4:$C$84,$D55) -> 81622562 | K55: =SUMIFS(ADHOC!J$4:J$84,ADHOC!$A$4:$A$84,$B55,ADHOC!$B$4:$B$84,$C55,ADHOC!$C$4:$C$84,$D55) -> 59197231 | L55: =SUMIFS(ADHOC!K$4:K$84,ADHOC!$A$4:$A$84,$B55,ADHOC!$B$4:$B$84,$C55,ADHOC!$C$4:$C$84,$D55) -> 72936031 | M55: =SUMIFS(ADHOC!L$4:L$84,ADHOC!$A$4:$A$84,$B55,ADHOC!$B$4:$B$84,$C55,ADHOC!$C$4:$C$84,$D55) -> 47859271 | N55: =SUMIFS(ADHOC!M$4:M$84,ADHOC!$A$4:$A$84,$B55,ADHOC!$B$4:$B$84,$C55,ADHOC!$C$4:$C$84,$D55) -> 51656167 | O55: =SUMIFS(ADHOC!N$4:N$84,ADHOC!$A$4:$A$84,$B55,ADHOC!$B$4:$B$84,$C55,ADHOC!$C$4:$C$84,$D55) -> 71498663 | P55: =SUMIFS(ADHOC!O$4:O$84,ADHOC!$A$4:$A$84,$B55,ADHOC!$B$4:$B$84,$C55,ADHOC!$C$4:$C$84,$D55) -> 42724235 | Q55: =SUMIFS(ADHOC!P$4:P$84,ADHOC!$A$4:$A$84,$B55,ADHOC!$B$4:$B$84,$C55,ADHOC!$C$4:$C$84,$D55) -> 36796864 | R55: =SUMIFS(ADHOC!Q$4:Q$84,ADHOC!$A$4:$A$84,$B55,ADHOC!$B$4:$B$84,$C55,ADHOC!$C$4:$C$84,$D55) -> 45557716 | S55: =SUMIFS(ADHOC!R$4:R$84,ADHOC!$A$4:$A$84,$B55,ADHOC!$B$4:$B$84,$C55,ADHOC!$C$4:$C$84,$D55) -> 73486688 | T55: =SUMIFS(ADHOC!S$4:S$84,ADHOC!$A$4:$A$84,$B55,ADHOC!$B$4:$B$84,$C55,ADHOC!$C$4:$C$84,$D55) -> 37378659 | U55: =SUMIFS(ADHOC!T$4:T$84,ADHOC!$A$4:$A$84,$B55,ADHOC!$B$4:$B$84,$C55,ADHOC!$C$4:$C$84,$D55) -> 37838245 | V55: =SUMIFS(ADHOC!U$4:U$84,ADHOC!$A$4:$A$84,$B55,ADHOC!$B$4:$B$84,$C55,ADHOC!$C$4:$C$84,$D55) -> 64655359 | W55: =SUMIFS(ADHOC!V$4:V$84,ADHOC!$A$4:$A$84,$B55,ADHOC!$B$4:$B$84,$C55,ADHOC!$C$4:$C$84,$D55) -> 36369192 | X55: =SUMIFS(ADHOC!W$4:W$84,ADHOC!$A$4:$A$84,$B55,ADHOC!$B$4:$B$84,$C55,ADHOC!$C$4:$C$84,$D55) -> 66736981 | Y55: =SUMIFS(ADHOC!X$4:X$84,ADHOC!$A$4:$A$84,$B55,ADHOC!$B$4:$B$84,$C55,ADHOC!$C$4:$C$84,$D55) -> 76937335 | Z55: =SUMIFS(ADHOC!Y$4:Y$84,ADHOC!$A$4:$A$84,$B55,ADHOC!$B$4:$B$84,$C55,ADHOC!$C$4:$C$84,$D55) -> 50498253 | AA55: =SUMIFS(ADHOC!Z$4:Z$84,ADHOC!$A$4:$A$84,$B55,ADHOC!$B$4:$B$84,$C55,ADHOC!$C$4:$C$84,$D55) -> 77305518 | AB55: =SUMIFS(ADHOC!AA$4:AA$84,ADHOC!$A$4:$A$84,$B55,ADHOC!$B$4:$B$84,$C55,ADHOC!$C$4:$C$84,$D55) -> 78171630
A56: 55 | B56: 33984 | C56: Secteur 7 | D56: Rayon 55 | E56: =SUMIFS(ADHOC!D$4:D$84,ADHOC!$A$4:$A$84,$B56,ADHOC!$B$4:$B$84,$C56,ADHOC!$C$4:$C$84,$D56) -> 53292656 | F56: =SUMIFS(ADHOC!E$4:E$84,ADHOC!$A$4:$A$84,$B56,ADHOC!$B$4:$B$84,$C56,ADHOC!$C$4:$C$84,$D56) -> 57066962 | G56: =SUMIFS(ADHOC!F$4:F$84,ADHOC!$A$4:$A$84,$B56,ADHOC!$B$4:$B$84,$C56,ADHOC!$C$4:$C$84,$D56) -> 38304131 | H56: =SUMIFS(ADHOC!G$4:G$84,ADHOC!$A$4:$A$84,$B56,ADHOC!$B$4:$B$84,$C56,ADHOC!$C$4:$C$84,$D56) -> 69702930 | I56: =SUMIFS(ADHOC!H$4:H$84,ADHOC!$A$4:$A$84,$B56,ADHOC!$B$4:$B$84,$C56,ADHOC!$C$4:$C$84,$D56) -> 74353929 | J56: =SUMIFS(ADHOC!I$4:I$84,ADHOC!$A$4:$A$84,$B56,ADHOC!$B$4:$B$84,$C56,ADHOC!$C$4:$C$84,$D56) -> 77160292 | K56: =SUMIFS(ADHOC!J$4:J$84,ADHOC!$A$4:$A$84,$B56,ADHOC!$B$4:$B$84,$C56,ADHOC!$C$4:$C$84,$D56) -> 80191450 | L56: =SUMIFS(ADHOC!K$4:K$84,ADHOC!$A$4:$A$84,$B56,ADHOC!$B$4:$B$84,$C56,ADHOC!$C$4:$C$84,$D56) -> 76192274 | M56: =SUMIFS(ADHOC!L$4:L$84,ADHOC!$A$4:$A$84,$B56,ADHOC!$B$4:$B$84,$C56,ADHOC!$C$4:$C$84,$D56) -> 37815424 | N56: =SUMIFS(ADHOC!M$4:M$84,ADHOC!$A$4:$A$84,$B56,ADHOC!$B$4:$B$84,$C56,ADHOC!$C$4:$C$84,$D56) -> 75438176 | O56: =SUMIFS(ADHOC!N$4:N$84,ADHOC!$A$4:$A$84,$B56,ADHOC!$B$4:$B$84,$C56,ADHOC!$C$4:$C$84,$D56) -> 37318388 | P56: =SUMIFS(ADHOC!O$4:O$84,ADHOC!$A$4:$A$84,$B56,ADHOC!$B$4:$B$84,$C56,ADHOC!$C$4:$C$84,$D56) -> 61793513 | Q56: =SUMIFS(ADHOC!P$4:P$84,ADHOC!$A$4:$A$84,$B56,ADHOC!$B$4:$B$84,$C56,ADHOC!$C$4:$C$84,$D56) -> 80814530 | R56: =SUMIFS(ADHOC!Q$4:Q$84,ADHOC!$A$4:$A$84,$B56,ADHOC!$B$4:$B$84,$C56,ADHOC!$C$4:$C$84,$D56) -> 50899543 | S56: =SUMIFS(ADHOC!R$4:R$84,ADHOC!$A$4:$A$84,$B56,ADHOC!$B$4:$B$84,$C56,ADHOC!$C$4:$C$84,$D56) -> 48425697 | T56: =SUMIFS(ADHOC!S$4:S$84,ADHOC!$A$4:$A$84,$B56,ADHOC!$B$4:$B$84,$C56,ADHOC!$C$4:$C$84,$D56) -> 36746542 | U56: =SUMIFS(ADHOC!T$4:T$84,ADHOC!$A$4:$A$84,$B56,ADHOC!$B$4:$B$84,$C56,ADHOC!$C$4:$C$84,$D56) -> 67107323 | V56: =SUMIFS(ADHOC!U$4:U$84,ADHOC!$A$4:$A$84,$B56,ADHOC!$B$4:$B$84,$C56,ADHOC!$C$4:$C$84,$D56) -> 41897828 | W56: =SUMIFS(ADHOC!V$4:V$84,ADHOC!$A$4:$A$84,$B56,ADHOC!$B$4:$B$84,$C56,ADHOC!$C$4:$C$84,$D56) -> 53331141 | X56: =SUMIFS(ADHOC!W$4:W$84,ADHOC!$A$4:$A$84,$B56,ADHOC!$B$4:$B$84,$C56,ADHOC!$C$4:$C$84,$D56) -> 57665092 | Y56: =SUMIFS(ADHOC!X$4:X$84,ADHOC!$A$4:$A$84,$B56,ADHOC!$B$4:$B$84,$C56,ADHOC!$C$4:$C$84,$D56) -> 68547911 | Z56: =SUMIFS(ADHOC!Y$4:Y$84,ADHOC!$A$4:$A$84,$B56,ADHOC!$B$4:$B$84,$C56,ADHOC!$C$4:$C$84,$D56) -> 62869102 | AA56: =SUMIFS(ADHOC!Z$4:Z$84,ADHOC!$A$4:$A$84,$B56,ADHOC!$B$4:$B$84,$C56,ADHOC!$C$4:$C$84,$D56) -> 54532887 | AB56: =SUMIFS(ADHOC!AA$4:AA$84,ADHOC!$A$4:$A$84,$B56,ADHOC!$B$4:$B$84,$C56,ADHOC!$C$4:$C$84,$D56) -> 50861919
A57: 56 | B57: 33624 | C57: Secteur 7 | D57: Rayon 56 | E57: =SUMIFS(ADHOC!D$4:D$84,ADHOC!$A$4:$A$84,$B57,ADHOC!$B$4:$B$84,$C57,ADHOC!$C$4:$C$84,$D57) -> 43612345 | F57: =SUMIFS(ADHOC!E$4:E$84,ADHOC!$A$4:$A$84,$B57,ADHOC!$B$4:$B$84,$C57,ADHOC!$C$4:$C$84,$D57) -> 71834187 | G57: =SUMIFS(ADHOC!F$4:F$84,ADHOC!$A$4:$A$84,$B57,ADHOC!$B$4:$B$84,$C57,ADHOC!$C$4:$C$84,$D57) -> 45602401 | H57: =SUMIFS(ADHOC!G$4:G$84,ADHOC!$A$4:$A$84,$B57,ADHOC!$B$4:$B$84,$C57,ADHOC!$C$4:$C$84,$D57) -> 68736652 | I57: =SUMIFS(ADHOC!H$4:H$84,ADHOC!$A$4:$A$84,$B57,ADHOC!$B$4:$B$84,$C57,ADHOC!$C$4:$C$84,$D57) -> 81574964 | J57: =SUMIFS(ADHOC!I$4:I$84,ADHOC!$A$4:$A$84,$B57,ADHOC!$B$4:$B$84,$C57,ADHOC!$C$4:$C$84,$D57) -> 66257236 | K57: =SUMIFS(ADHOC!J$4:J$84,ADHOC!$A$4:$A$84,$B57,ADHOC!$B$4:$B$84,$C57,ADHOC!$C$4:$C$84,$D57) -> 70307260 | L57: =SUMIFS(ADHOC!K$4:K$84,ADHOC!$A$4:$A$84,$B57,ADHOC!$B$4:$B$84,$C57,ADHOC!$C$4:$C$84,$D57) -> 49815961 | M57: =SUMIFS(ADHOC!L$4:L$84,ADHOC!$A$4:$A$84,$B57,ADHOC!$B$4:$B$84,$C57,ADHOC!$C$4:$C$84,$D57) -> 69501388 | N57: =SUMIFS(ADHOC!M$4:M$84,ADHOC!$A$4:$A$84,$B57,ADHOC!$B$4:$B$84,$C57,ADHOC!$C$4:$C$84,$D57) -> 64113170 | O57: =SUMIFS(ADHOC!N$4:N$84,ADHOC!$A$4:$A$84,$B57,ADHOC!$B$4:$B$84,$C57,ADHOC!$C$4:$C$84,$D57) -> 46923362 | P57: =SUMIFS(ADHOC!O$4:O$84,ADHOC!$A$4:$A$84,$B57,ADHOC!$B$4:$B$84,$C57,ADHOC!$C$4:$C$84,$D57) -> 51948354 | Q57: =SUMIFS(ADHOC!P$4:P$84,ADHOC!$A$4:$A$84,$B57,ADHOC!$B$4:$B$84,$C57,ADHOC!$C$4:$C$84,$D57) -> 74327121 | R57: =SUMIFS(ADHOC!Q$4:Q$84,ADHOC!$A$4:$A$84,$B57,ADHOC!$B$4:$B$84,$C57,ADHOC!$C$4:$C$84,$D57) -> 37399474 | S57: =SUMIFS(ADHOC!R$4:R$84,ADHOC!$A$4:$A$84,$B57,ADHOC!$B$4:$B$84,$C57,ADHOC!$C$4:$C$84,$D57) -> 44099160 | T57: =SUMIFS(ADHOC!S$4:S$84,ADHOC!$A$4:$A$84,$B57,ADHOC!$B$4:$B$84,$C57,ADHOC!$C$4:$C$84,$D57) -> 48327569 | U57: =SUMIFS(ADHOC!T$4:T$84,ADHOC!$A$4:$A$84,$B57,ADHOC!$B$4:$B$84,$C57,ADHOC!$C$4:$C$84,$D57) -> 68872681 | V57: =SUMIFS(ADHOC!U$4:U$84,ADHOC!$A$4:$A$84,$B57,ADHOC!$B$4:$B$84,$C57,ADHOC!$C$4:$C$84,$D57) -> 43614231 | W57: =SUMIFS(ADHOC!V$4:V$84,ADHOC!$A$4:$A$84,$B57,ADHOC!$B$4:$B$84,$C57,ADHOC!$C$4:$C$84,$D57) -> 59213738 | X57: =SUMIFS(ADHOC!W$4:W$84,ADHOC!$A$4:$A$84,$B57,ADHOC!$B$4:$B$84,$C57,ADHOC!$C$4:$C$84,$D57) -> 43605814 | Y57: =SUMIFS(ADHOC!X$4:X$84,ADHOC!$A$4:$A$84,$B57,ADHOC!$B$4:$B$84,$C57,ADHOC!$C$4:$C$84,$D57) -> 56632552 | Z57: =SUMIFS(ADHOC!Y$4:Y$84,ADHOC!$A$4:$A$84,$B57,ADHOC!$B$4:$B$84,$C57,ADHOC!$C$4:$C$84,$D57) -> 53477593 | AA57: =SUMIFS(ADHOC!Z$4:Z$84,ADHOC!$A$4:$A$84,$B57,ADHOC!$B$4:$B$84,$C57,ADHOC!$C$4:$C$84,$D57) -> 75351658 | AB57: =SUMIFS(ADHOC!AA$4:AA$84,ADHOC!$A$4:$A$84,$B57,ADHOC!$B$4:$B$84,$C57,ADHOC!$C$4:$C$84,$D57) -> 49471718
A58: 57 | B58: 32519 | C58: Secteur 7 | D58: Rayon 57 | E58: =SUMIFS(ADHOC!D$4:D$84,ADHOC!$A$4:$A$84,$B58,ADHOC!$B$4:$B$84,$C58,ADHOC!$C$4:$C$84,$D58) -> 51096189 | F58: =SUMIFS(ADHOC!E$4:E$84,ADHOC!$A$4:$A$84,$B58,ADHOC!$B$4:$B$84,$C58,ADHOC!$C$4:$C$84,$D58) -> 68262751 | G58: =SUMIFS(ADHOC!F$4:F$84,ADHOC!$A$4:$A$84,$B58,ADHOC!$B$4:$B$84,$C58,ADHOC!$C$4:$C$84,$D58) -> 68911669 | H58: =SUMIFS(ADHOC!G$4:G$84,ADHOC!$A$4:$A$84,$B58,ADHOC!$B$4:$B$84,$C58,ADHOC!$C$4:$C$84,$D58) -> 72338275 | I58: =SUMIFS(ADHOC!H$4:H$84,ADHOC!$A$4:$A$84,$B58,ADHOC!$B$4:$B$84,$C58,ADHOC!$C$4:$C$84,$D58) -> 44016302 | J58: =SUMIFS(ADHOC!I$4:I$84,ADHOC!$A$4:$A$84,$B58,ADHOC!$B$4:$B$84,$C58,ADHOC!$C$4:$C$84,$D58) -> 50324333 | K58: =SUMIFS(ADHOC!J$4:J$84,ADHOC!$A$4:$A$84,$B58,ADHOC!$B$4:$B$84,$C58,ADHOC!$C$4:$C$84,$D58) -> 43638648 | L58: =SUMIFS(ADHOC!K$4:K$84,ADHOC!$A$4:$A$84,$B58,ADHOC!$B$4:$B$84,$C58,ADHOC!$C$4:$C$84,$D58) -> 83591297 | M58: =SUMIFS(ADHOC!L$4:L$84,ADHOC!$A$4:$A$84,$B58,ADHOC!$B$4:$B$84,$C58,ADHOC!$C$4:$C$84,$D58) -> 47779228 | N58: =SUMIFS(ADHOC!M$4:M$84,ADHOC!$A$4:$A$84,$B58,ADHOC!$B$4:$B$84,$C58,ADHOC!$C$4:$C$84,$D58) -> 79030568 | O58: =SUMIFS(ADHOC!N$4:N$84,ADHOC!$A$4:$A$84,$B58,ADHOC!$B$4:$B$84,$C58,ADHOC!$C$4:$C$84,$D58) -> 80472069 | P58: =SUMIFS(ADHOC!O$4:O$84,ADHOC!$A$4:$A$84,$B58,ADHOC!$B$4:$B$84,$C58,ADHOC!$C$4:$C$84,$D58) -> 73805683 | Q58: =SUMIFS(ADHOC!P$4:P$84,ADHOC!$A$4:$A$84,$B58,ADHOC!$B$4:$B$84,$C58,ADHOC!$C$4:$C$84,$D58) -> 83505278 | R58: =SUMIFS(ADHOC!Q$4:Q$84,ADHOC!$A$4:$A$84,$B58,ADHOC!$B$4:$B$84,$C58,ADHOC!$C$4:$C$84,$D58) -> 44632831 | S58: =SUMIFS(ADHOC!R$4:R$84,ADHOC!$A$4:$A$84,$B58,ADHOC!$B$4:$B$84,$C58,ADHOC!$C$4:$C$84,$D58) -> 39441052 | T58: =SUMIFS(ADHOC!S$4:S$84,ADHOC!$A$4:$A$84,$B58,ADHOC!$B$4:$B$84,$C58,ADHOC!$C$4:$C$84,$D58) -> 48703428 | U58: =SUMIFS(ADHOC!T$4:T$84,ADHOC!$A$4:$A$84,$B58,ADHOC!$B$4:$B$84,$C58,ADHOC!$C$4:$C$84,$D58) -> 58123825 | V58: =SUMIFS(ADHOC!U$4:U$84,ADHOC!$A$4:$A$84,$B58,ADHOC!$B$4:$B$84,$C58,ADHOC!$C$4:$C$84,$D58) -> 50860424 | W58: =SUMIFS(ADHOC!V$4:V$84,ADHOC!$A$4:$A$84,$B58,ADHOC!$B$4:$B$84,$C58,ADHOC!$C$4:$C$84,$D58) -> 56574551 | X58: =SUMIFS(ADHOC!W$4:W$84,ADHOC!$A$4:$A$84,$B58,ADHOC!$B$4:$B$84,$C58,ADHOC!$C$4:$C$84,$D58) -> 61997729 | Y58: =SUMIFS(ADHOC!X$4:X$84,ADHOC!$A$4:$A$84,$B58,ADHOC!$B$4:$B$84,$C58,ADHOC!$C$4:$C$84,$D58) -> 76865705 | Z58: =SUMIFS(ADHOC!Y$4:Y$84,ADHOC!$A$4:$A$84,$B58,ADHOC!$B$4:$B$84,$C58,ADHOC!$C$4:$C$84,$D58) -> 60265811 | AA58: =SUMIFS(ADHOC!Z$4:Z$84,ADHOC!$A$4:$A$84,$B58,ADHOC!$B$4:$B$84,$C58,ADHOC!$C$4:$C$84,$D58) -> 53545587 | AB58: =SUMIFS(ADHOC!AA$4:AA$84,ADHOC!$A$4:$A$84,$B58,ADHOC!$B$4:$B$84,$C58,ADHOC!$C$4:$C$84,$D58) -> 59342850
A59: 58 | B59: 33836 | C59: Secteur 7 | D59: Rayon 58 | E59: =SUMIFS(ADHOC!D$4:D$84,ADHOC!$A$4:$A$84,$B59,ADHOC!$B$4:$B$84,$C59,ADHOC!$C$4:$C$84,$D59) -> 52870483 | F59: =SUMIFS(ADHOC!E$4:E$84,ADHOC!$A$4:$A$84,$B59,ADHOC!$B$4:$B$84,$C59,ADHOC!$C$4:$C$84,$D59) -> 40467574 | G59: =SUMIFS(ADHOC!F$4:F$84,ADHOC!$A$4:$A$84,$B59,ADHOC!$B$4:$B$84,$C59,ADHOC!$C$4:$C$84,$D59) -> 57659377 | H59: =SUMIFS(ADHOC!G$4:G$84,ADHOC!$A$4:$A$84,$B59,ADHOC!$B$4:$B$84,$C59,ADHOC!$C$4:$C$84,$D59) -> 67332545 | I59: =SUMIFS(ADHOC!H$4:H$84,ADHOC!$A$4:$A$84,$B59,ADHOC!$B$4:$B$84,$C59,ADHOC!$C$4:$C$84,$D59) -> 62170799 | J59: =SUMIFS(ADHOC!I$4:I$84,ADHOC!$A$4:$A$84,$B59,ADHOC!$B$4:$B$84,$C59,ADHOC!$C$4:$C$84,$D59) -> 49660381 | K59: =SUMIFS(ADHOC!J$4:J$84,ADHOC!$A$4:$A$84,$B59,ADHOC!$B$4:$B$84,$C59,ADHOC!$C$4:$C$84,$D59) -> 70271668 | L59: =SUMIFS(ADHOC!K$4:K$84,ADHOC!$A$4:$A$84,$B59,ADHOC!$B$4:$B$84,$C59,ADHOC!$C$4:$C$84,$D59) -> 55209803 | M59: =SUMIFS(ADHOC!L$4:L$84,ADHOC!$A$4:$A$84,$B59,ADHOC!$B$4:$B$84,$C59,ADHOC!$C$4:$C$84,$D59) -> 79792591 | N59: =SUMIFS(ADHOC!M$4:M$84,ADHOC!$A$4:$A$84,$B59,ADHOC!$B$4:$B$84,$C59,ADHOC!$C$4:$C$84,$D59) -> 36249639 | O59: =SUMIFS(ADHOC!N$4:N$84,ADHOC!$A$4:$A$84,$B59,ADHOC!$B$4:$B$84,$C59,ADHOC!$C$4:$C$84,$D59) -> 47439920 | P59: =SUMIFS(ADHOC!O$4:O$84,ADHOC!$A$4:$A$84,$B59,ADHOC!$B$4:$B$84,$C59,ADHOC!$C$4:$C$84,$D59) -> 79110911 | Q59: =SUMIFS(ADHOC!P$4:P$84,ADHOC!$A$4:$A$84,$B59,ADHOC!$B$4:$B$84,$C59,ADHOC!$C$4:$C$84,$D59) -> 47148621 | R59: =SUMIFS(ADHOC!Q$4:Q$84,ADHOC!$A$4:$A$84,$B59,ADHOC!$B$4:$B$84,$C59,ADHOC!$C$4:$C$84,$D59) -> 39443285 | S59: =SUMIFS(ADHOC!R$4:R$84,ADHOC!$A$4:$A$84,$B59,ADHOC!$B$4:$B$84,$C59,ADHOC!$C$4:$C$84,$D59) -> 67037265 | T59: =SUMIFS(ADHOC!S$4:S$84,ADHOC!$A$4:$A$84,$B59,ADHOC!$B$4:$B$84,$C59,ADHOC!$C$4:$C$84,$D59) -> 65172269 | U59: =SUMIFS(ADHOC!T$4:T$84,ADHOC!$A$4:$A$84,$B59,ADHOC!$B$4:$B$84,$C59,ADHOC!$C$4:$C$84,$D59) -> 36618447 | V59: =SUMIFS(ADHOC!U$4:U$84,ADHOC!$A$4:$A$84,$B59,ADHOC!$B$4:$B$84,$C59,ADHOC!$C$4:$C$84,$D59) -> 43526498 | W59: =SUMIFS(ADHOC!V$4:V$84,ADHOC!$A$4:$A$84,$B59,ADHOC!$B$4:$B$84,$C59,ADHOC!$C$4:$C$84,$D59) -> 60985805 | X59: =SUMIFS(ADHOC!W$4:W$84,ADHOC!$A$4:$A$84,$B59,ADHOC!$B$4:$B$84,$C59,ADHOC!$C$4:$C$84,$D59) -> 46006947 | Y59: =SUMIFS(ADHOC!X$4:X$84,ADHOC!$A$4:$A$84,$B59,ADHOC!$B$4:$B$84,$C59,ADHOC!$C$4:$C$84,$D59) -> 52468446 | Z59: =SUMIFS(ADHOC!Y$4:Y$84,ADHOC!$A$4:$A$84,$B59,ADHOC!$B$4:$B$84,$C59,ADHOC!$C$4:$C$84,$D59) -> 70166195 | AA59: =SUMIFS(ADHOC!Z$4:Z$84,ADHOC!$A$4:$A$84,$B59,ADHOC!$B$4:$B$84,$C59,ADHOC!$C$4:$C$84,$D59) -> 65116575 | AB59: =SUMIFS(ADHOC!AA$4:AA$84,ADHOC!$A$4:$A$84,$B59,ADHOC!$B$4:$B$84,$C59,ADHOC!$C$4:$C$84,$D59) -> 57961697
A60: 59 | B60: 34129 | C60: Secteur 7 | D60: Rayon 59 | E60: =SUMIFS(ADHOC!D$4:D$84,ADHOC!$A$4:$A$84,$B60,ADHOC!$B$4:$B$84,$C60,ADHOC!$C$4:$C$84,$D60) -> 67693315 | F60: =SUMIFS(ADHOC!E$4:E$84,ADHOC!$A$4:$A$84,$B60,ADHOC!$B$4:$B$84,$C60,ADHOC!$C$4:$C$84,$D60) -> 44981767 | G60: =SUMIFS(ADHOC!F$4:F$84,ADHOC!$A$4:$A$84,$B60,ADHOC!$B$4:$B$84,$C60,ADHOC!$C$4:$C$84,$D60) -> 43699226 | H60: =SUMIFS(ADHOC!G$4:G$84,ADHOC!$A$4:$A$84,$B60,ADHOC!$B$4:$B$84,$C60,ADHOC!$C$4:$C$84,$D60) -> 82984389 | I60: =SUMIFS(ADHOC!H$4:H$84,ADHOC!$A$4:$A$84,$B60,ADHOC!$B$4:$B$84,$C60,ADHOC!$C$4:$C$84,$D60) -> 45525762 | J60: =SUMIFS(ADHOC!I$4:I$84,ADHOC!$A$4:$A$84,$B60,ADHOC!$B$4:$B$84,$C60,ADHOC!$C$4:$C$84,$D60) -> 44930092 | K60: =SUMIFS(ADHOC!J$4:J$84,ADHOC!$A$4:$A$84,$B60,ADHOC!$B$4:$B$84,$C60,ADHOC!$C$4:$C$84,$D60) -> 60598568 | L60: =SUMIFS(ADHOC!K$4:K$84,ADHOC!$A$4:$A$84,$B60,ADHOC!$B$4:$B$84,$C60,ADHOC!$C$4:$C$84,$D60) -> 68571611 | M60: =SUMIFS(ADHOC!L$4:L$84,ADHOC!$A$4:$A$84,$B60,ADHOC!$B$4:$B$84,$C60,ADHOC!$C$4:$C$84,$D60) -> 71976624 | N60: =SUMIFS(ADHOC!M$4:M$84,ADHOC!$A$4:$A$84,$B60,ADHOC!$B$4:$B$84,$C60,ADHOC!$C$4:$C$84,$D60) -> 48367914 | O60: =SUMIFS(ADHOC!N$4:N$84,ADHOC!$A$4:$A$84,$B60,ADHOC!$B$4:$B$84,$C60,ADHOC!$C$4:$C$84,$D60) -> 73997273 | P60: =SUMIFS(ADHOC!O$4:O$84,ADHOC!$A$4:$A$84,$B60,ADHOC!$B$4:$B$84,$C60,ADHOC!$C$4:$C$84,$D60) -> 79015025 | Q60: =SUMIFS(ADHOC!P$4:P$84,ADHOC!$A$4:$A$84,$B60,ADHOC!$B$4:$B$84,$C60,ADHOC!$C$4:$C$84,$D60) -> 82839298 | R60: =SUMIFS(ADHOC!Q$4:Q$84,ADHOC!$A$4:$A$84,$B60,ADHOC!$B$4:$B$84,$C60,ADHOC!$C$4:$C$84,$D60) -> 66503358 | S60: =SUMIFS(ADHOC!R$4:R$84,ADHOC!$A$4:$A$84,$B60,ADHOC!$B$4:$B$84,$C60,ADHOC!$C$4:$C$84,$D60) -> 51762223 | T60: =SUMIFS(ADHOC!S$4:S$84,ADHOC!$A$4:$A$84,$B60,ADHOC!$B$4:$B$84,$C60,ADHOC!$C$4:$C$84,$D60) -> 43942379 | U60: =SUMIFS(ADHOC!T$4:T$84,ADHOC!$A$4:$A$84,$B60,ADHOC!$B$4:$B$84,$C60,ADHOC!$C$4:$C$84,$D60) -> 59468047 | V60: =SUMIFS(ADHOC!U$4:U$84,ADHOC!$A$4:$A$84,$B60,ADHOC!$B$4:$B$84,$C60,ADHOC!$C$4:$C$84,$D60) -> 82435620 | W60: =SUMIFS(ADHOC!V$4:V$84,ADHOC!$A$4:$A$84,$B60,ADHOC!$B$4:$B$84,$C60,ADHOC!$C$4:$C$84,$D60) -> 74322746 | X60: =SUMIFS(ADHOC!W$4:W$84,ADHOC!$A$4:$A$84,$B60,ADHOC!$B$4:$B$84,$C60,ADHOC!$C$4:$C$84,$D60) -> 42492864 | Y60: =SUMIFS(ADHOC!X$4:X$84,ADHOC!$A$4:$A$84,$B60,ADHOC!$B$4:$B$84,$C60,ADHOC!$C$4:$C$84,$D60) -> 61113971 | Z60: =SUMIFS(ADHOC!Y$4:Y$84,ADHOC!$A$4:$A$84,$B60,ADHOC!$B$4:$B$84,$C60,ADHOC!$C$4:$C$84,$D60) -> 43739693 | AA60: =SUMIFS(ADHOC!Z$4:Z$84,ADHOC!$A$4:$A$84,$B60,ADHOC!$B$4:$B$84,$C60,ADHOC!$C$4:$C$84,$D60) -> 77296867 | AB60: =SUMIFS(ADHOC!AA$4:AA$84,ADHOC!$A$4:$A$84,$B60,ADHOC!$B$4:$B$84,$C60,ADHOC!$C$4:$C$84,$D60) -> 75939889
A61: 60 | B61: 32743 | C61: Secteur 7 | D61: Rayon 60 | E61: =SUMIFS(ADHOC!D$4:D$84,ADHOC!$A$4:$A$84,$B61,ADHOC!$B$4:$B$84,$C61,ADHOC!$C$4:$C$84,$D61) -> 63780279 | F61: =SUMIFS(ADHOC!E$4:E$84,ADHOC!$A$4:$A$84,$B61,ADHOC!$B$4:$B$84,$C61,ADHOC!$C$4:$C$84,$D61) -> 81775702 | G61: =SUMIFS(ADHOC!F$4:F$84,ADHOC!$A$4:$A$84,$B61,ADHOC!$B$4:$B$84,$C61,ADHOC!$C$4:$C$84,$D61) -> 83016764 | H61: =SUMIFS(ADHOC!G$4:G$84,ADHOC!$A$4:$A$84,$B61,ADHOC!$B$4:$B$84,$C61,ADHOC!$C$4:$C$84,$D61) -> 70323682 | I61: =SUMIFS(ADHOC!H$4:H$84,ADHOC!$A$4:$A$84,$B61,ADHOC!$B$4:$B$84,$C61,ADHOC!$C$4:$C$84,$D61) -> 73246669 | J61: =SUMIFS(ADHOC!I$4:I$84,ADHOC!$A$4:$A$84,$B61,ADHOC!$B$4:$B$84,$C61,ADHOC!$C$4:$C$84,$D61) -> 37065478 | K61: =SUMIFS(ADHOC!J$4:J$84,ADHOC!$A$4:$A$84,$B61,ADHOC!$B$4:$B$84,$C61,ADHOC!$C$4:$C$84,$D61) -> 58486323 | L61: =SUMIFS(ADHOC!K$4:K$84,ADHOC!$A$4:$A$84,$B61,ADHOC!$B$4:$B$84,$C61,ADHOC!$C$4:$C$84,$D61) -> 37981865 | M61: =SUMIFS(ADHOC!L$4:L$84,ADHOC!$A$4:$A$84,$B61,ADHOC!$B$4:$B$84,$C61,ADHOC!$C$4:$C$84,$D61) -> 73635350 | N61: =SUMIFS(ADHOC!M$4:M$84,ADHOC!$A$4:$A$84,$B61,ADHOC!$B$4:$B$84,$C61,ADHOC!$C$4:$C$84,$D61) -> 54797183 | O61: =SUMIFS(ADHOC!N$4:N$84,ADHOC!$A$4:$A$84,$B61,ADHOC!$B$4:$B$84,$C61,ADHOC!$C$4:$C$84,$D61) -> 44200828 | P61: =SUMIFS(ADHOC!O$4:O$84,ADHOC!$A$4:$A$84,$B61,ADHOC!$B$4:$B$84,$C61,ADHOC!$C$4:$C$84,$D61) -> 42540996 | Q61: =SUMIFS(ADHOC!P$4:P$84,ADHOC!$A$4:$A$84,$B61,ADHOC!$B$4:$B$84,$C61,ADHOC!$C$4:$C$84,$D61) -> 52830469 | R61: =SUMIFS(ADHOC!Q$4:Q$84,ADHOC!$A$4:$A$84,$B61,ADHOC!$B$4:$B$84,$C61,ADHOC!$C$4:$C$84,$D61) -> 77843963 | S61: =SUMIFS(ADHOC!R$4:R$84,ADHOC!$A$4:$A$84,$B61,ADHOC!$B$4:$B$84,$C61,ADHOC!$C$4:$C$84,$D61) -> 81664590 | T61: =SUMIFS(ADHOC!S$4:S$84,ADHOC!$A$4:$A$84,$B61,ADHOC!$B$4:$B$84,$C61,ADHOC!$C$4:$C$84,$D61) -> 77138763 | U61: =SUMIFS(ADHOC!T$4:T$84,ADHOC!$A$4:$A$84,$B61,ADHOC!$B$4:$B$84,$C61,ADHOC!$C$4:$C$84,$D61) -> 43056795 | V61: =SUMIFS(ADHOC!U$4:U$84,ADHOC!$A$4:$A$84,$B61,ADHOC!$B$4:$B$84,$C61,ADHOC!$C$4:$C$84,$D61) -> 57470983 | W61: =SUMIFS(ADHOC!V$4:V$84,ADHOC!$A$4:$A$84,$B61,ADHOC!$B$4:$B$84,$C61,ADHOC!$C$4:$C$84,$D61) -> 68516469 | X61: =SUMIFS(ADHOC!W$4:W$84,ADHOC!$A$4:$A$84,$B61,ADHOC!$B$4:$B$84,$C61,ADHOC!$C$4:$C$84,$D61) -> 42517646 | Y61: =SUMIFS(ADHOC!X$4:X$84,ADHOC!$A$4:$A$84,$B61,ADHOC!$B$4:$B$84,$C61,ADHOC!$C$4:$C$84,$D61) -> 36426386 | Z61: =SUMIFS(ADHOC!Y$4:Y$84,ADHOC!$A$4:$A$84,$B61,ADHOC!$B$4:$B$84,$C61,ADHOC!$C$4:$C$84,$D61) -> 38678054 | AA61: =SUMIFS(ADHOC!Z$4:Z$84,ADHOC!$A$4:$A$84,$B61,ADHOC!$B$4:$B$84,$C61,ADHOC!$C$4:$C$84,$D61) -> 75757352 | AB61: =SUMIFS(ADHOC!AA$4:AA$84,ADHOC!$A$4:$A$84,$B61,ADHOC!$B$4:$B$84,$C61,ADHOC!$C$4:$C$84,$D61) -> 53787190
A62: 61 | B62: 32186 | C62: Secteur 7 | D62: Rayon 61 | E62: =SUMIFS(ADHOC!D$4:D$84,ADHOC!$A$4:$A$84,$B62,ADHOC!$B$4:$B$84,$C62,ADHOC!$C$4:$C$84,$D62) -> 41475255 | F62: =SUMIFS(ADHOC!E$4:E$84,ADHOC!$A$4:$A$84,$B62,ADHOC!$B$4:$B$84,$C62,ADHOC!$C$4:$C$84,$D62) -> 68873878 | G62: =SUMIFS(ADHOC!F$4:F$84,ADHOC!$A$4:$A$84,$B62,ADHOC!$B$4:$B$84,$C62,ADHOC!$C$4:$C$84,$D62) -> 48670853 | H62: =SUMIFS(ADHOC!G$4:G$84,ADHOC!$A$4:$A$84,$B62,ADHOC!$B$4:$B$84,$C62,ADHOC!$C$4:$C$84,$D62) -> 60581258 | I62: =SUMIFS(ADHOC!H$4:H$84,ADHOC!$A$4:$A$84,$B62,ADHOC!$B$4:$B$84,$C62,ADHOC!$C$4:$C$84,$D62) -> 37091099 | J62: =SUMIFS(ADHOC!I$4:I$84,ADHOC!$A$4:$A$84,$B62,ADHOC!$B$4:$B$84,$C62,ADHOC!$C$4:$C$84,$D62) -> 69825082 | K62: =SUMIFS(ADHOC!J$4:J$84,ADHOC!$A$4:$A$84,$B62,ADHOC!$B$4:$B$84,$C62,ADHOC!$C$4:$C$84,$D62) -> 44575862 | L62: =SUMIFS(ADHOC!K$4:K$84,ADHOC!$A$4:$A$84,$B62,ADHOC!$B$4:$B$84,$C62,ADHOC!$C$4:$C$84,$D62) -> 51190746 | M62: =SUMIFS(ADHOC!L$4:L$84,ADHOC!$A$4:$A$84,$B62,ADHOC!$B$4:$B$84,$C62,ADHOC!$C$4:$C$84,$D62) -> 75626404 | N62: =SUMIFS(ADHOC!M$4:M$84,ADHOC!$A$4:$A$84,$B62,ADHOC!$B$4:$B$84,$C62,ADHOC!$C$4:$C$84,$D62) -> 63652638 | O62: =SUMIFS(ADHOC!N$4:N$84,ADHOC!$A$4:$A$84,$B62,ADHOC!$B$4:$B$84,$C62,ADHOC!$C$4:$C$84,$D62) -> 53559042 | P62: =SUMIFS(ADHOC!O$4:O$84,ADHOC!$A$4:$A$84,$B62,ADHOC!$B$4:$B$84,$C62,ADHOC!$C$4:$C$84,$D62) -> 73553566 | Q62: =SUMIFS(ADHOC!P$4:P$84,ADHOC!$A$4:$A$84,$B62,ADHOC!$B$4:$B$84,$C62,ADHOC!$C$4:$C$84,$D62) -> 58481191 | R62: =SUMIFS(ADHOC!Q$4:Q$84,ADHOC!$A$4:$A$84,$B62,ADHOC!$B$4:$B$84,$C62,ADHOC!$C$4:$C$84,$D62) -> 38362382 | S62: =SUMIFS(ADHOC!R$4:R$84,ADHOC!$A$4:$A$84,$B62,ADHOC!$B$4:$B$84,$C62,ADHOC!$C$4:$C$84,$D62) -> 37119917 | T62: =SUMIFS(ADHOC!S$4:S$84,ADHOC!$A$4:$A$84,$B62,ADHOC!$B$4:$B$84,$C62,ADHOC!$C$4:$C$84,$D62) -> 61356341 | U62: =SUMIFS(ADHOC!T$4:T$84,ADHOC!$A$4:$A$84,$B62,ADHOC!$B$4:$B$84,$C62,ADHOC!$C$4:$C$84,$D62) -> 62537988 | V62: =SUMIFS(ADHOC!U$4:U$84,ADHOC!$A$4:$A$84,$B62,ADHOC!$B$4:$B$84,$C62,ADHOC!$C$4:$C$84,$D62) -> 62709762 | W62: =SUMIFS(ADHOC!V$4:V$84,ADHOC!$A$4:$A$84,$B62,ADHOC!$B$4:$B$84,$C62,ADHOC!$C$4:$C$84,$D62) -> 67390075 | X62: =SUMIFS(ADHOC!W$4:W$84,ADHOC!$A$4:$A$84,$B62,ADHOC!$B$4:$B$84,$C62,ADHOC!$C$4:$C$84,$D62) -> 36619571 | Y62: =SUMIFS(ADHOC!X$4:X$84,ADHOC!$A$4:$A$84,$B62,ADHOC!$B$4:$B$84,$C62,ADHOC!$C$4:$C$84,$D62) -> 52461887 | Z62: =SUMIFS(ADHOC!Y$4:Y$84,ADHOC!$A$4:$A$84,$B62,ADHOC!$B$4:$B$84,$C62,ADHOC!$C$4:$C$84,$D62) -> 55549364 | AA62: =SUMIFS(ADHOC!Z$4:Z$84,ADHOC!$A$4:$A$84,$B62,ADHOC!$B$4:$B$84,$C62,ADHOC!$C$4:$C$84,$D62) -> 41884454 | AB62: =SUMIFS(ADHOC!AA$4:AA$84,ADHOC!$A$4:$A$84,$B62,ADHOC!$B$4:$B$84,$C62,ADHOC!$C$4:$C$84,$D62) -> 48960661
A63: 62 | B63: 32416 | C63: Secteur 7 | D63: Rayon 62 | E63: =SUMIFS(ADHOC!D$4:D$84,ADHOC!$A$4:$A$84,$B63,ADHOC!$B$4:$B$84,$C63,ADHOC!$C$4:$C$84,$D63) -> 61556451 | F63: =SUMIFS(ADHOC!E$4:E$84,ADHOC!$A$4:$A$84,$B63,ADHOC!$B$4:$B$84,$C63,ADHOC!$C$4:$C$84,$D63) -> 64548458 | G63: =SUMIFS(ADHOC!F$4:F$84,ADHOC!$A$4:$A$84,$B63,ADHOC!$B$4:$B$84,$C63,ADHOC!$C$4:$C$84,$D63) -> 79298816 | H63: =SUMIFS(ADHOC!G$4:G$84,ADHOC!$A$4:$A$84,$B63,ADHOC!$B$4:$B$84,$C63,ADHOC!$C$4:$C$84,$D63) -> 61967373 | I63: =SUMIFS(ADHOC!H$4:H$84,ADHOC!$A$4:$A$84,$B63,ADHOC!$B$4:$B$84,$C63,ADHOC!$C$4:$C$84,$D63) -> 54825589 | J63: =SUMIFS(ADHOC!I$4:I$84,ADHOC!$A$4:$A$84,$B63,ADHOC!$B$4:$B$84,$C63,ADHOC!$C$4:$C$84,$D63) -> 67726897 | K63: =SUMIFS(ADHOC!J$4:J$84,ADHOC!$A$4:$A$84,$B63,ADHOC!$B$4:$B$84,$C63,ADHOC!$C$4:$C$84,$D63) -> 42066313 | L63: =SUMIFS(ADHOC!K$4:K$84,ADHOC!$A$4:$A$84,$B63,ADHOC!$B$4:$B$84,$C63,ADHOC!$C$4:$C$84,$D63) -> 59068395 | M63: =SUMIFS(ADHOC!L$4:L$84,ADHOC!$A$4:$A$84,$B63,ADHOC!$B$4:$B$84,$C63,ADHOC!$C$4:$C$84,$D63) -> 53242059 | N63: =SUMIFS(ADHOC!M$4:M$84,ADHOC!$A$4:$A$84,$B63,ADHOC!$B$4:$B$84,$C63,ADHOC!$C$4:$C$84,$D63) -> 51403240 | O63: =SUMIFS(ADHOC!N$4:N$84,ADHOC!$A$4:$A$84,$B63,ADHOC!$B$4:$B$84,$C63,ADHOC!$C$4:$C$84,$D63) -> 73681193 | P63: =SUMIFS(ADHOC!O$4:O$84,ADHOC!$A$4:$A$84,$B63,ADHOC!$B$4:$B$84,$C63,ADHOC!$C$4:$C$84,$D63) -> 39663886 | Q63: =SUMIFS(ADHOC!P$4:P$84,ADHOC!$A$4:$A$84,$B63,ADHOC!$B$4:$B$84,$C63,ADHOC!$C$4:$C$84,$D63) -> 59779806 | R63: =SUMIFS(ADHOC!Q$4:Q$84,ADHOC!$A$4:$A$84,$B63,ADHOC!$B$4:$B$84,$C63,ADHOC!$C$4:$C$84,$D63) -> 38838549 | S63: =SUMIFS(ADHOC!R$4:R$84,ADHOC!$A$4:$A$84,$B63,ADHOC!$B$4:$B$84,$C63,ADHOC!$C$4:$C$84,$D63) -> 50858036 | T63: =SUMIFS(ADHOC!S$4:S$84,ADHOC!$A$4:$A$84,$B63,ADHOC!$B$4:$B$84,$C63,ADHOC!$C$4:$C$84,$D63) -> 53976955 | U63: =SUMIFS(ADHOC!T$4:T$84,ADHOC!$A$4:$A$84,$B63,ADHOC!$B$4:$B$84,$C63,ADHOC!$C$4:$C$84,$D63) -> 55948523 | V63: =SUMIFS(ADHOC!U$4:U$84,ADHOC!$A$4:$A$84,$B63,ADHOC!$B$4:$B$84,$C63,ADHOC!$C$4:$C$84,$D63) -> 67289361 | W63: =SUMIFS(ADHOC!V$4:V$84,ADHOC!$A$4:$A$84,$B63,ADHOC!$B$4:$B$84,$C63,ADHOC!$C$4:$C$84,$D63) -> 57833393 | X63: =SUMIFS(ADHOC!W$4:W$84,ADHOC!$A$4:$A$84,$B63,ADHOC!$B$4:$B$84,$C63,ADHOC!$C$4:$C$84,$D63) -> 52880105 | Y63: =SUMIFS(ADHOC!X$4:X$84,ADHOC!$A$4:$A$84,$B63,ADHOC!$B$4:$B$84,$C63,ADHOC!$C$4:$C$84,$D63) -> 55174796 | Z63: =SUMIFS(ADHOC!Y$4:Y$84,ADHOC!$A$4:$A$84,$B63,ADHOC!$B$4:$B$84,$C63,ADHOC!$C$4:$C$84,$D63) -> 40362992 | AA63: =SUMIFS(ADHOC!Z$4:Z$84,ADHOC!$A$4:$A$84,$B63,ADHOC!$B$4:$B$84,$C63,ADHOC!$C$4:$C$84,$D63) -> 65202705 | AB63: =SUMIFS(ADHOC!AA$4:AA$84,ADHOC!$A$4:$A$84,$B63,ADHOC!$B$4:$B$84,$C63,ADHOC!$C$4:$C$84,$D63) -> 77538055
A64: 63 | B64: 32200 | C64: Secteur 7 | D64: Rayon 63 | E64: =SUMIFS(ADHOC!D$4:D$84,ADHOC!$A$4:$A$84,$B64,ADHOC!$B$4:$B$84,$C64,ADHOC!$C$4:$C$84,$D64) -> 73943207 | F64: =SUMIFS(ADHOC!E$4:E$84,ADHOC!$A$4:$A$84,$B64,ADHOC!$B$4:$B$84,$C64,ADHOC!$C$4:$C$84,$D64) -> 41001019 | G64: =SUMIFS(ADHOC!F$4:F$84,ADHOC!$A$4:$A$84,$B64,ADHOC!$B$4:$B$84,$C64,ADHOC!$C$4:$C$84,$D64) -> 40926010 | H64: =SUMIFS(ADHOC!G$4:G$84,ADHOC!$A$4:$A$84,$B64,ADHOC!$B$4:$B$84,$C64,ADHOC!$C$4:$C$84,$D64) -> 57874102 | I64: =SUMIFS(ADHOC!H$4:H$84,ADHOC!$A$4:$A$84,$B64,ADHOC!$B$4:$B$84,$C64,ADHOC!$C$4:$C$84,$D64) -> 83409161 | J64: =SUMIFS(ADHOC!I$4:I$84,ADHOC!$A$4:$A$84,$B64,ADHOC!$B$4:$B$84,$C64,ADHOC!$C$4:$C$84,$D64) -> 46283948 | K64: =SUMIFS(ADHOC!J$4:J$84,ADHOC!$A$4:$A$84,$B64,ADHOC!$B$4:$B$84,$C64,ADHOC!$C$4:$C$84,$D64) -> 53424803 | L64: =SUMIFS(ADHOC!K$4:K$84,ADHOC!$A$4:$A$84,$B64,ADHOC!$B$4:$B$84,$C64,ADHOC!$C$4:$C$84,$D64) -> 41911161 | M64: =SUMIFS(ADHOC!L$4:L$84,ADHOC!$A$4:$A$84,$B64,ADHOC!$B$4:$B$84,$C64,ADHOC!$C$4:$C$84,$D64) -> 44048185 | N64: =SUMIFS(ADHOC!M$4:M$84,ADHOC!$A$4:$A$84,$B64,ADHOC!$B$4:$B$84,$C64,ADHOC!$C$4:$C$84,$D64) -> 72241804 | O64: =SUMIFS(ADHOC!N$4:N$84,ADHOC!$A$4:$A$84,$B64,ADHOC!$B$4:$B$84,$C64,ADHOC!$C$4:$C$84,$D64) -> 36381688 | P64: =SUMIFS(ADHOC!O$4:O$84,ADHOC!$A$4:$A$84,$B64,ADHOC!$B$4:$B$84,$C64,ADHOC!$C$4:$C$84,$D64) -> 83679246 | Q64: =SUMIFS(ADHOC!P$4:P$84,ADHOC!$A$4:$A$84,$B64,ADHOC!$B$4:$B$84,$C64,ADHOC!$C$4:$C$84,$D64) -> 48261817 | R64: =SUMIFS(ADHOC!Q$4:Q$84,ADHOC!$A$4:$A$84,$B64,ADHOC!$B$4:$B$84,$C64,ADHOC!$C$4:$C$84,$D64) -> 60209577 | S64: =SUMIFS(ADHOC!R$4:R$84,ADHOC!$A$4:$A$84,$B64,ADHOC!$B$4:$B$84,$C64,ADHOC!$C$4:$C$84,$D64) -> 67393024 | T64: =SUMIFS(ADHOC!S$4:S$84,ADHOC!$A$4:$A$84,$B64,ADHOC!$B$4:$B$84,$C64,ADHOC!$C$4:$C$84,$D64) -> 42637370 | U64: =SUMIFS(ADHOC!T$4:T$84,ADHOC!$A$4:$A$84,$B64,ADHOC!$B$4:$B$84,$C64,ADHOC!$C$4:$C$84,$D64) -> 48453956 | V64: =SUMIFS(ADHOC!U$4:U$84,ADHOC!$A$4:$A$84,$B64,ADHOC!$B$4:$B$84,$C64,ADHOC!$C$4:$C$84,$D64) -> 47174956 | W64: =SUMIFS(ADHOC!V$4:V$84,ADHOC!$A$4:$A$84,$B64,ADHOC!$B$4:$B$84,$C64,ADHOC!$C$4:$C$84,$D64) -> 53851452 | X64: =SUMIFS(ADHOC!W$4:W$84,ADHOC!$A$4:$A$84,$B64,ADHOC!$B$4:$B$84,$C64,ADHOC!$C$4:$C$84,$D64) -> 45920168 | Y64: =SUMIFS(ADHOC!X$4:X$84,ADHOC!$A$4:$A$84,$B64,ADHOC!$B$4:$B$84,$C64,ADHOC!$C$4:$C$84,$D64) -> 48370184 | Z64: =SUMIFS(ADHOC!Y$4:Y$84,ADHOC!$A$4:$A$84,$B64,ADHOC!$B$4:$B$84,$C64,ADHOC!$C$4:$C$84,$D64) -> 68287051 | AA64: =SUMIFS(ADHOC!Z$4:Z$84,ADHOC!$A$4:$A$84,$B64,ADHOC!$B$4:$B$84,$C64,ADHOC!$C$4:$C$84,$D64) -> 68053500 | AB64: =SUMIFS(ADHOC!AA$4:AA$84,ADHOC!$A$4:$A$84,$B64,ADHOC!$B$4:$B$84,$C64,ADHOC!$C$4:$C$84,$D64) -> 48988229
A65: 64 | B65: 34005 | C65: Secteur 7 | D65: Rayon 64 | E65: =SUMIFS(ADHOC!D$4:D$84,ADHOC!$A$4:$A$84,$B65,ADHOC!$B$4:$B$84,$C65,ADHOC!$C$4:$C$84,$D65) -> 41419272 | F65: =SUMIFS(ADHOC!E$4:E$84,ADHOC!$A$4:$A$84,$B65,ADHOC!$B$4:$B$84,$C65,ADHOC!$C$4:$C$84,$D65) -> 46658221 | G65: =SUMIFS(ADHOC!F$4:F$84,ADHOC!$A$4:$A$84,$B65,ADHOC!$B$4:$B$84,$C65,ADHOC!$C$4:$C$84,$D65) -> 42771522 | H65: =SUMIFS(ADHOC!G$4:G$84,ADHOC!$A$4:$A$84,$B65,ADHOC!$B$4:$B$84,$C65,ADHOC!$C$4:$C$84,$D65) -> 40431937 | I65: =SUMIFS(ADHOC!H$4:H$84,ADHOC!$A$4:$A$84,$B65,ADHOC!$B$4:$B$84,$C65,ADHOC!$C$4:$C$84,$D65) -> 70536002 | J65: =SUMIFS(ADHOC!I$4:I$84,ADHOC!$A$4:$A$84,$B65,ADHOC!$B$4:$B$84,$C65,ADHOC!$C$4:$C$84,$D65) -> 36653074 | K65: =SUMIFS(ADHOC!J$4:J$84,ADHOC!$A$4:$A$84,$B65,ADHOC!$B$4:$B$84,$C65,ADHOC!$C$4:$C$84,$D65) -> 58401466 | L65: =SUMIFS(ADHOC!K$4:K$84,ADHOC!$A$4:$A$84,$B65,ADHOC!$B$4:$B$84,$C65,ADHOC!$C$4:$C$84,$D65) -> 58549257 | M65: =SUMIFS(ADHOC!L$4:L$84,ADHOC!$A$4:$A$84,$B65,ADHOC!$B$4:$B$84,$C65,ADHOC!$C$4:$C$84,$D65) -> 64554338 | N65: =SUMIFS(ADHOC!M$4:M$84,ADHOC!$A$4:$A$84,$B65,ADHOC!$B$4:$B$84,$C65,ADHOC!$C$4:$C$84,$D65) -> 64117233 | O65: =SUMIFS(ADHOC!N$4:N$84,ADHOC!$A$4:$A$84,$B65,ADHOC!$B$4:$B$84,$C65,ADHOC!$C$4:$C$84,$D65) -> 46871247 | P65: =SUMIFS(ADHOC!O$4:O$84,ADHOC!$A$4:$A$84,$B65,ADHOC!$B$4:$B$84,$C65,ADHOC!$C$4:$C$84,$D65) -> 65993981 | Q65: =SUMIFS(ADHOC!P$4:P$84,ADHOC!$A$4:$A$84,$B65,ADHOC!$B$4:$B$84,$C65,ADHOC!$C$4:$C$84,$D65) -> 43990589 | R65: =SUMIFS(ADHOC!Q$4:Q$84,ADHOC!$A$4:$A$84,$B65,ADHOC!$B$4:$B$84,$C65,ADHOC!$C$4:$C$84,$D65) -> 46755088 | S65: =SUMIFS(ADHOC!R$4:R$84,ADHOC!$A$4:$A$84,$B65,ADHOC!$B$4:$B$84,$C65,ADHOC!$C$4:$C$84,$D65) -> 57094866 | T65: =SUMIFS(ADHOC!S$4:S$84,ADHOC!$A$4:$A$84,$B65,ADHOC!$B$4:$B$84,$C65,ADHOC!$C$4:$C$84,$D65) -> 45865115 | U65: =SUMIFS(ADHOC!T$4:T$84,ADHOC!$A$4:$A$84,$B65,ADHOC!$B$4:$B$84,$C65,ADHOC!$C$4:$C$84,$D65) -> 44116245 | V65: =SUMIFS(ADHOC!U$4:U$84,ADHOC!$A$4:$A$84,$B65,ADHOC!$B$4:$B$84,$C65,ADHOC!$C$4:$C$84,$D65) -> 61936615 | W65: =SUMIFS(ADHOC!V$4:V$84,ADHOC!$A$4:$A$84,$B65,ADHOC!$B$4:$B$84,$C65,ADHOC!$C$4:$C$84,$D65) -> 48664576 | X65: =SUMIFS(ADHOC!W$4:W$84,ADHOC!$A$4:$A$84,$B65,ADHOC!$B$4:$B$84,$C65,ADHOC!$C$4:$C$84,$D65) -> 57370165 | Y65: =SUMIFS(ADHOC!X$4:X$84,ADHOC!$A$4:$A$84,$B65,ADHOC!$B$4:$B$84,$C65,ADHOC!$C$4:$C$84,$D65) -> 64979980 | Z65: =SUMIFS(ADHOC!Y$4:Y$84,ADHOC!$A$4:$A$84,$B65,ADHOC!$B$4:$B$84,$C65,ADHOC!$C$4:$C$84,$D65) -> 81693672 | AA65: =SUMIFS(ADHOC!Z$4:Z$84,ADHOC!$A$4:$A$84,$B65,ADHOC!$B$4:$B$84,$C65,ADHOC!$C$4:$C$84,$D65) -> 44967823 | AB65: =SUMIFS(ADHOC!AA$4:AA$84,ADHOC!$A$4:$A$84,$B65,ADHOC!$B$4:$B$84,$C65,ADHOC!$C$4:$C$84,$D65) -> 55720467
A66: 65 | B66: 33384 | C66: Secteur 7 | D66: Rayon 65 | E66: =SUMIFS(ADHOC!D$4:D$84,ADHOC!$A$4:$A$84,$B66,ADHOC!$B$4:$B$84,$C66,ADHOC!$C$4:$C$84,$D66) -> 50301092 | F66: =SUMIFS(ADHOC!E$4:E$84,ADHOC!$A$4:$A$84,$B66,ADHOC!$B$4:$B$84,$C66,ADHOC!$C$4:$C$84,$D66) -> 68505050 | G66: =SUMIFS(ADHOC!F$4:F$84,ADHOC!$A$4:$A$84,$B66,ADHOC!$B$4:$B$84,$C66,ADHOC!$C$4:$C$84,$D66) -> 83600268 | H66: =SUMIFS(ADHOC!G$4:G$84,ADHOC!$A$4:$A$84,$B66,ADHOC!$B$4:$B$84,$C66,ADHOC!$C$4:$C$84,$D66) -> 69168203 | I66: =SUMIFS(ADHOC!H$4:H$84,ADHOC!$A$4:$A$84,$B66,ADHOC!$B$4:$B$84,$C66,ADHOC!$C$4:$C$84,$D66) -> 83134731 | J66: =SUMIFS(ADHOC!I$4:I$84,ADHOC!$A$4:$A$84,$B66,ADHOC!$B$4:$B$84,$C66,ADHOC!$C$4:$C$84,$D66) -> 49899194 | K66: =SUMIFS(ADHOC!J$4:J$84,ADHOC!$A$4:$A$84,$B66,ADHOC!$B$4:$B$84,$C66,ADHOC!$C$4:$C$84,$D66) -> 62706136 | L66: =SUMIFS(ADHOC!K$4:K$84,ADHOC!$A$4:$A$84,$B66,ADHOC!$B$4:$B$84,$C66,ADHOC!$C$4:$C$84,$D66) -> 64939697 | M66: =SUMIFS(ADHOC!L$4:L$84,ADHOC!$A$4:$A$84,$B66,ADHOC!$B$4:$B$84,$C66,ADHOC!$C$4:$C$84,$D66) -> 69271049 | N66: =SUMIFS(ADHOC!M$4:M$84,ADHOC!$A$4:$A$84,$B66,ADHOC!$B$4:$B$84,$C66,ADHOC!$C$4:$C$84,$D66) -> 48565427 | O66: =SUMIFS(ADHOC!N$4:N$84,ADHOC!$A$4:$A$84,$B66,ADHOC!$B$4:$B$84,$C66,ADHOC!$C$4:$C$84,$D66) -> 51220787 | P66: =SUMIFS(ADHOC!O$4:O$84,ADHOC!$A$4:$A$84,$B66,ADHOC!$B$4:$B$84,$C66,ADHOC!$C$4:$C$84,$D66) -> 71434729 | Q66: =SUMIFS(ADHOC!P$4:P$84,ADHOC!$A$4:$A$84,$B66,ADHOC!$B$4:$B$84,$C66,ADHOC!$C$4:$C$84,$D66) -> 69163475 | R66: =SUMIFS(ADHOC!Q$4:Q$84,ADHOC!$A$4:$A$84,$B66,ADHOC!$B$4:$B$84,$C66,ADHOC!$C$4:$C$84,$D66) -> 80485753 | S66: =SUMIFS(ADHOC!R$4:R$84,ADHOC!$A$4:$A$84,$B66,ADHOC!$B$4:$B$84,$C66,ADHOC!$C$4:$C$84,$D66) -> 57760145 | T66: =SUMIFS(ADHOC!S$4:S$84,ADHOC!$A$4:$A$84,$B66,ADHOC!$B$4:$B$84,$C66,ADHOC!$C$4:$C$84,$D66) -> 69322913 | U66: =SUMIFS(ADHOC!T$4:T$84,ADHOC!$A$4:$A$84,$B66,ADHOC!$B$4:$B$84,$C66,ADHOC!$C$4:$C$84,$D66) -> 45116824 | V66: =SUMIFS(ADHOC!U$4:U$84,ADHOC!$A$4:$A$84,$B66,ADHOC!$B$4:$B$84,$C66,ADHOC!$C$4:$C$84,$D66) -> 45992443 | W66: =SUMIFS(ADHOC!V$4:V$84,ADHOC!$A$4:$A$84,$B66,ADHOC!$B$4:$B$84,$C66,ADHOC!$C$4:$C$84,$D66) -> 53144820 | X66: =SUMIFS(ADHOC!W$4:W$84,ADHOC!$A$4:$A$84,$B66,ADHOC!$B$4:$B$84,$C66,ADHOC!$C$4:$C$84,$D66) -> 66780126 | Y66: =SUMIFS(ADHOC!X$4:X$84,ADHOC!$A$4:$A$84,$B66,ADHOC!$B$4:$B$84,$C66,ADHOC!$C$4:$C$84,$D66) -> 76953564 | Z66: =SUMIFS(ADHOC!Y$4:Y$84,ADHOC!$A$4:$A$84,$B66,ADHOC!$B$4:$B$84,$C66,ADHOC!$C$4:$C$84,$D66) -> 67613197 | AA66: =SUMIFS(ADHOC!Z$4:Z$84,ADHOC!$A$4:$A$84,$B66,ADHOC!$B$4:$B$84,$C66,ADHOC!$C$4:$C$84,$D66) -> 75425897 | AB66: =SUMIFS(ADHOC!AA$4:AA$84,ADHOC!$A$4:$A$84,$B66,ADHOC!$B$4:$B$84,$C66,ADHOC!$C$4:$C$84,$D66) -> 49906077
A67: 66 | B67: 33306 | C67: Secteur 7 | D67: Rayon 66 | E67: =SUMIFS(ADHOC!D$4:D$84,ADHOC!$A$4:$A$84,$B67,ADHOC!$B$4:$B$84,$C67,ADHOC!$C$4:$C$84,$D67) -> 43679603 | F67: =SUMIFS(ADHOC!E$4:E$84,ADHOC!$A$4:$A$84,$B67,ADHOC!$B$4:$B$84,$C67,ADHOC!$C$4:$C$84,$D67) -> 71965404 | G67: =SUMIFS(ADHOC!F$4:F$84,ADHOC!$A$4:$A$84,$B67,ADHOC!$B$4:$B$84,$C67,ADHOC!$C$4:$C$84,$D67) -> 76911876 | H67: =SUMIFS(ADHOC!G$4:G$84,ADHOC!$A$4:$A$84,$B67,ADHOC!$B$4:$B$84,$C67,ADHOC!$C$4:$C$84,$D67) -> 70159047 | I67: =SUMIFS(ADHOC!H$4:H$84,ADHOC!$A$4:$A$84,$B67,ADHOC!$B$4:$B$84,$C67,ADHOC!$C$4:$C$84,$D67) -> 49939979 | J67: =SUMIFS(ADHOC!I$4:I$84,ADHOC!$A$4:$A$84,$B67,ADHOC!$B$4:$B$84,$C67,ADHOC!$C$4:$C$84,$D67) -> 57612575 | K67: =SUMIFS(ADHOC!J$4:J$84,ADHOC!$A$4:$A$84,$B67,ADHOC!$B$4:$B$84,$C67,ADHOC!$C$4:$C$84,$D67) -> 66277522 | L67: =SUMIFS(ADHOC!K$4:K$84,ADHOC!$A$4:$A$84,$B67,ADHOC!$B$4:$B$84,$C67,ADHOC!$C$4:$C$84,$D67) -> 61052869 | M67: =SUMIFS(ADHOC!L$4:L$84,ADHOC!$A$4:$A$84,$B67,ADHOC!$B$4:$B$84,$C67,ADHOC!$C$4:$C$84,$D67) -> 45209008 | N67: =SUMIFS(ADHOC!M$4:M$84,ADHOC!$A$4:$A$84,$B67,ADHOC!$B$4:$B$84,$C67,ADHOC!$C$4:$C$84,$D67) -> 65390027 | O67: =SUMIFS(ADHOC!N$4:N$84,ADHOC!$A$4:$A$84,$B67,ADHOC!$B$4:$B$84,$C67,ADHOC!$C$4:$C$84,$D67) -> 59220069 | P67: =SUMIFS(ADHOC!O$4:O$84,ADHOC!$A$4:$A$84,$B67,ADHOC!$B$4:$B$84,$C67,ADHOC!$C$4:$C$84,$D67) -> 77993044 | Q67: =SUMIFS(ADHOC!P$4:P$84,ADHOC!$A$4:$A$84,$B67,ADHOC!$B$4:$B$84,$C67,ADHOC!$C$4:$C$84,$D67) -> 62311563 | R67: =SUMIFS(ADHOC!Q$4:Q$84,ADHOC!$A$4:$A$84,$B67,ADHOC!$B$4:$B$84,$C67,ADHOC!$C$4:$C$84,$D67) -> 62106298 | S67: =SUMIFS(ADHOC!R$4:R$84,ADHOC!$A$4:$A$84,$B67,ADHOC!$B$4:$B$84,$C67,ADHOC!$C$4:$C$84,$D67) -> 49061991 | T67: =SUMIFS(ADHOC!S$4:S$84,ADHOC!$A$4:$A$84,$B67,ADHOC!$B$4:$B$84,$C67,ADHOC!$C$4:$C$84,$D67) -> 70870391 | U67: =SUMIFS(ADHOC!T$4:T$84,ADHOC!$A$4:$A$84,$B67,ADHOC!$B$4:$B$84,$C67,ADHOC!$C$4:$C$84,$D67) -> 44527816 | V67: =SUMIFS(ADHOC!U$4:U$84,ADHOC!$A$4:$A$84,$B67,ADHOC!$B$4:$B$84,$C67,ADHOC!$C$4:$C$84,$D67) -> 73765504 | W67: =SUMIFS(ADHOC!V$4:V$84,ADHOC!$A$4:$A$84,$B67,ADHOC!$B$4:$B$84,$C67,ADHOC!$C$4:$C$84,$D67) -> 57010069 | X67: =SUMIFS(ADHOC!W$4:W$84,ADHOC!$A$4:$A$84,$B67,ADHOC!$B$4:$B$84,$C67,ADHOC!$C$4:$C$84,$D67) -> 65928983 | Y67: =SUMIFS(ADHOC!X$4:X$84,ADHOC!$A$4:$A$84,$B67,ADHOC!$B$4:$B$84,$C67,ADHOC!$C$4:$C$84,$D67) -> 74313035 | Z67: =SUMIFS(ADHOC!Y$4:Y$84,ADHOC!$A$4:$A$84,$B67,ADHOC!$B$4:$B$84,$C67,ADHOC!$C$4:$C$84,$D67) -> 79889625 | AA67: =SUMIFS(ADHOC!Z$4:Z$84,ADHOC!$A$4:$A$84,$B67,ADHOC!$B$4:$B$84,$C67,ADHOC!$C$4:$C$84,$D67) -> 43898367 | AB67: =SUMIFS(ADHOC!AA$4:AA$84,ADHOC!$A$4:$A$84,$B67,ADHOC!$B$4:$B$84,$C67,ADHOC!$C$4:$C$84,$D67) -> 36706934
A68: 67 | B68: 33482 | C68: Secteur 8 | D68: Rayon 67 | E68: =SUMIFS(ADHOC!D$4:D$84,ADHOC!$A$4:$A$84,$B68,ADHOC!$B$4:$B$84,$C68,ADHOC!$C$4:$C$84,$D68) -> 46608436 | F68: =SUMIFS(ADHOC!E$4:E$84,ADHOC!$A$4:$A$84,$B68,ADHOC!$B$4:$B$84,$C68,ADHOC!$C$4:$C$84,$D68) -> 66082106 | G68: =SUMIFS(ADHOC!F$4:F$84,ADHOC!$A$4:$A$84,$B68,ADHOC!$B$4:$B$84,$C68,ADHOC!$C$4:$C$84,$D68) -> 48393558 | H68: =SUMIFS(ADHOC!G$4:G$84,ADHOC!$A$4:$A$84,$B68,ADHOC!$B$4:$B$84,$C68,ADHOC!$C$4:$C$84,$D68) -> 39606262 | I68: =SUMIFS(ADHOC!H$4:H$84,ADHOC!$A$4:$A$84,$B68,ADHOC!$B$4:$B$84,$C68,ADHOC!$C$4:$C$84,$D68) -> 82390729 | J68: =SUMIFS(ADHOC!I$4:I$84,ADHOC!$A$4:$A$84,$B68,ADHOC!$B$4:$B$84,$C68,ADHOC!$C$4:$C$84,$D68) -> 52875218 | K68: =SUMIFS(ADHOC!J$4:J$84,ADHOC!$A$4:$A$84,$B68,ADHOC!$B$4:$B$84,$C68,ADHOC!$C$4:$C$84,$D68) -> 38948804 | L68: =SUMIFS(ADHOC!K$4:K$84,ADHOC!$A$4:$A$84,$B68,ADHOC!$B$4:$B$84,$C68,ADHOC!$C$4:$C$84,$D68) -> 48772952 | M68: =SUMIFS(ADHOC!L$4:L$84,ADHOC!$A$4:$A$84,$B68,ADHOC!$B$4:$B$84,$C68,ADHOC!$C$4:$C$84,$D68) -> 78561197 | N68: =SUMIFS(ADHOC!M$4:M$84,ADHOC!$A$4:$A$84,$B68,ADHOC!$B$4:$B$84,$C68,ADHOC!$C$4:$C$84,$D68) -> 50406164 | O68: =SUMIFS(ADHOC!N$4:N$84,ADHOC!$A$4:$A$84,$B68,ADHOC!$B$4:$B$84,$C68,ADHOC!$C$4:$C$84,$D68) -> 57053033 | P68: =SUMIFS(ADHOC!O$4:O$84,ADHOC!$A$4:$A$84,$B68,ADHOC!$B$4:$B$84,$C68,ADHOC!$C$4:$C$84,$D68) -> 58912747 | Q68: =SUMIFS(ADHOC!P$4:P$84,ADHOC!$A$4:$A$84,$B68,ADHOC!$B$4:$B$84,$C68,ADHOC!$C$4:$C$84,$D68) -> 79149477 | R68: =SUMIFS(ADHOC!Q$4:Q$84,ADHOC!$A$4:$A$84,$B68,ADHOC!$B$4:$B$84,$C68,ADHOC!$C$4:$C$84,$D68) -> 79127747 | S68: =SUMIFS(ADHOC!R$4:R$84,ADHOC!$A$4:$A$84,$B68,ADHOC!$B$4:$B$84,$C68,ADHOC!$C$4:$C$84,$D68) -> 54064874 | T68: =SUMIFS(ADHOC!S$4:S$84,ADHOC!$A$4:$A$84,$B68,ADHOC!$B$4:$B$84,$C68,ADHOC!$C$4:$C$84,$D68) -> 82170931 | U68: =SUMIFS(ADHOC!T$4:T$84,ADHOC!$A$4:$A$84,$B68,ADHOC!$B$4:$B$84,$C68,ADHOC!$C$4:$C$84,$D68) -> 46432571 | V68: =SUMIFS(ADHOC!U$4:U$84,ADHOC!$A$4:$A$84,$B68,ADHOC!$B$4:$B$84,$C68,ADHOC!$C$4:$C$84,$D68) -> 38632793 | W68: =SUMIFS(ADHOC!V$4:V$84,ADHOC!$A$4:$A$84,$B68,ADHOC!$B$4:$B$84,$C68,ADHOC!$C$4:$C$84,$D68) -> 39405761 | X68: =SUMIFS(ADHOC!W$4:W$84,ADHOC!$A$4:$A$84,$B68,ADHOC!$B$4:$B$84,$C68,ADHOC!$C$4:$C$84,$D68) -> 43098375 | Y68: =SUMIFS(ADHOC!X$4:X$84,ADHOC!$A$4:$A$84,$B68,ADHOC!$B$4:$B$84,$C68,ADHOC!$C$4:$C$84,$D68) -> 66263533 | Z68: =SUMIFS(ADHOC!Y$4:Y$84,ADHOC!$A$4:$A$84,$B68,ADHOC!$B$4:$B$84,$C68,ADHOC!$C$4:$C$84,$D68) -> 50521278 | AA68: =SUMIFS(ADHOC!Z$4:Z$84,ADHOC!$A$4:$A$84,$B68,ADHOC!$B$4:$B$84,$C68,ADHOC!$C$4:$C$84,$D68) -> 38248978 | AB68: =SUMIFS(ADHOC!AA$4:AA$84,ADHOC!$A$4:$A$84,$B68,ADHOC!$B$4:$B$84,$C68,ADHOC!$C$4:$C$84,$D68) -> 49156668
A69: 68 | B69: 33611 | C69: Secteur 9 | D69: Rayon 68 | E69: =SUMIFS(ADHOC!D$4:D$84,ADHOC!$A$4:$A$84,$B69,ADHOC!$B$4:$B$84,$C69,ADHOC!$C$4:$C$84,$D69) -> 64115229 | F69: =SUMIFS(ADHOC!E$4:E$84,ADHOC!$A$4:$A$84,$B69,ADHOC!$B$4:$B$84,$C69,ADHOC!$C$4:$C$84,$D69) -> 48223607 | G69: =SUMIFS(ADHOC!F$4:F$84,ADHOC!$A$4:$A$84,$B69,ADHOC!$B$4:$B$84,$C69,ADHOC!$C$4:$C$84,$D69) -> 65405624 | H69: =SUMIFS(ADHOC!G$4:G$84,ADHOC!$A$4:$A$84,$B69,ADHOC!$B$4:$B$84,$C69,ADHOC!$C$4:$C$84,$D69) -> 50490081 | I69: =SUMIFS(ADHOC!H$4:H$84,ADHOC!$A$4:$A$84,$B69,ADHOC!$B$4:$B$84,$C69,ADHOC!$C$4:$C$84,$D69) -> 42293918 | J69: =SUMIFS(ADHOC!I$4:I$84,ADHOC!$A$4:$A$84,$B69,ADHOC!$B$4:$B$84,$C69,ADHOC!$C$4:$C$84,$D69) -> 40887201 | K69: =SUMIFS(ADHOC!J$4:J$84,ADHOC!$A$4:$A$84,$B69,ADHOC!$B$4:$B$84,$C69,ADHOC!$C$4:$C$84,$D69) -> 54733787 | L69: =SUMIFS(ADHOC!K$4:K$84,ADHOC!$A$4:$A$84,$B69,ADHOC!$B$4:$B$84,$C69,ADHOC!$C$4:$C$84,$D69) -> 71629974 | M69: =SUMIFS(ADHOC!L$4:L$84,ADHOC!$A$4:$A$84,$B69,ADHOC!$B$4:$B$84,$C69,ADHOC!$C$4:$C$84,$D69) -> 46383930 | N69: =SUMIFS(ADHOC!M$4:M$84,ADHOC!$A$4:$A$84,$B69,ADHOC!$B$4:$B$84,$C69,ADHOC!$C$4:$C$84,$D69) -> 68225463 | O69: =SUMIFS(ADHOC!N$4:N$84,ADHOC!$A$4:$A$84,$B69,ADHOC!$B$4:$B$84,$C69,ADHOC!$C$4:$C$84,$D69) -> 39781110 | P69: =SUMIFS(ADHOC!O$4:O$84,ADHOC!$A$4:$A$84,$B69,ADHOC!$B$4:$B$84,$C69,ADHOC!$C$4:$C$84,$D69) -> 41207379 | Q69: =SUMIFS(ADHOC!P$4:P$84,ADHOC!$A$4:$A$84,$B69,ADHOC!$B$4:$B$84,$C69,ADHOC!$C$4:$C$84,$D69) -> 71427654 | R69: =SUMIFS(ADHOC!Q$4:Q$84,ADHOC!$A$4:$A$84,$B69,ADHOC!$B$4:$B$84,$C69,ADHOC!$C$4:$C$84,$D69) -> 53810514 | S69: =SUMIFS(ADHOC!R$4:R$84,ADHOC!$A$4:$A$84,$B69,ADHOC!$B$4:$B$84,$C69,ADHOC!$C$4:$C$84,$D69) -> 74354519 | T69: =SUMIFS(ADHOC!S$4:S$84,ADHOC!$A$4:$A$84,$B69,ADHOC!$B$4:$B$84,$C69,ADHOC!$C$4:$C$84,$D69) -> 63324680 | U69: =SUMIFS(ADHOC!T$4:T$84,ADHOC!$A$4:$A$84,$B69,ADHOC!$B$4:$B$84,$C69,ADHOC!$C$4:$C$84,$D69) -> 72735206 | V69: =SUMIFS(ADHOC!U$4:U$84,ADHOC!$A$4:$A$84,$B69,ADHOC!$B$4:$B$84,$C69,ADHOC!$C$4:$C$84,$D69) -> 50379539 | W69: =SUMIFS(ADHOC!V$4:V$84,ADHOC!$A$4:$A$84,$B69,ADHOC!$B$4:$B$84,$C69,ADHOC!$C$4:$C$84,$D69) -> 65197784 | X69: =SUMIFS(ADHOC!W$4:W$84,ADHOC!$A$4:$A$84,$B69,ADHOC!$B$4:$B$84,$C69,ADHOC!$C$4:$C$84,$D69) -> 42131822 | Y69: =SUMIFS(ADHOC!X$4:X$84,ADHOC!$A$4:$A$84,$B69,ADHOC!$B$4:$B$84,$C69,ADHOC!$C$4:$C$84,$D69) -> 63986553 | Z69: =SUMIFS(ADHOC!Y$4:Y$84,ADHOC!$A$4:$A$84,$B69,ADHOC!$B$4:$B$84,$C69,ADHOC!$C$4:$C$84,$D69) -> 83871389 | AA69: =SUMIFS(ADHOC!Z$4:Z$84,ADHOC!$A$4:$A$84,$B69,ADHOC!$B$4:$B$84,$C69,ADHOC!$C$4:$C$84,$D69) -> 57162952 | AB69: =SUMIFS(ADHOC!AA$4:AA$84,ADHOC!$A$4:$A$84,$B69,ADHOC!$B$4:$B$84,$C69,ADHOC!$C$4:$C$84,$D69) -> 35712080
A70: 69 | B70: 32405 | C70: Secteur 9 | D70: Rayon 69 | E70: =SUMIFS(ADHOC!D$4:D$84,ADHOC!$A$4:$A$84,$B70,ADHOC!$B$4:$B$84,$C70,ADHOC!$C$4:$C$84,$D70) -> 79853164 | F70: =SUMIFS(ADHOC!E$4:E$84,ADHOC!$A$4:$A$84,$B70,ADHOC!$B$4:$B$84,$C70,ADHOC!$C$4:$C$84,$D70) -> 45008270 | G70: =SUMIFS(ADHOC!F$4:F$84,ADHOC!$A$4:$A$84,$B70,ADHOC!$B$4:$B$84,$C70,ADHOC!$C$4:$C$84,$D70) -> 66229200 | H70: =SUMIFS(ADHOC!G$4:G$84,ADHOC!$A$4:$A$84,$B70,ADHOC!$B$4:$B$84,$C70,ADHOC!$C$4:$C$84,$D70) -> 35807421 | I70: =SUMIFS(ADHOC!H$4:H$84,ADHOC!$A$4:$A$84,$B70,ADHOC!$B$4:$B$84,$C70,ADHOC!$C$4:$C$84,$D70) -> 81587483 | J70: =SUMIFS(ADHOC!I$4:I$84,ADHOC!$A$4:$A$84,$B70,ADHOC!$B$4:$B$84,$C70,ADHOC!$C$4:$C$84,$D70) -> 68140036 | K70: =SUMIFS(ADHOC!J$4:J$84,ADHOC!$A$4:$A$84,$B70,ADHOC!$B$4:$B$84,$C70,ADHOC!$C$4:$C$84,$D70) -> 57464925 | L70: =SUMIFS(ADHOC!K$4:K$84,ADHOC!$A$4:$A$84,$B70,ADHOC!$B$4:$B$84,$C70,ADHOC!$C$4:$C$84,$D70) -> 50819536 | M70: =SUMIFS(ADHOC!L$4:L$84,ADHOC!$A$4:$A$84,$B70,ADHOC!$B$4:$B$84,$C70,ADHOC!$C$4:$C$84,$D70) -> 68078376 | N70: =SUMIFS(ADHOC!M$4:M$84,ADHOC!$A$4:$A$84,$B70,ADHOC!$B$4:$B$84,$C70,ADHOC!$C$4:$C$84,$D70) -> 57656356 | O70: =SUMIFS(ADHOC!N$4:N$84,ADHOC!$A$4:$A$84,$B70,ADHOC!$B$4:$B$84,$C70,ADHOC!$C$4:$C$84,$D70) -> 67787320 | P70: =SUMIFS(ADHOC!O$4:O$84,ADHOC!$A$4:$A$84,$B70,ADHOC!$B$4:$B$84,$C70,ADHOC!$C$4:$C$84,$D70) -> 51238925 | Q70: =SUMIFS(ADHOC!P$4:P$84,ADHOC!$A$4:$A$84,$B70,ADHOC!$B$4:$B$84,$C70,ADHOC!$C$4:$C$84,$D70) -> 59853358 | R70: =SUMIFS(ADHOC!Q$4:Q$84,ADHOC!$A$4:$A$84,$B70,ADHOC!$B$4:$B$84,$C70,ADHOC!$C$4:$C$84,$D70) -> 48714771 | S70: =SUMIFS(ADHOC!R$4:R$84,ADHOC!$A$4:$A$84,$B70,ADHOC!$B$4:$B$84,$C70,ADHOC!$C$4:$C$84,$D70) -> 57498529 | T70: =SUMIFS(ADHOC!S$4:S$84,ADHOC!$A$4:$A$84,$B70,ADHOC!$B$4:$B$84,$C70,ADHOC!$C$4:$C$84,$D70) -> 63346632 | U70: =SUMIFS(ADHOC!T$4:T$84,ADHOC!$A$4:$A$84,$B70,ADHOC!$B$4:$B$84,$C70,ADHOC!$C$4:$C$84,$D70) -> 54882170 | V70: =SUMIFS(ADHOC!U$4:U$84,ADHOC!$A$4:$A$84,$B70,ADHOC!$B$4:$B$84,$C70,ADHOC!$C$4:$C$84,$D70) -> 79251015 | W70: =SUMIFS(ADHOC!V$4:V$84,ADHOC!$A$4:$A$84,$B70,ADHOC!$B$4:$B$84,$C70,ADHOC!$C$4:$C$84,$D70) -> 58233260 | X70: =SUMIFS(ADHOC!W$4:W$84,ADHOC!$A$4:$A$84,$B70,ADHOC!$B$4:$B$84,$C70,ADHOC!$C$4:$C$84,$D70) -> 48061810 | Y70: =SUMIFS(ADHOC!X$4:X$84,ADHOC!$A$4:$A$84,$B70,ADHOC!$B$4:$B$84,$C70,ADHOC!$C$4:$C$84,$D70) -> 62112549 | Z70: =SUMIFS(ADHOC!Y$4:Y$84,ADHOC!$A$4:$A$84,$B70,ADHOC!$B$4:$B$84,$C70,ADHOC!$C$4:$C$84,$D70) -> 74493912 | AA70: =SUMIFS(ADHOC!Z$4:Z$84,ADHOC!$A$4:$A$84,$B70,ADHOC!$B$4:$B$84,$C70,ADHOC!$C$4:$C$84,$D70) -> 62079690 | AB70: =SUMIFS(ADHOC!AA$4:AA$84,ADHOC!$A$4:$A$84,$B70,ADHOC!$B$4:$B$84,$C70,ADHOC!$C$4:$C$84,$D70) -> 47272418
A71: 70 | B71: 32435 | C71: Secteur 9 | D71: Rayon 70 | E71: =SUMIFS(ADHOC!D$4:D$84,ADHOC!$A$4:$A$84,$B71,ADHOC!$B$4:$B$84,$C71,ADHOC!$C$4:$C$84,$D71) -> 52925582 | F71: =SUMIFS(ADHOC!E$4:E$84,ADHOC!$A$4:$A$84,$B71,ADHOC!$B$4:$B$84,$C71,ADHOC!$C$4:$C$84,$D71) -> 44158940 | G71: =SUMIFS(ADHOC!F$4:F$84,ADHOC!$A$4:$A$84,$B71,ADHOC!$B$4:$B$84,$C71,ADHOC!$C$4:$C$84,$D71) -> 74610392 | H71: =SUMIFS(ADHOC!G$4:G$84,ADHOC!$A$4:$A$84,$B71,ADHOC!$B$4:$B$84,$C71,ADHOC!$C$4:$C$84,$D71) -> 37715830 | I71: =SUMIFS(ADHOC!H$4:H$84,ADHOC!$A$4:$A$84,$B71,ADHOC!$B$4:$B$84,$C71,ADHOC!$C$4:$C$84,$D71) -> 75545557 | J71: =SUMIFS(ADHOC!I$4:I$84,ADHOC!$A$4:$A$84,$B71,ADHOC!$B$4:$B$84,$C71,ADHOC!$C$4:$C$84,$D71) -> 63449974 | K71: =SUMIFS(ADHOC!J$4:J$84,ADHOC!$A$4:$A$84,$B71,ADHOC!$B$4:$B$84,$C71,ADHOC!$C$4:$C$84,$D71) -> 77283403 | L71: =SUMIFS(ADHOC!K$4:K$84,ADHOC!$A$4:$A$84,$B71,ADHOC!$B$4:$B$84,$C71,ADHOC!$C$4:$C$84,$D71) -> 58545574 | M71: =SUMIFS(ADHOC!L$4:L$84,ADHOC!$A$4:$A$84,$B71,ADHOC!$B$4:$B$84,$C71,ADHOC!$C$4:$C$84,$D71) -> 60792066 | N71: =SUMIFS(ADHOC!M$4:M$84,ADHOC!$A$4:$A$84,$B71,ADHOC!$B$4:$B$84,$C71,ADHOC!$C$4:$C$84,$D71) -> 79553572 | O71: =SUMIFS(ADHOC!N$4:N$84,ADHOC!$A$4:$A$84,$B71,ADHOC!$B$4:$B$84,$C71,ADHOC!$C$4:$C$84,$D71) -> 69757797 | P71: =SUMIFS(ADHOC!O$4:O$84,ADHOC!$A$4:$A$84,$B71,ADHOC!$B$4:$B$84,$C71,ADHOC!$C$4:$C$84,$D71) -> 73390755 | Q71: =SUMIFS(ADHOC!P$4:P$84,ADHOC!$A$4:$A$84,$B71,ADHOC!$B$4:$B$84,$C71,ADHOC!$C$4:$C$84,$D71) -> 46126118 | R71: =SUMIFS(ADHOC!Q$4:Q$84,ADHOC!$A$4:$A$84,$B71,ADHOC!$B$4:$B$84,$C71,ADHOC!$C$4:$C$84,$D71) -> 79010483 | S71: =SUMIFS(ADHOC!R$4:R$84,ADHOC!$A$4:$A$84,$B71,ADHOC!$B$4:$B$84,$C71,ADHOC!$C$4:$C$84,$D71) -> 46155619 | T71: =SUMIFS(ADHOC!S$4:S$84,ADHOC!$A$4:$A$84,$B71,ADHOC!$B$4:$B$84,$C71,ADHOC!$C$4:$C$84,$D71) -> 73450204 | U71: =SUMIFS(ADHOC!T$4:T$84,ADHOC!$A$4:$A$84,$B71,ADHOC!$B$4:$B$84,$C71,ADHOC!$C$4:$C$84,$D71) -> 61568836 | V71: =SUMIFS(ADHOC!U$4:U$84,ADHOC!$A$4:$A$84,$B71,ADHOC!$B$4:$B$84,$C71,ADHOC!$C$4:$C$84,$D71) -> 60885896 | W71: =SUMIFS(ADHOC!V$4:V$84,ADHOC!$A$4:$A$84,$B71,ADHOC!$B$4:$B$84,$C71,ADHOC!$C$4:$C$84,$D71) -> 59588771 | X71: =SUMIFS(ADHOC!W$4:W$84,ADHOC!$A$4:$A$84,$B71,ADHOC!$B$4:$B$84,$C71,ADHOC!$C$4:$C$84,$D71) -> 46464576 | Y71: =SUMIFS(ADHOC!X$4:X$84,ADHOC!$A$4:$A$84,$B71,ADHOC!$B$4:$B$84,$C71,ADHOC!$C$4:$C$84,$D71) -> 69856759 | Z71: =SUMIFS(ADHOC!Y$4:Y$84,ADHOC!$A$4:$A$84,$B71,ADHOC!$B$4:$B$84,$C71,ADHOC!$C$4:$C$84,$D71) -> 78741352 | AA71: =SUMIFS(ADHOC!Z$4:Z$84,ADHOC!$A$4:$A$84,$B71,ADHOC!$B$4:$B$84,$C71,ADHOC!$C$4:$C$84,$D71) -> 57507006 | AB71: =SUMIFS(ADHOC!AA$4:AA$84,ADHOC!$A$4:$A$84,$B71,ADHOC!$B$4:$B$84,$C71,ADHOC!$C$4:$C$84,$D71) -> 63728733
A72: 71 | B72: 33249 | C72: Secteur 9 | D72: Rayon 71 | E72: =SUMIFS(ADHOC!D$4:D$84,ADHOC!$A$4:$A$84,$B72,ADHOC!$B$4:$B$84,$C72,ADHOC!$C$4:$C$84,$D72) -> 60362629 | F72: =SUMIFS(ADHOC!E$4:E$84,ADHOC!$A$4:$A$84,$B72,ADHOC!$B$4:$B$84,$C72,ADHOC!$C$4:$C$84,$D72) -> 54250083 | G72: =SUMIFS(ADHOC!F$4:F$84,ADHOC!$A$4:$A$84,$B72,ADHOC!$B$4:$B$84,$C72,ADHOC!$C$4:$C$84,$D72) -> 55108370 | H72: =SUMIFS(ADHOC!G$4:G$84,ADHOC!$A$4:$A$84,$B72,ADHOC!$B$4:$B$84,$C72,ADHOC!$C$4:$C$84,$D72) -> 40276519 | I72: =SUMIFS(ADHOC!H$4:H$84,ADHOC!$A$4:$A$84,$B72,ADHOC!$B$4:$B$84,$C72,ADHOC!$C$4:$C$84,$D72) -> 78502629 | J72: =SUMIFS(ADHOC!I$4:I$84,ADHOC!$A$4:$A$84,$B72,ADHOC!$B$4:$B$84,$C72,ADHOC!$C$4:$C$84,$D72) -> 44680175 | K72: =SUMIFS(ADHOC!J$4:J$84,ADHOC!$A$4:$A$84,$B72,ADHOC!$B$4:$B$84,$C72,ADHOC!$C$4:$C$84,$D72) -> 60837965 | L72: =SUMIFS(ADHOC!K$4:K$84,ADHOC!$A$4:$A$84,$B72,ADHOC!$B$4:$B$84,$C72,ADHOC!$C$4:$C$84,$D72) -> 41728324 | M72: =SUMIFS(ADHOC!L$4:L$84,ADHOC!$A$4:$A$84,$B72,ADHOC!$B$4:$B$84,$C72,ADHOC!$C$4:$C$84,$D72) -> 71212932 | N72: =SUMIFS(ADHOC!M$4:M$84,ADHOC!$A$4:$A$84,$B72,ADHOC!$B$4:$B$84,$C72,ADHOC!$C$4:$C$84,$D72) -> 46670155 | O72: =SUMIFS(ADHOC!N$4:N$84,ADHOC!$A$4:$A$84,$B72,ADHOC!$B$4:$B$84,$C72,ADHOC!$C$4:$C$84,$D72) -> 77543358 | P72: =SUMIFS(ADHOC!O$4:O$84,ADHOC!$A$4:$A$84,$B72,ADHOC!$B$4:$B$84,$C72,ADHOC!$C$4:$C$84,$D72) -> 61778323 | Q72: =SUMIFS(ADHOC!P$4:P$84,ADHOC!$A$4:$A$84,$B72,ADHOC!$B$4:$B$84,$C72,ADHOC!$C$4:$C$84,$D72) -> 60483910 | R72: =SUMIFS(ADHOC!Q$4:Q$84,ADHOC!$A$4:$A$84,$B72,ADHOC!$B$4:$B$84,$C72,ADHOC!$C$4:$C$84,$D72) -> 72709660 | S72: =SUMIFS(ADHOC!R$4:R$84,ADHOC!$A$4:$A$84,$B72,ADHOC!$B$4:$B$84,$C72,ADHOC!$C$4:$C$84,$D72) -> 65733040 | T72: =SUMIFS(ADHOC!S$4:S$84,ADHOC!$A$4:$A$84,$B72,ADHOC!$B$4:$B$84,$C72,ADHOC!$C$4:$C$84,$D72) -> 46190783 | U72: =SUMIFS(ADHOC!T$4:T$84,ADHOC!$A$4:$A$84,$B72,ADHOC!$B$4:$B$84,$C72,ADHOC!$C$4:$C$84,$D72) -> 57556019 | V72: =SUMIFS(ADHOC!U$4:U$84,ADHOC!$A$4:$A$84,$B72,ADHOC!$B$4:$B$84,$C72,ADHOC!$C$4:$C$84,$D72) -> 59291706 | W72: =SUMIFS(ADHOC!V$4:V$84,ADHOC!$A$4:$A$84,$B72,ADHOC!$B$4:$B$84,$C72,ADHOC!$C$4:$C$84,$D72) -> 82803637 | X72: =SUMIFS(ADHOC!W$4:W$84,ADHOC!$A$4:$A$84,$B72,ADHOC!$B$4:$B$84,$C72,ADHOC!$C$4:$C$84,$D72) -> 72793977 | Y72: =SUMIFS(ADHOC!X$4:X$84,ADHOC!$A$4:$A$84,$B72,ADHOC!$B$4:$B$84,$C72,ADHOC!$C$4:$C$84,$D72) -> 51209790 | Z72: =SUMIFS(ADHOC!Y$4:Y$84,ADHOC!$A$4:$A$84,$B72,ADHOC!$B$4:$B$84,$C72,ADHOC!$C$4:$C$84,$D72) -> 68715892 | AA72: =SUMIFS(ADHOC!Z$4:Z$84,ADHOC!$A$4:$A$84,$B72,ADHOC!$B$4:$B$84,$C72,ADHOC!$C$4:$C$84,$D72) -> 36131423 | AB72: =SUMIFS(ADHOC!AA$4:AA$84,ADHOC!$A$4:$A$84,$B72,ADHOC!$B$4:$B$84,$C72,ADHOC!$C$4:$C$84,$D72) -> 73346063
A73: 72 | B73: 33639 | C73: Secteur 9 | D73: Rayon 72 | E73: =SUMIFS(ADHOC!D$4:D$84,ADHOC!$A$4:$A$84,$B73,ADHOC!$B$4:$B$84,$C73,ADHOC!$C$4:$C$84,$D73) -> 83896289 | F73: =SUMIFS(ADHOC!E$4:E$84,ADHOC!$A$4:$A$84,$B73,ADHOC!$B$4:$B$84,$C73,ADHOC!$C$4:$C$84,$D73) -> 79289007 | G73: =SUMIFS(ADHOC!F$4:F$84,ADHOC!$A$4:$A$84,$B73,ADHOC!$B$4:$B$84,$C73,ADHOC!$C$4:$C$84,$D73) -> 41204942 | H73: =SUMIFS(ADHOC!G$4:G$84,ADHOC!$A$4:$A$84,$B73,ADHOC!$B$4:$B$84,$C73,ADHOC!$C$4:$C$84,$D73) -> 65603066 | I73: =SUMIFS(ADHOC!H$4:H$84,ADHOC!$A$4:$A$84,$B73,ADHOC!$B$4:$B$84,$C73,ADHOC!$C$4:$C$84,$D73) -> 54559236 | J73: =SUMIFS(ADHOC!I$4:I$84,ADHOC!$A$4:$A$84,$B73,ADHOC!$B$4:$B$84,$C73,ADHOC!$C$4:$C$84,$D73) -> 63345863 | K73: =SUMIFS(ADHOC!J$4:J$84,ADHOC!$A$4:$A$84,$B73,ADHOC!$B$4:$B$84,$C73,ADHOC!$C$4:$C$84,$D73) -> 71213787 | L73: =SUMIFS(ADHOC!K$4:K$84,ADHOC!$A$4:$A$84,$B73,ADHOC!$B$4:$B$84,$C73,ADHOC!$C$4:$C$84,$D73) -> 66026962 | M73: =SUMIFS(ADHOC!L$4:L$84,ADHOC!$A$4:$A$84,$B73,ADHOC!$B$4:$B$84,$C73,ADHOC!$C$4:$C$84,$D73) -> 54019672 | N73: =SUMIFS(ADHOC!M$4:M$84,ADHOC!$A$4:$A$84,$B73,ADHOC!$B$4:$B$84,$C73,ADHOC!$C$4:$C$84,$D73) -> 39869649 | O73: =SUMIFS(ADHOC!N$4:N$84,ADHOC!$A$4:$A$84,$B73,ADHOC!$B$4:$B$84,$C73,ADHOC!$C$4:$C$84,$D73) -> 35847197 | P73: =SUMIFS(ADHOC!O$4:O$84,ADHOC!$A$4:$A$84,$B73,ADHOC!$B$4:$B$84,$C73,ADHOC!$C$4:$C$84,$D73) -> 37163616 | Q73: =SUMIFS(ADHOC!P$4:P$84,ADHOC!$A$4:$A$84,$B73,ADHOC!$B$4:$B$84,$C73,ADHOC!$C$4:$C$84,$D73) -> 43426848 | R73: =SUMIFS(ADHOC!Q$4:Q$84,ADHOC!$A$4:$A$84,$B73,ADHOC!$B$4:$B$84,$C73,ADHOC!$C$4:$C$84,$D73) -> 71590751 | S73: =SUMIFS(ADHOC!R$4:R$84,ADHOC!$A$4:$A$84,$B73,ADHOC!$B$4:$B$84,$C73,ADHOC!$C$4:$C$84,$D73) -> 77830714 | T73: =SUMIFS(ADHOC!S$4:S$84,ADHOC!$A$4:$A$84,$B73,ADHOC!$B$4:$B$84,$C73,ADHOC!$C$4:$C$84,$D73) -> 78482478 | U73: =SUMIFS(ADHOC!T$4:T$84,ADHOC!$A$4:$A$84,$B73,ADHOC!$B$4:$B$84,$C73,ADHOC!$C$4:$C$84,$D73) -> 46210338 | V73: =SUMIFS(ADHOC!U$4:U$84,ADHOC!$A$4:$A$84,$B73,ADHOC!$B$4:$B$84,$C73,ADHOC!$C$4:$C$84,$D73) -> 37543848 | W73: =SUMIFS(ADHOC!V$4:V$84,ADHOC!$A$4:$A$84,$B73,ADHOC!$B$4:$B$84,$C73,ADHOC!$C$4:$C$84,$D73) -> 79178273 | X73: =SUMIFS(ADHOC!W$4:W$84,ADHOC!$A$4:$A$84,$B73,ADHOC!$B$4:$B$84,$C73,ADHOC!$C$4:$C$84,$D73) -> 80197569 | Y73: =SUMIFS(ADHOC!X$4:X$84,ADHOC!$A$4:$A$84,$B73,ADHOC!$B$4:$B$84,$C73,ADHOC!$C$4:$C$84,$D73) -> 36409925 | Z73: =SUMIFS(ADHOC!Y$4:Y$84,ADHOC!$A$4:$A$84,$B73,ADHOC!$B$4:$B$84,$C73,ADHOC!$C$4:$C$84,$D73) -> 71294890 | AA73: =SUMIFS(ADHOC!Z$4:Z$84,ADHOC!$A$4:$A$84,$B73,ADHOC!$B$4:$B$84,$C73,ADHOC!$C$4:$C$84,$D73) -> 39671583 | AB73: =SUMIFS(ADHOC!AA$4:AA$84,ADHOC!$A$4:$A$84,$B73,ADHOC!$B$4:$B$84,$C73,ADHOC!$C$4:$C$84,$D73) -> 44864260
A74: 73 | B74: 32329 | C74: Secteur 9 | D74: Rayon 73 | E74: =SUMIFS(ADHOC!D$4:D$84,ADHOC!$A$4:$A$84,$B74,ADHOC!$B$4:$B$84,$C74,ADHOC!$C$4:$C$84,$D74) -> 72269991 | F74: =SUMIFS(ADHOC!E$4:E$84,ADHOC!$A$4:$A$84,$B74,ADHOC!$B$4:$B$84,$C74,ADHOC!$C$4:$C$84,$D74) -> 41606122 | G74: =SUMIFS(ADHOC!F$4:F$84,ADHOC!$A$4:$A$84,$B74,ADHOC!$B$4:$B$84,$C74,ADHOC!$C$4:$C$84,$D74) -> 53345407 | H74: =SUMIFS(ADHOC!G$4:G$84,ADHOC!$A$4:$A$84,$B74,ADHOC!$B$4:$B$84,$C74,ADHOC!$C$4:$C$84,$D74) -> 47655439 | I74: =SUMIFS(ADHOC!H$4:H$84,ADHOC!$A$4:$A$84,$B74,ADHOC!$B$4:$B$84,$C74,ADHOC!$C$4:$C$84,$D74) -> 60752809 | J74: =SUMIFS(ADHOC!I$4:I$84,ADHOC!$A$4:$A$84,$B74,ADHOC!$B$4:$B$84,$C74,ADHOC!$C$4:$C$84,$D74) -> 52235409 | K74: =SUMIFS(ADHOC!J$4:J$84,ADHOC!$A$4:$A$84,$B74,ADHOC!$B$4:$B$84,$C74,ADHOC!$C$4:$C$84,$D74) -> 79071208 | L74: =SUMIFS(ADHOC!K$4:K$84,ADHOC!$A$4:$A$84,$B74,ADHOC!$B$4:$B$84,$C74,ADHOC!$C$4:$C$84,$D74) -> 55190735 | M74: =SUMIFS(ADHOC!L$4:L$84,ADHOC!$A$4:$A$84,$B74,ADHOC!$B$4:$B$84,$C74,ADHOC!$C$4:$C$84,$D74) -> 47887430 | N74: =SUMIFS(ADHOC!M$4:M$84,ADHOC!$A$4:$A$84,$B74,ADHOC!$B$4:$B$84,$C74,ADHOC!$C$4:$C$84,$D74) -> 80874360 | O74: =SUMIFS(ADHOC!N$4:N$84,ADHOC!$A$4:$A$84,$B74,ADHOC!$B$4:$B$84,$C74,ADHOC!$C$4:$C$84,$D74) -> 61494731 | P74: =SUMIFS(ADHOC!O$4:O$84,ADHOC!$A$4:$A$84,$B74,ADHOC!$B$4:$B$84,$C74,ADHOC!$C$4:$C$84,$D74) -> 81086104 | Q74: =SUMIFS(ADHOC!P$4:P$84,ADHOC!$A$4:$A$84,$B74,ADHOC!$B$4:$B$84,$C74,ADHOC!$C$4:$C$84,$D74) -> 78291848 | R74: =SUMIFS(ADHOC!Q$4:Q$84,ADHOC!$A$4:$A$84,$B74,ADHOC!$B$4:$B$84,$C74,ADHOC!$C$4:$C$84,$D74) -> 82085703 | S74: =SUMIFS(ADHOC!R$4:R$84,ADHOC!$A$4:$A$84,$B74,ADHOC!$B$4:$B$84,$C74,ADHOC!$C$4:$C$84,$D74) -> 59476542 | T74: =SUMIFS(ADHOC!S$4:S$84,ADHOC!$A$4:$A$84,$B74,ADHOC!$B$4:$B$84,$C74,ADHOC!$C$4:$C$84,$D74) -> 54716295 | U74: =SUMIFS(ADHOC!T$4:T$84,ADHOC!$A$4:$A$84,$B74,ADHOC!$B$4:$B$84,$C74,ADHOC!$C$4:$C$84,$D74) -> 63220725 | V74: =SUMIFS(ADHOC!U$4:U$84,ADHOC!$A$4:$A$84,$B74,ADHOC!$B$4:$B$84,$C74,ADHOC!$C$4:$C$84,$D74) -> 44000639 | W74: =SUMIFS(ADHOC!V$4:V$84,ADHOC!$A$4:$A$84,$B74,ADHOC!$B$4:$B$84,$C74,ADHOC!$C$4:$C$84,$D74) -> 73666223 | X74: =SUMIFS(ADHOC!W$4:W$84,ADHOC!$A$4:$A$84,$B74,ADHOC!$B$4:$B$84,$C74,ADHOC!$C$4:$C$84,$D74) -> 54323668 | Y74: =SUMIFS(ADHOC!X$4:X$84,ADHOC!$A$4:$A$84,$B74,ADHOC!$B$4:$B$84,$C74,ADHOC!$C$4:$C$84,$D74) -> 81838028 | Z74: =SUMIFS(ADHOC!Y$4:Y$84,ADHOC!$A$4:$A$84,$B74,ADHOC!$B$4:$B$84,$C74,ADHOC!$C$4:$C$84,$D74) -> 55931033 | AA74: =SUMIFS(ADHOC!Z$4:Z$84,ADHOC!$A$4:$A$84,$B74,ADHOC!$B$4:$B$84,$C74,ADHOC!$C$4:$C$84,$D74) -> 74496002 | AB74: =SUMIFS(ADHOC!AA$4:AA$84,ADHOC!$A$4:$A$84,$B74,ADHOC!$B$4:$B$84,$C74,ADHOC!$C$4:$C$84,$D74) -> 49313619
A75: 74 | B75: 33599 | C75: Secteur 9 | D75: Rayon 74 | E75: =SUMIFS(ADHOC!D$4:D$84,ADHOC!$A$4:$A$84,$B75,ADHOC!$B$4:$B$84,$C75,ADHOC!$C$4:$C$84,$D75) -> 46492825 | F75: =SUMIFS(ADHOC!E$4:E$84,ADHOC!$A$4:$A$84,$B75,ADHOC!$B$4:$B$84,$C75,ADHOC!$C$4:$C$84,$D75) -> 47497912 | G75: =SUMIFS(ADHOC!F$4:F$84,ADHOC!$A$4:$A$84,$B75,ADHOC!$B$4:$B$84,$C75,ADHOC!$C$4:$C$84,$D75) -> 71466522 | H75: =SUMIFS(ADHOC!G$4:G$84,ADHOC!$A$4:$A$84,$B75,ADHOC!$B$4:$B$84,$C75,ADHOC!$C$4:$C$84,$D75) -> 45728696 | I75: =SUMIFS(ADHOC!H$4:H$84,ADHOC!$A$4:$A$84,$B75,ADHOC!$B$4:$B$84,$C75,ADHOC!$C$4:$C$84,$D75) -> 81641915 | J75: =SUMIFS(ADHOC!I$4:I$84,ADHOC!$A$4:$A$84,$B75,ADHOC!$B$4:$B$84,$C75,ADHOC!$C$4:$C$84,$D75) -> 60391461 | K75: =SUMIFS(ADHOC!J$4:J$84,ADHOC!$A$4:$A$84,$B75,ADHOC!$B$4:$B$84,$C75,ADHOC!$C$4:$C$84,$D75) -> 49310977 | L75: =SUMIFS(ADHOC!K$4:K$84,ADHOC!$A$4:$A$84,$B75,ADHOC!$B$4:$B$84,$C75,ADHOC!$C$4:$C$84,$D75) -> 45299925 | M75: =SUMIFS(ADHOC!L$4:L$84,ADHOC!$A$4:$A$84,$B75,ADHOC!$B$4:$B$84,$C75,ADHOC!$C$4:$C$84,$D75) -> 73835616 | N75: =SUMIFS(ADHOC!M$4:M$84,ADHOC!$A$4:$A$84,$B75,ADHOC!$B$4:$B$84,$C75,ADHOC!$C$4:$C$84,$D75) -> 56708970 | O75: =SUMIFS(ADHOC!N$4:N$84,ADHOC!$A$4:$A$84,$B75,ADHOC!$B$4:$B$84,$C75,ADHOC!$C$4:$C$84,$D75) -> 51164968 | P75: =SUMIFS(ADHOC!O$4:O$84,ADHOC!$A$4:$A$84,$B75,ADHOC!$B$4:$B$84,$C75,ADHOC!$C$4:$C$84,$D75) -> 67459353 | Q75: =SUMIFS(ADHOC!P$4:P$84,ADHOC!$A$4:$A$84,$B75,ADHOC!$B$4:$B$84,$C75,ADHOC!$C$4:$C$84,$D75) -> 61990735 | R75: =SUMIFS(ADHOC!Q$4:Q$84,ADHOC!$A$4:$A$84,$B75,ADHOC!$B$4:$B$84,$C75,ADHOC!$C$4:$C$84,$D75) -> 50712604 | S75: =SUMIFS(ADHOC!R$4:R$84,ADHOC!$A$4:$A$84,$B75,ADHOC!$B$4:$B$84,$C75,ADHOC!$C$4:$C$84,$D75) -> 50051260 | T75: =SUMIFS(ADHOC!S$4:S$84,ADHOC!$A$4:$A$84,$B75,ADHOC!$B$4:$B$84,$C75,ADHOC!$C$4:$C$84,$D75) -> 78230795 | U75: =SUMIFS(ADHOC!T$4:T$84,ADHOC!$A$4:$A$84,$B75,ADHOC!$B$4:$B$84,$C75,ADHOC!$C$4:$C$84,$D75) -> 38961600 | V75: =SUMIFS(ADHOC!U$4:U$84,ADHOC!$A$4:$A$84,$B75,ADHOC!$B$4:$B$84,$C75,ADHOC!$C$4:$C$84,$D75) -> 75930562 | W75: =SUMIFS(ADHOC!V$4:V$84,ADHOC!$A$4:$A$84,$B75,ADHOC!$B$4:$B$84,$C75,ADHOC!$C$4:$C$84,$D75) -> 73852945 | X75: =SUMIFS(ADHOC!W$4:W$84,ADHOC!$A$4:$A$84,$B75,ADHOC!$B$4:$B$84,$C75,ADHOC!$C$4:$C$84,$D75) -> 60811647 | Y75: =SUMIFS(ADHOC!X$4:X$84,ADHOC!$A$4:$A$84,$B75,ADHOC!$B$4:$B$84,$C75,ADHOC!$C$4:$C$84,$D75) -> 54628876 | Z75: =SUMIFS(ADHOC!Y$4:Y$84,ADHOC!$A$4:$A$84,$B75,ADHOC!$B$4:$B$84,$C75,ADHOC!$C$4:$C$84,$D75) -> 67558660 | AA75: =SUMIFS(ADHOC!Z$4:Z$84,ADHOC!$A$4:$A$84,$B75,ADHOC!$B$4:$B$84,$C75,ADHOC!$C$4:$C$84,$D75) -> 83499182 | AB75: =SUMIFS(ADHOC!AA$4:AA$84,ADHOC!$A$4:$A$84,$B75,ADHOC!$B$4:$B$84,$C75,ADHOC!$C$4:$C$84,$D75) -> 47566707
A76: 75 | B76: 32046 | C76: Secteur 9 | D76: Rayon 75 | E76: =SUMIFS(ADHOC!D$4:D$84,ADHOC!$A$4:$A$84,$B76,ADHOC!$B$4:$B$84,$C76,ADHOC!$C$4:$C$84,$D76) -> 75996327 | F76: =SUMIFS(ADHOC!E$4:E$84,ADHOC!$A$4:$A$84,$B76,ADHOC!$B$4:$B$84,$C76,ADHOC!$C$4:$C$84,$D76) -> 66939568 | G76: =SUMIFS(ADHOC!F$4:F$84,ADHOC!$A$4:$A$84,$B76,ADHOC!$B$4:$B$84,$C76,ADHOC!$C$4:$C$84,$D76) -> 47869809 | H76: =SUMIFS(ADHOC!G$4:G$84,ADHOC!$A$4:$A$84,$B76,ADHOC!$B$4:$B$84,$C76,ADHOC!$C$4:$C$84,$D76) -> 70837921 | I76: =SUMIFS(ADHOC!H$4:H$84,ADHOC!$A$4:$A$84,$B76,ADHOC!$B$4:$B$84,$C76,ADHOC!$C$4:$C$84,$D76) -> 38028740 | J76: =SUMIFS(ADHOC!I$4:I$84,ADHOC!$A$4:$A$84,$B76,ADHOC!$B$4:$B$84,$C76,ADHOC!$C$4:$C$84,$D76) -> 63325557 | K76: =SUMIFS(ADHOC!J$4:J$84,ADHOC!$A$4:$A$84,$B76,ADHOC!$B$4:$B$84,$C76,ADHOC!$C$4:$C$84,$D76) -> 57751353 | L76: =SUMIFS(ADHOC!K$4:K$84,ADHOC!$A$4:$A$84,$B76,ADHOC!$B$4:$B$84,$C76,ADHOC!$C$4:$C$84,$D76) -> 71966062 | M76: =SUMIFS(ADHOC!L$4:L$84,ADHOC!$A$4:$A$84,$B76,ADHOC!$B$4:$B$84,$C76,ADHOC!$C$4:$C$84,$D76) -> 78329138 | N76: =SUMIFS(ADHOC!M$4:M$84,ADHOC!$A$4:$A$84,$B76,ADHOC!$B$4:$B$84,$C76,ADHOC!$C$4:$C$84,$D76) -> 61694275 | O76: =SUMIFS(ADHOC!N$4:N$84,ADHOC!$A$4:$A$84,$B76,ADHOC!$B$4:$B$84,$C76,ADHOC!$C$4:$C$84,$D76) -> 62856860 | P76: =SUMIFS(ADHOC!O$4:O$84,ADHOC!$A$4:$A$84,$B76,ADHOC!$B$4:$B$84,$C76,ADHOC!$C$4:$C$84,$D76) -> 68060467 | Q76: =SUMIFS(ADHOC!P$4:P$84,ADHOC!$A$4:$A$84,$B76,ADHOC!$B$4:$B$84,$C76,ADHOC!$C$4:$C$84,$D76) -> 79024674 | R76: =SUMIFS(ADHOC!Q$4:Q$84,ADHOC!$A$4:$A$84,$B76,ADHOC!$B$4:$B$84,$C76,ADHOC!$C$4:$C$84,$D76) -> 57177452 | S76: =SUMIFS(ADHOC!R$4:R$84,ADHOC!$A$4:$A$84,$B76,ADHOC!$B$4:$B$84,$C76,ADHOC!$C$4:$C$84,$D76) -> 37621715 | T76: =SUMIFS(ADHOC!S$4:S$84,ADHOC!$A$4:$A$84,$B76,ADHOC!$B$4:$B$84,$C76,ADHOC!$C$4:$C$84,$D76) -> 49149584 | U76: =SUMIFS(ADHOC!T$4:T$84,ADHOC!$A$4:$A$84,$B76,ADHOC!$B$4:$B$84,$C76,ADHOC!$C$4:$C$84,$D76) -> 51834154 | V76: =SUMIFS(ADHOC!U$4:U$84,ADHOC!$A$4:$A$84,$B76,ADHOC!$B$4:$B$84,$C76,ADHOC!$C$4:$C$84,$D76) -> 64198931 | W76: =SUMIFS(ADHOC!V$4:V$84,ADHOC!$A$4:$A$84,$B76,ADHOC!$B$4:$B$84,$C76,ADHOC!$C$4:$C$84,$D76) -> 55160750 | X76: =SUMIFS(ADHOC!W$4:W$84,ADHOC!$A$4:$A$84,$B76,ADHOC!$B$4:$B$84,$C76,ADHOC!$C$4:$C$84,$D76) -> 43940450 | Y76: =SUMIFS(ADHOC!X$4:X$84,ADHOC!$A$4:$A$84,$B76,ADHOC!$B$4:$B$84,$C76,ADHOC!$C$4:$C$84,$D76) -> 54848669 | Z76: =SUMIFS(ADHOC!Y$4:Y$84,ADHOC!$A$4:$A$84,$B76,ADHOC!$B$4:$B$84,$C76,ADHOC!$C$4:$C$84,$D76) -> 65112747 | AA76: =SUMIFS(ADHOC!Z$4:Z$84,ADHOC!$A$4:$A$84,$B76,ADHOC!$B$4:$B$84,$C76,ADHOC!$C$4:$C$84,$D76) -> 48760291 | AB76: =SUMIFS(ADHOC!AA$4:AA$84,ADHOC!$A$4:$A$84,$B76,ADHOC!$B$4:$B$84,$C76,ADHOC!$C$4:$C$84,$D76) -> 75651939
A77: 76 | B77: 33098 | C77: Secteur 9 | D77: Rayon 76 | E77: =SUMIFS(ADHOC!D$4:D$84,ADHOC!$A$4:$A$84,$B77,ADHOC!$B$4:$B$84,$C77,ADHOC!$C$4:$C$84,$D77) -> 38943708 | F77: =SUMIFS(ADHOC!E$4:E$84,ADHOC!$A$4:$A$84,$B77,ADHOC!$B$4:$B$84,$C77,ADHOC!$C$4:$C$84,$D77) -> 76237543 | G77: =SUMIFS(ADHOC!F$4:F$84,ADHOC!$A$4:$A$84,$B77,ADHOC!$B$4:$B$84,$C77,ADHOC!$C$4:$C$84,$D77) -> 76412240 | H77: =SUMIFS(ADHOC!G$4:G$84,ADHOC!$A$4:$A$84,$B77,ADHOC!$B$4:$B$84,$C77,ADHOC!$C$4:$C$84,$D77) -> 60868167 | I77: =SUMIFS(ADHOC!H$4:H$84,ADHOC!$A$4:$A$84,$B77,ADHOC!$B$4:$B$84,$C77,ADHOC!$C$4:$C$84,$D77) -> 77998075 | J77: =SUMIFS(ADHOC!I$4:I$84,ADHOC!$A$4:$A$84,$B77,ADHOC!$B$4:$B$84,$C77,ADHOC!$C$4:$C$84,$D77) -> 73228237 | K77: =SUMIFS(ADHOC!J$4:J$84,ADHOC!$A$4:$A$84,$B77,ADHOC!$B$4:$B$84,$C77,ADHOC!$C$4:$C$84,$D77) -> 52239068 | L77: =SUMIFS(ADHOC!K$4:K$84,ADHOC!$A$4:$A$84,$B77,ADHOC!$B$4:$B$84,$C77,ADHOC!$C$4:$C$84,$D77) -> 44733690 | M77: =SUMIFS(ADHOC!L$4:L$84,ADHOC!$A$4:$A$84,$B77,ADHOC!$B$4:$B$84,$C77,ADHOC!$C$4:$C$84,$D77) -> 74326217 | N77: =SUMIFS(ADHOC!M$4:M$84,ADHOC!$A$4:$A$84,$B77,ADHOC!$B$4:$B$84,$C77,ADHOC!$C$4:$C$84,$D77) -> 47325489 | O77: =SUMIFS(ADHOC!N$4:N$84,ADHOC!$A$4:$A$84,$B77,ADHOC!$B$4:$B$84,$C77,ADHOC!$C$4:$C$84,$D77) -> 66562439 | P77: =SUMIFS(ADHOC!O$4:O$84,ADHOC!$A$4:$A$84,$B77,ADHOC!$B$4:$B$84,$C77,ADHOC!$C$4:$C$84,$D77) -> 65557226 | Q77: =SUMIFS(ADHOC!P$4:P$84,ADHOC!$A$4:$A$84,$B77,ADHOC!$B$4:$B$84,$C77,ADHOC!$C$4:$C$84,$D77) -> 62732629 | R77: =SUMIFS(ADHOC!Q$4:Q$84,ADHOC!$A$4:$A$84,$B77,ADHOC!$B$4:$B$84,$C77,ADHOC!$C$4:$C$84,$D77) -> 46093293 | S77: =SUMIFS(ADHOC!R$4:R$84,ADHOC!$A$4:$A$84,$B77,ADHOC!$B$4:$B$84,$C77,ADHOC!$C$4:$C$84,$D77) -> 53815771 | T77: =SUMIFS(ADHOC!S$4:S$84,ADHOC!$A$4:$A$84,$B77,ADHOC!$B$4:$B$84,$C77,ADHOC!$C$4:$C$84,$D77) -> 75398755 | U77: =SUMIFS(ADHOC!T$4:T$84,ADHOC!$A$4:$A$84,$B77,ADHOC!$B$4:$B$84,$C77,ADHOC!$C$4:$C$84,$D77) -> 64029691 | V77: =SUMIFS(ADHOC!U$4:U$84,ADHOC!$A$4:$A$84,$B77,ADHOC!$B$4:$B$84,$C77,ADHOC!$C$4:$C$84,$D77) -> 76052985 | W77: =SUMIFS(ADHOC!V$4:V$84,ADHOC!$A$4:$A$84,$B77,ADHOC!$B$4:$B$84,$C77,ADHOC!$C$4:$C$84,$D77) -> 80642765 | X77: =SUMIFS(ADHOC!W$4:W$84,ADHOC!$A$4:$A$84,$B77,ADHOC!$B$4:$B$84,$C77,ADHOC!$C$4:$C$84,$D77) -> 38606588 | Y77: =SUMIFS(ADHOC!X$4:X$84,ADHOC!$A$4:$A$84,$B77,ADHOC!$B$4:$B$84,$C77,ADHOC!$C$4:$C$84,$D77) -> 79013276 | Z77: =SUMIFS(ADHOC!Y$4:Y$84,ADHOC!$A$4:$A$84,$B77,ADHOC!$B$4:$B$84,$C77,ADHOC!$C$4:$C$84,$D77) -> 74665420 | AA77: =SUMIFS(ADHOC!Z$4:Z$84,ADHOC!$A$4:$A$84,$B77,ADHOC!$B$4:$B$84,$C77,ADHOC!$C$4:$C$84,$D77) -> 78133443 | AB77: =SUMIFS(ADHOC!AA$4:AA$84,ADHOC!$A$4:$A$84,$B77,ADHOC!$B$4:$B$84,$C77,ADHOC!$C$4:$C$84,$D77) -> 37123335
A78: 77 | B78: 32512 | C78: Secteur 9 | D78: Rayon 77 | E78: =SUMIFS(ADHOC!D$4:D$84,ADHOC!$A$4:$A$84,$B78,ADHOC!$B$4:$B$84,$C78,ADHOC!$C$4:$C$84,$D78) -> 49027866 | F78: =SUMIFS(ADHOC!E$4:E$84,ADHOC!$A$4:$A$84,$B78,ADHOC!$B$4:$B$84,$C78,ADHOC!$C$4:$C$84,$D78) -> 42175374 | G78: =SUMIFS(ADHOC!F$4:F$84,ADHOC!$A$4:$A$84,$B78,ADHOC!$B$4:$B$84,$C78,ADHOC!$C$4:$C$84,$D78) -> 41054070 | H78: =SUMIFS(ADHOC!G$4:G$84,ADHOC!$A$4:$A$84,$B78,ADHOC!$B$4:$B$84,$C78,ADHOC!$C$4:$C$84,$D78) -> 66536931 | I78: =SUMIFS(ADHOC!H$4:H$84,ADHOC!$A$4:$A$84,$B78,ADHOC!$B$4:$B$84,$C78,ADHOC!$C$4:$C$84,$D78) -> 74196280 | J78: =SUMIFS(ADHOC!I$4:I$84,ADHOC!$A$4:$A$84,$B78,ADHOC!$B$4:$B$84,$C78,ADHOC!$C$4:$C$84,$D78) -> 51975525 | K78: =SUMIFS(ADHOC!J$4:J$84,ADHOC!$A$4:$A$84,$B78,ADHOC!$B$4:$B$84,$C78,ADHOC!$C$4:$C$84,$D78) -> 77434612 | L78: =SUMIFS(ADHOC!K$4:K$84,ADHOC!$A$4:$A$84,$B78,ADHOC!$B$4:$B$84,$C78,ADHOC!$C$4:$C$84,$D78) -> 63836003 | M78: =SUMIFS(ADHOC!L$4:L$84,ADHOC!$A$4:$A$84,$B78,ADHOC!$B$4:$B$84,$C78,ADHOC!$C$4:$C$84,$D78) -> 39872141 | N78: =SUMIFS(ADHOC!M$4:M$84,ADHOC!$A$4:$A$84,$B78,ADHOC!$B$4:$B$84,$C78,ADHOC!$C$4:$C$84,$D78) -> 61846673 | O78: =SUMIFS(ADHOC!N$4:N$84,ADHOC!$A$4:$A$84,$B78,ADHOC!$B$4:$B$84,$C78,ADHOC!$C$4:$C$84,$D78) -> 70647609 | P78: =SUMIFS(ADHOC!O$4:O$84,ADHOC!$A$4:$A$84,$B78,ADHOC!$B$4:$B$84,$C78,ADHOC!$C$4:$C$84,$D78) -> 74388019 | Q78: =SUMIFS(ADHOC!P$4:P$84,ADHOC!$A$4:$A$84,$B78,ADHOC!$B$4:$B$84,$C78,ADHOC!$C$4:$C$84,$D78) -> 46016509 | R78: =SUMIFS(ADHOC!Q$4:Q$84,ADHOC!$A$4:$A$84,$B78,ADHOC!$B$4:$B$84,$C78,ADHOC!$C$4:$C$84,$D78) -> 60578572 | S78: =SUMIFS(ADHOC!R$4:R$84,ADHOC!$A$4:$A$84,$B78,ADHOC!$B$4:$B$84,$C78,ADHOC!$C$4:$C$84,$D78) -> 72109065 | T78: =SUMIFS(ADHOC!S$4:S$84,ADHOC!$A$4:$A$84,$B78,ADHOC!$B$4:$B$84,$C78,ADHOC!$C$4:$C$84,$D78) -> 77978260 | U78: =SUMIFS(ADHOC!T$4:T$84,ADHOC!$A$4:$A$84,$B78,ADHOC!$B$4:$B$84,$C78,ADHOC!$C$4:$C$84,$D78) -> 58330627 | V78: =SUMIFS(ADHOC!U$4:U$84,ADHOC!$A$4:$A$84,$B78,ADHOC!$B$4:$B$84,$C78,ADHOC!$C$4:$C$84,$D78) -> 52438431 | W78: =SUMIFS(ADHOC!V$4:V$84,ADHOC!$A$4:$A$84,$B78,ADHOC!$B$4:$B$84,$C78,ADHOC!$C$4:$C$84,$D78) -> 74232973 | X78: =SUMIFS(ADHOC!W$4:W$84,ADHOC!$A$4:$A$84,$B78,ADHOC!$B$4:$B$84,$C78,ADHOC!$C$4:$C$84,$D78) -> 72906514 | Y78: =SUMIFS(ADHOC!X$4:X$84,ADHOC!$A$4:$A$84,$B78,ADHOC!$B$4:$B$84,$C78,ADHOC!$C$4:$C$84,$D78) -> 62985824 | Z78: =SUMIFS(ADHOC!Y$4:Y$84,ADHOC!$A$4:$A$84,$B78,ADHOC!$B$4:$B$84,$C78,ADHOC!$C$4:$C$84,$D78) -> 63021153 | AA78: =SUMIFS(ADHOC!Z$4:Z$84,ADHOC!$A$4:$A$84,$B78,ADHOC!$B$4:$B$84,$C78,ADHOC!$C$4:$C$84,$D78) -> 55886410 | AB78: =SUMIFS(ADHOC!AA$4:AA$84,ADHOC!$A$4:$A$84,$B78,ADHOC!$B$4:$B$84,$C78,ADHOC!$C$4:$C$84,$D78) -> 45392222
